Workbook

Sheet Introduction
A6: Interlocking Concrete Pavement Design Chart
A7: 2011-02-11
A9: Purpose:
A11: The purpose of this worksheet is to estimate the adequate pavement design structures. Designs are based on factors such as traffic, subgrade, relaibility, and service life expectations. This spreadsheet is designed to work with ASCE 58-10: Structural Design of Interlocking Concrete Pavement for Municipal Streets and Roadways.
A12: www.asce.org
A13: ASCE 58-10: Structural Design of Interlocking Concrete Pavement for Municipal Streets and Roadways
A15: Use of Macros:
A17: This spreadsheet uses embedded macros to help solve iterative design equations. If prompted, it is necessary to enable the macros within this spreadsheet.
A19: License Information:
A21: All software and computer program specifications, documentation, procedure manuals, disks and tapes utilized, processed or developed by ARA in connection with this Agreement shall be and remain the exclusive and confidential property of ARA, or of third parties from whom ARA has secured the right to use. ARA grants Licencee a nonexclusive, nontransferable Licence to use the software contained in this package. Licencee owns the media on which the software is loaded, but ARA retains title to the software and related documentation. From the date of receipt, Licencee agrees to use its best efforts to protect the Software and Related Materials from unauthorized use, reproduction, distribution, or publication.

Sheet Design Inputs
A1: Design Information
F2: Design Assistant
A3: Design Life (years) | C3: 20
A4: Initial Serviceability | C4: 4.2 | F4: ESALs | G4: 5000000
A5: Terminal Serviceability | C5: 2.5 | F5: Subgrade Classification | G5: GM, SM | H5: =VLOOKUP(G5,$B$30:$H$37,7,FALSE) -> 4
A6: Reliability | C6: 0.75 | F6: Subgrade Conditions | G6: Fair
A7: ZR | C7: =-NORMSINV(C6) -> -0.6744897502 | G7: =IF(G8=B11,"Gran",IF(G8=B12,"ATB",IF(G8=B13,"CTB",IF(G8=B14,"AC","Error")))) -> Gran | H7: Subgrade Type | I7: Traffic
A8: Standard Deviation | C8: 0.45 | F8: Base Type | G8: Unbound Dense Graded Base | H8: =CONCATENATE(G7,"!$A$6:$A$",IF(OR(G8=B11,G8=B14),77,101)) -> Gran!$A$6:$A$77 | I8: =CONCATENATE(G7,"!","$F$3:$O$3") -> Gran!$F$3:$O$3
C9: Layer Coefficient | D9: Thickness (in)
A10: Pavers and Bedding | C10: 0.44 | D10: 4.125 | F10: Recommended Design
A11: Base | B11: Unbound Dense Graded Base | C11: 0.14 | D11: 6
B12: Asphalt Treated Base | C12: 0.28 | D12: 4 | F12: Pavers and Bedding | G12: =SUM(IF(F12=OFFSET(INDIRECT($H$8),0,4),IF('Design Inputs'!$G$6=OFFSET(INDIRECT($H$8),0,1),IF('Design Inputs'!$H$5=INDIRECT($H$8),IF('Design Inputs'!$G$4=INDIRECT($I$8),OFFSET(INDIRECT($H$8),0,5,,10)))))) -> 4.125
B13: Cement Treated Base | C13: 0.2 | D13: 4 | F13: =G8 -> Unbound Dense Graded Base | G13: =SUM(IF(F13=OFFSET(INDIRECT($H$8),0,4),IF('Design Inputs'!$G$6=OFFSET(INDIRECT($H$8),0,1),IF('Design Inputs'!$H$5=INDIRECT($H$8),IF('Design Inputs'!$G$4=INDIRECT($I$8),OFFSET(INDIRECT($H$8),0,5,,10)))))) -> 6
B14: Asphalt Concrete Base | C14: 0.42 | D14: 2 | F14: =IF(OR($G$8=$B$12,$G$8=$B$13),B11,IF(G8=B14,B11,A15)) -> Unbound Dense Graded Subbase | G14: =SUM(IF(F14=OFFSET(INDIRECT($H$8),0,4),IF('Design Inputs'!$G$6=OFFSET(INDIRECT($H$8),0,1),IF('Design Inputs'!$H$5=INDIRECT($H$8),IF('Design Inputs'!$G$4=INDIRECT($I$8),OFFSET(INDIRECT($H$8),0,5,,10)))))) -> 23
A15: Unbound Dense Graded Subbase | C15: 0.09 | F15: =IF(OR($G$8=$B$12,$G$8=$B$13),$A$15,"") ->  | G15: =SUM(IF(F15=OFFSET(INDIRECT($H$8),0,4),IF('Design Inputs'!$G$6=OFFSET(INDIRECT($H$8),0,1),IF('Design Inputs'!$H$5=INDIRECT($H$8),IF('Design Inputs'!$G$4=INDIRECT($I$8),OFFSET(INDIRECT($H$8),0,5,,10)))))) -> 0
A17: Traffic Estimates
A18: AADT | B18: Functional Category | C18: Percent Commercial | D18: # Lanes | E18: Estimated ESALs | F18: Total ESALs
A19: 500 | B19: Local | C19: 0.005 | D19: 2 | E19: =182.5*A19*C19*1.15*(1.57-0.083*LOG(A19/2)) -> 719.3313357 | F19: =E19*$C$3 -> 14386.62671
A20: 1000 | B20: Local | C20: 0.01 | D20: 2 | E20: 2824.887046 | F20: =E20*$C$3 -> 56497.74093
A21: 5000 | B21: Local | C21: 0.01 | D21: 2 | E21: 13515.64546 | F21: 270312.9093
A22: 10000 | B22: Minor Arterial/Collector | C22: 0.03 | D22: 2 | E22: 79520.72389 | F22: 1590414.478
A23: 15000 | B23: Major Arterial/Collector | C23: 0.05 | D23: 2 | E23: 196501.227 | F23: 3930024.539
A24: 20000 | B24: Principal Arterial | C24: 0.05 | D24: 2 | E24: 259825.25 | F24: 5196505
A25: 40000 | B25: Principal Arterial | C25: 0.05 | D25: 2 | E25: 509162.8407 | F25: 10183256.81
A27: Subgrade Support
A28: Category No. | B28: Classification | C28: Drainage Characteristics | D28: Susceptibility to Frost Action | E28: Resilient Modulus (MR) for Typical Subgrade Conditions (psi)
E29: Good | F29: Fair | G29: Poor
A30: 1 | B30: Boulders/coubbles | C30: Excellent | D30: None | E30: 12000 | F30: 11000 | G30: 10000 | H30: 1
A31: 2 | B31: GW, SW | C31: Excellent | D31: Negligible | E31: 11000 | F31: 10000 | G31: 7000 | H31: 2
A32: 3 | B32: GP, SP | C32: Excellent to fair | D32: Negligible to slight | E32: 10000 | F32: 8000 | G32: 5000 | H32: 3
A33: 4 | B33: GM, SM | C33: Fair to semi-impervious | D33: Slight to moderate | E33: 8000 | F33: 5000 | G33: 4500 | H33: 4
A34: 5 | B34: GC, SC | C34: Practically impervious | D34: Negligible to slight | E34: 6000 | F34: 4500 | G34: 3500 | H34: 5
A35: 6 | B35: ML, MI | C35: Typically poor | D35: Severe | E35: 5000 | F35: 3500 | G35: 2500 | H35: 6
A36: 7 | B36: CL, MH | C36: Practically impervious | D36: Slight to severe | E36: 4000 | F36: 3000 | G36: 2000 | H36: 7
A37: 8 | B37: CI, CH | C37: Semi-impervious to impervious | D37: Negligible to severe | E37: 3500 | F37: 3000 | G37: 2000 | H37: 8

Sheet Design
A1: Granular Base
A2: Subgrade Category | B2: Drainage | C2: Mr (psi) | D2: Design SN (in) | N2: Paver Thickness (in) | X2: SN Remaining (Excluding Pavers) | AH2: Unbound Dense Graded Base Thickness (in) | AR2: SN Remaining (excluding Pavers and Base) | BB2: Unbound Dense Graded Subbase Thickness (in)
D3: 10000 | E3: 20000 | F3: 50000 | G3: 100000 | H3: 200000 | I3: 500000 | J3: 1000000 | K3: 2000000 | L3: 5000000 | M3: 10000000 | N3: 10000 | O3: 20000 | P3: 50000 | Q3: 100000 | R3: 200000 | S3: 500000 | T3: 1000000 | U3: 2000000 | V3: 5000000 | W3: 10000000 | X3: 10000 | Y3: 20000 | Z3: 50000 | AA3: 100000 | AB3: 200000 | AC3: 500000 | AD3: 1000000 | AE3: 2000000 | AF3: 5000000 | AG3: 10000000 | AH3: 10000 | AI3: 20000 | AJ3: 50000 | AK3: 100000 | AL3: 200000 | AM3: 500000 | AN3: 1000000 | AO3: 2000000 | AP3: 5000000 | AQ3: 10000000 | AR3: 10000 | AS3: 20000 | AT3: 50000 | AU3: 100000 | AV3: 200000 | AW3: 500000 | AX3: 1000000 | AY3: 2000000 | AZ3: 5000000 | BA3: 10000000 | BB3: 10000 | BC3: 20000 | BD3: 50000 | BE3: 100000 | BF3: 200000 | BG3: 500000 | BH3: 1000000 | BI3: 2000000 | BJ3: 5000000 | BK3: 10000000
A4: 1 | B4: Good | C4: =SUM(IF($A4='Design Inputs'!$A$30:$A$37,IF(Design!$B4=SubgradeConditions,'Design Inputs'!$E$30:$G$37))) -> 12000 | D4: =snreq(D$3,Reliability,S0,$C4,PSIi-PSIt) -> 1.154138 | E4: 1.322296 | F4: 1.566929 | G4: 1.771518 | H4: 1.995749 | I4: 2.32844 | J4: 2.613281 | K4: 2.932134 | L4: 3.411794 | M4: 3.818211 | N4: =ThickPaver -> 4.125 | O4: 4.125 | P4: 4.125 | Q4: 4.125 | R4: 4.125 | S4: 4.125 | T4: 4.125 | U4: 4.125 | V4: 4.125 | W4: 4.125 | X4: =MAX(0,D4-N4*Apaver) -> 0 | Y4: =MAX(0,E4-O4*Apaver) -> 0 | Z4: =MAX(0,F4-P4*Apaver) -> 0 | AA4: =MAX(0,G4-Q4*Apaver) -> 0 | AB4: =MAX(0,H4-R4*Apaver) -> 0.180749 | AC4: =MAX(0,I4-S4*Apaver) -> 0.51344 | AD4: =MAX(0,J4-T4*Apaver) -> 0.798281 | AE4: =MAX(0,K4-U4*Apaver) -> 1.117134 | AF4: =MAX(0,L4-V4*Apaver) -> 1.596794 | AG4: =MAX(0,M4-W4*Apaver) -> 2.003211 | AH4: 4 | AI4: 4 | AJ4: 4 | AK4: 4 | AL4: 4 | AM4: =IF(AC4<6*Agran,6,IF(AC4>8*Agran,6,ROUNDUP(AC4/Agran/1,0)*1)) -> 6 | AN4: =IF(AD4<6*Agran,6,IF(AD4>8*Agran,6,ROUNDUP(AD4/Agran/1,0)*1)) -> 6 | AO4: =IF(AE4<6*Agran,6,IF(AE4>8*Agran,6,ROUNDUP(AE4/Agran/1,0)*1)) -> 8 | AP4: =IF(AF4<6*Agran,6,IF(AF4>8*Agran,6,ROUNDUP(AF4/Agran/1,0)*1)) -> 6 | AQ4: =IF(AG4<6*Agran,6,IF(AG4>8*Agran,6,ROUNDUP(AG4/Agran/1,0)*1)) -> 6 | AR4: =MAX(0,X4-AH4*Agran) -> 0 | AS4: =MAX(0,Y4-AI4*Agran) -> 0 | AT4: =MAX(0,Z4-AJ4*Agran) -> 0 | AU4: =MAX(0,AA4-AK4*Agran) -> 0 | AV4: =MAX(0,AB4-AL4*Agran) -> 0 | AW4: =MAX(0,AC4-AM4*Agran) -> 0 | AX4: =MAX(0,AD4-AN4*Agran) -> 0 | AY4: =MAX(0,AE4-AO4*Agran) -> 0 | AZ4: =MAX(0,AF4-AP4*Agran) -> 0.756794 | BA4: =MAX(0,AG4-AQ4*Agran) -> 1.163211 | BB4: =IF(AR4<=0,0,MAX(6,ROUNDUP(AR4/Asubbase/1,0)*1)) -> 0 | BC4: =IF(AS4<=0,0,MAX(6,ROUNDUP(AS4/Asubbase/1,0)*1)) -> 0 | BD4: =IF(AT4<=0,0,MAX(6,ROUNDUP(AT4/Asubbase/1,0)*1)) -> 0 | BE4: =IF(AU4<=0,0,MAX(6,ROUNDUP(AU4/Asubbase/1,0)*1)) -> 0 | BF4: =IF(AV4<=0,0,MAX(6,ROUNDUP(AV4/Asubbase/1,0)*1)) -> 0 | BG4: =IF(AW4<=0,0,MAX(6,ROUNDUP(AW4/Asubbase/1,0)*1)) -> 0 | BH4: =IF(AX4<=0,0,MAX(6,ROUNDUP(AX4/Asubbase/1,0)*1)) -> 0 | BI4: =IF(AY4<=0,0,MAX(6,ROUNDUP(AY4/Asubbase/1,0)*1)) -> 0 | BJ4: =IF(AZ4<=0,0,MAX(6,ROUNDUP(AZ4/Asubbase/1,0)*1)) -> 9 | BK4: =IF(BA4<=0,0,MAX(6,ROUNDUP(BA4/Asubbase/1,0)*1)) -> 13 | CG4: =N4*Apaver+AH4*Agran+BB4*Asubbase -> 2.375 | CH4: =O4*Apaver+AI4*Agran+BC4*Asubbase -> 2.375 | CI4: =P4*Apaver+AJ4*Agran+BD4*Asubbase -> 2.375 | CJ4: =Q4*Apaver+AK4*Agran+BE4*Asubbase -> 2.375 | CK4: =R4*Apaver+AL4*Agran+BF4*Asubbase -> 2.375 | CL4: =S4*Apaver+AM4*Agran+BG4*Asubbase -> 2.655 | CM4: =T4*Apaver+AN4*Agran+BH4*Asubbase -> 2.655 | CN4: =U4*Apaver+AO4*Agran+BI4*Asubbase -> 2.935 | CO4: =V4*Apaver+AP4*Agran+BJ4*Asubbase -> 3.465 | CP4: =W4*Apaver+AQ4*Agran+BK4*Asubbase -> 3.825 | CQ4: =(CG4)/D4 -> 2.057812844 | CR4: =(CH4)/E4 -> 1.796118267 | CS4: =(CI4)/F4 -> 1.515703647 | CT4: =(CJ4)/G4 -> 1.340658125 | CU4: =(CK4)/H4 -> 1.190029408 | CV4: =(CL4)/I4 -> 1.140248407 | CW4: =(CM4)/J4 -> 1.015964223 | CX4: =(CN4)/K4 -> 1.000977445 | CY4: =(CO4)/L4 -> 1.015594728 | CZ4: =(CP4)/M4 -> 1.001778058
A5: 1 | B5: Fair | C5: =SUM(IF($A5='Design Inputs'!$A$30:$A$37,IF(Design!$B5=SubgradeConditions,'Design Inputs'!$E$30:$G$37))) -> 11000 | D5: 1.201722 | E5: 1.373871 | F5: 1.62465 | G5: 1.834625 | H5: 2.065242 | I5: 2.408172 | J5: 2.702441 | K5: 3.032015 | L5: 3.526451 | M5: 3.942979 | N5: 4.125 | O5: 4.125 | P5: 4.125 | Q5: 4.125 | R5: 4.125 | S5: 4.125 | T5: 4.125 | U5: 4.125 | V5: 4.125 | W5: 4.125 | X5: 0 | Y5: 0 | Z5: 0 | AA5: 0.019625 | AB5: 0.250242 | AC5: 0.593172 | AD5: 0.887441 | AE5: 1.217015 | AF5: 1.711451 | AG5: 2.127979 | AH5: 4 | AI5: 4 | AJ5: 4 | AK5: 4 | AL5: 4 | AM5: 6 | AN5: 7 | AO5: 6 | AP5: 6 | AQ5: 6 | AR5: 0 | AS5: 0 | AT5: 0 | AU5: 0 | AV5: 0 | AW5: 0 | AX5: 0 | AY5: 0.377015 | AZ5: 0.871451 | BA5: 1.287979 | BB5: 0 | BC5: 0 | BD5: 0 | BE5: 0 | BF5: 0 | BG5: 0 | BH5: 0 | BI5: 6 | BJ5: 10 | BK5: 15 | CG5: 2.375 | CH5: 2.375 | CI5: 2.375 | CJ5: 2.375 | CK5: 2.375 | CL5: 2.655 | CM5: 2.795 | CN5: 3.195 | CO5: 3.555 | CP5: 4.005 | CQ5: =(CG5)/D5 -> 1.976330632 | CR5: 1.728692141 | CS5: 1.461853322 | CT5: 1.294542481 | CU5: 1.149986297 | CV5: 1.102496001 | CW5: 1.034250146 | CX5: 1.053754681 | CY5: 1.008095675 | CZ5: 1.015729478
A6: 1 | B6: Poor | C6: =SUM(IF($A6='Design Inputs'!$A$30:$A$37,IF(Design!$B6=SubgradeConditions,'Design Inputs'!$E$30:$G$37))) -> 10000 | D6: 1.255134 | E6: 1.431845 | F6: 1.689594 | G6: 1.905778 | H6: 2.143707 | I6: 2.498473 | J6: 2.803538 | K6: 3.14515 | L6: 3.655604 | M6: 4.082675 | N6: 4.125 | O6: 4.125 | P6: 4.125 | Q6: 4.125 | R6: 4.125 | S6: 4.125 | T6: 4.125 | U6: 4.125 | V6: 4.125 | W6: 4.125 | X6: 0 | Y6: 0 | Z6: 0 | AA6: 0.090778 | AB6: 0.328707 | AC6: 0.683473 | AD6: 0.988538 | AE6: 1.33015 | AF6: 1.840604 | AG6: 2.267675 | AH6: 4 | AI6: 4 | AJ6: 4 | AK6: 4 | AL6: 4 | AM6: 6 | AN6: 8 | AO6: 6 | AP6: 6 | AQ6: 6 | AR6: 0 | AS6: 0 | AT6: 0 | AU6: 0 | AV6: 0 | AW6: 0 | AX6: 0 | AY6: 0.49015 | AZ6: 1.000604 | BA6: 1.427675 | BB6: 0 | BC6: 0 | BD6: 0 | BE6: 0 | BF6: 0 | BG6: 0 | BH6: 0 | BI6: 6 | BJ6: 12 | BK6: 16 | CG6: 2.375 | CH6: 2.375 | CI6: 2.375 | CJ6: 2.375 | CK6: 2.375 | CL6: 2.655 | CM6: 2.935 | CN6: 3.195 | CO6: 3.735 | CP6: 4.095 | CQ6: 1.89222824 | CR6: 1.658699091 | CS6: 1.405663136 | CT6: 1.246210209 | CU6: 1.107893943 | CV6: 1.062649066 | CW6: 1.046891464 | CX6: 1.0158498 | CY6: 1.021718983 | CZ6: 1.003018854
A7: 2 | B7: Good | C7: =SUM(IF($A7='Design Inputs'!$A$30:$A$37,IF(Design!$B7=SubgradeConditions,'Design Inputs'!$E$30:$G$37))) -> 11000 | D7: 1.201722 | E7: 1.373871 | F7: 1.62465 | G7: 1.834625 | H7: 2.065242 | I7: 2.408172 | J7: 2.702441 | K7: 3.032015 | L7: 3.526451 | M7: 3.942979 | N7: 4.125 | O7: 4.125 | P7: 4.125 | Q7: 4.125 | R7: 4.125 | S7: 4.125 | T7: 4.125 | U7: 4.125 | V7: 4.125 | W7: 4.125 | X7: 0 | Y7: 0 | Z7: 0 | AA7: 0.019625 | AB7: 0.250242 | AC7: 0.593172 | AD7: 0.887441 | AE7: 1.217015 | AF7: 1.711451 | AG7: 2.127979 | AH7: 4 | AI7: 4 | AJ7: 4 | AK7: 4 | AL7: 4 | AM7: 6 | AN7: 7 | AO7: 6 | AP7: 6 | AQ7: 6 | AR7: 0 | AS7: 0 | AT7: 0 | AU7: 0 | AV7: 0 | AW7: 0 | AX7: 0 | AY7: 0.377015 | AZ7: 0.871451 | BA7: 1.287979 | BB7: 0 | BC7: 0 | BD7: 0 | BE7: 0 | BF7: 0 | BG7: 0 | BH7: 0 | BI7: 6 | BJ7: 10 | BK7: 15 | CG7: 2.375 | CH7: 2.375 | CI7: 2.375 | CJ7: 2.375 | CK7: 2.375 | CL7: 2.655 | CM7: 2.795 | CN7: 3.195 | CO7: 3.555 | CP7: 4.005 | CQ7: 1.976330632 | CR7: 1.728692141 | CS7: 1.461853322 | CT7: 1.294542481 | CU7: 1.149986297 | CV7: 1.102496001 | CW7: 1.034250146 | CX7: 1.053754681 | CY7: 1.008095675 | CZ7: 1.015729478
A8: 2 | B8: Fair | C8: =SUM(IF($A8='Design Inputs'!$A$30:$A$37,IF(Design!$B8=SubgradeConditions,'Design Inputs'!$E$30:$G$37))) -> 10000 | D8: 1.255134 | E8: 1.431845 | F8: 1.689594 | G8: 1.905778 | H8: 2.143707 | I8: 2.498473 | J8: 2.803538 | K8: 3.14515 | L8: 3.655604 | M8: 4.082675 | N8: 4.125 | O8: 4.125 | P8: 4.125 | Q8: 4.125 | R8: 4.125 | S8: 4.125 | T8: 4.125 | U8: 4.125 | V8: 4.125 | W8: 4.125 | X8: 0 | Y8: 0 | Z8: 0 | AA8: 0.090778 | AB8: 0.328707 | AC8: 0.683473 | AD8: 0.988538 | AE8: 1.33015 | AF8: 1.840604 | AG8: 2.267675 | AH8: 4 | AI8: 4 | AJ8: 4 | AK8: 4 | AL8: 4 | AM8: 6 | AN8: 8 | AO8: 6 | AP8: 6 | AQ8: 6 | AR8: 0 | AS8: 0 | AT8: 0 | AU8: 0 | AV8: 0 | AW8: 0 | AX8: 0 | AY8: 0.49015 | AZ8: 1.000604 | BA8: 1.427675 | BB8: 0 | BC8: 0 | BD8: 0 | BE8: 0 | BF8: 0 | BG8: 0 | BH8: 0 | BI8: 6 | BJ8: 12 | BK8: 16 | CG8: 2.375 | CH8: 2.375 | CI8: 2.375 | CJ8: 2.375 | CK8: 2.375 | CL8: 2.655 | CM8: 2.935 | CN8: 3.195 | CO8: 3.735 | CP8: 4.095 | CQ8: 1.89222824 | CR8: 1.658699091 | CS8: 1.405663136 | CT8: 1.246210209 | CU8: 1.107893943 | CV8: 1.062649066 | CW8: 1.046891464 | CX8: 1.0158498 | CY8: 1.021718983 | CZ8: 1.003018854
A9: 2 | B9: Poor | C9: =SUM(IF($A9='Design Inputs'!$A$30:$A$37,IF(Design!$B9=SubgradeConditions,'Design Inputs'!$E$30:$G$37))) -> 7000 | D9: 1.467834 | E9: 1.663299 | F9: 1.950105 | G9: 2.192672 | H9: 2.461825 | I9: 2.866772 | J9: 3.215835 | K9: 3.603294 | L9: 4.169022 | M9: 4.631094 | N9: 4.125 | O9: 4.125 | P9: 4.125 | Q9: 4.125 | R9: 4.125 | S9: 4.125 | T9: 4.125 | U9: 4.125 | V9: 4.125 | W9: 4.125 | X9: 0 | Y9: 0 | Z9: 0.135105 | AA9: 0.377672 | AB9: 0.646825 | AC9: 1.051772 | AD9: 1.400835 | AE9: 1.788294 | AF9: 2.354022 | AG9: 2.816094 | AH9: 4 | AI9: 4 | AJ9: 4 | AK9: 4 | AL9: 4 | AM9: 8 | AN9: 6 | AO9: 6 | AP9: 6 | AQ9: 6 | AR9: 0 | AS9: 0 | AT9: 0 | AU9: 0 | AV9: 0.086825 | AW9: 0 | AX9: 0.560835 | AY9: 0.948294 | AZ9: 1.514022 | BA9: 1.976094 | BB9: 0 | BC9: 0 | BD9: 0 | BE9: 0 | BF9: 6 | BG9: 0 | BH9: 7 | BI9: 11 | BJ9: 17 | BK9: 22 | CG9: 2.375 | CH9: 2.375 | CI9: 2.375 | CJ9: 2.375 | CK9: 2.915 | CL9: 2.935 | CM9: 3.285 | CN9: 3.645 | CO9: 4.185 | CP9: 4.635 | CQ9: 1.618030377 | CR9: 1.427885185 | CS9: 1.21788314 | CT9: 1.08315334 | CU9: 1.184080916 | CV9: 1.023799591 | CW9: 1.021507633 | CX9: 1.011574409 | CY9: 1.003832554 | CZ9: 1.000843429
A10: 3 | B10: Good | C10: =SUM(IF($A10='Design Inputs'!$A$30:$A$37,IF(Design!$B10=SubgradeConditions,'Design Inputs'!$E$30:$G$37))) -> 10000 | D10: 1.255134 | E10: 1.431845 | F10: 1.689594 | G10: 1.905778 | H10: 2.143707 | I10: 2.498473 | J10: 2.803538 | K10: 3.14515 | L10: 3.655604 | M10: 4.082675 | N10: 4.125 | O10: 4.125 | P10: 4.125 | Q10: 4.125 | R10: 4.125 | S10: 4.125 | T10: 4.125 | U10: 4.125 | V10: 4.125 | W10: 4.125 | X10: 0 | Y10: 0 | Z10: 0 | AA10: 0.090778 | AB10: 0.328707 | AC10: 0.683473 | AD10: 0.988538 | AE10: 1.33015 | AF10: 1.840604 | AG10: 2.267675 | AH10: 4 | AI10: 4 | AJ10: 4 | AK10: 4 | AL10: 4 | AM10: 6 | AN10: 8 | AO10: 6 | AP10: 6 | AQ10: 6 | AR10: 0 | AS10: 0 | AT10: 0 | AU10: 0 | AV10: 0 | AW10: 0 | AX10: 0 | AY10: 0.49015 | AZ10: 1.000604 | BA10: 1.427675 | BB10: 0 | BC10: 0 | BD10: 0 | BE10: 0 | BF10: 0 | BG10: 0 | BH10: 0 | BI10: 6 | BJ10: 12 | BK10: 16 | CG10: 2.375 | CH10: 2.375 | CI10: 2.375 | CJ10: 2.375 | CK10: 2.375 | CL10: 2.655 | CM10: 2.935 | CN10: 3.195 | CO10: 3.735 | CP10: 4.095 | CQ10: 1.89222824 | CR10: 1.658699091 | CS10: 1.405663136 | CT10: 1.246210209 | CU10: 1.107893943 | CV10: 1.062649066 | CW10: 1.046891464 | CX10: 1.0158498 | CY10: 1.021718983 | CZ10: 1.003018854
A11: 3 | B11: Fair | C11: =SUM(IF($A11='Design Inputs'!$A$30:$A$37,IF(Design!$B11=SubgradeConditions,'Design Inputs'!$E$30:$G$37))) -> 8000 | D11: 1.385719 | E11: 1.573835 | F11: 1.849134 | G11: 2.081234 | H11: 2.337944 | I11: 2.723021 | J11: 3.055052 | K11: 3.42548 | L11: 3.971567 | M11: 4.421246 | N11: 4.125 | O11: 4.125 | P11: 4.125 | Q11: 4.125 | R11: 4.125 | S11: 4.125 | T11: 4.125 | U11: 4.125 | V11: 4.125 | W11: 4.125 | X11: 0 | Y11: 0 | Z11: 0.034134 | AA11: 0.266234 | AB11: 0.522944 | AC11: 0.908021 | AD11: 1.240052 | AE11: 1.61048 | AF11: 2.156567 | AG11: 2.606246 | AH11: 4 | AI11: 4 | AJ11: 4 | AK11: 4 | AL11: 4 | AM11: 7 | AN11: 6 | AO11: 6 | AP11: 6 | AQ11: 6 | AR11: 0 | AS11: 0 | AT11: 0 | AU11: 0 | AV11: 0 | AW11: 0 | AX11: 0.400052 | AY11: 0.77048 | AZ11: 1.316567 | BA11: 1.766246 | BB11: 0 | BC11: 0 | BD11: 0 | BE11: 0 | BF11: 0 | BG11: 0 | BH11: 6 | BI11: 9 | BJ11: 15 | BK11: 20 | CG11: 2.375 | CH11: 2.375 | CI11: 2.375 | CJ11: 2.375 | CK11: 2.375 | CL11: 2.795 | CM11: 3.195 | CN11: 3.465 | CO11: 4.005 | CP11: 4.455 | CQ11: 1.713911695 | CR11: 1.509052728 | CS11: 1.284385015 | CT11: 1.141149914 | CU11: 1.015849824 | CV11: 1.026433509 | CW11: 1.045808713 | CX11: 1.011537069 | CY11: 1.008418088 | CZ11: 1.007634499
A12: 3 | B12: Poor | C12: =SUM(IF($A12='Design Inputs'!$A$30:$A$37,IF(Design!$B12=SubgradeConditions,'Design Inputs'!$E$30:$G$37))) -> 5000 | D12: 1.689213 | E12: 1.905334 | F12: 2.225062 | G12: 2.49794 | H12: 2.802905 | I12: 3.262645 | J12: 3.654818 | K12: 4.081814 | L12: 4.691286 | M12: 5.182985 | N12: 4.125 | O12: 4.125 | P12: 4.125 | Q12: 4.125 | R12: 4.125 | S12: 4.125 | T12: 4.125 | U12: 4.125 | V12: 4.125 | W12: 4.125 | X12: 0 | Y12: 0.090334 | Z12: 0.410062 | AA12: 0.68294 | AB12: 0.987905 | AC12: 1.447645 | AD12: 1.839818 | AE12: 2.266814 | AF12: 2.876286 | AG12: 3.367985 | AH12: 4 | AI12: 4 | AJ12: 4 | AK12: 4 | AL12: 4 | AM12: 6 | AN12: 6 | AO12: 6 | AP12: 6 | AQ12: 6 | AR12: 0 | AS12: 0 | AT12: 0 | AU12: 0.12294 | AV12: 0.427905 | AW12: 0.607645 | AX12: 0.999818 | AY12: 1.426814 | AZ12: 2.036286 | BA12: 2.527985 | BB12: 0 | BC12: 0 | BD12: 0 | BE12: 6 | BF12: 6 | BG12: 7 | BH12: 12 | BI12: 16 | BJ12: 23 | BK12: 29 | CG12: 2.375 | CH12: 2.375 | CI12: 2.375 | CJ12: 2.915 | CK12: 2.915 | CL12: 3.285 | CM12: 3.735 | CN12: 4.095 | CO12: 4.725 | CP12: 5.265 | CQ12: 1.405980181 | CR12: 1.246500614 | CS12: 1.067385987 | CT12: 1.166961576 | CU12: 1.039992436 | CV12: 1.006851803 | CW12: 1.021938712 | CX12: 1.003230426 | CY12: 1.007186516 | CZ12: 1.015823893
A13: 4 | B13: Good | C13: =SUM(IF($A13='Design Inputs'!$A$30:$A$37,IF(Design!$B13=SubgradeConditions,'Design Inputs'!$E$30:$G$37))) -> 8000 | D13: 1.385719 | E13: 1.573835 | F13: 1.849134 | G13: 2.081234 | H13: 2.337944 | I13: 2.723021 | J13: 3.055052 | K13: 3.42548 | L13: 3.971567 | M13: 4.421246 | N13: 4.125 | O13: 4.125 | P13: 4.125 | Q13: 4.125 | R13: 4.125 | S13: 4.125 | T13: 4.125 | U13: 4.125 | V13: 4.125 | W13: 4.125 | X13: 0 | Y13: 0 | Z13: 0.034134 | AA13: 0.266234 | AB13: 0.522944 | AC13: 0.908021 | AD13: 1.240052 | AE13: 1.61048 | AF13: 2.156567 | AG13: 2.606246 | AH13: 4 | AI13: 4 | AJ13: 4 | AK13: 4 | AL13: 4 | AM13: 7 | AN13: 6 | AO13: 6 | AP13: 6 | AQ13: 6 | AR13: 0 | AS13: 0 | AT13: 0 | AU13: 0 | AV13: 0 | AW13: 0 | AX13: 0.400052 | AY13: 0.77048 | AZ13: 1.316567 | BA13: 1.766246 | BB13: 0 | BC13: 0 | BD13: 0 | BE13: 0 | BF13: 0 | BG13: 0 | BH13: 6 | BI13: 9 | BJ13: 15 | BK13: 20 | CG13: 2.375 | CH13: 2.375 | CI13: 2.375 | CJ13: 2.375 | CK13: 2.375 | CL13: 2.795 | CM13: 3.195 | CN13: 3.465 | CO13: 4.005 | CP13: 4.455 | CQ13: 1.713911695 | CR13: 1.509052728 | CS13: 1.284385015 | CT13: 1.141149914 | CU13: 1.015849824 | CV13: 1.026433509 | CW13: 1.045808713 | CX13: 1.011537069 | CY13: 1.008418088 | CZ13: 1.007634499
A14: 4 | B14: Fair | C14: =SUM(IF($A14='Design Inputs'!$A$30:$A$37,IF(Design!$B14=SubgradeConditions,'Design Inputs'!$E$30:$G$37))) -> 5000 | D14: =snreq(D$3,Reliability,S0,$C14,PSIi-PSIt) -> 1.689213 | E14: 1.905334 | F14: 2.225062 | G14: 2.49794 | H14: 2.802905 | I14: 3.262645 | J14: 3.654818 | K14: 4.081814 | L14: 4.691286 | M14: 5.182985 | N14: =ThickPaver -> 4.125 | O14: 4.125 | P14: 4.125 | Q14: 4.125 | R14: 4.125 | S14: 4.125 | T14: 4.125 | U14: 4.125 | V14: 4.125 | W14: 4.125 | X14: 0 | Y14: 0.090334 | Z14: 0.410062 | AA14: 0.68294 | AB14: 0.987905 | AC14: 1.447645 | AD14: 1.839818 | AE14: 2.266814 | AF14: 2.876286 | AG14: 3.367985 | AH14: 4 | AI14: 4 | AJ14: 4 | AK14: 4 | AL14: 4 | AM14: 6 | AN14: 6 | AO14: 6 | AP14: 6 | AQ14: 6 | AR14: 0 | AS14: 0 | AT14: 0 | AU14: 0.12294 | AV14: 0.427905 | AW14: 0.607645 | AX14: 0.999818 | AY14: 1.426814 | AZ14: 2.036286 | BA14: 2.527985 | BB14: 0 | BC14: 0 | BD14: 0 | BE14: 6 | BF14: 6 | BG14: 7 | BH14: 12 | BI14: 16 | BJ14: 23 | BK14: 29 | CG14: 2.375 | CH14: 2.375 | CI14: 2.375 | CJ14: 2.915 | CK14: 2.915 | CL14: 3.285 | CM14: 3.735 | CN14: 4.095 | CO14: 4.725 | CP14: 5.265 | CQ14: 1.405980181 | CR14: 1.246500614 | CS14: 1.067385987 | CT14: 1.166961576 | CU14: 1.039992436 | CV14: 1.006851803 | CW14: 1.021938712 | CX14: 1.003230426 | CY14: 1.007186516 | CZ14: 1.015823893
A15: 4 | B15: Poor | C15: =SUM(IF($A15='Design Inputs'!$A$30:$A$37,IF(Design!$B15=SubgradeConditions,'Design Inputs'!$E$30:$G$37))) -> 4500 | D15: 1.763155 | E15: 1.986575 | F15: 2.317947 | G15: 2.601547 | H15: 2.919006 | I15: 3.396664 | J15: 3.801687 | K15: 4.239732 | L15: 4.861699 | M15: 5.36275 | N15: 4.125 | O15: 4.125 | P15: 4.125 | Q15: 4.125 | R15: 4.125 | S15: 4.125 | T15: 4.125 | U15: 4.125 | V15: 4.125 | W15: 4.125 | X15: 0 | Y15: 0.171575 | Z15: 0.502947 | AA15: 0.786547 | AB15: 1.104006 | AC15: 1.581664 | AD15: 1.986687 | AE15: 2.424732 | AF15: 3.046699 | AG15: 3.54775 | AH15: 4 | AI15: 4 | AJ15: 4 | AK15: 4 | AL15: 4 | AM15: 6 | AN15: 6 | AO15: 6 | AP15: 6 | AQ15: 6 | AR15: 0 | AS15: 0 | AT15: 0 | AU15: 0.226547 | AV15: 0.544006 | AW15: 0.741664 | AX15: 1.146687 | AY15: 1.584732 | AZ15: 2.206699 | BA15: 2.70775 | BB15: 0 | BC15: 0 | BD15: 0 | BE15: 6 | BF15: 7 | BG15: 9 | BH15: 13 | BI15: 18 | BJ15: 25 | BK15: 31 | CG15: 2.375 | CH15: 2.375 | CI15: 2.375 | CJ15: 2.915 | CK15: 3.005 | CL15: 3.465 | CM15: 3.825 | CN15: 4.275 | CO15: 4.905 | CP15: 5.445 | CQ15: 1.347017137 | CR15: 1.195524961 | CS15: 1.024613591 | CT15: 1.120487156 | CU15: 1.029460029 | CV15: 1.020118563 | CW15: 1.006132278 | CX15: 1.00831845 | CY15: 1.008906557 | CZ15: 1.01533728
A16: 5 | B16: Good | C16: =SUM(IF($A16='Design Inputs'!$A$30:$A$37,IF(Design!$B16=SubgradeConditions,'Design Inputs'!$E$30:$G$37))) -> 6000 | D16: 1.566548 | E16: 1.771075 | F16: 2.072212 | G16: 2.327908 | H16: 2.612698 | I16: 3.042051 | J16: 3.411059 | K16: 3.8174 | L16: 4.404063 | M16: 4.87982 | N16: 4.125 | O16: 4.125 | P16: 4.125 | Q16: 4.125 | R16: 4.125 | S16: 4.125 | T16: 4.125 | U16: 4.125 | V16: 4.125 | W16: 4.125 | X16: 0 | Y16: 0 | Z16: 0.257212 | AA16: 0.512908 | AB16: 0.797698 | AC16: 1.227051 | AD16: 1.596059 | AE16: 2.0024 | AF16: 2.589063 | AG16: 3.06482 | AH16: 4 | AI16: 4 | AJ16: 4 | AK16: 4 | AL16: 4 | AM16: 6 | AN16: 6 | AO16: 6 | AP16: 6 | AQ16: 6 | AR16: 0 | AS16: 0 | AT16: 0 | AU16: 0 | AV16: 0.237698 | AW16: 0.387051 | AX16: 0.756059 | AY16: 1.1624 | AZ16: 1.749063 | BA16: 2.22482 | BB16: 0 | BC16: 0 | BD16: 0 | BE16: 0 | BF16: 6 | BG16: 6 | BH16: 9 | BI16: 13 | BJ16: 20 | BK16: 25 | CG16: 2.375 | CH16: 2.375 | CI16: 2.375 | CJ16: 2.375 | CK16: 2.915 | CL16: 3.195 | CM16: 3.465 | CN16: 3.825 | CO16: 4.455 | CP16: 4.905 | CQ16: 1.516072281 | CR16: 1.340993464 | CS16: 1.146118254 | CT16: 1.020229322 | CU16: 1.115704915 | CV16: 1.05027825 | CW16: 1.015813564 | CX16: 1.001990884 | CY16: 1.011565911 | CZ16: 1.005160026
A17: 5 | B17: Fair | C17: =SUM(IF($A17='Design Inputs'!$A$30:$A$37,IF(Design!$B17=SubgradeConditions,'Design Inputs'!$E$30:$G$37))) -> 4500 | D17: 1.763155 | E17: 1.986575 | F17: 2.317947 | G17: 2.601547 | H17: 2.919006 | I17: 3.396664 | J17: 3.801687 | K17: 4.239732 | L17: 4.861699 | M17: 5.36275 | N17: 4.125 | O17: 4.125 | P17: 4.125 | Q17: 4.125 | R17: 4.125 | S17: 4.125 | T17: 4.125 | U17: 4.125 | V17: 4.125 | W17: 4.125 | X17: 0 | Y17: 0.171575 | Z17: 0.502947 | AA17: 0.786547 | AB17: 1.104006 | AC17: 1.581664 | AD17: 1.986687 | AE17: 2.424732 | AF17: 3.046699 | AG17: 3.54775 | AH17: 4 | AI17: 4 | AJ17: 4 | AK17: 4 | AL17: 4 | AM17: 6 | AN17: 6 | AO17: 6 | AP17: 6 | AQ17: 6 | AR17: 0 | AS17: 0 | AT17: 0 | AU17: 0.226547 | AV17: 0.544006 | AW17: 0.741664 | AX17: 1.146687 | AY17: 1.584732 | AZ17: 2.206699 | BA17: 2.70775 | BB17: 0 | BC17: 0 | BD17: 0 | BE17: 6 | BF17: 7 | BG17: 9 | BH17: 13 | BI17: 18 | BJ17: 25 | BK17: 31 | CG17: 2.375 | CH17: 2.375 | CI17: 2.375 | CJ17: 2.915 | CK17: 3.005 | CL17: 3.465 | CM17: 3.825 | CN17: 4.275 | CO17: 4.905 | CP17: 5.445 | CQ17: 1.347017137 | CR17: 1.195524961 | CS17: 1.024613591 | CT17: 1.120487156 | CU17: 1.029460029 | CV17: 1.020118563 | CW17: 1.006132278 | CX17: 1.00831845 | CY17: 1.008906557 | CZ17: 1.01533728
A18: 5 | B18: Poor | C18: =SUM(IF($A18='Design Inputs'!$A$30:$A$37,IF(Design!$B18=SubgradeConditions,'Design Inputs'!$E$30:$G$37))) -> 3500 | D18: 1.949648 | E18: 2.192165 | F18: 2.554382 | G18: 2.866138 | H18: 3.215125 | I18: 3.735006 | J18: 4.168161 | K18: 4.630182 | L18: 5.281345 | M18: 5.805789 | N18: 4.125 | O18: 4.125 | P18: 4.125 | Q18: 4.125 | R18: 4.125 | S18: 4.125 | T18: 4.125 | U18: 4.125 | V18: 4.125 | W18: 4.125 | X18: 0.134648 | Y18: 0.377165 | Z18: 0.739382 | AA18: 1.051138 | AB18: 1.400125 | AC18: 1.920006 | AD18: 2.353161 | AE18: 2.815182 | AF18: 3.466345 | AG18: 3.990789 | AH18: 4 | AI18: 4 | AJ18: 4 | AK18: 4 | AL18: 4 | AM18: 6 | AN18: 6 | AO18: 6 | AP18: 6 | AQ18: 6 | AR18: 0 | AS18: 0 | AT18: 0.179382 | AU18: 0.491138 | AV18: 0.840125 | AW18: 1.080006 | AX18: 1.513161 | AY18: 1.975182 | AZ18: 2.626345 | BA18: 3.150789 | BB18: 0 | BC18: 0 | BD18: 6 | BE18: 6 | BF18: 10 | BG18: 13 | BH18: 17 | BI18: 22 | BJ18: 30 | BK18: 36 | CG18: 2.375 | CH18: 2.375 | CI18: 2.915 | CJ18: 2.915 | CK18: 3.275 | CL18: 3.825 | CM18: 4.185 | CN18: 4.635 | CO18: 5.355 | CP18: 5.895 | CQ18: 1.218168613 | CR18: 1.08340385 | CS18: 1.141176222 | CT18: 1.017048028 | CU18: 1.018622915 | CV18: 1.02409474 | CW18: 1.004039911 | CX18: 1.001040564 | CY18: 1.013946258 | CZ18: 1.01536587
A19: 6 | B19: Good | C19: =SUM(IF($A19='Design Inputs'!$A$30:$A$37,IF(Design!$B19=SubgradeConditions,'Design Inputs'!$E$30:$G$37))) -> 5000 | D19: 1.689213 | E19: 1.905334 | F19: 2.225062 | G19: 2.49794 | H19: 2.802905 | I19: 3.262645 | J19: 3.654818 | K19: 4.081814 | L19: 4.691286 | M19: 5.182985 | N19: 4.125 | O19: 4.125 | P19: 4.125 | Q19: 4.125 | R19: 4.125 | S19: 4.125 | T19: 4.125 | U19: 4.125 | V19: 4.125 | W19: 4.125 | X19: 0 | Y19: 0.090334 | Z19: 0.410062 | AA19: 0.68294 | AB19: 0.987905 | AC19: 1.447645 | AD19: 1.839818 | AE19: 2.266814 | AF19: 2.876286 | AG19: 3.367985 | AH19: 4 | AI19: 4 | AJ19: 4 | AK19: 4 | AL19: 4 | AM19: 6 | AN19: 6 | AO19: 6 | AP19: 6 | AQ19: 6 | AR19: 0 | AS19: 0 | AT19: 0 | AU19: 0.12294 | AV19: 0.427905 | AW19: 0.607645 | AX19: 0.999818 | AY19: 1.426814 | AZ19: 2.036286 | BA19: 2.527985 | BB19: 0 | BC19: 0 | BD19: 0 | BE19: 6 | BF19: 6 | BG19: 7 | BH19: 12 | BI19: 16 | BJ19: 23 | BK19: 29 | CG19: 2.375 | CH19: 2.375 | CI19: 2.375 | CJ19: 2.915 | CK19: 2.915 | CL19: 3.285 | CM19: 3.735 | CN19: 4.095 | CO19: 4.725 | CP19: 5.265 | CQ19: 1.405980181 | CR19: 1.246500614 | CS19: 1.067385987 | CT19: 1.166961576 | CU19: 1.039992436 | CV19: 1.006851803 | CW19: 1.021938712 | CX19: 1.003230426 | CY19: 1.007186516 | CZ19: 1.015823893
A20: 6 | B20: Fair | C20: =SUM(IF($A20='Design Inputs'!$A$30:$A$37,IF(Design!$B20=SubgradeConditions,'Design Inputs'!$E$30:$G$37))) -> 3500 | D20: 1.949648 | E20: 2.192165 | F20: 2.554382 | G20: 2.866138 | H20: 3.215125 | I20: 3.735006 | J20: 4.168161 | K20: 4.630182 | L20: 5.281345 | M20: 5.805789 | N20: 4.125 | O20: 4.125 | P20: 4.125 | Q20: 4.125 | R20: 4.125 | S20: 4.125 | T20: 4.125 | U20: 4.125 | V20: 4.125 | W20: 4.125 | X20: 0.134648 | Y20: 0.377165 | Z20: 0.739382 | AA20: 1.051138 | AB20: 1.400125 | AC20: 1.920006 | AD20: 2.353161 | AE20: 2.815182 | AF20: 3.466345 | AG20: 3.990789 | AH20: 4 | AI20: 4 | AJ20: 4 | AK20: 4 | AL20: 4 | AM20: 6 | AN20: 6 | AO20: 6 | AP20: 6 | AQ20: 6 | AR20: 0 | AS20: 0 | AT20: 0.179382 | AU20: 0.491138 | AV20: 0.840125 | AW20: 1.080006 | AX20: 1.513161 | AY20: 1.975182 | AZ20: 2.626345 | BA20: 3.150789 | BB20: 0 | BC20: 0 | BD20: 6 | BE20: 6 | BF20: 10 | BG20: 13 | BH20: 17 | BI20: 22 | BJ20: 30 | BK20: 36 | CG20: 2.375 | CH20: 2.375 | CI20: 2.915 | CJ20: 2.915 | CK20: 3.275 | CL20: 3.825 | CM20: 4.185 | CN20: 4.635 | CO20: 5.355 | CP20: 5.895 | CQ20: 1.218168613 | CR20: 1.08340385 | CS20: 1.141176222 | CT20: 1.017048028 | CU20: 1.018622915 | CV20: 1.02409474 | CW20: 1.004039911 | CX20: 1.001040564 | CY20: 1.013946258 | CZ20: 1.01536587
A21: 6 | B21: Poor | C21: =SUM(IF($A21='Design Inputs'!$A$30:$A$37,IF(Design!$B21=SubgradeConditions,'Design Inputs'!$E$30:$G$37))) -> 2500 | D21: 2.224555 | E21: 2.497383 | F21: 2.908057 | G21: 3.26191 | H21: 3.654032 | I21: 4.224957 | J21: 4.690374 | K21: 5.182022 | L21: 5.874065 | M21: 6.433534 | N21: 4.125 | O21: 4.125 | P21: 4.125 | Q21: 4.125 | R21: 4.125 | S21: 4.125 | T21: 4.125 | U21: 4.125 | V21: 4.125 | W21: 4.125 | X21: 0.409555 | Y21: 0.682383 | Z21: 1.093057 | AA21: 1.44691 | AB21: 1.839032 | AC21: 2.409957 | AD21: 2.875374 | AE21: 3.367022 | AF21: 4.059065 | AG21: 4.618534 | AH21: 4 | AI21: 4 | AJ21: 4 | AK21: 4 | AL21: 4 | AM21: 6 | AN21: 6 | AO21: 6 | AP21: 6 | AQ21: 6 | AR21: 0 | AS21: 0.122383 | AT21: 0.533057 | AU21: 0.88691 | AV21: 1.279032 | AW21: 1.569957 | AX21: 2.035374 | AY21: 2.527022 | AZ21: 3.219065 | BA21: 3.778534 | BB21: 0 | BC21: 6 | BD21: 6 | BE21: 10 | BF21: 15 | BG21: 18 | BH21: 23 | BI21: 29 | BJ21: 36 | BK21: 42 | CG21: 2.375 | CH21: 2.915 | CI21: 2.915 | CJ21: 3.275 | CK21: 3.725 | CL21: 4.275 | CM21: 4.725 | CN21: 5.265 | CO21: 5.895 | CP21: 6.435 | CQ21: 1.067629256 | CR21: 1.167221848 | CS21: 1.002387505 | CT21: 1.004012986 | CU21: 1.019421833 | CV21: 1.011844618 | CW21: 1.007382354 | CX21: 1.016012668 | CY21: 1.003563971 | CZ21: 1.000227869
A22: 7 | B22: Good | C22: =SUM(IF($A22='Design Inputs'!$A$30:$A$37,IF(Design!$B22=SubgradeConditions,'Design Inputs'!$E$30:$G$37))) -> 4000 | D22: 1.848754 | E22: 2.080753 | F22: 2.426014 | G22: 2.722412 | H22: 3.054368 | I22: 3.552048 | J22: 3.970731 | K22: 4.420359 | L22: 5.056037 | M22: 5.567809 | N22: 4.125 | O22: 4.125 | P22: 4.125 | Q22: 4.125 | R22: 4.125 | S22: 4.125 | T22: 4.125 | U22: 4.125 | V22: 4.125 | W22: 4.125 | X22: 0.033754 | Y22: 0.265753 | Z22: 0.611014 | AA22: 0.907412 | AB22: 1.239368 | AC22: 1.737048 | AD22: 2.155731 | AE22: 2.605359 | AF22: 3.241037 | AG22: 3.752809 | AH22: 4 | AI22: 4 | AJ22: 4 | AK22: 4 | AL22: 4 | AM22: 6 | AN22: 6 | AO22: 6 | AP22: 6 | AQ22: 6 | AR22: 0 | AS22: 0 | AT22: 0.051014 | AU22: 0.347412 | AV22: 0.679368 | AW22: 0.897048 | AX22: 1.315731 | AY22: 1.765359 | AZ22: 2.401037 | BA22: 2.912809 | BB22: 0 | BC22: 0 | BD22: 6 | BE22: 6 | BF22: 8 | BG22: 10 | BH22: 15 | BI22: 20 | BJ22: 27 | BK22: 33 | CG22: 2.375 | CH22: 2.375 | CI22: 2.915 | CJ22: 2.915 | CK22: 3.095 | CL22: 3.555 | CM22: 4.005 | CN22: 4.455 | CO22: 5.085 | CP22: 5.625 | CQ22: 1.284649012 | CR22: 1.141413709 | CS22: 1.20155943 | CT22: 1.070741681 | CU22: 1.013302916 | CV22: 1.00083107 | CW22: 1.008630401 | CX22: 1.007836694 | CY22: 1.0057284 | CZ22: 1.010271724
A23: 7 | B23: Fair | C23: =SUM(IF($A23='Design Inputs'!$A$30:$A$37,IF(Design!$B23=SubgradeConditions,'Design Inputs'!$E$30:$G$37))) -> 3000 | D23: 2.07173 | E23: 2.327401 | F23: 2.710805 | G23: 3.041367 | H23: 3.410299 | I23: 3.954612 | J23: 4.403176 | K23: 4.878883 | L23: 5.548319 | M23: 6.088197 | N23: 4.125 | O23: 4.125 | P23: 4.125 | Q23: 4.125 | R23: 4.125 | S23: 4.125 | T23: 4.125 | U23: 4.125 | V23: 4.125 | W23: 4.125 | X23: 0.25673 | Y23: 0.512401 | Z23: 0.895805 | AA23: 1.226367 | AB23: 1.595299 | AC23: 2.139612 | AD23: 2.588176 | AE23: 3.063883 | AF23: 3.733319 | AG23: 4.273197 | AH23: 4 | AI23: 4 | AJ23: 4 | AK23: 4 | AL23: 4 | AM23: 6 | AN23: 6 | AO23: 6 | AP23: 6 | AQ23: 6 | AR23: 0 | AS23: 0 | AT23: 0.335805 | AU23: 0.666367 | AV23: 1.035299 | AW23: 1.299612 | AX23: 1.748176 | AY23: 2.223883 | AZ23: 2.893319 | BA23: 3.433197 | BB23: 0 | BC23: 0 | BD23: 6 | BE23: 8 | BF23: 12 | BG23: 15 | BH23: 20 | BI23: 25 | BJ23: 33 | BK23: 39 | CG23: 2.375 | CH23: 2.375 | CI23: 2.915 | CJ23: 3.095 | CK23: 3.455 | CL23: 4.005 | CM23: 4.455 | CN23: 4.905 | CO23: 5.625 | CP23: 6.165 | CQ23: 1.146384905 | CR23: 1.020451568 | CS23: 1.075326333 | CT23: 1.017634504 | CU23: 1.013107648 | CV23: 1.012741579 | CW23: 1.011769686 | CX23: 1.00535307 | CY23: 1.013820582 | CZ23: 1.012615065
A24: 7 | B24: Poor | C24: =SUM(IF($A24='Design Inputs'!$A$30:$A$37,IF(Design!$B24=SubgradeConditions,'Design Inputs'!$E$30:$G$37))) -> 2000 | D24: 2.425482 | E24: 2.721804 | F24: 3.168669 | G24: 3.551288 | H24: 3.969895 | I24: 4.570066 | J24: 5.055074 | K24: 5.566795 | L24: 6.288744 | M24: 6.874266 | N24: 4.125 | O24: 4.125 | P24: 4.125 | Q24: 4.125 | R24: 4.125 | S24: 4.125 | T24: 4.125 | U24: 4.125 | V24: 4.125 | W24: 4.125 | X24: 0.610482 | Y24: 0.906804 | Z24: 1.353669 | AA24: 1.736288 | AB24: 2.154895 | AC24: 2.755066 | AD24: 3.240074 | AE24: 3.751795 | AF24: 4.473744 | AG24: 5.059266 | AH24: 4 | AI24: 4 | AJ24: 4 | AK24: 4 | AL24: 4 | AM24: 6 | AN24: 6 | AO24: 6 | AP24: 6 | AQ24: 6 | AR24: 0.050482 | AS24: 0.346804 | AT24: 0.793669 | AU24: 1.176288 | AV24: 1.594895 | AW24: 1.915066 | AX24: 2.400074 | AY24: 2.911795 | AZ24: 3.633744 | BA24: 4.219266 | BB24: 6 | BC24: 6 | BD24: 9 | BE24: 14 | BF24: 18 | BG24: 22 | BH24: 27 | BI24: 33 | BJ24: 41 | BK24: 47 | CG24: 2.915 | CH24: 2.915 | CI24: 3.185 | CJ24: 3.635 | CK24: 3.995 | CL24: 4.635 | CM24: 5.085 | CN24: 5.625 | CO24: 6.345 | CP24: 6.885 | CQ24: 1.201822978 | CR24: 1.070980864 | CS24: 1.005153899 | CT24: 1.023572293 | CU24: 1.006323845 | CV24: 1.014208548 | CW24: 1.005919992 | CX24: 1.010455747 | CY24: 1.008945506 | CZ24: 1.001561476
A25: 8 | B25: Good | C25: =SUM(IF($A25='Design Inputs'!$A$30:$A$37,IF(Design!$B25=SubgradeConditions,'Design Inputs'!$E$30:$G$37))) -> 3500 | D25: 1.949648 | E25: 2.192165 | F25: 2.554382 | G25: 2.866138 | H25: 3.215125 | I25: 3.735006 | J25: 4.168161 | K25: 4.630182 | L25: 5.281345 | M25: 5.805789 | N25: 4.125 | O25: 4.125 | P25: 4.125 | Q25: 4.125 | R25: 4.125 | S25: 4.125 | T25: 4.125 | U25: 4.125 | V25: 4.125 | W25: 4.125 | X25: 0.134648 | Y25: 0.377165 | Z25: 0.739382 | AA25: 1.051138 | AB25: 1.400125 | AC25: 1.920006 | AD25: 2.353161 | AE25: 2.815182 | AF25: 3.466345 | AG25: 3.990789 | AH25: 4 | AI25: 4 | AJ25: 4 | AK25: 4 | AL25: 4 | AM25: 6 | AN25: 6 | AO25: 6 | AP25: 6 | AQ25: 6 | AR25: 0 | AS25: 0 | AT25: 0.179382 | AU25: 0.491138 | AV25: 0.840125 | AW25: 1.080006 | AX25: 1.513161 | AY25: 1.975182 | AZ25: 2.626345 | BA25: 3.150789 | BB25: 0 | BC25: 0 | BD25: 6 | BE25: 6 | BF25: 10 | BG25: 13 | BH25: 17 | BI25: 22 | BJ25: 30 | BK25: 36 | CG25: 2.375 | CH25: 2.375 | CI25: 2.915 | CJ25: 2.915 | CK25: 3.275 | CL25: 3.825 | CM25: 4.185 | CN25: 4.635 | CO25: 5.355 | CP25: 5.895 | CQ25: 1.218168613 | CR25: 1.08340385 | CS25: 1.141176222 | CT25: 1.017048028 | CU25: 1.018622915 | CV25: 1.02409474 | CW25: 1.004039911 | CX25: 1.001040564 | CY25: 1.013946258 | CZ25: 1.01536587
A26: 8 | B26: Fair | C26: =SUM(IF($A26='Design Inputs'!$A$30:$A$37,IF(Design!$B26=SubgradeConditions,'Design Inputs'!$E$30:$G$37))) -> 3000 | D26: 2.07173 | E26: 2.327401 | F26: 2.710805 | G26: 3.041367 | H26: 3.410299 | I26: 3.954612 | J26: 4.403176 | K26: 4.878883 | L26: 5.548319 | M26: 6.088197 | N26: 4.125 | O26: 4.125 | P26: 4.125 | Q26: 4.125 | R26: 4.125 | S26: 4.125 | T26: 4.125 | U26: 4.125 | V26: 4.125 | W26: 4.125 | X26: 0.25673 | Y26: 0.512401 | Z26: 0.895805 | AA26: 1.226367 | AB26: 1.595299 | AC26: 2.139612 | AD26: 2.588176 | AE26: 3.063883 | AF26: 3.733319 | AG26: 4.273197 | AH26: 4 | AI26: 4 | AJ26: 4 | AK26: 4 | AL26: 4 | AM26: 6 | AN26: 6 | AO26: 6 | AP26: 6 | AQ26: 6 | AR26: 0 | AS26: 0 | AT26: 0.335805 | AU26: 0.666367 | AV26: 1.035299 | AW26: 1.299612 | AX26: 1.748176 | AY26: 2.223883 | AZ26: 2.893319 | BA26: 3.433197 | BB26: 0 | BC26: 0 | BD26: 6 | BE26: 8 | BF26: 12 | BG26: 15 | BH26: 20 | BI26: 25 | BJ26: 33 | BK26: 39 | CG26: 2.375 | CH26: 2.375 | CI26: 2.915 | CJ26: 3.095 | CK26: 3.455 | CL26: 4.005 | CM26: 4.455 | CN26: 4.905 | CO26: 5.625 | CP26: 6.165 | CQ26: 1.146384905 | CR26: 1.020451568 | CS26: 1.075326333 | CT26: 1.017634504 | CU26: 1.013107648 | CV26: 1.012741579 | CW26: 1.011769686 | CX26: 1.00535307 | CY26: 1.013820582 | CZ26: 1.012615065
A27: 8 | B27: Poor | C27: =SUM(IF($A27='Design Inputs'!$A$30:$A$37,IF(Design!$B27=SubgradeConditions,'Design Inputs'!$E$30:$G$37))) -> 2000 | D27: 2.425482 | E27: 2.721804 | F27: 3.168669 | G27: 3.551288 | H27: 3.969895 | I27: 4.570066 | J27: 5.055074 | K27: 5.566795 | L27: 6.288744 | M27: 6.874266 | N27: 4.125 | O27: 4.125 | P27: 4.125 | Q27: 4.125 | R27: 4.125 | S27: 4.125 | T27: 4.125 | U27: 4.125 | V27: 4.125 | W27: 4.125 | X27: 0.610482 | Y27: 0.906804 | Z27: 1.353669 | AA27: 1.736288 | AB27: 2.154895 | AC27: 2.755066 | AD27: 3.240074 | AE27: 3.751795 | AF27: 4.473744 | AG27: 5.059266 | AH27: 4 | AI27: 4 | AJ27: 4 | AK27: 4 | AL27: 4 | AM27: 6 | AN27: 6 | AO27: 6 | AP27: 6 | AQ27: 6 | AR27: 0.050482 | AS27: 0.346804 | AT27: 0.793669 | AU27: 1.176288 | AV27: 1.594895 | AW27: 1.915066 | AX27: 2.400074 | AY27: 2.911795 | AZ27: 3.633744 | BA27: 4.219266 | BB27: 6 | BC27: 6 | BD27: 9 | BE27: 14 | BF27: 18 | BG27: 22 | BH27: 27 | BI27: 33 | BJ27: 41 | BK27: 47 | CG27: 2.915 | CH27: 2.915 | CI27: 3.185 | CJ27: 3.635 | CK27: 3.995 | CL27: 4.635 | CM27: 5.085 | CN27: 5.625 | CO27: 6.345 | CP27: 6.885 | CQ27: 1.201822978 | CR27: 1.070980864 | CS27: 1.005153899 | CT27: 1.023572293 | CU27: 1.006323845 | CV27: 1.014208548 | CW27: 1.005919992 | CX27: 1.010455747 | CY27: 1.008945506 | CZ27: 1.001561476
A31: Asphalt Treated Base
A32: Subgrade Category | B32: Drainage | C32: Mr (psi) | D32: Design SN (in) | N32: Paver Thickness (in) | X32: SN Remaining (Excluding Pavers) | AH32: Asphalt Treated Base Thickness (in) | AR32: SN Remaining (excluding Pavers and Base) | BB32: Unbound Dense Graded Base Thickness (in) | BL32: SN Remaining (excluding Pavers and Base and Untreated Granular Base) | BV32: Unbound Dense Graded Subbase Thickness (in)
D33: 10000 | E33: 20000 | F33: 50000 | G33: 100000 | H33: 200000 | I33: 500000 | J33: 1000000 | K33: 2000000 | L33: 5000000 | M33: 10000000 | N33: 10000 | O33: 20000 | P33: 50000 | Q33: 100000 | R33: 200000 | S33: 500000 | T33: 1000000 | U33: 2000000 | V33: 5000000 | W33: 10000000 | X33: 10000 | Y33: 20000 | Z33: 50000 | AA33: 100000 | AB33: 200000 | AC33: 500000 | AD33: 1000000 | AE33: 2000000 | AF33: 5000000 | AG33: 10000000 | AH33: 10000 | AI33: 20000 | AJ33: 50000 | AK33: 100000 | AL33: 200000 | AM33: 500000 | AN33: 1000000 | AO33: 2000000 | AP33: 5000000 | AQ33: 10000000 | AR33: 10000 | AS33: 20000 | AT33: 50000 | AU33: 100000 | AV33: 200000 | AW33: 500000 | AX33: 1000000 | AY33: 2000000 | AZ33: 5000000 | BA33: 10000000 | BB33: 10000 | BC33: 20000 | BD33: 50000 | BE33: 100000 | BF33: 200000 | BG33: 500000 | BH33: 1000000 | BI33: 2000000 | BJ33: 5000000 | BK33: 10000000 | BL33: 10000 | BM33: 20000 | BN33: 50000 | BO33: 100000 | BP33: 200000 | BQ33: 500000 | BR33: 1000000 | BS33: 2000000 | BT33: 5000000 | BU33: 10000000 | BV33: 10000 | BW33: 20000 | BX33: 50000 | BY33: 100000 | BZ33: 200000 | CA33: 500000 | CB33: 1000000 | CC33: 2000000 | CD33: 5000000 | CE33: 10000000
A34: 1 | B34: Good | C34: =C4 -> 12000 | D34: =D4 -> 1.154138 | E34: =E4 -> 1.322296 | F34: 1.566929 | G34: 1.771518 | H34: 1.995749 | I34: 2.32844 | J34: 2.613281 | K34: 2.932134 | L34: 3.411794 | M34: 3.818211 | N34: =ThickPaver -> 4.125 | O34: 4.125 | P34: 4.125 | Q34: 4.125 | R34: 4.125 | S34: 4.125 | T34: 4.125 | U34: 4.125 | V34: 4.125 | W34: 4.125 | X34: =MAX(0,D34-N34*Apaver) -> 0 | Y34: =MAX(0,E34-O34*Apaver) -> 0 | Z34: =MAX(0,F34-P34*Apaver) -> 0 | AA34: =MAX(0,G34-Q34*Apaver) -> 0 | AB34: =MAX(0,H34-R34*Apaver) -> 0.180749 | AC34: =MAX(0,I34-S34*Apaver) -> 0.51344 | AD34: =MAX(0,J34-T34*Apaver) -> 0.798281 | AE34: =MAX(0,K34-U34*Apaver) -> 1.117134 | AF34: =MAX(0,L34-V34*Apaver) -> 1.596794 | AG34: =MAX(0,M34-W34*Apaver) -> 2.003211 | AH34: =ThickATB -> 4 | AI34: 4 | AJ34: 4 | AK34: 4 | AL34: 4 | AM34: 4 | AN34: 4 | AO34: 4 | AP34: 4 | AQ34: 4 | AR34: =MAX(0,X34-AH34*Aatb) -> 0 | AS34: =MAX(0,Y34-AI34*Aatb) -> 0 | AT34: =MAX(0,Z34-AJ34*Aatb) -> 0 | AU34: =MAX(0,AA34-AK34*Aatb) -> 0 | AV34: =MAX(0,AB34-AL34*Aatb) -> 0 | AW34: =MAX(0,AC34-AM34*Aatb) -> 0 | AX34: =MAX(0,AD34-AN34*Aatb) -> 0 | AY34: =MAX(0,AE34-AO34*Aatb) -> 0 | AZ34: =MAX(0,AF34-AP34*Aatb) -> 0.476794 | BA34: =MAX(0,AG34-AQ34*Aatb) -> 0.883211 | BB34: =IF(AR34<4*Agran,4,IF(AR34>8*Agran,4,ROUNDUP(AR34/Agran/1,0)*1)) -> 4 | BC34: =IF(AS34<4*Agran,4,IF(AS34>8*Agran,4,ROUNDUP(AS34/Agran/1,0)*1)) -> 4 | BD34: =IF(AT34<4*Agran,4,IF(AT34>8*Agran,4,ROUNDUP(AT34/Agran/1,0)*1)) -> 4 | BE34: =IF(AU34<4*Agran,4,IF(AU34>8*Agran,4,ROUNDUP(AU34/Agran/1,0)*1)) -> 4 | BF34: =IF(AV34<4*Agran,4,IF(AV34>8*Agran,4,ROUNDUP(AV34/Agran/1,0)*1)) -> 4 | BG34: =IF(AW34<6*Agran,6,IF(AW34>8*Agran,6,ROUNDUP(AW34/Agran/1,0)*1)) -> 6 | BH34: =IF(AX34<6*Agran,6,IF(AX34>8*Agran,6,ROUNDUP(AX34/Agran/1,0)*1)) -> 6 | BI34: =IF(AY34<6*Agran,6,IF(AY34>8*Agran,6,ROUNDUP(AY34/Agran/1,0)*1)) -> 6 | BJ34: =IF(AZ34<6*Agran,6,IF(AZ34>8*Agran,6,ROUNDUP(AZ34/Agran/1,0)*1)) -> 6 | BK34: =IF(BA34<6*Agran,6,IF(BA34>8*Agran,6,ROUNDUP(BA34/Agran/1,0)*1)) -> 7 | BL34: =MAX(0,AR34-BB34*Agran) -> 0 | BM34: =MAX(0,AS34-BC34*Agran) -> 0 | BN34: =MAX(0,AT34-BD34*Agran) -> 0 | BO34: =MAX(0,AU34-BE34*Agran) -> 0 | BP34: =MAX(0,AV34-BF34*Agran) -> 0 | BQ34: =MAX(0,AW34-BG34*Agran) -> 0 | BR34: =MAX(0,AX34-BH34*Agran) -> 0 | BS34: =MAX(0,AY34-BI34*Agran) -> 0 | BT34: =MAX(0,AZ34-BJ34*Agran) -> 0 | BU34: =MAX(0,BA34-BK34*Agran) -> 0 | BV34: =IF(BL34<=0,0,MAX(6,ROUNDUP(BL34/Asubbase/1,0)*1)) -> 0 | BW34: =IF(BM34<=0,0,MAX(6,ROUNDUP(BM34/Asubbase/1,0)*1)) -> 0 | BX34: =IF(BN34<=0,0,MAX(6,ROUNDUP(BN34/Asubbase/1,0)*1)) -> 0 | BY34: =IF(BO34<=0,0,MAX(6,ROUNDUP(BO34/Asubbase/1,0)*1)) -> 0 | BZ34: =IF(BP34<=0,0,MAX(6,ROUNDUP(BP34/Asubbase/1,0)*1)) -> 0 | CA34: =IF(BQ34<=0,0,MAX(6,ROUNDUP(BQ34/Asubbase/1,0)*1)) -> 0 | CB34: =IF(BR34<=0,0,MAX(6,ROUNDUP(BR34/Asubbase/1,0)*1)) -> 0 | CC34: =IF(BS34<=0,0,MAX(6,ROUNDUP(BS34/Asubbase/1,0)*1)) -> 0 | CD34: =IF(BT34<=0,0,MAX(6,ROUNDUP(BT34/Asubbase/1,0)*1)) -> 0 | CE34: =IF(BU34<=0,0,MAX(6,ROUNDUP(BU34/Asubbase/1,0)*1)) -> 0 | CG34: =N34*Apaver+AH34*Aatb+BB34*Agran+BV34*Asubbase -> 3.495 | CH34: =O34*Apaver+AI34*Aatb+BC34*Agran+BW34*Asubbase -> 3.495 | CI34: =P34*Apaver+AJ34*Aatb+BD34*Agran+BX34*Asubbase -> 3.495 | CJ34: =Q34*Apaver+AK34*Aatb+BE34*Agran+BY34*Asubbase -> 3.495 | CK34: =R34*Apaver+AL34*Aatb+BF34*Agran+BZ34*Asubbase -> 3.495 | CL34: =S34*Apaver+AM34*Aatb+BG34*Agran+CA34*Asubbase -> 3.775 | CM34: =T34*Apaver+AN34*Aatb+BH34*Agran+CB34*Asubbase -> 3.775 | CN34: =U34*Apaver+AO34*Aatb+BI34*Agran+CC34*Asubbase -> 3.775 | CO34: =V34*Apaver+AP34*Aatb+BJ34*Agran+CD34*Asubbase -> 3.775 | CP34: =W34*Apaver+AQ34*Aatb+BK34*Agran+CE34*Asubbase -> 3.915 | CQ34: =(CG34)/D34 -> 3.028234059 | CR34: =(CH34)/E34 -> 2.643129829 | CS34: =(CI34)/F34 -> 2.230477577 | CT34: =(CJ34)/G34 -> 1.972884272 | CU34: =(CK34)/H34 -> 1.751222223 | CV34: =(CL34)/I34 -> 1.621257151 | CW34: =(CM34)/J34 -> 1.444544234 | CX34: =(CN34)/K34 -> 1.287458213 | CY34: =(CO34)/L34 -> 1.106456017 | CZ34: =(CP34)/M34 -> 1.025349306
A35: 1 | B35: Fair | C35: =C5 -> 11000 | D35: =D5 -> 1.201722 | E35: 1.373871 | F35: 1.62465 | G35: 1.834625 | H35: 2.065242 | I35: 2.408172 | J35: 2.702441 | K35: 3.032015 | L35: 3.526451 | M35: 3.942979 | N35: 4.125 | O35: 4.125 | P35: 4.125 | Q35: 4.125 | R35: 4.125 | S35: 4.125 | T35: 4.125 | U35: 4.125 | V35: 4.125 | W35: 4.125 | X35: 0 | Y35: 0 | Z35: 0 | AA35: 0.019625 | AB35: 0.250242 | AC35: 0.593172 | AD35: 0.887441 | AE35: 1.217015 | AF35: 1.711451 | AG35: 2.127979 | AH35: 4 | AI35: 4 | AJ35: 4 | AK35: 4 | AL35: 4 | AM35: 4 | AN35: 4 | AO35: 4 | AP35: 4 | AQ35: 4 | AR35: 0 | AS35: 0 | AT35: 0 | AU35: 0 | AV35: 0 | AW35: 0 | AX35: 0 | AY35: 0.097015 | AZ35: 0.591451 | BA35: 1.007979 | BB35: 4 | BC35: 4 | BD35: 4 | BE35: 4 | BF35: 4 | BG35: 6 | BH35: 6 | BI35: 6 | BJ35: 6 | BK35: 8 | BL35: 0 | BM35: 0 | BN35: 0 | BO35: 0 | BP35: 0 | BQ35: 0 | BR35: 0 | BS35: 0 | BT35: 0 | BU35: 0 | BV35: 0 | BW35: 0 | BX35: 0 | BY35: 0 | BZ35: 0 | CA35: 0 | CB35: 0 | CC35: 0 | CD35: 0 | CE35: 0 | CG35: 3.495 | CH35: 3.495 | CI35: 3.495 | CJ35: 3.495 | CK35: 3.495 | CL35: 3.775 | CM35: 3.775 | CN35: 3.775 | CO35: 3.775 | CP35: 4.055 | CQ35: =(CG35)/D35 -> 2.908326551 | CR35: 2.543906961 | CS35: 2.151232573 | CT35: 1.905021462 | CU35: 1.692295624 | CV35: 1.56757906 | CW35: 1.39688526 | CX35: 1.245046611 | CY35: 1.070481342 | CZ35: 1.028410245
A36: 1 | B36: Poor | C36: 10000 | D36: =D6 -> 1.255134 | E36: 1.431845 | F36: 1.689594 | G36: 1.905778 | H36: 2.143707 | I36: 2.498473 | J36: 2.803538 | K36: 3.14515 | L36: 3.655604 | M36: 4.082675 | N36: 4.125 | O36: 4.125 | P36: 4.125 | Q36: 4.125 | R36: 4.125 | S36: 4.125 | T36: 4.125 | U36: 4.125 | V36: 4.125 | W36: 4.125 | X36: 0 | Y36: 0 | Z36: 0 | AA36: 0.090778 | AB36: 0.328707 | AC36: 0.683473 | AD36: 0.988538 | AE36: 1.33015 | AF36: 1.840604 | AG36: 2.267675 | AH36: 4 | AI36: 4 | AJ36: 4 | AK36: 4 | AL36: 4 | AM36: 4 | AN36: 4 | AO36: 4 | AP36: 4 | AQ36: 4 | AR36: 0 | AS36: 0 | AT36: 0 | AU36: 0 | AV36: 0 | AW36: 0 | AX36: 0 | AY36: 0.21015 | AZ36: 0.720604 | BA36: 1.147675 | BB36: 4 | BC36: 4 | BD36: 4 | BE36: 4 | BF36: 4 | BG36: 6 | BH36: 6 | BI36: 6 | BJ36: 6 | BK36: 6 | BL36: 0 | BM36: 0 | BN36: 0 | BO36: 0 | BP36: 0 | BQ36: 0 | BR36: 0 | BS36: 0 | BT36: 0 | BU36: 0.307675 | BV36: 0 | BW36: 0 | BX36: 0 | BY36: 0 | BZ36: 0 | CA36: 0 | CB36: 0 | CC36: 0 | CD36: 0 | CE36: 6 | CG36: 3.495 | CH36: 3.495 | CI36: 3.495 | CJ36: 3.495 | CK36: 3.495 | CL36: 3.775 | CM36: 3.775 | CN36: 3.775 | CO36: 3.775 | CP36: 4.315 | CQ36: 2.784563242 | CR36: 2.440906662 | CS36: 2.068544278 | CT36: 1.833896708 | CU36: 1.630353402 | CV36: 1.510922872 | CW36: 1.346512871 | CX36: 1.200260719 | CY36: 1.032661087 | CZ36: 1.056905093
A37: 2 | B37: Good | C37: 11000 | D37: =D7 -> 1.201722 | E37: 1.373871 | F37: 1.62465 | G37: 1.834625 | H37: 2.065242 | I37: 2.408172 | J37: 2.702441 | K37: 3.032015 | L37: 3.526451 | M37: 3.942979 | N37: 4.125 | O37: 4.125 | P37: 4.125 | Q37: 4.125 | R37: 4.125 | S37: 4.125 | T37: 4.125 | U37: 4.125 | V37: 4.125 | W37: 4.125 | X37: 0 | Y37: 0 | Z37: 0 | AA37: 0.019625 | AB37: 0.250242 | AC37: 0.593172 | AD37: 0.887441 | AE37: 1.217015 | AF37: 1.711451 | AG37: 2.127979 | AH37: 4 | AI37: 4 | AJ37: 4 | AK37: 4 | AL37: 4 | AM37: 4 | AN37: 4 | AO37: 4 | AP37: 4 | AQ37: 4 | AR37: 0 | AS37: 0 | AT37: 0 | AU37: 0 | AV37: 0 | AW37: 0 | AX37: 0 | AY37: 0.097015 | AZ37: 0.591451 | BA37: 1.007979 | BB37: 4 | BC37: 4 | BD37: 4 | BE37: 4 | BF37: 4 | BG37: 6 | BH37: 6 | BI37: 6 | BJ37: 6 | BK37: 8 | BL37: 0 | BM37: 0 | BN37: 0 | BO37: 0 | BP37: 0 | BQ37: 0 | BR37: 0 | BS37: 0 | BT37: 0 | BU37: 0 | BV37: 0 | BW37: 0 | BX37: 0 | BY37: 0 | BZ37: 0 | CA37: 0 | CB37: 0 | CC37: 0 | CD37: 0 | CE37: 0 | CG37: 3.495 | CH37: 3.495 | CI37: 3.495 | CJ37: 3.495 | CK37: 3.495 | CL37: 3.775 | CM37: 3.775 | CN37: 3.775 | CO37: 3.775 | CP37: 4.055 | CQ37: 2.908326551 | CR37: 2.543906961 | CS37: 2.151232573 | CT37: 1.905021462 | CU37: 1.692295624 | CV37: 1.56757906 | CW37: 1.39688526 | CX37: 1.245046611 | CY37: 1.070481342 | CZ37: 1.028410245
A38: 2 | B38: Fair | C38: 10000 | D38: =D8 -> 1.255134 | E38: 1.431845 | F38: 1.689594 | G38: 1.905778 | H38: 2.143707 | I38: 2.498473 | J38: 2.803538 | K38: 3.14515 | L38: 3.655604 | M38: 4.082675 | N38: 4.125 | O38: 4.125 | P38: 4.125 | Q38: 4.125 | R38: 4.125 | S38: 4.125 | T38: 4.125 | U38: 4.125 | V38: 4.125 | W38: 4.125 | X38: 0 | Y38: 0 | Z38: 0 | AA38: 0.090778 | AB38: 0.328707 | AC38: 0.683473 | AD38: 0.988538 | AE38: 1.33015 | AF38: 1.840604 | AG38: 2.267675 | AH38: 4 | AI38: 4 | AJ38: 4 | AK38: 4 | AL38: 4 | AM38: 4 | AN38: 4 | AO38: 4 | AP38: 4 | AQ38: 4 | AR38: 0 | AS38: 0 | AT38: 0 | AU38: 0 | AV38: 0 | AW38: 0 | AX38: 0 | AY38: 0.21015 | AZ38: 0.720604 | BA38: 1.147675 | BB38: 4 | BC38: 4 | BD38: 4 | BE38: 4 | BF38: 4 | BG38: 6 | BH38: 6 | BI38: 6 | BJ38: 6 | BK38: 6 | BL38: 0 | BM38: 0 | BN38: 0 | BO38: 0 | BP38: 0 | BQ38: 0 | BR38: 0 | BS38: 0 | BT38: 0 | BU38: 0.307675 | BV38: 0 | BW38: 0 | BX38: 0 | BY38: 0 | BZ38: 0 | CA38: 0 | CB38: 0 | CC38: 0 | CD38: 0 | CE38: 6 | CG38: 3.495 | CH38: 3.495 | CI38: 3.495 | CJ38: 3.495 | CK38: 3.495 | CL38: 3.775 | CM38: 3.775 | CN38: 3.775 | CO38: 3.775 | CP38: 4.315 | CQ38: 2.784563242 | CR38: 2.440906662 | CS38: 2.068544278 | CT38: 1.833896708 | CU38: 1.630353402 | CV38: 1.510922872 | CW38: 1.346512871 | CX38: 1.200260719 | CY38: 1.032661087 | CZ38: 1.056905093
A39: 2 | B39: Poor | C39: 7000 | D39: =D9 -> 1.467834 | E39: 1.663299 | F39: 1.950105 | G39: 2.192672 | H39: 2.461825 | I39: 2.866772 | J39: 3.215835 | K39: 3.603294 | L39: 4.169022 | M39: 4.631094 | N39: 4.125 | O39: 4.125 | P39: 4.125 | Q39: 4.125 | R39: 4.125 | S39: 4.125 | T39: 4.125 | U39: 4.125 | V39: 4.125 | W39: 4.125 | X39: 0 | Y39: 0 | Z39: 0.135105 | AA39: 0.377672 | AB39: 0.646825 | AC39: 1.051772 | AD39: 1.400835 | AE39: 1.788294 | AF39: 2.354022 | AG39: 2.816094 | AH39: 4 | AI39: 4 | AJ39: 4 | AK39: 4 | AL39: 4 | AM39: 4 | AN39: 4 | AO39: 4 | AP39: 4 | AQ39: 4 | AR39: 0 | AS39: 0 | AT39: 0 | AU39: 0 | AV39: 0 | AW39: 0 | AX39: 0.280835 | AY39: 0.668294 | AZ39: 1.234022 | BA39: 1.696094 | BB39: 4 | BC39: 4 | BD39: 4 | BE39: 4 | BF39: 4 | BG39: 6 | BH39: 6 | BI39: 6 | BJ39: 6 | BK39: 6 | BL39: 0 | BM39: 0 | BN39: 0 | BO39: 0 | BP39: 0 | BQ39: 0 | BR39: 0 | BS39: 0 | BT39: 0.394022 | BU39: 0.856094 | BV39: 0 | BW39: 0 | BX39: 0 | BY39: 0 | BZ39: 0 | CA39: 0 | CB39: 0 | CC39: 0 | CD39: 6 | CE39: 10 | CG39: 3.495 | CH39: 3.495 | CI39: 3.495 | CJ39: 3.495 | CK39: 3.495 | CL39: 3.775 | CM39: 3.775 | CN39: 3.775 | CO39: 4.315 | CP39: 4.675 | CQ39: 2.381059439 | CR39: 2.101245777 | CS39: 1.792211189 | CT39: 1.593945652 | CU39: 1.419678491 | CV39: 1.31681208 | CW39: 1.173878635 | CX39: 1.047652509 | CY39: 1.035014927 | CZ39: 1.009480697
A40: 3 | B40: Good | C40: 10000 | D40: =D10 -> 1.255134 | E40: 1.431845 | F40: 1.689594 | G40: 1.905778 | H40: 2.143707 | I40: 2.498473 | J40: 2.803538 | K40: 3.14515 | L40: 3.655604 | M40: 4.082675 | N40: 4.125 | O40: 4.125 | P40: 4.125 | Q40: 4.125 | R40: 4.125 | S40: 4.125 | T40: 4.125 | U40: 4.125 | V40: 4.125 | W40: 4.125 | X40: 0 | Y40: 0 | Z40: 0 | AA40: 0.090778 | AB40: 0.328707 | AC40: 0.683473 | AD40: 0.988538 | AE40: 1.33015 | AF40: 1.840604 | AG40: 2.267675 | AH40: 4 | AI40: 4 | AJ40: 4 | AK40: 4 | AL40: 4 | AM40: 4 | AN40: 4 | AO40: 4 | AP40: 4 | AQ40: 4 | AR40: 0 | AS40: 0 | AT40: 0 | AU40: 0 | AV40: 0 | AW40: 0 | AX40: 0 | AY40: 0.21015 | AZ40: 0.720604 | BA40: 1.147675 | BB40: 4 | BC40: 4 | BD40: 4 | BE40: 4 | BF40: 4 | BG40: 6 | BH40: 6 | BI40: 6 | BJ40: 6 | BK40: 6 | BL40: 0 | BM40: 0 | BN40: 0 | BO40: 0 | BP40: 0 | BQ40: 0 | BR40: 0 | BS40: 0 | BT40: 0 | BU40: 0.307675 | BV40: 0 | BW40: 0 | BX40: 0 | BY40: 0 | BZ40: 0 | CA40: 0 | CB40: 0 | CC40: 0 | CD40: 0 | CE40: 6 | CG40: 3.495 | CH40: 3.495 | CI40: 3.495 | CJ40: 3.495 | CK40: 3.495 | CL40: 3.775 | CM40: 3.775 | CN40: 3.775 | CO40: 3.775 | CP40: 4.315 | CQ40: 2.784563242 | CR40: 2.440906662 | CS40: 2.068544278 | CT40: 1.833896708 | CU40: 1.630353402 | CV40: 1.510922872 | CW40: 1.346512871 | CX40: 1.200260719 | CY40: 1.032661087 | CZ40: 1.056905093
A41: 3 | B41: Fair | C41: 8000 | D41: =D11 -> 1.385719 | E41: 1.573835 | F41: 1.849134 | G41: 2.081234 | H41: 2.337944 | I41: 2.723021 | J41: 3.055052 | K41: 3.42548 | L41: 3.971567 | M41: 4.421246 | N41: 4.125 | O41: 4.125 | P41: 4.125 | Q41: 4.125 | R41: 4.125 | S41: 4.125 | T41: 4.125 | U41: 4.125 | V41: 4.125 | W41: 4.125 | X41: 0 | Y41: 0 | Z41: 0.034134 | AA41: 0.266234 | AB41: 0.522944 | AC41: 0.908021 | AD41: 1.240052 | AE41: 1.61048 | AF41: 2.156567 | AG41: 2.606246 | AH41: 4 | AI41: 4 | AJ41: 4 | AK41: 4 | AL41: 4 | AM41: 4 | AN41: 4 | AO41: 4 | AP41: 4 | AQ41: 4 | AR41: 0 | AS41: 0 | AT41: 0 | AU41: 0 | AV41: 0 | AW41: 0 | AX41: 0.120052 | AY41: 0.49048 | AZ41: 1.036567 | BA41: 1.486246 | BB41: 4 | BC41: 4 | BD41: 4 | BE41: 4 | BF41: 4 | BG41: 6 | BH41: 6 | BI41: 6 | BJ41: 8 | BK41: 6 | BL41: 0 | BM41: 0 | BN41: 0 | BO41: 0 | BP41: 0 | BQ41: 0 | BR41: 0 | BS41: 0 | BT41: 0 | BU41: 0.646246 | BV41: 0 | BW41: 0 | BX41: 0 | BY41: 0 | BZ41: 0 | CA41: 0 | CB41: 0 | CC41: 0 | CD41: 0 | CE41: 8 | CG41: 3.495 | CH41: 3.495 | CI41: 3.495 | CJ41: 3.495 | CK41: 3.495 | CL41: 3.775 | CM41: 3.775 | CN41: 3.775 | CO41: 4.055 | CP41: 4.495 | CQ41: 2.522156368 | CR41: 2.220690225 | CS41: 1.890073948 | CT41: 1.679292189 | CU41: 1.494903214 | CV41: 1.386327906 | CW41: 1.235658182 | CX41: 1.102035335 | CY41: 1.021007577 | CZ41: 1.016681723
A42: 3 | B42: Poor | C42: 5000 | D42: =D12 -> 1.689213 | E42: 1.905334 | F42: 2.225062 | G42: 2.49794 | H42: 2.802905 | I42: 3.262645 | J42: 3.654818 | K42: 4.081814 | L42: 4.691286 | M42: 5.182985 | N42: 4.125 | O42: 4.125 | P42: 4.125 | Q42: 4.125 | R42: 4.125 | S42: 4.125 | T42: 4.125 | U42: 4.125 | V42: 4.125 | W42: 4.125 | X42: 0 | Y42: 0.090334 | Z42: 0.410062 | AA42: 0.68294 | AB42: 0.987905 | AC42: 1.447645 | AD42: 1.839818 | AE42: 2.266814 | AF42: 2.876286 | AG42: 3.367985 | AH42: 4 | AI42: 4 | AJ42: 4 | AK42: 4 | AL42: 4 | AM42: 4 | AN42: 4 | AO42: 4 | AP42: 4 | AQ42: 4 | AR42: 0 | AS42: 0 | AT42: 0 | AU42: 0 | AV42: 0 | AW42: 0.327645 | AX42: 0.719818 | AY42: 1.146814 | AZ42: 1.756286 | BA42: 2.247985 | BB42: 4 | BC42: 4 | BD42: 4 | BE42: 4 | BF42: 4 | BG42: 6 | BH42: 6 | BI42: 6 | BJ42: 6 | BK42: 6 | BL42: 0 | BM42: 0 | BN42: 0 | BO42: 0 | BP42: 0 | BQ42: 0 | BR42: 0 | BS42: 0.306814 | BT42: 0.916286 | BU42: 1.407985 | BV42: 0 | BW42: 0 | BX42: 0 | BY42: 0 | BZ42: 0 | CA42: 0 | CB42: 0 | CC42: 6 | CD42: 11 | CE42: 16 | CG42: 3.495 | CH42: 3.495 | CI42: 3.495 | CJ42: 3.495 | CK42: 3.495 | CL42: 3.775 | CM42: 3.775 | CN42: 4.315 | CO42: 4.765 | CP42: 5.215 | CQ42: 2.069010835 | CR42: 1.834324061 | CS42: 1.570742748 | CT42: 1.399152902 | CU42: 1.246920606 | CV42: 1.157036699 | CW42: 1.03288317 | CX42: 1.057128032 | CY42: 1.015712962 | CZ42: 1.006176942
A43: 4 | B43: Good | C43: 8000 | D43: =D13 -> 1.385719 | E43: 1.573835 | F43: 1.849134 | G43: 2.081234 | H43: 2.337944 | I43: 2.723021 | J43: 3.055052 | K43: 3.42548 | L43: 3.971567 | M43: 4.421246 | N43: 4.125 | O43: 4.125 | P43: 4.125 | Q43: 4.125 | R43: 4.125 | S43: 4.125 | T43: 4.125 | U43: 4.125 | V43: 4.125 | W43: 4.125 | X43: 0 | Y43: 0 | Z43: 0.034134 | AA43: 0.266234 | AB43: 0.522944 | AC43: 0.908021 | AD43: 1.240052 | AE43: 1.61048 | AF43: 2.156567 | AG43: 2.606246 | AH43: 4 | AI43: 4 | AJ43: 4 | AK43: 4 | AL43: 4 | AM43: 4 | AN43: 4 | AO43: 4 | AP43: 4 | AQ43: 4 | AR43: 0 | AS43: 0 | AT43: 0 | AU43: 0 | AV43: 0 | AW43: 0 | AX43: 0.120052 | AY43: 0.49048 | AZ43: 1.036567 | BA43: 1.486246 | BB43: 4 | BC43: 4 | BD43: 4 | BE43: 4 | BF43: 4 | BG43: 6 | BH43: 6 | BI43: 6 | BJ43: 8 | BK43: 6 | BL43: 0 | BM43: 0 | BN43: 0 | BO43: 0 | BP43: 0 | BQ43: 0 | BR43: 0 | BS43: 0 | BT43: 0 | BU43: 0.646246 | BV43: 0 | BW43: 0 | BX43: 0 | BY43: 0 | BZ43: 0 | CA43: 0 | CB43: 0 | CC43: 0 | CD43: 0 | CE43: 8 | CG43: 3.495 | CH43: 3.495 | CI43: 3.495 | CJ43: 3.495 | CK43: 3.495 | CL43: 3.775 | CM43: 3.775 | CN43: 3.775 | CO43: 4.055 | CP43: 4.495 | CQ43: 2.522156368 | CR43: 2.220690225 | CS43: 1.890073948 | CT43: 1.679292189 | CU43: 1.494903214 | CV43: 1.386327906 | CW43: 1.235658182 | CX43: 1.102035335 | CY43: 1.021007577 | CZ43: 1.016681723
A44: 4 | B44: Fair | C44: 5000 | D44: =D14 -> 1.689213 | E44: 1.905334 | F44: 2.225062 | G44: 2.49794 | H44: 2.802905 | I44: 3.262645 | J44: 3.654818 | K44: 4.081814 | L44: 4.691286 | M44: 5.182985 | N44: =ThickPaver -> 4.125 | O44: 4.125 | P44: 4.125 | Q44: 4.125 | R44: 4.125 | S44: 4.125 | T44: 4.125 | U44: 4.125 | V44: 4.125 | W44: 4.125 | X44: 0 | Y44: 0.090334 | Z44: 0.410062 | AA44: 0.68294 | AB44: 0.987905 | AC44: 1.447645 | AD44: 1.839818 | AE44: 2.266814 | AF44: 2.876286 | AG44: 3.367985 | AH44: =ThickATB -> 4 | AI44: 4 | AJ44: 4 | AK44: 4 | AL44: 4 | AM44: 4 | AN44: 4 | AO44: 4 | AP44: 4 | AQ44: 4 | AR44: 0 | AS44: 0 | AT44: 0 | AU44: 0 | AV44: 0 | AW44: 0.327645 | AX44: 0.719818 | AY44: 1.146814 | AZ44: 1.756286 | BA44: 2.247985 | BB44: 4 | BC44: 4 | BD44: 4 | BE44: 4 | BF44: 4 | BG44: 6 | BH44: 6 | BI44: 6 | BJ44: 6 | BK44: 6 | BL44: 0 | BM44: 0 | BN44: 0 | BO44: 0 | BP44: 0 | BQ44: 0 | BR44: 0 | BS44: 0.306814 | BT44: 0.916286 | BU44: 1.407985 | BV44: 0 | BW44: 0 | BX44: 0 | BY44: 0 | BZ44: 0 | CA44: 0 | CB44: 0 | CC44: 6 | CD44: 11 | CE44: 16 | CG44: 3.495 | CH44: 3.495 | CI44: 3.495 | CJ44: 3.495 | CK44: 3.495 | CL44: 3.775 | CM44: 3.775 | CN44: 4.315 | CO44: 4.765 | CP44: 5.215 | CQ44: 2.069010835 | CR44: 1.834324061 | CS44: 1.570742748 | CT44: 1.399152902 | CU44: 1.246920606 | CV44: 1.157036699 | CW44: 1.03288317 | CX44: 1.057128032 | CY44: 1.015712962 | CZ44: 1.006176942
A45: 4 | B45: Poor | C45: 4500 | D45: =D15 -> 1.763155 | E45: 1.986575 | F45: 2.317947 | G45: 2.601547 | H45: 2.919006 | I45: 3.396664 | J45: 3.801687 | K45: 4.239732 | L45: 4.861699 | M45: 5.36275 | N45: 4.125 | O45: 4.125 | P45: 4.125 | Q45: 4.125 | R45: 4.125 | S45: 4.125 | T45: 4.125 | U45: 4.125 | V45: 4.125 | W45: 4.125 | X45: 0 | Y45: 0.171575 | Z45: 0.502947 | AA45: 0.786547 | AB45: 1.104006 | AC45: 1.581664 | AD45: 1.986687 | AE45: 2.424732 | AF45: 3.046699 | AG45: 3.54775 | AH45: 4 | AI45: 4 | AJ45: 4 | AK45: 4 | AL45: 4 | AM45: 4 | AN45: 4 | AO45: 4 | AP45: 4 | AQ45: 4 | AR45: 0 | AS45: 0 | AT45: 0 | AU45: 0 | AV45: 0 | AW45: 0.461664 | AX45: 0.866687 | AY45: 1.304732 | AZ45: 1.926699 | BA45: 2.42775 | BB45: 4 | BC45: 4 | BD45: 4 | BE45: 4 | BF45: 4 | BG45: 6 | BH45: 7 | BI45: 6 | BJ45: 6 | BK45: 6 | BL45: 0 | BM45: 0 | BN45: 0 | BO45: 0 | BP45: 0 | BQ45: 0 | BR45: 0 | BS45: 0.464732 | BT45: 1.086699 | BU45: 1.58775 | BV45: 0 | BW45: 0 | BX45: 0 | BY45: 0 | BZ45: 0 | CA45: 0 | CB45: 0 | CC45: 6 | CD45: 13 | CE45: 18 | CG45: 3.495 | CH45: 3.495 | CI45: 3.495 | CJ45: 3.495 | CK45: 3.495 | CL45: 3.775 | CM45: 3.915 | CN45: 4.315 | CO45: 4.945 | CP45: 5.395 | CQ45: 1.98224206 | CR45: 1.759309364 | CS45: 1.50779979 | CT45: 1.343431428 | CU45: 1.197325391 | CV45: 1.111384582 | CW45: 1.029805978 | CX45: 1.017753009 | CY45: 1.017134134 | CZ45: 1.006013706
A46: 5 | B46: Good | C46: 6000 | D46: =D16 -> 1.566548 | E46: 1.771075 | F46: 2.072212 | G46: 2.327908 | H46: 2.612698 | I46: 3.042051 | J46: 3.411059 | K46: 3.8174 | L46: 4.404063 | M46: 4.87982 | N46: 4.125 | O46: 4.125 | P46: 4.125 | Q46: 4.125 | R46: 4.125 | S46: 4.125 | T46: 4.125 | U46: 4.125 | V46: 4.125 | W46: 4.125 | X46: 0 | Y46: 0 | Z46: 0.257212 | AA46: 0.512908 | AB46: 0.797698 | AC46: 1.227051 | AD46: 1.596059 | AE46: 2.0024 | AF46: 2.589063 | AG46: 3.06482 | AH46: 4 | AI46: 4 | AJ46: 4 | AK46: 4 | AL46: 4 | AM46: 4 | AN46: 4 | AO46: 4 | AP46: 4 | AQ46: 4 | AR46: 0 | AS46: 0 | AT46: 0 | AU46: 0 | AV46: 0 | AW46: 0.107051 | AX46: 0.476059 | AY46: 0.8824 | AZ46: 1.469063 | BA46: 1.94482 | BB46: 4 | BC46: 4 | BD46: 4 | BE46: 4 | BF46: 4 | BG46: 6 | BH46: 6 | BI46: 7 | BJ46: 6 | BK46: 6 | BL46: 0 | BM46: 0 | BN46: 0 | BO46: 0 | BP46: 0 | BQ46: 0 | BR46: 0 | BS46: 0 | BT46: 0.629063 | BU46: 1.10482 | BV46: 0 | BW46: 0 | BX46: 0 | BY46: 0 | BZ46: 0 | CA46: 0 | CB46: 0 | CC46: 0 | CD46: 7 | CE46: 13 | CG46: 3.495 | CH46: 3.495 | CI46: 3.495 | CJ46: 3.495 | CK46: 3.495 | CL46: 3.775 | CM46: 3.775 | CN46: 3.915 | CO46: 4.405 | CP46: 4.945 | CQ46: 2.231020052 | CR46: 1.973377751 | CS46: 1.686603494 | CT46: 1.501347991 | CU46: 1.33769766 | CV46: 1.24093909 | CW46: 1.106694431 | CX46: 1.02556714 | CY46: 1.000212758 | CZ46: 1.01335705
A47: 5 | B47: Fair | C47: 4500 | D47: =D17 -> 1.763155 | E47: 1.986575 | F47: 2.317947 | G47: 2.601547 | H47: 2.919006 | I47: 3.396664 | J47: 3.801687 | K47: 4.239732 | L47: 4.861699 | M47: 5.36275 | N47: 4.125 | O47: 4.125 | P47: 4.125 | Q47: 4.125 | R47: 4.125 | S47: 4.125 | T47: 4.125 | U47: 4.125 | V47: 4.125 | W47: 4.125 | X47: 0 | Y47: 0.171575 | Z47: 0.502947 | AA47: 0.786547 | AB47: 1.104006 | AC47: 1.581664 | AD47: 1.986687 | AE47: 2.424732 | AF47: 3.046699 | AG47: 3.54775 | AH47: 4 | AI47: 4 | AJ47: 4 | AK47: 4 | AL47: 4 | AM47: 4 | AN47: 4 | AO47: 4 | AP47: 4 | AQ47: 4 | AR47: 0 | AS47: 0 | AT47: 0 | AU47: 0 | AV47: 0 | AW47: 0.461664 | AX47: 0.866687 | AY47: 1.304732 | AZ47: 1.926699 | BA47: 2.42775 | BB47: 4 | BC47: 4 | BD47: 4 | BE47: 4 | BF47: 4 | BG47: 6 | BH47: 7 | BI47: 6 | BJ47: 6 | BK47: 6 | BL47: 0 | BM47: 0 | BN47: 0 | BO47: 0 | BP47: 0 | BQ47: 0 | BR47: 0 | BS47: 0.464732 | BT47: 1.086699 | BU47: 1.58775 | BV47: 0 | BW47: 0 | BX47: 0 | BY47: 0 | BZ47: 0 | CA47: 0 | CB47: 0 | CC47: 6 | CD47: 13 | CE47: 18 | CG47: 3.495 | CH47: 3.495 | CI47: 3.495 | CJ47: 3.495 | CK47: 3.495 | CL47: 3.775 | CM47: 3.915 | CN47: 4.315 | CO47: 4.945 | CP47: 5.395 | CQ47: 1.98224206 | CR47: 1.759309364 | CS47: 1.50779979 | CT47: 1.343431428 | CU47: 1.197325391 | CV47: 1.111384582 | CW47: 1.029805978 | CX47: 1.017753009 | CY47: 1.017134134 | CZ47: 1.006013706
A48: 5 | B48: Poor | C48: 3500 | D48: =D18 -> 1.949648 | E48: 2.192165 | F48: 2.554382 | G48: 2.866138 | H48: 3.215125 | I48: 3.735006 | J48: 4.168161 | K48: 4.630182 | L48: 5.281345 | M48: 5.805789 | N48: 4.125 | O48: 4.125 | P48: 4.125 | Q48: 4.125 | R48: 4.125 | S48: 4.125 | T48: 4.125 | U48: 4.125 | V48: 4.125 | W48: 4.125 | X48: 0.134648 | Y48: 0.377165 | Z48: 0.739382 | AA48: 1.051138 | AB48: 1.400125 | AC48: 1.920006 | AD48: 2.353161 | AE48: 2.815182 | AF48: 3.466345 | AG48: 3.990789 | AH48: 4 | AI48: 4 | AJ48: 4 | AK48: 4 | AL48: 4 | AM48: 4 | AN48: 4 | AO48: 4 | AP48: 4 | AQ48: 4 | AR48: 0 | AS48: 0 | AT48: 0 | AU48: 0 | AV48: 0.280125 | AW48: 0.800006 | AX48: 1.233161 | AY48: 1.695182 | AZ48: 2.346345 | BA48: 2.870789 | BB48: 4 | BC48: 4 | BD48: 4 | BE48: 4 | BF48: 4 | BG48: 6 | BH48: 6 | BI48: 6 | BJ48: 6 | BK48: 6 | BL48: 0 | BM48: 0 | BN48: 0 | BO48: 0 | BP48: 0 | BQ48: 0 | BR48: 0.393161 | BS48: 0.855182 | BT48: 1.506345 | BU48: 2.030789 | BV48: 0 | BW48: 0 | BX48: 0 | BY48: 0 | BZ48: 0 | CA48: 0 | CB48: 6 | CC48: 10 | CD48: 17 | CE48: 23 | CG48: 3.495 | CH48: 3.495 | CI48: 3.495 | CJ48: 3.495 | CK48: 3.495 | CL48: 3.775 | CM48: 4.315 | CN48: 4.675 | CO48: 5.305 | CP48: 5.845 | CQ48: 1.792631285 | CR48: 1.594314297 | CS48: 1.368237014 | CT48: 1.219410929 | CU48: 1.087049493 | CV48: 1.010707881 | CW48: 1.035228726 | CX48: 1.009679533 | CY48: 1.004478973 | CZ48: 1.006753776
A49: 6 | B49: Good | C49: 5000 | D49: =D19 -> 1.689213 | E49: 1.905334 | F49: 2.225062 | G49: 2.49794 | H49: 2.802905 | I49: 3.262645 | J49: 3.654818 | K49: 4.081814 | L49: 4.691286 | M49: 5.182985 | N49: 4.125 | O49: 4.125 | P49: 4.125 | Q49: 4.125 | R49: 4.125 | S49: 4.125 | T49: 4.125 | U49: 4.125 | V49: 4.125 | W49: 4.125 | X49: 0 | Y49: 0.090334 | Z49: 0.410062 | AA49: 0.68294 | AB49: 0.987905 | AC49: 1.447645 | AD49: 1.839818 | AE49: 2.266814 | AF49: 2.876286 | AG49: 3.367985 | AH49: 4 | AI49: 4 | AJ49: 4 | AK49: 4 | AL49: 4 | AM49: 4 | AN49: 4 | AO49: 4 | AP49: 4 | AQ49: 4 | AR49: 0 | AS49: 0 | AT49: 0 | AU49: 0 | AV49: 0 | AW49: 0.327645 | AX49: 0.719818 | AY49: 1.146814 | AZ49: 1.756286 | BA49: 2.247985 | BB49: 4 | BC49: 4 | BD49: 4 | BE49: 4 | BF49: 4 | BG49: 6 | BH49: 6 | BI49: 6 | BJ49: 6 | BK49: 6 | BL49: 0 | BM49: 0 | BN49: 0 | BO49: 0 | BP49: 0 | BQ49: 0 | BR49: 0 | BS49: 0.306814 | BT49: 0.916286 | BU49: 1.407985 | BV49: 0 | BW49: 0 | BX49: 0 | BY49: 0 | BZ49: 0 | CA49: 0 | CB49: 0 | CC49: 6 | CD49: 11 | CE49: 16 | CG49: 3.495 | CH49: 3.495 | CI49: 3.495 | CJ49: 3.495 | CK49: 3.495 | CL49: 3.775 | CM49: 3.775 | CN49: 4.315 | CO49: 4.765 | CP49: 5.215 | CQ49: 2.069010835 | CR49: 1.834324061 | CS49: 1.570742748 | CT49: 1.399152902 | CU49: 1.246920606 | CV49: 1.157036699 | CW49: 1.03288317 | CX49: 1.057128032 | CY49: 1.015712962 | CZ49: 1.006176942
A50: 6 | B50: Fair | C50: 3500 | D50: =D20 -> 1.949648 | E50: 2.192165 | F50: 2.554382 | G50: 2.866138 | H50: 3.215125 | I50: 3.735006 | J50: 4.168161 | K50: 4.630182 | L50: 5.281345 | M50: 5.805789 | N50: 4.125 | O50: 4.125 | P50: 4.125 | Q50: 4.125 | R50: 4.125 | S50: 4.125 | T50: 4.125 | U50: 4.125 | V50: 4.125 | W50: 4.125 | X50: 0.134648 | Y50: 0.377165 | Z50: 0.739382 | AA50: 1.051138 | AB50: 1.400125 | AC50: 1.920006 | AD50: 2.353161 | AE50: 2.815182 | AF50: 3.466345 | AG50: 3.990789 | AH50: 4 | AI50: 4 | AJ50: 4 | AK50: 4 | AL50: 4 | AM50: 4 | AN50: 4 | AO50: 4 | AP50: 4 | AQ50: 4 | AR50: 0 | AS50: 0 | AT50: 0 | AU50: 0 | AV50: 0.280125 | AW50: 0.800006 | AX50: 1.233161 | AY50: 1.695182 | AZ50: 2.346345 | BA50: 2.870789 | BB50: 4 | BC50: 4 | BD50: 4 | BE50: 4 | BF50: 4 | BG50: 6 | BH50: 6 | BI50: 6 | BJ50: 6 | BK50: 6 | BL50: 0 | BM50: 0 | BN50: 0 | BO50: 0 | BP50: 0 | BQ50: 0 | BR50: 0.393161 | BS50: 0.855182 | BT50: 1.506345 | BU50: 2.030789 | BV50: 0 | BW50: 0 | BX50: 0 | BY50: 0 | BZ50: 0 | CA50: 0 | CB50: 6 | CC50: 10 | CD50: 17 | CE50: 23 | CG50: 3.495 | CH50: 3.495 | CI50: 3.495 | CJ50: 3.495 | CK50: 3.495 | CL50: 3.775 | CM50: 4.315 | CN50: 4.675 | CO50: 5.305 | CP50: 5.845 | CQ50: 1.792631285 | CR50: 1.594314297 | CS50: 1.368237014 | CT50: 1.219410929 | CU50: 1.087049493 | CV50: 1.010707881 | CW50: 1.035228726 | CX50: 1.009679533 | CY50: 1.004478973 | CZ50: 1.006753776
A51: 6 | B51: Poor | C51: 2500 | D51: =D21 -> 2.224555 | E51: 2.497383 | F51: 2.908057 | G51: 3.26191 | H51: 3.654032 | I51: 4.224957 | J51: 4.690374 | K51: 5.182022 | L51: 5.874065 | M51: 6.433534 | N51: 4.125 | O51: 4.125 | P51: 4.125 | Q51: 4.125 | R51: 4.125 | S51: 4.125 | T51: 4.125 | U51: 4.125 | V51: 4.125 | W51: 4.125 | X51: 0.409555 | Y51: 0.682383 | Z51: 1.093057 | AA51: 1.44691 | AB51: 1.839032 | AC51: 2.409957 | AD51: 2.875374 | AE51: 3.367022 | AF51: 4.059065 | AG51: 4.618534 | AH51: 4 | AI51: 4 | AJ51: 4 | AK51: 4 | AL51: 4 | AM51: 4 | AN51: 4 | AO51: 4 | AP51: 4 | AQ51: 4 | AR51: 0 | AS51: 0 | AT51: 0 | AU51: 0.32691 | AV51: 0.719032 | AW51: 1.289957 | AX51: 1.755374 | AY51: 2.247022 | AZ51: 2.939065 | BA51: 3.498534 | BB51: 4 | BC51: 4 | BD51: 4 | BE51: 4 | BF51: 6 | BG51: 6 | BH51: 6 | BI51: 6 | BJ51: 6 | BK51: 6 | BL51: 0 | BM51: 0 | BN51: 0 | BO51: 0 | BP51: 0 | BQ51: 0.449957 | BR51: 0.915374 | BS51: 1.407022 | BT51: 2.099065 | BU51: 2.658534 | BV51: 0 | BW51: 0 | BX51: 0 | BY51: 0 | BZ51: 0 | CA51: 6 | CB51: 11 | CC51: 16 | CD51: 24 | CE51: 30 | CG51: 3.495 | CH51: 3.495 | CI51: 3.495 | CJ51: 3.495 | CK51: 3.775 | CL51: 4.315 | CM51: 4.765 | CN51: 5.215 | CO51: 5.935 | CP51: 6.475 | CQ51: 1.571100737 | CR51: 1.39946496 | CS51: 1.201833389 | CT51: 1.071458133 | CU51: 1.033105348 | CV51: 1.02131217 | CW51: 1.015910458 | CX51: 1.006363925 | CY51: 1.010373566 | CZ51: 1.006445291
A52: 7 | B52: Good | C52: 4000 | D52: =D22 -> 1.848754 | E52: 2.080753 | F52: 2.426014 | G52: 2.722412 | H52: 3.054368 | I52: 3.552048 | J52: 3.970731 | K52: 4.420359 | L52: 5.056037 | M52: 5.567809 | N52: 4.125 | O52: 4.125 | P52: 4.125 | Q52: 4.125 | R52: 4.125 | S52: 4.125 | T52: 4.125 | U52: 4.125 | V52: 4.125 | W52: 4.125 | X52: 0.033754 | Y52: 0.265753 | Z52: 0.611014 | AA52: 0.907412 | AB52: 1.239368 | AC52: 1.737048 | AD52: 2.155731 | AE52: 2.605359 | AF52: 3.241037 | AG52: 3.752809 | AH52: 4 | AI52: 4 | AJ52: 4 | AK52: 4 | AL52: 4 | AM52: 4 | AN52: 4 | AO52: 4 | AP52: 4 | AQ52: 4 | AR52: 0 | AS52: 0 | AT52: 0 | AU52: 0 | AV52: 0.119368 | AW52: 0.617048 | AX52: 1.035731 | AY52: 1.485359 | AZ52: 2.121037 | BA52: 2.632809 | BB52: 4 | BC52: 4 | BD52: 4 | BE52: 4 | BF52: 4 | BG52: 6 | BH52: 8 | BI52: 6 | BJ52: 6 | BK52: 6 | BL52: 0 | BM52: 0 | BN52: 0 | BO52: 0 | BP52: 0 | BQ52: 0 | BR52: 0 | BS52: 0.645359 | BT52: 1.281037 | BU52: 1.792809 | BV52: 0 | BW52: 0 | BX52: 0 | BY52: 0 | BZ52: 0 | CA52: 0 | CB52: 0 | CC52: 8 | CD52: 15 | CE52: 20 | CG52: 3.495 | CH52: 3.495 | CI52: 3.495 | CJ52: 3.495 | CK52: 3.495 | CL52: 3.775 | CM52: 4.055 | CN52: 4.495 | CO52: 5.125 | CP52: 5.575 | CQ52: 1.890462441 | CR52: 1.679680385 | CS52: 1.44063472 | CT52: 1.283788053 | CU52: 1.144262905 | CV52: 1.06276717 | CW52: 1.021222541 | CX52: 1.016885733 | CY52: 1.013639734 | CZ52: 1.001291531
A53: 7 | B53: Fair | C53: 3000 | D53: =D23 -> 2.07173 | E53: 2.327401 | F53: 2.710805 | G53: 3.041367 | H53: 3.410299 | I53: 3.954612 | J53: 4.403176 | K53: 4.878883 | L53: 5.548319 | M53: 6.088197 | N53: 4.125 | O53: 4.125 | P53: 4.125 | Q53: 4.125 | R53: 4.125 | S53: 4.125 | T53: 4.125 | U53: 4.125 | V53: 4.125 | W53: 4.125 | X53: 0.25673 | Y53: 0.512401 | Z53: 0.895805 | AA53: 1.226367 | AB53: 1.595299 | AC53: 2.139612 | AD53: 2.588176 | AE53: 3.063883 | AF53: 3.733319 | AG53: 4.273197 | AH53: 4 | AI53: 4 | AJ53: 4 | AK53: 4 | AL53: 4 | AM53: 4 | AN53: 4 | AO53: 4 | AP53: 4 | AQ53: 4 | AR53: 0 | AS53: 0 | AT53: 0 | AU53: 0.106367 | AV53: 0.475299 | AW53: 1.019612 | AX53: 1.468176 | AY53: 1.943883 | AZ53: 2.613319 | BA53: 3.153197 | BB53: 4 | BC53: 4 | BD53: 4 | BE53: 4 | BF53: 4 | BG53: 8 | BH53: 6 | BI53: 6 | BJ53: 6 | BK53: 6 | BL53: 0 | BM53: 0 | BN53: 0 | BO53: 0 | BP53: 0 | BQ53: 0 | BR53: 0.628176 | BS53: 1.103883 | BT53: 1.773319 | BU53: 2.313197 | BV53: 0 | BW53: 0 | BX53: 0 | BY53: 0 | BZ53: 0 | CA53: 0 | CB53: 7 | CC53: 13 | CD53: 20 | CE53: 26 | CG53: 3.495 | CH53: 3.495 | CI53: 3.495 | CJ53: 3.495 | CK53: 3.495 | CL53: 4.055 | CM53: 4.405 | CN53: 4.945 | CO53: 5.575 | CP53: 6.115 | CQ53: 1.686995892 | CR53: 1.501675044 | CS53: 1.289284917 | CT53: 1.149154311 | CU53: 1.024836825 | CV53: 1.025385044 | CW53: 1.000414246 | CX53: 1.013551667 | CY53: 1.004808844 | CZ53: 1.004402453
A54: 7 | B54: Poor | C54: 2000 | D54: =D24 -> 2.425482 | E54: 2.721804 | F54: 3.168669 | G54: 3.551288 | H54: 3.969895 | I54: 4.570066 | J54: 5.055074 | K54: 5.566795 | L54: 6.288744 | M54: 6.874266 | N54: 4.125 | O54: 4.125 | P54: 4.125 | Q54: 4.125 | R54: 4.125 | S54: 4.125 | T54: 4.125 | U54: 4.125 | V54: 4.125 | W54: 4.125 | X54: 0.610482 | Y54: 0.906804 | Z54: 1.353669 | AA54: 1.736288 | AB54: 2.154895 | AC54: 2.755066 | AD54: 3.240074 | AE54: 3.751795 | AF54: 4.473744 | AG54: 5.059266 | AH54: 4 | AI54: 4 | AJ54: 4 | AK54: 4 | AL54: 4 | AM54: 4 | AN54: 4 | AO54: 4 | AP54: 4 | AQ54: 4 | AR54: 0 | AS54: 0 | AT54: 0.233669 | AU54: 0.616288 | AV54: 1.034895 | AW54: 1.635066 | AX54: 2.120074 | AY54: 2.631795 | AZ54: 3.353744 | BA54: 3.939266 | BB54: 4 | BC54: 4 | BD54: 4 | BE54: 5 | BF54: 8 | BG54: 6 | BH54: 6 | BI54: 6 | BJ54: 6 | BK54: 6 | BL54: 0 | BM54: 0 | BN54: 0 | BO54: 0 | BP54: 0 | BQ54: 0.795066 | BR54: 1.280074 | BS54: 1.791795 | BT54: 2.513744 | BU54: 3.099266 | BV54: 0 | BW54: 0 | BX54: 0 | BY54: 0 | BZ54: 0 | CA54: 9 | CB54: 15 | CC54: 20 | CD54: 28 | CE54: 35 | CG54: 3.495 | CH54: 3.495 | CI54: 3.495 | CJ54: 3.635 | CK54: 4.055 | CL54: 4.585 | CM54: 5.125 | CN54: 5.575 | CO54: 6.295 | CP54: 6.925 | CQ54: 1.440950706 | CR54: 1.284074827 | CS54: 1.102986775 | CT54: 1.023572293 | CU54: 1.021437595 | CV54: 1.003267787 | CW54: 1.013832834 | CX54: 1.001473918 | CY54: 1.000994793 | CZ54: 1.007380279
A55: 8 | B55: Good | C55: 3500 | D55: =D25 -> 1.949648 | E55: 2.192165 | F55: 2.554382 | G55: 2.866138 | H55: 3.215125 | I55: 3.735006 | J55: 4.168161 | K55: 4.630182 | L55: 5.281345 | M55: 5.805789 | N55: 4.125 | O55: 4.125 | P55: 4.125 | Q55: 4.125 | R55: 4.125 | S55: 4.125 | T55: 4.125 | U55: 4.125 | V55: 4.125 | W55: 4.125 | X55: 0.134648 | Y55: 0.377165 | Z55: 0.739382 | AA55: 1.051138 | AB55: 1.400125 | AC55: 1.920006 | AD55: 2.353161 | AE55: 2.815182 | AF55: 3.466345 | AG55: 3.990789 | AH55: 4 | AI55: 4 | AJ55: 4 | AK55: 4 | AL55: 4 | AM55: 4 | AN55: 4 | AO55: 4 | AP55: 4 | AQ55: 4 | AR55: 0 | AS55: 0 | AT55: 0 | AU55: 0 | AV55: 0.280125 | AW55: 0.800006 | AX55: 1.233161 | AY55: 1.695182 | AZ55: 2.346345 | BA55: 2.870789 | BB55: 4 | BC55: 4 | BD55: 4 | BE55: 4 | BF55: 4 | BG55: 6 | BH55: 6 | BI55: 6 | BJ55: 6 | BK55: 6 | BL55: 0 | BM55: 0 | BN55: 0 | BO55: 0 | BP55: 0 | BQ55: 0 | BR55: 0.393161 | BS55: 0.855182 | BT55: 1.506345 | BU55: 2.030789 | BV55: 0 | BW55: 0 | BX55: 0 | BY55: 0 | BZ55: 0 | CA55: 0 | CB55: 6 | CC55: 10 | CD55: 17 | CE55: 23 | CG55: 3.495 | CH55: 3.495 | CI55: 3.495 | CJ55: 3.495 | CK55: 3.495 | CL55: 3.775 | CM55: 4.315 | CN55: 4.675 | CO55: 5.305 | CP55: 5.845 | CQ55: 1.792631285 | CR55: 1.594314297 | CS55: 1.368237014 | CT55: 1.219410929 | CU55: 1.087049493 | CV55: 1.010707881 | CW55: 1.035228726 | CX55: 1.009679533 | CY55: 1.004478973 | CZ55: 1.006753776
A56: 8 | B56: Fair | C56: 3000 | D56: =D26 -> 2.07173 | E56: 2.327401 | F56: 2.710805 | G56: 3.041367 | H56: 3.410299 | I56: 3.954612 | J56: 4.403176 | K56: 4.878883 | L56: 5.548319 | M56: 6.088197 | N56: 4.125 | O56: 4.125 | P56: 4.125 | Q56: 4.125 | R56: 4.125 | S56: 4.125 | T56: 4.125 | U56: 4.125 | V56: 4.125 | W56: 4.125 | X56: 0.25673 | Y56: 0.512401 | Z56: 0.895805 | AA56: 1.226367 | AB56: 1.595299 | AC56: 2.139612 | AD56: 2.588176 | AE56: 3.063883 | AF56: 3.733319 | AG56: 4.273197 | AH56: 4 | AI56: 4 | AJ56: 4 | AK56: 4 | AL56: 4 | AM56: 4 | AN56: 4 | AO56: 4 | AP56: 4 | AQ56: 4 | AR56: 0 | AS56: 0 | AT56: 0 | AU56: 0.106367 | AV56: 0.475299 | AW56: 1.019612 | AX56: 1.468176 | AY56: 1.943883 | AZ56: 2.613319 | BA56: 3.153197 | BB56: 4 | BC56: 4 | BD56: 4 | BE56: 4 | BF56: 4 | BG56: 8 | BH56: 6 | BI56: 6 | BJ56: 6 | BK56: 6 | BL56: 0 | BM56: 0 | BN56: 0 | BO56: 0 | BP56: 0 | BQ56: 0 | BR56: 0.628176 | BS56: 1.103883 | BT56: 1.773319 | BU56: 2.313197 | BV56: 0 | BW56: 0 | BX56: 0 | BY56: 0 | BZ56: 0 | CA56: 0 | CB56: 7 | CC56: 13 | CD56: 20 | CE56: 26 | CG56: 3.495 | CH56: 3.495 | CI56: 3.495 | CJ56: 3.495 | CK56: 3.495 | CL56: 4.055 | CM56: 4.405 | CN56: 4.945 | CO56: 5.575 | CP56: 6.115 | CQ56: 1.686995892 | CR56: 1.501675044 | CS56: 1.289284917 | CT56: 1.149154311 | CU56: 1.024836825 | CV56: 1.025385044 | CW56: 1.000414246 | CX56: 1.013551667 | CY56: 1.004808844 | CZ56: 1.004402453
A57: 8 | B57: Poor | C57: 2000 | D57: =D27 -> 2.425482 | E57: 2.721804 | F57: 3.168669 | G57: 3.551288 | H57: 3.969895 | I57: 4.570066 | J57: 5.055074 | K57: 5.566795 | L57: 6.288744 | M57: 6.874266 | N57: 4.125 | O57: 4.125 | P57: 4.125 | Q57: 4.125 | R57: 4.125 | S57: 4.125 | T57: 4.125 | U57: 4.125 | V57: 4.125 | W57: 4.125 | X57: 0.610482 | Y57: 0.906804 | Z57: 1.353669 | AA57: 1.736288 | AB57: 2.154895 | AC57: 2.755066 | AD57: 3.240074 | AE57: 3.751795 | AF57: 4.473744 | AG57: 5.059266 | AH57: 4 | AI57: 4 | AJ57: 4 | AK57: 4 | AL57: 4 | AM57: 4 | AN57: 4 | AO57: 4 | AP57: 4 | AQ57: 4 | AR57: 0 | AS57: 0 | AT57: 0.233669 | AU57: 0.616288 | AV57: 1.034895 | AW57: 1.635066 | AX57: 2.120074 | AY57: 2.631795 | AZ57: 3.353744 | BA57: 3.939266 | BB57: 4 | BC57: 4 | BD57: 4 | BE57: 5 | BF57: 8 | BG57: 6 | BH57: 6 | BI57: 6 | BJ57: 6 | BK57: 6 | BL57: 0 | BM57: 0 | BN57: 0 | BO57: 0 | BP57: 0 | BQ57: 0.795066 | BR57: 1.280074 | BS57: 1.791795 | BT57: 2.513744 | BU57: 3.099266 | BV57: 0 | BW57: 0 | BX57: 0 | BY57: 0 | BZ57: 0 | CA57: 9 | CB57: 15 | CC57: 20 | CD57: 28 | CE57: 35 | CG57: 3.495 | CH57: 3.495 | CI57: 3.495 | CJ57: 3.635 | CK57: 4.055 | CL57: 4.585 | CM57: 5.125 | CN57: 5.575 | CO57: 6.295 | CP57: 6.925 | CQ57: 1.440950706 | CR57: 1.284074827 | CS57: 1.102986775 | CT57: 1.023572293 | CU57: 1.021437595 | CV57: 1.003267787 | CW57: 1.013832834 | CX57: 1.001473918 | CY57: 1.000994793 | CZ57: 1.007380279
A61: Cement Treated Base
A62: Subgrade Category | B62: Drainage | C62: Mr (psi) | D62: Design SN (in) | N62: Paver Thickness (in) | X62: SN Remaining (Excluding Pavers) | AH62: Cement Treated Base Thickness (in) | AR62: SN Remaining (excluding Pavers and Base) | BB62: Unbound Dense Graded Base Thickness (in) | BL62: SN Remaining (excluding Pavers and Base and Untreated Granular Base) | BV62: Unbound Dense Graded Subbase Thickness (in)
D63: 10000 | E63: 20000 | F63: 50000 | G63: 100000 | H63: 200000 | I63: 500000 | J63: 1000000 | K63: 2000000 | L63: 5000000 | M63: 10000000 | N63: 10000 | O63: 20000 | P63: 50000 | Q63: 100000 | R63: 200000 | S63: 500000 | T63: 1000000 | U63: 2000000 | V63: 5000000 | W63: 10000000 | X63: 10000 | Y63: 20000 | Z63: 50000 | AA63: 100000 | AB63: 200000 | AC63: 500000 | AD63: 1000000 | AE63: 2000000 | AF63: 5000000 | AG63: 10000000 | AH63: 10000 | AI63: 20000 | AJ63: 50000 | AK63: 100000 | AL63: 200000 | AM63: 500000 | AN63: 1000000 | AO63: 2000000 | AP63: 5000000 | AQ63: 10000000 | AR63: 10000 | AS63: 20000 | AT63: 50000 | AU63: 100000 | AV63: 200000 | AW63: 500000 | AX63: 1000000 | AY63: 2000000 | AZ63: 5000000 | BA63: 10000000 | BB63: 10000 | BC63: 20000 | BD63: 50000 | BE63: 100000 | BF63: 200000 | BG63: 500000 | BH63: 1000000 | BI63: 2000000 | BJ63: 5000000 | BK63: 10000000 | BL63: 10000 | BM63: 20000 | BN63: 50000 | BO63: 100000 | BP63: 200000 | BQ63: 500000 | BR63: 1000000 | BS63: 2000000 | BT63: 5000000 | BU63: 10000000 | BV63: 10000 | BW63: 20000 | BX63: 50000 | BY63: 100000 | BZ63: 200000 | CA63: 500000 | CB63: 1000000 | CC63: 2000000 | CD63: 5000000 | CE63: 10000000
A64: 1 | B64: Good | C64: =C4 -> 12000 | D64: =D4 -> 1.154138 | E64: =E4 -> 1.322296 | F64: 1.566929 | G64: 1.771518 | H64: 1.995749 | I64: 2.32844 | J64: 2.613281 | K64: 2.932134 | L64: 3.411794 | M64: 3.818211 | N64: =ThickPaver -> 4.125 | O64: 4.125 | P64: 4.125 | Q64: 4.125 | R64: 4.125 | S64: 4.125 | T64: 4.125 | U64: 4.125 | V64: 4.125 | W64: 4.125 | X64: =MAX(0,D64-N64*Apaver) -> 0 | Y64: =MAX(0,E64-O64*Apaver) -> 0 | Z64: =MAX(0,F64-P64*Apaver) -> 0 | AA64: =MAX(0,G64-Q64*Apaver) -> 0 | AB64: =MAX(0,H64-R64*Apaver) -> 0.180749 | AC64: =MAX(0,I64-S64*Apaver) -> 0.51344 | AD64: =MAX(0,J64-T64*Apaver) -> 0.798281 | AE64: =MAX(0,K64-U64*Apaver) -> 1.117134 | AF64: =MAX(0,L64-V64*Apaver) -> 1.596794 | AG64: =MAX(0,M64-W64*Apaver) -> 2.003211 | AH64: =ThickCTB -> 4 | AI64: 4 | AJ64: 4 | AK64: 4 | AL64: 4 | AM64: 4 | AN64: 4 | AO64: 4 | AP64: 4 | AQ64: 4 | AR64: =MAX(0,X64-AH64*Actb) -> 0 | AS64: =MAX(0,Y64-AI64*Actb) -> 0 | AT64: =MAX(0,Z64-AJ64*Actb) -> 0 | AU64: =MAX(0,AA64-AK64*Actb) -> 0 | AV64: =MAX(0,AB64-AL64*Actb) -> 0 | AW64: =MAX(0,AC64-AM64*Actb) -> 0 | AX64: =MAX(0,AD64-AN64*Actb) -> 0 | AY64: =MAX(0,AE64-AO64*Actb) -> 0.317134 | AZ64: =MAX(0,AF64-AP64*Actb) -> 0.796794 | BA64: =MAX(0,AG64-AQ64*Actb) -> 1.203211 | BB64: =IF(AR64<4*Agran,4,IF(AR64>8*Agran,4,ROUNDUP(AR64/Agran/1,0)*1)) -> 4 | BC64: =IF(AS64<4*Agran,4,IF(AS64>8*Agran,4,ROUNDUP(AS64/Agran/1,0)*1)) -> 4 | BD64: =IF(AT64<4*Agran,4,IF(AT64>8*Agran,4,ROUNDUP(AT64/Agran/1,0)*1)) -> 4 | BE64: =IF(AU64<4*Agran,4,IF(AU64>8*Agran,4,ROUNDUP(AU64/Agran/1,0)*1)) -> 4 | BF64: =IF(AV64<4*Agran,4,IF(AV64>8*Agran,4,ROUNDUP(AV64/Agran/1,0)*1)) -> 4 | BG64: =IF(AW64<6*Agran,6,IF(AW64>8*Agran,6,ROUNDUP(AW64/Agran/1,0)*1)) -> 6 | BH64: =IF(AX64<6*Agran,6,IF(AX64>8*Agran,6,ROUNDUP(AX64/Agran/1,0)*1)) -> 6 | BI64: =IF(AY64<6*Agran,6,IF(AY64>8*Agran,6,ROUNDUP(AY64/Agran/1,0)*1)) -> 6 | BJ64: =IF(AZ64<6*Agran,6,IF(AZ64>8*Agran,6,ROUNDUP(AZ64/Agran/1,0)*1)) -> 6 | BK64: =IF(BA64<6*Agran,6,IF(BA64>8*Agran,6,ROUNDUP(BA64/Agran/1,0)*1)) -> 6 | BL64: =MAX(0,AR64-BB64*Agran) -> 0 | BM64: =MAX(0,AS64-BC64*Agran) -> 0 | BN64: =MAX(0,AT64-BD64*Agran) -> 0 | BO64: =MAX(0,AU64-BE64*Agran) -> 0 | BP64: =MAX(0,AV64-BF64*Agran) -> 0 | BQ64: =MAX(0,AW64-BG64*Agran) -> 0 | BR64: =MAX(0,AX64-BH64*Agran) -> 0 | BS64: =MAX(0,AY64-BI64*Agran) -> 0 | BT64: =MAX(0,AZ64-BJ64*Agran) -> 0 | BU64: =MAX(0,BA64-BK64*Agran) -> 0.363211 | BV64: =IF(BL64<=0,0,MAX(6,ROUNDUP(BL64/Asubbase/1,0)*1)) -> 0 | BW64: =IF(BM64<=0,0,MAX(6,ROUNDUP(BM64/Asubbase/1,0)*1)) -> 0 | BX64: =IF(BN64<=0,0,MAX(6,ROUNDUP(BN64/Asubbase/1,0)*1)) -> 0 | BY64: =IF(BO64<=0,0,MAX(6,ROUNDUP(BO64/Asubbase/1,0)*1)) -> 0 | BZ64: =IF(BP64<=0,0,MAX(6,ROUNDUP(BP64/Asubbase/1,0)*1)) -> 0 | CA64: =IF(BQ64<=0,0,MAX(6,ROUNDUP(BQ64/Asubbase/1,0)*1)) -> 0 | CB64: =IF(BR64<=0,0,MAX(6,ROUNDUP(BR64/Asubbase/1,0)*1)) -> 0 | CC64: =IF(BS64<=0,0,MAX(6,ROUNDUP(BS64/Asubbase/1,0)*1)) -> 0 | CD64: =IF(BT64<=0,0,MAX(6,ROUNDUP(BT64/Asubbase/1,0)*1)) -> 0 | CE64: =IF(BU64<=0,0,MAX(6,ROUNDUP(BU64/Asubbase/1,0)*1)) -> 6 | CG64: =N64*Apaver+AH64*Actb+BB64*Agran+BV64*Asubbase -> 3.175 | CH64: =O64*Apaver+AI64*Actb+BC64*Agran+BW64*Asubbase -> 3.175 | CI64: =P64*Apaver+AJ64*Actb+BD64*Agran+BX64*Asubbase -> 3.175 | CJ64: =Q64*Apaver+AK64*Actb+BE64*Agran+BY64*Asubbase -> 3.175 | CK64: =R64*Apaver+AL64*Actb+BF64*Agran+BZ64*Asubbase -> 3.175 | CL64: =S64*Apaver+AM64*Actb+BG64*Agran+CA64*Asubbase -> 3.455 | CM64: =T64*Apaver+AN64*Actb+BH64*Agran+CB64*Asubbase -> 3.455 | CN64: =U64*Apaver+AO64*Actb+BI64*Agran+CC64*Asubbase -> 3.455 | CO64: =V64*Apaver+AP64*Actb+BJ64*Agran+CD64*Asubbase -> 3.455 | CP64: =W64*Apaver+AQ64*Actb+BK64*Agran+CE64*Asubbase -> 3.995 | CQ64: =(CG64)/D64 -> 2.750970854 | CR64: =(CH64)/E64 -> 2.401126525 | CS64: =(CI64)/F64 -> 2.026256455 | CT64: =(CJ64)/G64 -> 1.79224823 | CU64: =(CK64)/H64 -> 1.590881418 | CV64: =(CL64)/I64 -> 1.483826081 | CW64: =(CM64)/J64 -> 1.322092802 | CX64: =(CN64)/K64 -> 1.178322682 | CY64: =(CO64)/L64 -> 1.012663719 | CZ64: =(CP64)/M64 -> 1.046301527
A65: 1 | B65: Fair | C65: =C5 -> 11000 | D65: =D5 -> 1.201722 | E65: 1.373871 | F65: 1.62465 | G65: 1.834625 | H65: 2.065242 | I65: 2.408172 | J65: 2.702441 | K65: 3.032015 | L65: 3.526451 | M65: 3.942979 | N65: 4.125 | O65: 4.125 | P65: 4.125 | Q65: 4.125 | R65: 4.125 | S65: 4.125 | T65: 4.125 | U65: 4.125 | V65: 4.125 | W65: 4.125 | X65: 0 | Y65: 0 | Z65: 0 | AA65: 0.019625 | AB65: 0.250242 | AC65: 0.593172 | AD65: 0.887441 | AE65: 1.217015 | AF65: 1.711451 | AG65: 2.127979 | AH65: 4 | AI65: 4 | AJ65: 4 | AK65: 4 | AL65: 4 | AM65: 4 | AN65: 4 | AO65: 4 | AP65: 4 | AQ65: 4 | AR65: 0 | AS65: 0 | AT65: 0 | AU65: 0 | AV65: 0 | AW65: 0 | AX65: 0.087441 | AY65: 0.417015 | AZ65: 0.911451 | BA65: 1.327979 | BB65: 4 | BC65: 4 | BD65: 4 | BE65: 4 | BF65: 4 | BG65: 6 | BH65: 6 | BI65: 6 | BJ65: 7 | BK65: 6 | BL65: 0 | BM65: 0 | BN65: 0 | BO65: 0 | BP65: 0 | BQ65: 0 | BR65: 0 | BS65: 0 | BT65: 0 | BU65: 0.487979 | BV65: 0 | BW65: 0 | BX65: 0 | BY65: 0 | BZ65: 0 | CA65: 0 | CB65: 0 | CC65: 0 | CD65: 0 | CE65: 6 | CG65: 3.175 | CH65: 3.175 | CI65: 3.175 | CJ65: 3.175 | CK65: 3.175 | CL65: 3.455 | CM65: 3.455 | CN65: 3.455 | CO65: 3.595 | CP65: 3.995 | CQ65: =(CG65)/D65 -> 2.642042003 | CR65: 2.310988441 | CS65: 1.954267073 | CT65: 1.730598896 | CU65: 1.537350102 | CV65: 1.434698186 | CW65: 1.278473795 | CX65: 1.139506236 | CY65: 1.019438523 | CZ65: 1.013193324
A66: 1 | B66: Poor | C66: 10000 | D66: =D6 -> 1.255134 | E66: 1.431845 | F66: 1.689594 | G66: 1.905778 | H66: 2.143707 | I66: 2.498473 | J66: 2.803538 | K66: 3.14515 | L66: 3.655604 | M66: 4.082675 | N66: 4.125 | O66: 4.125 | P66: 4.125 | Q66: 4.125 | R66: 4.125 | S66: 4.125 | T66: 4.125 | U66: 4.125 | V66: 4.125 | W66: 4.125 | X66: 0 | Y66: 0 | Z66: 0 | AA66: 0.090778 | AB66: 0.328707 | AC66: 0.683473 | AD66: 0.988538 | AE66: 1.33015 | AF66: 1.840604 | AG66: 2.267675 | AH66: 4 | AI66: 4 | AJ66: 4 | AK66: 4 | AL66: 4 | AM66: 4 | AN66: 4 | AO66: 4 | AP66: 4 | AQ66: 4 | AR66: 0 | AS66: 0 | AT66: 0 | AU66: 0 | AV66: 0 | AW66: 0 | AX66: 0.188538 | AY66: 0.53015 | AZ66: 1.040604 | BA66: 1.467675 | BB66: 4 | BC66: 4 | BD66: 4 | BE66: 4 | BF66: 4 | BG66: 6 | BH66: 6 | BI66: 6 | BJ66: 8 | BK66: 6 | BL66: 0 | BM66: 0 | BN66: 0 | BO66: 0 | BP66: 0 | BQ66: 0 | BR66: 0 | BS66: 0 | BT66: 0 | BU66: 0.627675 | BV66: 0 | BW66: 0 | BX66: 0 | BY66: 0 | BZ66: 0 | CA66: 0 | CB66: 0 | CC66: 0 | CD66: 0 | CE66: 7 | CG66: 3.175 | CH66: 3.175 | CI66: 3.175 | CJ66: 3.175 | CK66: 3.175 | CL66: 3.455 | CM66: 3.455 | CN66: 3.455 | CO66: 3.735 | CP66: 4.085 | CQ66: 2.529610384 | CR66: 2.217418785 | CS66: 1.879149666 | CT66: 1.66598628 | CU66: 1.481079271 | CV66: 1.382844642 | CW66: 1.232371382 | CX66: 1.098516764 | CY66: 1.021718983 | CZ66: 1.00056948
A67: 2 | B67: Good | C67: 11000 | D67: =D7 -> 1.201722 | E67: 1.373871 | F67: 1.62465 | G67: 1.834625 | H67: 2.065242 | I67: 2.408172 | J67: 2.702441 | K67: 3.032015 | L67: 3.526451 | M67: 3.942979 | N67: 4.125 | O67: 4.125 | P67: 4.125 | Q67: 4.125 | R67: 4.125 | S67: 4.125 | T67: 4.125 | U67: 4.125 | V67: 4.125 | W67: 4.125 | X67: 0 | Y67: 0 | Z67: 0 | AA67: 0.019625 | AB67: 0.250242 | AC67: 0.593172 | AD67: 0.887441 | AE67: 1.217015 | AF67: 1.711451 | AG67: 2.127979 | AH67: 4 | AI67: 4 | AJ67: 4 | AK67: 4 | AL67: 4 | AM67: 4 | AN67: 4 | AO67: 4 | AP67: 4 | AQ67: 4 | AR67: 0 | AS67: 0 | AT67: 0 | AU67: 0 | AV67: 0 | AW67: 0 | AX67: 0.087441 | AY67: 0.417015 | AZ67: 0.911451 | BA67: 1.327979 | BB67: 4 | BC67: 4 | BD67: 4 | BE67: 4 | BF67: 4 | BG67: 6 | BH67: 6 | BI67: 6 | BJ67: 7 | BK67: 6 | BL67: 0 | BM67: 0 | BN67: 0 | BO67: 0 | BP67: 0 | BQ67: 0 | BR67: 0 | BS67: 0 | BT67: 0 | BU67: 0.487979 | BV67: 0 | BW67: 0 | BX67: 0 | BY67: 0 | BZ67: 0 | CA67: 0 | CB67: 0 | CC67: 0 | CD67: 0 | CE67: 6 | CG67: 3.175 | CH67: 3.175 | CI67: 3.175 | CJ67: 3.175 | CK67: 3.175 | CL67: 3.455 | CM67: 3.455 | CN67: 3.455 | CO67: 3.595 | CP67: 3.995 | CQ67: 2.642042003 | CR67: 2.310988441 | CS67: 1.954267073 | CT67: 1.730598896 | CU67: 1.537350102 | CV67: 1.434698186 | CW67: 1.278473795 | CX67: 1.139506236 | CY67: 1.019438523 | CZ67: 1.013193324
A68: 2 | B68: Fair | C68: 10000 | D68: =D8 -> 1.255134 | E68: 1.431845 | F68: 1.689594 | G68: 1.905778 | H68: 2.143707 | I68: 2.498473 | J68: 2.803538 | K68: 3.14515 | L68: 3.655604 | M68: 4.082675 | N68: 4.125 | O68: 4.125 | P68: 4.125 | Q68: 4.125 | R68: 4.125 | S68: 4.125 | T68: 4.125 | U68: 4.125 | V68: 4.125 | W68: 4.125 | X68: 0 | Y68: 0 | Z68: 0 | AA68: 0.090778 | AB68: 0.328707 | AC68: 0.683473 | AD68: 0.988538 | AE68: 1.33015 | AF68: 1.840604 | AG68: 2.267675 | AH68: 4 | AI68: 4 | AJ68: 4 | AK68: 4 | AL68: 4 | AM68: 4 | AN68: 4 | AO68: 4 | AP68: 4 | AQ68: 4 | AR68: 0 | AS68: 0 | AT68: 0 | AU68: 0 | AV68: 0 | AW68: 0 | AX68: 0.188538 | AY68: 0.53015 | AZ68: 1.040604 | BA68: 1.467675 | BB68: 4 | BC68: 4 | BD68: 4 | BE68: 4 | BF68: 4 | BG68: 6 | BH68: 6 | BI68: 6 | BJ68: 8 | BK68: 6 | BL68: 0 | BM68: 0 | BN68: 0 | BO68: 0 | BP68: 0 | BQ68: 0 | BR68: 0 | BS68: 0 | BT68: 0 | BU68: 0.627675 | BV68: 0 | BW68: 0 | BX68: 0 | BY68: 0 | BZ68: 0 | CA68: 0 | CB68: 0 | CC68: 0 | CD68: 0 | CE68: 7 | CG68: 3.175 | CH68: 3.175 | CI68: 3.175 | CJ68: 3.175 | CK68: 3.175 | CL68: 3.455 | CM68: 3.455 | CN68: 3.455 | CO68: 3.735 | CP68: 4.085 | CQ68: 2.529610384 | CR68: 2.217418785 | CS68: 1.879149666 | CT68: 1.66598628 | CU68: 1.481079271 | CV68: 1.382844642 | CW68: 1.232371382 | CX68: 1.098516764 | CY68: 1.021718983 | CZ68: 1.00056948
A69: 2 | B69: Poor | C69: 7000 | D69: =D9 -> 1.467834 | E69: 1.663299 | F69: 1.950105 | G69: 2.192672 | H69: 2.461825 | I69: 2.866772 | J69: 3.215835 | K69: 3.603294 | L69: 4.169022 | M69: 4.631094 | N69: 4.125 | O69: 4.125 | P69: 4.125 | Q69: 4.125 | R69: 4.125 | S69: 4.125 | T69: 4.125 | U69: 4.125 | V69: 4.125 | W69: 4.125 | X69: 0 | Y69: 0 | Z69: 0.135105 | AA69: 0.377672 | AB69: 0.646825 | AC69: 1.051772 | AD69: 1.400835 | AE69: 1.788294 | AF69: 2.354022 | AG69: 2.816094 | AH69: 4 | AI69: 4 | AJ69: 4 | AK69: 4 | AL69: 4 | AM69: 4 | AN69: 4 | AO69: 4 | AP69: 4 | AQ69: 4 | AR69: 0 | AS69: 0 | AT69: 0 | AU69: 0 | AV69: 0 | AW69: 0.251772 | AX69: 0.600835 | AY69: 0.988294 | AZ69: 1.554022 | BA69: 2.016094 | BB69: 4 | BC69: 4 | BD69: 4 | BE69: 4 | BF69: 4 | BG69: 6 | BH69: 6 | BI69: 8 | BJ69: 6 | BK69: 6 | BL69: 0 | BM69: 0 | BN69: 0 | BO69: 0 | BP69: 0 | BQ69: 0 | BR69: 0 | BS69: 0 | BT69: 0.714022 | BU69: 1.176094 | BV69: 0 | BW69: 0 | BX69: 0 | BY69: 0 | BZ69: 0 | CA69: 0 | CB69: 0 | CC69: 0 | CD69: 8 | CE69: 14 | CG69: 3.175 | CH69: 3.175 | CI69: 3.175 | CJ69: 3.175 | CK69: 3.175 | CL69: 3.455 | CM69: 3.455 | CN69: 3.735 | CO69: 4.175 | CP69: 4.715 | CQ69: 2.163051135 | CR69: 1.908857037 | CS69: 1.62811746 | CT69: 1.448004991 | CU69: 1.289693622 | CV69: 1.205188274 | CW69: 1.074371042 | CX69: 1.036551555 | CY69: 1.001433909 | CZ69: 1.018117965
A70: 3 | B70: Good | C70: 10000 | D70: =D10 -> 1.255134 | E70: 1.431845 | F70: 1.689594 | G70: 1.905778 | H70: 2.143707 | I70: 2.498473 | J70: 2.803538 | K70: 3.14515 | L70: 3.655604 | M70: 4.082675 | N70: 4.125 | O70: 4.125 | P70: 4.125 | Q70: 4.125 | R70: 4.125 | S70: 4.125 | T70: 4.125 | U70: 4.125 | V70: 4.125 | W70: 4.125 | X70: 0 | Y70: 0 | Z70: 0 | AA70: 0.090778 | AB70: 0.328707 | AC70: 0.683473 | AD70: 0.988538 | AE70: 1.33015 | AF70: 1.840604 | AG70: 2.267675 | AH70: 4 | AI70: 4 | AJ70: 4 | AK70: 4 | AL70: 4 | AM70: 4 | AN70: 4 | AO70: 4 | AP70: 4 | AQ70: 4 | AR70: 0 | AS70: 0 | AT70: 0 | AU70: 0 | AV70: 0 | AW70: 0 | AX70: 0.188538 | AY70: 0.53015 | AZ70: 1.040604 | BA70: 1.467675 | BB70: 4 | BC70: 4 | BD70: 4 | BE70: 4 | BF70: 4 | BG70: 6 | BH70: 6 | BI70: 6 | BJ70: 8 | BK70: 6 | BL70: 0 | BM70: 0 | BN70: 0 | BO70: 0 | BP70: 0 | BQ70: 0 | BR70: 0 | BS70: 0 | BT70: 0 | BU70: 0.627675 | BV70: 0 | BW70: 0 | BX70: 0 | BY70: 0 | BZ70: 0 | CA70: 0 | CB70: 0 | CC70: 0 | CD70: 0 | CE70: 7 | CG70: 3.175 | CH70: 3.175 | CI70: 3.175 | CJ70: 3.175 | CK70: 3.175 | CL70: 3.455 | CM70: 3.455 | CN70: 3.455 | CO70: 3.735 | CP70: 4.085 | CQ70: 2.529610384 | CR70: 2.217418785 | CS70: 1.879149666 | CT70: 1.66598628 | CU70: 1.481079271 | CV70: 1.382844642 | CW70: 1.232371382 | CX70: 1.098516764 | CY70: 1.021718983 | CZ70: 1.00056948
A71: 3 | B71: Fair | C71: 8000 | D71: =D11 -> 1.385719 | E71: 1.573835 | F71: 1.849134 | G71: 2.081234 | H71: 2.337944 | I71: 2.723021 | J71: 3.055052 | K71: 3.42548 | L71: 3.971567 | M71: 4.421246 | N71: 4.125 | O71: 4.125 | P71: 4.125 | Q71: 4.125 | R71: 4.125 | S71: 4.125 | T71: 4.125 | U71: 4.125 | V71: 4.125 | W71: 4.125 | X71: 0 | Y71: 0 | Z71: 0.034134 | AA71: 0.266234 | AB71: 0.522944 | AC71: 0.908021 | AD71: 1.240052 | AE71: 1.61048 | AF71: 2.156567 | AG71: 2.606246 | AH71: 4 | AI71: 4 | AJ71: 4 | AK71: 4 | AL71: 4 | AM71: 4 | AN71: 4 | AO71: 4 | AP71: 4 | AQ71: 4 | AR71: 0 | AS71: 0 | AT71: 0 | AU71: 0 | AV71: 0 | AW71: 0.108021 | AX71: 0.440052 | AY71: 0.81048 | AZ71: 1.356567 | BA71: 1.806246 | BB71: 4 | BC71: 4 | BD71: 4 | BE71: 4 | BF71: 4 | BG71: 6 | BH71: 6 | BI71: 6 | BJ71: 6 | BK71: 6 | BL71: 0 | BM71: 0 | BN71: 0 | BO71: 0 | BP71: 0 | BQ71: 0 | BR71: 0 | BS71: 0 | BT71: 0.516567 | BU71: 0.966246 | BV71: 0 | BW71: 0 | BX71: 0 | BY71: 0 | BZ71: 0 | CA71: 0 | CB71: 0 | CC71: 0 | CD71: 6 | CE71: 11 | CG71: 3.175 | CH71: 3.175 | CI71: 3.175 | CJ71: 3.175 | CK71: 3.175 | CL71: 3.455 | CM71: 3.455 | CN71: 3.455 | CO71: 3.995 | CP71: 4.445 | CQ71: 2.291229318 | CR71: 2.017365226 | CS71: 1.717019967 | CT71: 1.525537253 | CU71: 1.358030817 | CV71: 1.268811368 | CW71: 1.130913647 | CX71: 1.00861777 | CY71: 1.00590019 | CZ71: 1.005372694
A72: 3 | B72: Poor | C72: 5000 | D72: =D12 -> 1.689213 | E72: 1.905334 | F72: 2.225062 | G72: 2.49794 | H72: 2.802905 | I72: 3.262645 | J72: 3.654818 | K72: 4.081814 | L72: 4.691286 | M72: 5.182985 | N72: 4.125 | O72: 4.125 | P72: 4.125 | Q72: 4.125 | R72: 4.125 | S72: 4.125 | T72: 4.125 | U72: 4.125 | V72: 4.125 | W72: 4.125 | X72: 0 | Y72: 0.090334 | Z72: 0.410062 | AA72: 0.68294 | AB72: 0.987905 | AC72: 1.447645 | AD72: 1.839818 | AE72: 2.266814 | AF72: 2.876286 | AG72: 3.367985 | AH72: 4 | AI72: 4 | AJ72: 4 | AK72: 4 | AL72: 4 | AM72: 4 | AN72: 4 | AO72: 4 | AP72: 4 | AQ72: 4 | AR72: 0 | AS72: 0 | AT72: 0 | AU72: 0 | AV72: 0.187905 | AW72: 0.647645 | AX72: 1.039818 | AY72: 1.466814 | AZ72: 2.076286 | BA72: 2.567985 | BB72: 4 | BC72: 4 | BD72: 4 | BE72: 4 | BF72: 4 | BG72: 6 | BH72: 8 | BI72: 6 | BJ72: 6 | BK72: 6 | BL72: 0 | BM72: 0 | BN72: 0 | BO72: 0 | BP72: 0 | BQ72: 0 | BR72: 0 | BS72: 0.626814 | BT72: 1.236286 | BU72: 1.727985 | BV72: 0 | BW72: 0 | BX72: 0 | BY72: 0 | BZ72: 0 | CA72: 0 | CB72: 0 | CC72: 7 | CD72: 14 | CE72: 20 | CG72: 3.175 | CH72: 3.175 | CI72: 3.175 | CJ72: 3.175 | CK72: 3.175 | CL72: 3.455 | CM72: 3.735 | CN72: 4.085 | CO72: 4.715 | CP72: 5.255 | CQ72: 1.879573506 | CR72: 1.666374504 | CS72: 1.426926531 | CT72: 1.271047343 | CU72: 1.13275334 | CV72: 1.058956767 | CW72: 1.021938712 | CX72: 1.000780535 | CY72: 1.005054904 | CZ72: 1.013894503
A73: 4 | B73: Good | C73: 8000 | D73: =D13 -> 1.385719 | E73: 1.573835 | F73: 1.849134 | G73: 2.081234 | H73: 2.337944 | I73: 2.723021 | J73: 3.055052 | K73: 3.42548 | L73: 3.971567 | M73: 4.421246 | N73: 4.125 | O73: 4.125 | P73: 4.125 | Q73: 4.125 | R73: 4.125 | S73: 4.125 | T73: 4.125 | U73: 4.125 | V73: 4.125 | W73: 4.125 | X73: 0 | Y73: 0 | Z73: 0.034134 | AA73: 0.266234 | AB73: 0.522944 | AC73: 0.908021 | AD73: 1.240052 | AE73: 1.61048 | AF73: 2.156567 | AG73: 2.606246 | AH73: 4 | AI73: 4 | AJ73: 4 | AK73: 4 | AL73: 4 | AM73: 4 | AN73: 4 | AO73: 4 | AP73: 4 | AQ73: 4 | AR73: 0 | AS73: 0 | AT73: 0 | AU73: 0 | AV73: 0 | AW73: 0.108021 | AX73: 0.440052 | AY73: 0.81048 | AZ73: 1.356567 | BA73: 1.806246 | BB73: 4 | BC73: 4 | BD73: 4 | BE73: 4 | BF73: 4 | BG73: 6 | BH73: 6 | BI73: 6 | BJ73: 6 | BK73: 6 | BL73: 0 | BM73: 0 | BN73: 0 | BO73: 0 | BP73: 0 | BQ73: 0 | BR73: 0 | BS73: 0 | BT73: 0.516567 | BU73: 0.966246 | BV73: 0 | BW73: 0 | BX73: 0 | BY73: 0 | BZ73: 0 | CA73: 0 | CB73: 0 | CC73: 0 | CD73: 6 | CE73: 11 | CG73: 3.175 | CH73: 3.175 | CI73: 3.175 | CJ73: 3.175 | CK73: 3.175 | CL73: 3.455 | CM73: 3.455 | CN73: 3.455 | CO73: 3.995 | CP73: 4.445 | CQ73: 2.291229318 | CR73: 2.017365226 | CS73: 1.717019967 | CT73: 1.525537253 | CU73: 1.358030817 | CV73: 1.268811368 | CW73: 1.130913647 | CX73: 1.00861777 | CY73: 1.00590019 | CZ73: 1.005372694
A74: 4 | B74: Fair | C74: 5000 | D74: =D14 -> 1.689213 | E74: 1.905334 | F74: 2.225062 | G74: 2.49794 | H74: 2.802905 | I74: 3.262645 | J74: 3.654818 | K74: 4.081814 | L74: 4.691286 | M74: 5.182985 | N74: =ThickPaver -> 4.125 | O74: 4.125 | P74: 4.125 | Q74: 4.125 | R74: 4.125 | S74: 4.125 | T74: 4.125 | U74: 4.125 | V74: 4.125 | W74: 4.125 | X74: 0 | Y74: 0.090334 | Z74: 0.410062 | AA74: 0.68294 | AB74: 0.987905 | AC74: 1.447645 | AD74: 1.839818 | AE74: 2.266814 | AF74: 2.876286 | AG74: 3.367985 | AH74: =ThickCTB -> 4 | AI74: 4 | AJ74: 4 | AK74: 4 | AL74: 4 | AM74: 4 | AN74: 4 | AO74: 4 | AP74: 4 | AQ74: 4 | AR74: 0 | AS74: 0 | AT74: 0 | AU74: 0 | AV74: 0.187905 | AW74: 0.647645 | AX74: 1.039818 | AY74: 1.466814 | AZ74: 2.076286 | BA74: 2.567985 | BB74: 4 | BC74: 4 | BD74: 4 | BE74: 4 | BF74: 4 | BG74: 6 | BH74: 8 | BI74: 6 | BJ74: 6 | BK74: 6 | BL74: 0 | BM74: 0 | BN74: 0 | BO74: 0 | BP74: 0 | BQ74: 0 | BR74: 0 | BS74: 0.626814 | BT74: 1.236286 | BU74: 1.727985 | BV74: 0 | BW74: 0 | BX74: 0 | BY74: 0 | BZ74: 0 | CA74: 0 | CB74: 0 | CC74: 7 | CD74: 14 | CE74: 20 | CG74: 3.175 | CH74: 3.175 | CI74: 3.175 | CJ74: 3.175 | CK74: 3.175 | CL74: 3.455 | CM74: 3.735 | CN74: 4.085 | CO74: 4.715 | CP74: 5.255 | CQ74: 1.879573506 | CR74: 1.666374504 | CS74: 1.426926531 | CT74: 1.271047343 | CU74: 1.13275334 | CV74: 1.058956767 | CW74: 1.021938712 | CX74: 1.000780535 | CY74: 1.005054904 | CZ74: 1.013894503
A75: 4 | B75: Poor | C75: 4500 | D75: =D15 -> 1.763155 | E75: 1.986575 | F75: 2.317947 | G75: 2.601547 | H75: 2.919006 | I75: 3.396664 | J75: 3.801687 | K75: 4.239732 | L75: 4.861699 | M75: 5.36275 | N75: 4.125 | O75: 4.125 | P75: 4.125 | Q75: 4.125 | R75: 4.125 | S75: 4.125 | T75: 4.125 | U75: 4.125 | V75: 4.125 | W75: 4.125 | X75: 0 | Y75: 0.171575 | Z75: 0.502947 | AA75: 0.786547 | AB75: 1.104006 | AC75: 1.581664 | AD75: 1.986687 | AE75: 2.424732 | AF75: 3.046699 | AG75: 3.54775 | AH75: 4 | AI75: 4 | AJ75: 4 | AK75: 4 | AL75: 4 | AM75: 4 | AN75: 4 | AO75: 4 | AP75: 4 | AQ75: 4 | AR75: 0 | AS75: 0 | AT75: 0 | AU75: 0 | AV75: 0.304006 | AW75: 0.781664 | AX75: 1.186687 | AY75: 1.624732 | AZ75: 2.246699 | BA75: 2.74775 | BB75: 4 | BC75: 4 | BD75: 4 | BE75: 4 | BF75: 4 | BG75: 6 | BH75: 6 | BI75: 6 | BJ75: 6 | BK75: 6 | BL75: 0 | BM75: 0 | BN75: 0 | BO75: 0 | BP75: 0 | BQ75: 0 | BR75: 0.346687 | BS75: 0.784732 | BT75: 1.406699 | BU75: 1.90775 | BV75: 0 | BW75: 0 | BX75: 0 | BY75: 0 | BZ75: 0 | CA75: 0 | CB75: 6 | CC75: 9 | CD75: 16 | CE75: 22 | CG75: 3.175 | CH75: 3.175 | CI75: 3.175 | CJ75: 3.175 | CK75: 3.175 | CL75: 3.455 | CM75: 3.995 | CN75: 4.265 | CO75: 4.895 | CP75: 5.435 | CQ75: 1.800749225 | CR75: 1.598228106 | CS75: 1.36974659 | CT75: 1.220427692 | CU75: 1.087699032 | CV75: 1.017174498 | CW75: 1.050849268 | CX75: 1.005959811 | CY75: 1.006849663 | CZ75: 1.013472565
A76: 5 | B76: Good | C76: 6000 | D76: =D16 -> 1.566548 | E76: 1.771075 | F76: 2.072212 | G76: 2.327908 | H76: 2.612698 | I76: 3.042051 | J76: 3.411059 | K76: 3.8174 | L76: 4.404063 | M76: 4.87982 | N76: 4.125 | O76: 4.125 | P76: 4.125 | Q76: 4.125 | R76: 4.125 | S76: 4.125 | T76: 4.125 | U76: 4.125 | V76: 4.125 | W76: 4.125 | X76: 0 | Y76: 0 | Z76: 0.257212 | AA76: 0.512908 | AB76: 0.797698 | AC76: 1.227051 | AD76: 1.596059 | AE76: 2.0024 | AF76: 2.589063 | AG76: 3.06482 | AH76: 4 | AI76: 4 | AJ76: 4 | AK76: 4 | AL76: 4 | AM76: 4 | AN76: 4 | AO76: 4 | AP76: 4 | AQ76: 4 | AR76: 0 | AS76: 0 | AT76: 0 | AU76: 0 | AV76: 0 | AW76: 0.427051 | AX76: 0.796059 | AY76: 1.2024 | AZ76: 1.789063 | BA76: 2.26482 | BB76: 4 | BC76: 4 | BD76: 4 | BE76: 4 | BF76: 4 | BG76: 6 | BH76: 6 | BI76: 6 | BJ76: 6 | BK76: 6 | BL76: 0 | BM76: 0 | BN76: 0 | BO76: 0 | BP76: 0 | BQ76: 0 | BR76: 0 | BS76: 0.3624 | BT76: 0.949063 | BU76: 1.42482 | BV76: 0 | BW76: 0 | BX76: 0 | BY76: 0 | BZ76: 0 | CA76: 0 | CB76: 0 | CC76: 6 | CD76: 11 | CE76: 16 | CG76: 3.175 | CH76: 3.175 | CI76: 3.175 | CJ76: 3.175 | CK76: 3.175 | CL76: 3.455 | CM76: 3.455 | CN76: 3.995 | CO76: 4.445 | CP76: 4.895 | CQ76: 2.02674926 | CR76: 1.792696526 | CS76: 1.53217914 | CT76: 1.363885514 | CU76: 1.215218904 | CV76: 1.135746902 | CW76: 1.012881923 | CX76: 1.046523812 | CY76: 1.00929528 | CZ76: 1.00311077
A77: 5 | B77: Fair | C77: 4500 | D77: =D17 -> 1.763155 | E77: 1.986575 | F77: 2.317947 | G77: 2.601547 | H77: 2.919006 | I77: 3.396664 | J77: 3.801687 | K77: 4.239732 | L77: 4.861699 | M77: 5.36275 | N77: 4.125 | O77: 4.125 | P77: 4.125 | Q77: 4.125 | R77: 4.125 | S77: 4.125 | T77: 4.125 | U77: 4.125 | V77: 4.125 | W77: 4.125 | X77: 0 | Y77: 0.171575 | Z77: 0.502947 | AA77: 0.786547 | AB77: 1.104006 | AC77: 1.581664 | AD77: 1.986687 | AE77: 2.424732 | AF77: 3.046699 | AG77: 3.54775 | AH77: 4 | AI77: 4 | AJ77: 4 | AK77: 4 | AL77: 4 | AM77: 4 | AN77: 4 | AO77: 4 | AP77: 4 | AQ77: 4 | AR77: 0 | AS77: 0 | AT77: 0 | AU77: 0 | AV77: 0.304006 | AW77: 0.781664 | AX77: 1.186687 | AY77: 1.624732 | AZ77: 2.246699 | BA77: 2.74775 | BB77: 4 | BC77: 4 | BD77: 4 | BE77: 4 | BF77: 4 | BG77: 6 | BH77: 6 | BI77: 6 | BJ77: 6 | BK77: 6 | BL77: 0 | BM77: 0 | BN77: 0 | BO77: 0 | BP77: 0 | BQ77: 0 | BR77: 0.346687 | BS77: 0.784732 | BT77: 1.406699 | BU77: 1.90775 | BV77: 0 | BW77: 0 | BX77: 0 | BY77: 0 | BZ77: 0 | CA77: 0 | CB77: 6 | CC77: 9 | CD77: 16 | CE77: 22 | CG77: 3.175 | CH77: 3.175 | CI77: 3.175 | CJ77: 3.175 | CK77: 3.175 | CL77: 3.455 | CM77: 3.995 | CN77: 4.265 | CO77: 4.895 | CP77: 5.435 | CQ77: 1.800749225 | CR77: 1.598228106 | CS77: 1.36974659 | CT77: 1.220427692 | CU77: 1.087699032 | CV77: 1.017174498 | CW77: 1.050849268 | CX77: 1.005959811 | CY77: 1.006849663 | CZ77: 1.013472565
A78: 5 | B78: Poor | C78: 3500 | D78: =D18 -> 1.949648 | E78: 2.192165 | F78: 2.554382 | G78: 2.866138 | H78: 3.215125 | I78: 3.735006 | J78: 4.168161 | K78: 4.630182 | L78: 5.281345 | M78: 5.805789 | N78: 4.125 | O78: 4.125 | P78: 4.125 | Q78: 4.125 | R78: 4.125 | S78: 4.125 | T78: 4.125 | U78: 4.125 | V78: 4.125 | W78: 4.125 | X78: 0.134648 | Y78: 0.377165 | Z78: 0.739382 | AA78: 1.051138 | AB78: 1.400125 | AC78: 1.920006 | AD78: 2.353161 | AE78: 2.815182 | AF78: 3.466345 | AG78: 3.990789 | AH78: 4 | AI78: 4 | AJ78: 4 | AK78: 4 | AL78: 4 | AM78: 4 | AN78: 4 | AO78: 4 | AP78: 4 | AQ78: 4 | AR78: 0 | AS78: 0 | AT78: 0 | AU78: 0.251138 | AV78: 0.600125 | AW78: 1.120006 | AX78: 1.553161 | AY78: 2.015182 | AZ78: 2.666345 | BA78: 3.190789 | BB78: 4 | BC78: 4 | BD78: 4 | BE78: 4 | BF78: 5 | BG78: 6 | BH78: 6 | BI78: 6 | BJ78: 6 | BK78: 6 | BL78: 0 | BM78: 0 | BN78: 0 | BO78: 0 | BP78: 0 | BQ78: 0.280006 | BR78: 0.713161 | BS78: 1.175182 | BT78: 1.826345 | BU78: 2.350789 | BV78: 0 | BW78: 0 | BX78: 0 | BY78: 0 | BZ78: 0 | CA78: 6 | CB78: 8 | CC78: 14 | CD78: 21 | CE78: 27 | CG78: 3.175 | CH78: 3.175 | CI78: 3.175 | CJ78: 3.175 | CK78: 3.315 | CL78: 3.995 | CM78: 4.175 | CN78: 4.715 | CO78: 5.345 | CP78: 5.885 | CQ78: 1.628499093 | CR78: 1.448339883 | CS78: 1.242962094 | CT78: 1.107762432 | CU78: 1.031064111 | CV78: 1.069610062 | CW78: 1.001640772 | CX78: 1.018318502 | CY78: 1.012052801 | CZ78: 1.013643451
A79: 6 | B79: Good | C79: 5000 | D79: =D19 -> 1.689213 | E79: 1.905334 | F79: 2.225062 | G79: 2.49794 | H79: 2.802905 | I79: 3.262645 | J79: 3.654818 | K79: 4.081814 | L79: 4.691286 | M79: 5.182985 | N79: 4.125 | O79: 4.125 | P79: 4.125 | Q79: 4.125 | R79: 4.125 | S79: 4.125 | T79: 4.125 | U79: 4.125 | V79: 4.125 | W79: 4.125 | X79: 0 | Y79: 0.090334 | Z79: 0.410062 | AA79: 0.68294 | AB79: 0.987905 | AC79: 1.447645 | AD79: 1.839818 | AE79: 2.266814 | AF79: 2.876286 | AG79: 3.367985 | AH79: 4 | AI79: 4 | AJ79: 4 | AK79: 4 | AL79: 4 | AM79: 4 | AN79: 4 | AO79: 4 | AP79: 4 | AQ79: 4 | AR79: 0 | AS79: 0 | AT79: 0 | AU79: 0 | AV79: 0.187905 | AW79: 0.647645 | AX79: 1.039818 | AY79: 1.466814 | AZ79: 2.076286 | BA79: 2.567985 | BB79: 4 | BC79: 4 | BD79: 4 | BE79: 4 | BF79: 4 | BG79: 6 | BH79: 8 | BI79: 6 | BJ79: 6 | BK79: 6 | BL79: 0 | BM79: 0 | BN79: 0 | BO79: 0 | BP79: 0 | BQ79: 0 | BR79: 0 | BS79: 0.626814 | BT79: 1.236286 | BU79: 1.727985 | BV79: 0 | BW79: 0 | BX79: 0 | BY79: 0 | BZ79: 0 | CA79: 0 | CB79: 0 | CC79: 7 | CD79: 14 | CE79: 20 | CG79: 3.175 | CH79: 3.175 | CI79: 3.175 | CJ79: 3.175 | CK79: 3.175 | CL79: 3.455 | CM79: 3.735 | CN79: 4.085 | CO79: 4.715 | CP79: 5.255 | CQ79: 1.879573506 | CR79: 1.666374504 | CS79: 1.426926531 | CT79: 1.271047343 | CU79: 1.13275334 | CV79: 1.058956767 | CW79: 1.021938712 | CX79: 1.000780535 | CY79: 1.005054904 | CZ79: 1.013894503
A80: 6 | B80: Fair | C80: 3500 | D80: =D20 -> 1.949648 | E80: 2.192165 | F80: 2.554382 | G80: 2.866138 | H80: 3.215125 | I80: 3.735006 | J80: 4.168161 | K80: 4.630182 | L80: 5.281345 | M80: 5.805789 | N80: 4.125 | O80: 4.125 | P80: 4.125 | Q80: 4.125 | R80: 4.125 | S80: 4.125 | T80: 4.125 | U80: 4.125 | V80: 4.125 | W80: 4.125 | X80: 0.134648 | Y80: 0.377165 | Z80: 0.739382 | AA80: 1.051138 | AB80: 1.400125 | AC80: 1.920006 | AD80: 2.353161 | AE80: 2.815182 | AF80: 3.466345 | AG80: 3.990789 | AH80: 4 | AI80: 4 | AJ80: 4 | AK80: 4 | AL80: 4 | AM80: 4 | AN80: 4 | AO80: 4 | AP80: 4 | AQ80: 4 | AR80: 0 | AS80: 0 | AT80: 0 | AU80: 0.251138 | AV80: 0.600125 | AW80: 1.120006 | AX80: 1.553161 | AY80: 2.015182 | AZ80: 2.666345 | BA80: 3.190789 | BB80: 4 | BC80: 4 | BD80: 4 | BE80: 4 | BF80: 5 | BG80: 6 | BH80: 6 | BI80: 6 | BJ80: 6 | BK80: 6 | BL80: 0 | BM80: 0 | BN80: 0 | BO80: 0 | BP80: 0 | BQ80: 0.280006 | BR80: 0.713161 | BS80: 1.175182 | BT80: 1.826345 | BU80: 2.350789 | BV80: 0 | BW80: 0 | BX80: 0 | BY80: 0 | BZ80: 0 | CA80: 6 | CB80: 8 | CC80: 14 | CD80: 21 | CE80: 27 | CG80: 3.175 | CH80: 3.175 | CI80: 3.175 | CJ80: 3.175 | CK80: 3.315 | CL80: 3.995 | CM80: 4.175 | CN80: 4.715 | CO80: 5.345 | CP80: 5.885 | CQ80: 1.628499093 | CR80: 1.448339883 | CS80: 1.242962094 | CT80: 1.107762432 | CU80: 1.031064111 | CV80: 1.069610062 | CW80: 1.001640772 | CX80: 1.018318502 | CY80: 1.012052801 | CZ80: 1.013643451
A81: 6 | B81: Poor | C81: 2500 | D81: =D21 -> 2.224555 | E81: 2.497383 | F81: 2.908057 | G81: 3.26191 | H81: 3.654032 | I81: 4.224957 | J81: 4.690374 | K81: 5.182022 | L81: 5.874065 | M81: 6.433534 | N81: 4.125 | O81: 4.125 | P81: 4.125 | Q81: 4.125 | R81: 4.125 | S81: 4.125 | T81: 4.125 | U81: 4.125 | V81: 4.125 | W81: 4.125 | X81: 0.409555 | Y81: 0.682383 | Z81: 1.093057 | AA81: 1.44691 | AB81: 1.839032 | AC81: 2.409957 | AD81: 2.875374 | AE81: 3.367022 | AF81: 4.059065 | AG81: 4.618534 | AH81: 4 | AI81: 4 | AJ81: 4 | AK81: 4 | AL81: 4 | AM81: 4 | AN81: 4 | AO81: 4 | AP81: 4 | AQ81: 4 | AR81: 0 | AS81: 0 | AT81: 0.293057 | AU81: 0.64691 | AV81: 1.039032 | AW81: 1.609957 | AX81: 2.075374 | AY81: 2.567022 | AZ81: 3.259065 | BA81: 3.818534 | BB81: 4 | BC81: 4 | BD81: 4 | BE81: 5 | BF81: 8 | BG81: 6 | BH81: 6 | BI81: 6 | BJ81: 6 | BK81: 6 | BL81: 0 | BM81: 0 | BN81: 0 | BO81: 0 | BP81: 0 | BQ81: 0.769957 | BR81: 1.235374 | BS81: 1.727022 | BT81: 2.419065 | BU81: 2.978534 | BV81: 0 | BW81: 0 | BX81: 0 | BY81: 0 | BZ81: 0 | CA81: 9 | CB81: 14 | CC81: 20 | CD81: 27 | CE81: 34 | CG81: 3.175 | CH81: 3.175 | CI81: 3.175 | CJ81: 3.315 | CK81: 3.735 | CL81: 4.265 | CM81: 4.715 | CN81: 5.255 | CO81: 5.885 | CP81: 6.515 | CQ81: 1.427251742 | CR81: 1.271330829 | CS81: 1.091794281 | CT81: 1.01627574 | CU81: 1.022158536 | CV81: 1.00947773 | CW81: 1.005250328 | CX81: 1.01408292 | CY81: 1.001861573 | CZ81: 1.012662714
A82: 7 | B82: Good | C82: 4000 | D82: =D22 -> 1.848754 | E82: 2.080753 | F82: 2.426014 | G82: 2.722412 | H82: 3.054368 | I82: 3.552048 | J82: 3.970731 | K82: 4.420359 | L82: 5.056037 | M82: 5.567809 | N82: 4.125 | O82: 4.125 | P82: 4.125 | Q82: 4.125 | R82: 4.125 | S82: 4.125 | T82: 4.125 | U82: 4.125 | V82: 4.125 | W82: 4.125 | X82: 0.033754 | Y82: 0.265753 | Z82: 0.611014 | AA82: 0.907412 | AB82: 1.239368 | AC82: 1.737048 | AD82: 2.155731 | AE82: 2.605359 | AF82: 3.241037 | AG82: 3.752809 | AH82: 4 | AI82: 4 | AJ82: 4 | AK82: 4 | AL82: 4 | AM82: 4 | AN82: 4 | AO82: 4 | AP82: 4 | AQ82: 4 | AR82: 0 | AS82: 0 | AT82: 0 | AU82: 0.107412 | AV82: 0.439368 | AW82: 0.937048 | AX82: 1.355731 | AY82: 1.805359 | AZ82: 2.441037 | BA82: 2.952809 | BB82: 4 | BC82: 4 | BD82: 4 | BE82: 4 | BF82: 4 | BG82: 7 | BH82: 6 | BI82: 6 | BJ82: 6 | BK82: 6 | BL82: 0 | BM82: 0 | BN82: 0 | BO82: 0 | BP82: 0 | BQ82: 0 | BR82: 0.515731 | BS82: 0.965359 | BT82: 1.601037 | BU82: 2.112809 | BV82: 0 | BW82: 0 | BX82: 0 | BY82: 0 | BZ82: 0 | CA82: 0 | CB82: 6 | CC82: 11 | CD82: 18 | CE82: 24 | CG82: 3.175 | CH82: 3.175 | CI82: 3.175 | CJ82: 3.175 | CK82: 3.175 | CL82: 3.595 | CM82: 3.995 | CN82: 4.445 | CO82: 5.075 | CP82: 5.615 | CQ82: 1.71737289 | CR82: 1.525889906 | CS82: 1.308731112 | CT82: 1.166245227 | CU82: 1.039494914 | CV82: 1.012092179 | CW82: 1.006111973 | CX82: 1.005574434 | CY82: 1.003750566 | CZ82: 1.008475686
A83: 7 | B83: Fair | C83: 3000 | D83: =D23 -> 2.07173 | E83: 2.327401 | F83: 2.710805 | G83: 3.041367 | H83: 3.410299 | I83: 3.954612 | J83: 4.403176 | K83: 4.878883 | L83: 5.548319 | M83: 6.088197 | N83: 4.125 | O83: 4.125 | P83: 4.125 | Q83: 4.125 | R83: 4.125 | S83: 4.125 | T83: 4.125 | U83: 4.125 | V83: 4.125 | W83: 4.125 | X83: 0.25673 | Y83: 0.512401 | Z83: 0.895805 | AA83: 1.226367 | AB83: 1.595299 | AC83: 2.139612 | AD83: 2.588176 | AE83: 3.063883 | AF83: 3.733319 | AG83: 4.273197 | AH83: 4 | AI83: 4 | AJ83: 4 | AK83: 4 | AL83: 4 | AM83: 4 | AN83: 4 | AO83: 4 | AP83: 4 | AQ83: 4 | AR83: 0 | AS83: 0 | AT83: 0.095805 | AU83: 0.426367 | AV83: 0.795299 | AW83: 1.339612 | AX83: 1.788176 | AY83: 2.263883 | AZ83: 2.933319 | BA83: 3.473197 | BB83: 4 | BC83: 4 | BD83: 4 | BE83: 4 | BF83: 6 | BG83: 6 | BH83: 6 | BI83: 6 | BJ83: 6 | BK83: 6 | BL83: 0 | BM83: 0 | BN83: 0 | BO83: 0 | BP83: 0 | BQ83: 0.499612 | BR83: 0.948176 | BS83: 1.423883 | BT83: 2.093319 | BU83: 2.633197 | BV83: 0 | BW83: 0 | BX83: 0 | BY83: 0 | BZ83: 0 | CA83: 6 | CB83: 11 | CC83: 16 | CD83: 24 | CE83: 30 | CG83: 3.175 | CH83: 3.175 | CI83: 3.175 | CJ83: 3.175 | CK83: 3.455 | CL83: 3.995 | CM83: 4.445 | CN83: 4.895 | CO83: 5.615 | CP83: 6.155 | CQ83: 1.53253561 | CR83: 1.364182623 | CS83: 1.171238802 | CT83: 1.043938466 | CU83: 1.013107648 | CV83: 1.010212886 | CW83: 1.009498598 | CX83: 1.00330342 | CY83: 1.012018235 | CZ83: 1.010972542
A84: 7 | B84: Poor | C84: 2000 | D84: =D24 -> 2.425482 | E84: 2.721804 | F84: 3.168669 | G84: 3.551288 | H84: 3.969895 | I84: 4.570066 | J84: 5.055074 | K84: 5.566795 | L84: 6.288744 | M84: 6.874266 | N84: 4.125 | O84: 4.125 | P84: 4.125 | Q84: 4.125 | R84: 4.125 | S84: 4.125 | T84: 4.125 | U84: 4.125 | V84: 4.125 | W84: 4.125 | X84: 0.610482 | Y84: 0.906804 | Z84: 1.353669 | AA84: 1.736288 | AB84: 2.154895 | AC84: 2.755066 | AD84: 3.240074 | AE84: 3.751795 | AF84: 4.473744 | AG84: 5.059266 | AH84: 4 | AI84: 4 | AJ84: 4 | AK84: 4 | AL84: 4 | AM84: 4 | AN84: 4 | AO84: 4 | AP84: 4 | AQ84: 4 | AR84: 0 | AS84: 0.106804 | AT84: 0.553669 | AU84: 0.936288 | AV84: 1.354895 | AW84: 1.955066 | AX84: 2.440074 | AY84: 2.951795 | AZ84: 3.673744 | BA84: 4.259266 | BB84: 4 | BC84: 4 | BD84: 4 | BE84: 7 | BF84: 4 | BG84: 6 | BH84: 6 | BI84: 6 | BJ84: 6 | BK84: 6 | BL84: 0 | BM84: 0 | BN84: 0 | BO84: 0 | BP84: 0.794895 | BQ84: 1.115066 | BR84: 1.600074 | BS84: 2.111795 | BT84: 2.833744 | BU84: 3.419266 | BV84: 0 | BW84: 0 | BX84: 0 | BY84: 0 | BZ84: 9 | CA84: 13 | CB84: 18 | CC84: 24 | CD84: 32 | CE84: 38 | CG84: 3.175 | CH84: 3.175 | CI84: 3.175 | CJ84: 3.595 | CK84: 3.985 | CL84: 4.625 | CM84: 5.075 | CN84: 5.615 | CO84: 6.335 | CP84: 6.875 | CQ84: 1.309018166 | CR84: 1.166505744 | CS84: 1.001998 | CT84: 1.012308774 | CU84: 1.003804887 | CV84: 1.012020395 | CW84: 1.003941782 | CX84: 1.008659381 | CY84: 1.007355364 | CZ84: 1.000106775
A85: 8 | B85: Good | C85: 3500 | D85: =D25 -> 1.949648 | E85: 2.192165 | F85: 2.554382 | G85: 2.866138 | H85: 3.215125 | I85: 3.735006 | J85: 4.168161 | K85: 4.630182 | L85: 5.281345 | M85: 5.805789 | N85: 4.125 | O85: 4.125 | P85: 4.125 | Q85: 4.125 | R85: 4.125 | S85: 4.125 | T85: 4.125 | U85: 4.125 | V85: 4.125 | W85: 4.125 | X85: 0.134648 | Y85: 0.377165 | Z85: 0.739382 | AA85: 1.051138 | AB85: 1.400125 | AC85: 1.920006 | AD85: 2.353161 | AE85: 2.815182 | AF85: 3.466345 | AG85: 3.990789 | AH85: 4 | AI85: 4 | AJ85: 4 | AK85: 4 | AL85: 4 | AM85: 4 | AN85: 4 | AO85: 4 | AP85: 4 | AQ85: 4 | AR85: 0 | AS85: 0 | AT85: 0 | AU85: 0.251138 | AV85: 0.600125 | AW85: 1.120006 | AX85: 1.553161 | AY85: 2.015182 | AZ85: 2.666345 | BA85: 3.190789 | BB85: 4 | BC85: 4 | BD85: 4 | BE85: 4 | BF85: 5 | BG85: 6 | BH85: 6 | BI85: 6 | BJ85: 6 | BK85: 6 | BL85: 0 | BM85: 0 | BN85: 0 | BO85: 0 | BP85: 0 | BQ85: 0.280006 | BR85: 0.713161 | BS85: 1.175182 | BT85: 1.826345 | BU85: 2.350789 | BV85: 0 | BW85: 0 | BX85: 0 | BY85: 0 | BZ85: 0 | CA85: 6 | CB85: 8 | CC85: 14 | CD85: 21 | CE85: 27 | CG85: 3.175 | CH85: 3.175 | CI85: 3.175 | CJ85: 3.175 | CK85: 3.315 | CL85: 3.995 | CM85: 4.175 | CN85: 4.715 | CO85: 5.345 | CP85: 5.885 | CQ85: 1.628499093 | CR85: 1.448339883 | CS85: 1.242962094 | CT85: 1.107762432 | CU85: 1.031064111 | CV85: 1.069610062 | CW85: 1.001640772 | CX85: 1.018318502 | CY85: 1.012052801 | CZ85: 1.013643451
A86: 8 | B86: Fair | C86: 3000 | D86: =D26 -> 2.07173 | E86: 2.327401 | F86: 2.710805 | G86: 3.041367 | H86: 3.410299 | I86: 3.954612 | J86: 4.403176 | K86: 4.878883 | L86: 5.548319 | M86: 6.088197 | N86: 4.125 | O86: 4.125 | P86: 4.125 | Q86: 4.125 | R86: 4.125 | S86: 4.125 | T86: 4.125 | U86: 4.125 | V86: 4.125 | W86: 4.125 | X86: 0.25673 | Y86: 0.512401 | Z86: 0.895805 | AA86: 1.226367 | AB86: 1.595299 | AC86: 2.139612 | AD86: 2.588176 | AE86: 3.063883 | AF86: 3.733319 | AG86: 4.273197 | AH86: 4 | AI86: 4 | AJ86: 4 | AK86: 4 | AL86: 4 | AM86: 4 | AN86: 4 | AO86: 4 | AP86: 4 | AQ86: 4 | AR86: 0 | AS86: 0 | AT86: 0.095805 | AU86: 0.426367 | AV86: 0.795299 | AW86: 1.339612 | AX86: 1.788176 | AY86: 2.263883 | AZ86: 2.933319 | BA86: 3.473197 | BB86: 4 | BC86: 4 | BD86: 4 | BE86: 4 | BF86: 6 | BG86: 6 | BH86: 6 | BI86: 6 | BJ86: 6 | BK86: 6 | BL86: 0 | BM86: 0 | BN86: 0 | BO86: 0 | BP86: 0 | BQ86: 0.499612 | BR86: 0.948176 | BS86: 1.423883 | BT86: 2.093319 | BU86: 2.633197 | BV86: 0 | BW86: 0 | BX86: 0 | BY86: 0 | BZ86: 0 | CA86: 6 | CB86: 11 | CC86: 16 | CD86: 24 | CE86: 30 | CG86: 3.175 | CH86: 3.175 | CI86: 3.175 | CJ86: 3.175 | CK86: 3.455 | CL86: 3.995 | CM86: 4.445 | CN86: 4.895 | CO86: 5.615 | CP86: 6.155 | CQ86: 1.53253561 | CR86: 1.364182623 | CS86: 1.171238802 | CT86: 1.043938466 | CU86: 1.013107648 | CV86: 1.010212886 | CW86: 1.009498598 | CX86: 1.00330342 | CY86: 1.012018235 | CZ86: 1.010972542
A87: 8 | B87: Poor | C87: 2000 | D87: =D27 -> 2.425482 | E87: 2.721804 | F87: 3.168669 | G87: 3.551288 | H87: 3.969895 | I87: 4.570066 | J87: 5.055074 | K87: 5.566795 | L87: 6.288744 | M87: 6.874266 | N87: 4.125 | O87: 4.125 | P87: 4.125 | Q87: 4.125 | R87: 4.125 | S87: 4.125 | T87: 4.125 | U87: 4.125 | V87: 4.125 | W87: 4.125 | X87: 0.610482 | Y87: 0.906804 | Z87: 1.353669 | AA87: 1.736288 | AB87: 2.154895 | AC87: 2.755066 | AD87: 3.240074 | AE87: 3.751795 | AF87: 4.473744 | AG87: 5.059266 | AH87: 4 | AI87: 4 | AJ87: 4 | AK87: 4 | AL87: 4 | AM87: 4 | AN87: 4 | AO87: 4 | AP87: 4 | AQ87: 4 | AR87: 0 | AS87: 0.106804 | AT87: 0.553669 | AU87: 0.936288 | AV87: 1.354895 | AW87: 1.955066 | AX87: 2.440074 | AY87: 2.951795 | AZ87: 3.673744 | BA87: 4.259266 | BB87: 4 | BC87: 4 | BD87: 4 | BE87: 7 | BF87: 4 | BG87: 6 | BH87: 6 | BI87: 6 | BJ87: 6 | BK87: 6 | BL87: 0 | BM87: 0 | BN87: 0 | BO87: 0 | BP87: 0.794895 | BQ87: 1.115066 | BR87: 1.600074 | BS87: 2.111795 | BT87: 2.833744 | BU87: 3.419266 | BV87: 0 | BW87: 0 | BX87: 0 | BY87: 0 | BZ87: 9 | CA87: 13 | CB87: 18 | CC87: 24 | CD87: 32 | CE87: 38 | CG87: 3.175 | CH87: 3.175 | CI87: 3.175 | CJ87: 3.595 | CK87: 3.985 | CL87: 4.625 | CM87: 5.075 | CN87: 5.615 | CO87: 6.335 | CP87: 6.875 | CQ87: 1.309018166 | CR87: 1.166505744 | CS87: 1.001998 | CT87: 1.012308774 | CU87: 1.003804887 | CV87: 1.012020395 | CW87: 1.003941782 | CX87: 1.008659381 | CY87: 1.007355364 | CZ87: 1.000106775
A91: Asphalt Concrete Base
A92: Subgrade Category | B92: Drainage | C92: Mr (psi) | D92: Design SN (in) | N92: Paver Thickness (in) | X92: SN Remaining (Excluding Pavers) | AH92: Unbound Dense Graded Base Thickness (in) | AR92: SN Remaining (excluding Pavers and Untreated Granular Base) | BB92: Asphalt Concrete Base Thickness (in)
D93: 10000 | E93: 20000 | F93: 50000 | G93: 100000 | H93: 200000 | I93: 500000 | J93: 1000000 | K93: 2000000 | L93: 5000000 | M93: 10000000 | N93: 10000 | O93: 20000 | P93: 50000 | Q93: 100000 | R93: 200000 | S93: 500000 | T93: 1000000 | U93: 2000000 | V93: 5000000 | W93: 10000000 | X93: 10000 | Y93: 20000 | Z93: 50000 | AA93: 100000 | AB93: 200000 | AC93: 500000 | AD93: 1000000 | AE93: 2000000 | AF93: 5000000 | AG93: 10000000 | AH93: 10000 | AI93: 20000 | AJ93: 50000 | AK93: 100000 | AL93: 200000 | AM93: 500000 | AN93: 1000000 | AO93: 2000000 | AP93: 5000000 | AQ93: 10000000 | AR93: 10000 | AS93: 20000 | AT93: 50000 | AU93: 100000 | AV93: 200000 | AW93: 500000 | AX93: 1000000 | AY93: 2000000 | AZ93: 5000000 | BA93: 10000000 | BB93: 10000 | BC93: 20000 | BD93: 50000 | BE93: 100000 | BF93: 200000 | BG93: 500000 | BH93: 1000000 | BI93: 2000000 | BJ93: 5000000 | BK93: 10000000
A94: 1 | B94: Good | C94: =C4 -> 12000 | D94: =D4 -> 1.154138 | E94: =E4 -> 1.322296 | F94: 1.566929 | G94: 1.771518 | H94: 1.995749 | I94: 2.32844 | J94: 2.613281 | K94: 2.932134 | L94: 3.411794 | M94: 3.818211 | N94: =ThickPaver -> 4.125 | O94: 4.125 | P94: 4.125 | Q94: 4.125 | R94: 4.125 | S94: 4.125 | T94: 4.125 | U94: 4.125 | V94: 4.125 | W94: 4.125 | X94: =MAX(0,D94-N94*Apaver) -> 0 | Y94: =MAX(0,E94-O94*Apaver) -> 0 | Z94: =MAX(0,F94-P94*Apaver) -> 0 | AA94: =MAX(0,G94-Q94*Apaver) -> 0 | AB94: =MAX(0,H94-R94*Apaver) -> 0.180749 | AC94: =MAX(0,I94-S94*Apaver) -> 0.51344 | AD94: =MAX(0,J94-T94*Apaver) -> 0.798281 | AE94: =MAX(0,K94-U94*Apaver) -> 1.117134 | AF94: =MAX(0,L94-V94*Apaver) -> 1.596794 | AG94: =MAX(0,M94-W94*Apaver) -> 2.003211 | AH94: =IF(AH$93<500000,4,6) -> 4 | AI94: =IF(AI$93<500000,4,6) -> 4 | AJ94: 4 | AK94: 4 | AL94: 4 | AM94: 6 | AN94: 6 | AO94: 6 | AP94: 6 | AQ94: 6 | AR94: =MAX(0,X94-AH94*Agran) -> 0 | AS94: =MAX(0,Y94-AI94*Agran) -> 0 | AT94: =MAX(0,Z94-AJ94*Agran) -> 0 | AU94: =MAX(0,AA94-AK94*Agran) -> 0 | AV94: =MAX(0,AB94-AL94*Agran) -> 0 | AW94: =MAX(0,AC94-AM94*Agran) -> 0 | AX94: =MAX(0,AD94-AN94*Agran) -> 0 | AY94: =MAX(0,AE94-AO94*Agran) -> 0.277134 | AZ94: =MAX(0,AF94-AP94*Agran) -> 0.756794 | BA94: =MAX(0,AG94-AQ94*Agran) -> 1.163211 | BB94: =MAX(2,IF(AR94<0,0,ROUNDUP(AR94/Aacb/0.5,0)*0.5)) -> 2 | BC94: =MAX(2,IF(AS94<0,0,ROUNDUP(AS94/Aacb/0.5,0)*0.5)) -> 2 | BD94: =MAX(2,IF(AT94<0,0,ROUNDUP(AT94/Aacb/0.5,0)*0.5)) -> 2 | BE94: =MAX(2,IF(AU94<0,0,ROUNDUP(AU94/Aacb/0.5,0)*0.5)) -> 2 | BF94: =MAX(2,IF(AV94<0,0,ROUNDUP(AV94/Aacb/0.5,0)*0.5)) -> 2 | BG94: =MAX(2,IF(AW94<0,0,ROUNDUP(AW94/Aacb/0.5,0)*0.5)) -> 2 | BH94: =MAX(2,IF(AX94<0,0,ROUNDUP(AX94/Aacb/0.5,0)*0.5)) -> 2 | BI94: =MAX(2,IF(AY94<0,0,ROUNDUP(AY94/Aacb/0.5,0)*0.5)) -> 2 | BJ94: =MAX(2,IF(AZ94<0,0,ROUNDUP(AZ94/Aacb/0.5,0)*0.5)) -> 2 | BK94: =MAX(2,IF(BA94<0,0,ROUNDUP(BA94/Aacb/0.5,0)*0.5)) -> 3 | CG94: =N94*Apaver+AH94*Agran+BB94*Aacb -> 3.215 | CH94: =O94*Apaver+AI94*Agran+BC94*Aacb -> 3.215 | CI94: =P94*Apaver+AJ94*Agran+BD94*Aacb -> 3.215 | CJ94: =Q94*Apaver+AK94*Agran+BE94*Aacb -> 3.215 | CK94: =R94*Apaver+AL94*Agran+BF94*Aacb -> 3.215 | CL94: =S94*Apaver+AM94*Agran+BG94*Aacb -> 3.495 | CM94: =T94*Apaver+AN94*Agran+BH94*Aacb -> 3.495 | CN94: =U94*Apaver+AO94*Agran+BI94*Aacb -> 3.495 | CO94: =V94*Apaver+AP94*Agran+BJ94*Aacb -> 3.495 | CP94: =W94*Apaver+AQ94*Agran+BK94*Aacb -> 3.915 | CQ94: =(CG94)/D94 -> 2.785628755 | CR94: =(CH94)/E94 -> 2.431376938 | CS94: =(CI94)/F94 -> 2.051784095 | CT94: =(CJ94)/G94 -> 1.814827735 | CU94: =(CK94)/H94 -> 1.610924019 | CV94: =(CL94)/I94 -> 1.501004965 | CW94: =(CM94)/J94 -> 1.337399231 | CX94: =(CN94)/K94 -> 1.191964624 | CY94: =(CO94)/L94 -> 1.024387756 | CZ94: =(CP94)/M94 -> 1.025349306
A95: 1 | B95: Fair | C95: =C5 -> 11000 | D95: =D5 -> 1.201722 | E95: 1.373871 | F95: 1.62465 | G95: 1.834625 | H95: 2.065242 | I95: 2.408172 | J95: 2.702441 | K95: 3.032015 | L95: 3.526451 | M95: 3.942979 | N95: 4.125 | O95: 4.125 | P95: 4.125 | Q95: 4.125 | R95: 4.125 | S95: 4.125 | T95: 4.125 | U95: 4.125 | V95: 4.125 | W95: 4.125 | X95: 0 | Y95: 0 | Z95: 0 | AA95: 0.019625 | AB95: 0.250242 | AC95: 0.593172 | AD95: 0.887441 | AE95: 1.217015 | AF95: 1.711451 | AG95: 2.127979 | AH95: =IF(AH$93<500000,4,6) -> 4 | AI95: 4 | AJ95: 4 | AK95: 4 | AL95: 4 | AM95: 6 | AN95: 6 | AO95: 6 | AP95: 6 | AQ95: 6 | AR95: 0 | AS95: 0 | AT95: 0 | AU95: 0 | AV95: 0 | AW95: 0 | AX95: 0.047441 | AY95: 0.377015 | AZ95: 0.871451 | BA95: 1.287979 | BB95: 2 | BC95: 2 | BD95: 2 | BE95: 2 | BF95: 2 | BG95: 2 | BH95: 2 | BI95: 2 | BJ95: 2.5 | BK95: 3.5 | CG95: 3.215 | CH95: 3.215 | CI95: 3.215 | CJ95: 3.215 | CK95: 3.215 | CL95: 3.495 | CM95: 3.495 | CN95: 3.495 | CO95: 3.705 | CP95: 4.125 | CQ95: =(CG95)/D95 -> 2.675327572 | CR95: 2.340103256 | CS95: 1.97888776 | CT95: 1.752401717 | CU95: 1.556718293 | CV95: 1.451308295 | CW95: 1.293275228 | CX95: 1.152698783 | CY95: 1.050631357 | CZ95: 1.04616332
A96: 1 | B96: Poor | C96: 10000 | D96: =D6 -> 1.255134 | E96: 1.431845 | F96: 1.689594 | G96: 1.905778 | H96: 2.143707 | I96: 2.498473 | J96: 2.803538 | K96: 3.14515 | L96: 3.655604 | M96: 4.082675 | N96: 4.125 | O96: 4.125 | P96: 4.125 | Q96: 4.125 | R96: 4.125 | S96: 4.125 | T96: 4.125 | U96: 4.125 | V96: 4.125 | W96: 4.125 | X96: 0 | Y96: 0 | Z96: 0 | AA96: 0.090778 | AB96: 0.328707 | AC96: 0.683473 | AD96: 0.988538 | AE96: 1.33015 | AF96: 1.840604 | AG96: 2.267675 | AH96: 4 | AI96: 4 | AJ96: 4 | AK96: 4 | AL96: 4 | AM96: 6 | AN96: 6 | AO96: 6 | AP96: 6 | AQ96: 6 | AR96: 0 | AS96: 0 | AT96: 0 | AU96: 0 | AV96: 0 | AW96: 0 | AX96: 0.148538 | AY96: 0.49015 | AZ96: 1.000604 | BA96: 1.427675 | BB96: 2 | BC96: 2 | BD96: 2 | BE96: 2 | BF96: 2 | BG96: 2 | BH96: 2 | BI96: 2 | BJ96: 2.5 | BK96: 3.5 | CG96: 3.215 | CH96: 3.215 | CI96: 3.215 | CJ96: 3.215 | CK96: 3.215 | CL96: 3.495 | CM96: 3.495 | CN96: 3.495 | CO96: 3.705 | CP96: 4.125 | CQ96: 2.561479491 | CR96: 2.24535477 | CS96: 1.902823992 | CT96: 1.686975083 | CU96: 1.499738537 | CV96: 1.39885442 | CW96: 1.246639068 | CX96: 1.111234758 | CY96: 1.013512405 | CZ96: 1.010366978
A97: 2 | B97: Good | C97: 11000 | D97: =D7 -> 1.201722 | E97: 1.373871 | F97: 1.62465 | G97: 1.834625 | H97: 2.065242 | I97: 2.408172 | J97: 2.702441 | K97: 3.032015 | L97: 3.526451 | M97: 3.942979 | N97: 4.125 | O97: 4.125 | P97: 4.125 | Q97: 4.125 | R97: 4.125 | S97: 4.125 | T97: 4.125 | U97: 4.125 | V97: 4.125 | W97: 4.125 | X97: 0 | Y97: 0 | Z97: 0 | AA97: 0.019625 | AB97: 0.250242 | AC97: 0.593172 | AD97: 0.887441 | AE97: 1.217015 | AF97: 1.711451 | AG97: 2.127979 | AH97: 4 | AI97: 4 | AJ97: 4 | AK97: 4 | AL97: 4 | AM97: 6 | AN97: 6 | AO97: 6 | AP97: 6 | AQ97: 6 | AR97: 0 | AS97: 0 | AT97: 0 | AU97: 0 | AV97: 0 | AW97: 0 | AX97: 0.047441 | AY97: 0.377015 | AZ97: 0.871451 | BA97: 1.287979 | BB97: 2 | BC97: 2 | BD97: 2 | BE97: 2 | BF97: 2 | BG97: 2 | BH97: 2 | BI97: 2 | BJ97: 2.5 | BK97: 3.5 | CG97: 3.215 | CH97: 3.215 | CI97: 3.215 | CJ97: 3.215 | CK97: 3.215 | CL97: 3.495 | CM97: 3.495 | CN97: 3.495 | CO97: 3.705 | CP97: 4.125 | CQ97: 2.675327572 | CR97: 2.340103256 | CS97: 1.97888776 | CT97: 1.752401717 | CU97: 1.556718293 | CV97: 1.451308295 | CW97: 1.293275228 | CX97: 1.152698783 | CY97: 1.050631357 | CZ97: 1.04616332
A98: 2 | B98: Fair | C98: 10000 | D98: =D8 -> 1.255134 | E98: 1.431845 | F98: 1.689594 | G98: 1.905778 | H98: 2.143707 | I98: 2.498473 | J98: 2.803538 | K98: 3.14515 | L98: 3.655604 | M98: 4.082675 | N98: 4.125 | O98: 4.125 | P98: 4.125 | Q98: 4.125 | R98: 4.125 | S98: 4.125 | T98: 4.125 | U98: 4.125 | V98: 4.125 | W98: 4.125 | X98: 0 | Y98: 0 | Z98: 0 | AA98: 0.090778 | AB98: 0.328707 | AC98: 0.683473 | AD98: 0.988538 | AE98: 1.33015 | AF98: 1.840604 | AG98: 2.267675 | AH98: 4 | AI98: 4 | AJ98: 4 | AK98: 4 | AL98: 4 | AM98: 6 | AN98: 6 | AO98: 6 | AP98: 6 | AQ98: 6 | AR98: 0 | AS98: 0 | AT98: 0 | AU98: 0 | AV98: 0 | AW98: 0 | AX98: 0.148538 | AY98: 0.49015 | AZ98: 1.000604 | BA98: 1.427675 | BB98: 2 | BC98: 2 | BD98: 2 | BE98: 2 | BF98: 2 | BG98: 2 | BH98: 2 | BI98: 2 | BJ98: 2.5 | BK98: 3.5 | CG98: 3.215 | CH98: 3.215 | CI98: 3.215 | CJ98: 3.215 | CK98: 3.215 | CL98: 3.495 | CM98: 3.495 | CN98: 3.495 | CO98: 3.705 | CP98: 4.125 | CQ98: 2.561479491 | CR98: 2.24535477 | CS98: 1.902823992 | CT98: 1.686975083 | CU98: 1.499738537 | CV98: 1.39885442 | CW98: 1.246639068 | CX98: 1.111234758 | CY98: 1.013512405 | CZ98: 1.010366978
A99: 2 | B99: Poor | C99: 7000 | D99: =D9 -> 1.467834 | E99: 1.663299 | F99: 1.950105 | G99: 2.192672 | H99: 2.461825 | I99: 2.866772 | J99: 3.215835 | K99: 3.603294 | L99: 4.169022 | M99: 4.631094 | N99: 4.125 | O99: 4.125 | P99: 4.125 | Q99: 4.125 | R99: 4.125 | S99: 4.125 | T99: 4.125 | U99: 4.125 | V99: 4.125 | W99: 4.125 | X99: 0 | Y99: 0 | Z99: 0.135105 | AA99: 0.377672 | AB99: 0.646825 | AC99: 1.051772 | AD99: 1.400835 | AE99: 1.788294 | AF99: 2.354022 | AG99: 2.816094 | AH99: 4 | AI99: 4 | AJ99: 4 | AK99: 4 | AL99: 4 | AM99: 6 | AN99: 6 | AO99: 6 | AP99: 6 | AQ99: 6 | AR99: 0 | AS99: 0 | AT99: 0 | AU99: 0 | AV99: 0.086825 | AW99: 0.211772 | AX99: 0.560835 | AY99: 0.948294 | AZ99: 1.514022 | BA99: 1.976094 | BB99: 2 | BC99: 2 | BD99: 2 | BE99: 2 | BF99: 2 | BG99: 2 | BH99: 2 | BI99: 2.5 | BJ99: 4 | BK99: 5 | CG99: 3.215 | CH99: 3.215 | CI99: 3.215 | CJ99: 3.215 | CK99: 3.215 | CL99: 3.495 | CM99: 3.495 | CN99: 3.705 | CO99: 4.335 | CP99: 4.755 | CQ99: 2.190302173 | CR99: 1.932905629 | CS99: 1.648629176 | CT99: 1.466247574 | CU99: 1.30594173 | CV99: 1.21914125 | CW99: 1.086809491 | CX99: 1.02822584 | CY99: 1.039812215 | CZ99: 1.026755233
A100: 3 | B100: Good | C100: 10000 | D100: =D10 -> 1.255134 | E100: 1.431845 | F100: 1.689594 | G100: 1.905778 | H100: 2.143707 | I100: 2.498473 | J100: 2.803538 | K100: 3.14515 | L100: 3.655604 | M100: 4.082675 | N100: 4.125 | O100: 4.125 | P100: 4.125 | Q100: 4.125 | R100: 4.125 | S100: 4.125 | T100: 4.125 | U100: 4.125 | V100: 4.125 | W100: 4.125 | X100: 0 | Y100: 0 | Z100: 0 | AA100: 0.090778 | AB100: 0.328707 | AC100: 0.683473 | AD100: 0.988538 | AE100: 1.33015 | AF100: 1.840604 | AG100: 2.267675 | AH100: 4 | AI100: 4 | AJ100: 4 | AK100: 4 | AL100: 4 | AM100: 6 | AN100: 6 | AO100: 6 | AP100: 6 | AQ100: 6 | AR100: 0 | AS100: 0 | AT100: 0 | AU100: 0 | AV100: 0 | AW100: 0 | AX100: 0.148538 | AY100: 0.49015 | AZ100: 1.000604 | BA100: 1.427675 | BB100: 2 | BC100: 2 | BD100: 2 | BE100: 2 | BF100: 2 | BG100: 2 | BH100: 2 | BI100: 2 | BJ100: 2.5 | BK100: 3.5 | CG100: 3.215 | CH100: 3.215 | CI100: 3.215 | CJ100: 3.215 | CK100: 3.215 | CL100: 3.495 | CM100: 3.495 | CN100: 3.495 | CO100: 3.705 | CP100: 4.125 | CQ100: 2.561479491 | CR100: 2.24535477 | CS100: 1.902823992 | CT100: 1.686975083 | CU100: 1.499738537 | CV100: 1.39885442 | CW100: 1.246639068 | CX100: 1.111234758 | CY100: 1.013512405 | CZ100: 1.010366978
A101: 3 | B101: Fair | C101: 8000 | D101: =D11 -> 1.385719 | E101: 1.573835 | F101: 1.849134 | G101: 2.081234 | H101: 2.337944 | I101: 2.723021 | J101: 3.055052 | K101: 3.42548 | L101: 3.971567 | M101: 4.421246 | N101: 4.125 | O101: 4.125 | P101: 4.125 | Q101: 4.125 | R101: 4.125 | S101: 4.125 | T101: 4.125 | U101: 4.125 | V101: 4.125 | W101: 4.125 | X101: 0 | Y101: 0 | Z101: 0.034134 | AA101: 0.266234 | AB101: 0.522944 | AC101: 0.908021 | AD101: 1.240052 | AE101: 1.61048 | AF101: 2.156567 | AG101: 2.606246 | AH101: 4 | AI101: 4 | AJ101: 4 | AK101: 4 | AL101: 4 | AM101: 6 | AN101: 6 | AO101: 6 | AP101: 6 | AQ101: 6 | AR101: 0 | AS101: 0 | AT101: 0 | AU101: 0 | AV101: 0 | AW101: 0.068021 | AX101: 0.400052 | AY101: 0.77048 | AZ101: 1.316567 | BA101: 1.766246 | BB101: 2 | BC101: 2 | BD101: 2 | BE101: 2 | BF101: 2 | BG101: 2 | BH101: 2 | BI101: 2 | BJ101: 3.5 | BK101: 4.5 | CG101: 3.215 | CH101: 3.215 | CI101: 3.215 | CJ101: 3.215 | CK101: 3.215 | CL101: 3.495 | CM101: 3.495 | CN101: 3.495 | CO101: 4.125 | CP101: 4.545 | CQ101: 2.3200952 | CR101: 2.042780851 | CS101: 1.738651715 | CT101: 1.54475662 | CU101: 1.375139866 | CV101: 1.283500935 | CW101: 1.144006714 | CX101: 1.020294966 | CY101: 1.038632862 | CZ101: 1.027990752
A102: 3 | B102: Poor | C102: 5000 | D102: =D12 -> 1.689213 | E102: 1.905334 | F102: 2.225062 | G102: 2.49794 | H102: 2.802905 | I102: 3.262645 | J102: 3.654818 | K102: 4.081814 | L102: 4.691286 | M102: 5.182985 | N102: 4.125 | O102: 4.125 | P102: 4.125 | Q102: 4.125 | R102: 4.125 | S102: 4.125 | T102: 4.125 | U102: 4.125 | V102: 4.125 | W102: 4.125 | X102: 0 | Y102: 0.090334 | Z102: 0.410062 | AA102: 0.68294 | AB102: 0.987905 | AC102: 1.447645 | AD102: 1.839818 | AE102: 2.266814 | AF102: 2.876286 | AG102: 3.367985 | AH102: 4 | AI102: 4 | AJ102: 4 | AK102: 4 | AL102: 4 | AM102: 6 | AN102: 6 | AO102: 6 | AP102: 6 | AQ102: 6 | AR102: 0 | AS102: 0 | AT102: 0 | AU102: 0.12294 | AV102: 0.427905 | AW102: 0.607645 | AX102: 0.999818 | AY102: 1.426814 | AZ102: 2.036286 | BA102: 2.527985 | BB102: 2 | BC102: 2 | BD102: 2 | BE102: 2 | BF102: 2 | BG102: 2 | BH102: 2.5 | BI102: 3.5 | BJ102: 5 | BK102: 6.5 | CG102: 3.215 | CH102: 3.215 | CI102: 3.215 | CJ102: 3.215 | CK102: 3.215 | CL102: 3.495 | CM102: 3.705 | CN102: 4.125 | CO102: 4.755 | CP102: 5.385 | CQ102: 1.903253172 | CR102: 1.687368199 | CS102: 1.444903558 | CT102: 1.287060538 | CU102: 1.147024248 | CV102: 1.071216758 | CW102: 1.013730369 | CX102: 1.0105801 | CY102: 1.013581351 | CZ102: 1.038976574
A103: 4 | B103: Good | C103: 8000 | D103: =D13 -> 1.385719 | E103: 1.573835 | F103: 1.849134 | G103: 2.081234 | H103: 2.337944 | I103: 2.723021 | J103: 3.055052 | K103: 3.42548 | L103: 3.971567 | M103: 4.421246 | N103: 4.125 | O103: 4.125 | P103: 4.125 | Q103: 4.125 | R103: 4.125 | S103: 4.125 | T103: 4.125 | U103: 4.125 | V103: 4.125 | W103: 4.125 | X103: 0 | Y103: 0 | Z103: 0.034134 | AA103: 0.266234 | AB103: 0.522944 | AC103: 0.908021 | AD103: 1.240052 | AE103: 1.61048 | AF103: 2.156567 | AG103: 2.606246 | AH103: 4 | AI103: 4 | AJ103: 4 | AK103: 4 | AL103: 4 | AM103: 6 | AN103: 6 | AO103: 6 | AP103: 6 | AQ103: 6 | AR103: 0 | AS103: 0 | AT103: 0 | AU103: 0 | AV103: 0 | AW103: 0.068021 | AX103: 0.400052 | AY103: 0.77048 | AZ103: 1.316567 | BA103: 1.766246 | BB103: 2 | BC103: 2 | BD103: 2 | BE103: 2 | BF103: 2 | BG103: 2 | BH103: 2 | BI103: 2 | BJ103: 3.5 | BK103: 4.5 | CG103: 3.215 | CH103: 3.215 | CI103: 3.215 | CJ103: 3.215 | CK103: 3.215 | CL103: 3.495 | CM103: 3.495 | CN103: 3.495 | CO103: 4.125 | CP103: 4.545 | CQ103: 2.3200952 | CR103: 2.042780851 | CS103: 1.738651715 | CT103: 1.54475662 | CU103: 1.375139866 | CV103: 1.283500935 | CW103: 1.144006714 | CX103: 1.020294966 | CY103: 1.038632862 | CZ103: 1.027990752
A104: 4 | B104: Fair | C104: 5000 | D104: =D14 -> 1.689213 | E104: 1.905334 | F104: 2.225062 | G104: 2.49794 | H104: 2.802905 | I104: 3.262645 | J104: 3.654818 | K104: 4.081814 | L104: 4.691286 | M104: 5.182985 | N104: =ThickPaver -> 4.125 | O104: 4.125 | P104: 4.125 | Q104: 4.125 | R104: 4.125 | S104: 4.125 | T104: 4.125 | U104: 4.125 | V104: 4.125 | W104: 4.125 | X104: 0 | Y104: 0.090334 | Z104: 0.410062 | AA104: 0.68294 | AB104: 0.987905 | AC104: 1.447645 | AD104: 1.839818 | AE104: 2.266814 | AF104: 2.876286 | AG104: 3.367985 | AH104: 4 | AI104: 4 | AJ104: 4 | AK104: 4 | AL104: 4 | AM104: 6 | AN104: 6 | AO104: 6 | AP104: 6 | AQ104: 6 | AR104: 0 | AS104: 0 | AT104: 0 | AU104: 0.12294 | AV104: 0.427905 | AW104: 0.607645 | AX104: 0.999818 | AY104: 1.426814 | AZ104: 2.036286 | BA104: 2.527985 | BB104: 2 | BC104: 2 | BD104: 2 | BE104: 2 | BF104: 2 | BG104: 2 | BH104: 2.5 | BI104: 3.5 | BJ104: 5 | BK104: 6.5 | CG104: 3.215 | CH104: 3.215 | CI104: 3.215 | CJ104: 3.215 | CK104: 3.215 | CL104: 3.495 | CM104: 3.705 | CN104: 4.125 | CO104: 4.755 | CP104: 5.385 | CQ104: 1.903253172 | CR104: 1.687368199 | CS104: 1.444903558 | CT104: 1.287060538 | CU104: 1.147024248 | CV104: 1.071216758 | CW104: 1.013730369 | CX104: 1.0105801 | CY104: 1.013581351 | CZ104: 1.038976574
A105: 4 | B105: Poor | C105: 4500 | D105: =D15 -> 1.763155 | E105: 1.986575 | F105: 2.317947 | G105: 2.601547 | H105: 2.919006 | I105: 3.396664 | J105: 3.801687 | K105: 4.239732 | L105: 4.861699 | M105: 5.36275 | N105: 4.125 | O105: 4.125 | P105: 4.125 | Q105: 4.125 | R105: 4.125 | S105: 4.125 | T105: 4.125 | U105: 4.125 | V105: 4.125 | W105: 4.125 | X105: 0 | Y105: 0.171575 | Z105: 0.502947 | AA105: 0.786547 | AB105: 1.104006 | AC105: 1.581664 | AD105: 1.986687 | AE105: 2.424732 | AF105: 3.046699 | AG105: 3.54775 | AH105: 4 | AI105: 4 | AJ105: 4 | AK105: 4 | AL105: 4 | AM105: 6 | AN105: 6 | AO105: 6 | AP105: 6 | AQ105: 6 | AR105: 0 | AS105: 0 | AT105: 0 | AU105: 0.226547 | AV105: 0.544006 | AW105: 0.741664 | AX105: 1.146687 | AY105: 1.584732 | AZ105: 2.206699 | BA105: 2.70775 | BB105: 2 | BC105: 2 | BD105: 2 | BE105: 2 | BF105: 2 | BG105: 2 | BH105: 3 | BI105: 4 | BJ105: 5.5 | BK105: 6.5 | CG105: 3.215 | CH105: 3.215 | CI105: 3.215 | CJ105: 3.215 | CK105: 3.215 | CL105: 3.495 | CM105: 3.915 | CN105: 4.335 | CO105: 4.965 | CP105: 5.385 | CQ105: 1.82343583 | CR105: 1.618363263 | CS105: 1.38700324 | CT105: 1.235803159 | CU105: 1.101402327 | CV105: 1.028950759 | CW105: 1.029805978 | CX105: 1.022470288 | CY105: 1.021247922 | CZ105: 1.004148991
A106: 5 | B106: Good | C106: 6000 | D106: =D16 -> 1.566548 | E106: 1.771075 | F106: 2.072212 | G106: 2.327908 | H106: 2.612698 | I106: 3.042051 | J106: 3.411059 | K106: 3.8174 | L106: 4.404063 | M106: 4.87982 | N106: 4.125 | O106: 4.125 | P106: 4.125 | Q106: 4.125 | R106: 4.125 | S106: 4.125 | T106: 4.125 | U106: 4.125 | V106: 4.125 | W106: 4.125 | X106: 0 | Y106: 0 | Z106: 0.257212 | AA106: 0.512908 | AB106: 0.797698 | AC106: 1.227051 | AD106: 1.596059 | AE106: 2.0024 | AF106: 2.589063 | AG106: 3.06482 | AH106: 4 | AI106: 4 | AJ106: 4 | AK106: 4 | AL106: 4 | AM106: 6 | AN106: 6 | AO106: 6 | AP106: 6 | AQ106: 6 | AR106: 0 | AS106: 0 | AT106: 0 | AU106: 0 | AV106: 0.237698 | AW106: 0.387051 | AX106: 0.756059 | AY106: 1.1624 | AZ106: 1.749063 | BA106: 2.22482 | BB106: 2 | BC106: 2 | BD106: 2 | BE106: 2 | BF106: 2 | BG106: 2 | BH106: 2 | BI106: 3 | BJ106: 4.5 | BK106: 5.5 | CG106: 3.215 | CH106: 3.215 | CI106: 3.215 | CJ106: 3.215 | CK106: 3.215 | CL106: 3.495 | CM106: 3.495 | CN106: 3.915 | CO106: 4.545 | CP106: 4.965 | CQ106: 2.052283109 | CR106: 1.815281679 | CS106: 1.551482184 | CT106: 1.381068324 | CU106: 1.230528748 | CV106: 1.148895926 | CW106: 1.024608487 | CX106: 1.02556714 | CY106: 1.032001586 | CZ106: 1.017455562
A107: 5 | B107: Fair | C107: 4500 | D107: =D17 -> 1.763155 | E107: 1.986575 | F107: 2.317947 | G107: 2.601547 | H107: 2.919006 | I107: 3.396664 | J107: 3.801687 | K107: 4.239732 | L107: 4.861699 | M107: 5.36275 | N107: 4.125 | O107: 4.125 | P107: 4.125 | Q107: 4.125 | R107: 4.125 | S107: 4.125 | T107: 4.125 | U107: 4.125 | V107: 4.125 | W107: 4.125 | X107: 0 | Y107: 0.171575 | Z107: 0.502947 | AA107: 0.786547 | AB107: 1.104006 | AC107: 1.581664 | AD107: 1.986687 | AE107: 2.424732 | AF107: 3.046699 | AG107: 3.54775 | AH107: 4 | AI107: 4 | AJ107: 4 | AK107: 4 | AL107: 4 | AM107: 6 | AN107: 6 | AO107: 6 | AP107: 6 | AQ107: 6 | AR107: 0 | AS107: 0 | AT107: 0 | AU107: 0.226547 | AV107: 0.544006 | AW107: 0.741664 | AX107: 1.146687 | AY107: 1.584732 | AZ107: 2.206699 | BA107: 2.70775 | BB107: 2 | BC107: 2 | BD107: 2 | BE107: 2 | BF107: 2 | BG107: 2 | BH107: 3 | BI107: 4 | BJ107: 5.5 | BK107: 6.5 | CG107: 3.215 | CH107: 3.215 | CI107: 3.215 | CJ107: 3.215 | CK107: 3.215 | CL107: 3.495 | CM107: 3.915 | CN107: 4.335 | CO107: 4.965 | CP107: 5.385 | CQ107: 1.82343583 | CR107: 1.618363263 | CS107: 1.38700324 | CT107: 1.235803159 | CU107: 1.101402327 | CV107: 1.028950759 | CW107: 1.029805978 | CX107: 1.022470288 | CY107: 1.021247922 | CZ107: 1.004148991
A108: 5 | B108: Poor | C108: 3500 | D108: =D18 -> 1.949648 | E108: 2.192165 | F108: 2.554382 | G108: 2.866138 | H108: 3.215125 | I108: 3.735006 | J108: 4.168161 | K108: 4.630182 | L108: 5.281345 | M108: 5.805789 | N108: 4.125 | O108: 4.125 | P108: 4.125 | Q108: 4.125 | R108: 4.125 | S108: 4.125 | T108: 4.125 | U108: 4.125 | V108: 4.125 | W108: 4.125 | X108: 0.134648 | Y108: 0.377165 | Z108: 0.739382 | AA108: 1.051138 | AB108: 1.400125 | AC108: 1.920006 | AD108: 2.353161 | AE108: 2.815182 | AF108: 3.466345 | AG108: 3.990789 | AH108: 4 | AI108: 4 | AJ108: 4 | AK108: 4 | AL108: 4 | AM108: 6 | AN108: 6 | AO108: 6 | AP108: 6 | AQ108: 6 | AR108: 0 | AS108: 0 | AT108: 0.179382 | AU108: 0.491138 | AV108: 0.840125 | AW108: 1.080006 | AX108: 1.513161 | AY108: 1.975182 | AZ108: 2.626345 | BA108: 3.150789 | BB108: 2 | BC108: 2 | BD108: 2 | BE108: 2 | BF108: 2.5 | BG108: 3 | BH108: 4 | BI108: 5 | BJ108: 6.5 | BK108: 8 | CG108: 3.215 | CH108: 3.215 | CI108: 3.215 | CJ108: 3.215 | CK108: 3.425 | CL108: 3.915 | CM108: 4.335 | CN108: 4.755 | CO108: 5.385 | CP108: 6.015 | CQ108: 1.649015617 | CR108: 1.466586685 | CS108: 1.258621459 | CT108: 1.121718494 | CU108: 1.0652774 | CV108: 1.048191087 | CW108: 1.040027005 | CX108: 1.026957472 | CY108: 1.019626629 | CZ108: 1.036034896
A109: 6 | B109: Good | C109: 5000 | D109: =D19 -> 1.689213 | E109: 1.905334 | F109: 2.225062 | G109: 2.49794 | H109: 2.802905 | I109: 3.262645 | J109: 3.654818 | K109: 4.081814 | L109: 4.691286 | M109: 5.182985 | N109: 4.125 | O109: 4.125 | P109: 4.125 | Q109: 4.125 | R109: 4.125 | S109: 4.125 | T109: 4.125 | U109: 4.125 | V109: 4.125 | W109: 4.125 | X109: 0 | Y109: 0.090334 | Z109: 0.410062 | AA109: 0.68294 | AB109: 0.987905 | AC109: 1.447645 | AD109: 1.839818 | AE109: 2.266814 | AF109: 2.876286 | AG109: 3.367985 | AH109: 4 | AI109: 4 | AJ109: 4 | AK109: 4 | AL109: 4 | AM109: 6 | AN109: 6 | AO109: 6 | AP109: 6 | AQ109: 6 | AR109: 0 | AS109: 0 | AT109: 0 | AU109: 0.12294 | AV109: 0.427905 | AW109: 0.607645 | AX109: 0.999818 | AY109: 1.426814 | AZ109: 2.036286 | BA109: 2.527985 | BB109: 2 | BC109: 2 | BD109: 2 | BE109: 2 | BF109: 2 | BG109: 2 | BH109: 2.5 | BI109: 3.5 | BJ109: 5 | BK109: 6.5 | CG109: 3.215 | CH109: 3.215 | CI109: 3.215 | CJ109: 3.215 | CK109: 3.215 | CL109: 3.495 | CM109: 3.705 | CN109: 4.125 | CO109: 4.755 | CP109: 5.385 | CQ109: 1.903253172 | CR109: 1.687368199 | CS109: 1.444903558 | CT109: 1.287060538 | CU109: 1.147024248 | CV109: 1.071216758 | CW109: 1.013730369 | CX109: 1.0105801 | CY109: 1.013581351 | CZ109: 1.038976574
A110: 6 | B110: Fair | C110: 3500 | D110: =D20 -> 1.949648 | E110: 2.192165 | F110: 2.554382 | G110: 2.866138 | H110: 3.215125 | I110: 3.735006 | J110: 4.168161 | K110: 4.630182 | L110: 5.281345 | M110: 5.805789 | N110: 4.125 | O110: 4.125 | P110: 4.125 | Q110: 4.125 | R110: 4.125 | S110: 4.125 | T110: 4.125 | U110: 4.125 | V110: 4.125 | W110: 4.125 | X110: 0.134648 | Y110: 0.377165 | Z110: 0.739382 | AA110: 1.051138 | AB110: 1.400125 | AC110: 1.920006 | AD110: 2.353161 | AE110: 2.815182 | AF110: 3.466345 | AG110: 3.990789 | AH110: 4 | AI110: 4 | AJ110: 4 | AK110: 4 | AL110: 4 | AM110: 6 | AN110: 6 | AO110: 6 | AP110: 6 | AQ110: 6 | AR110: 0 | AS110: 0 | AT110: 0.179382 | AU110: 0.491138 | AV110: 0.840125 | AW110: 1.080006 | AX110: 1.513161 | AY110: 1.975182 | AZ110: 2.626345 | BA110: 3.150789 | BB110: 2 | BC110: 2 | BD110: 2 | BE110: 2 | BF110: 2.5 | BG110: 3 | BH110: 4 | BI110: 5 | BJ110: 6.5 | BK110: 8 | CG110: 3.215 | CH110: 3.215 | CI110: 3.215 | CJ110: 3.215 | CK110: 3.425 | CL110: 3.915 | CM110: 4.335 | CN110: 4.755 | CO110: 5.385 | CP110: 6.015 | CQ110: 1.649015617 | CR110: 1.466586685 | CS110: 1.258621459 | CT110: 1.121718494 | CU110: 1.0652774 | CV110: 1.048191087 | CW110: 1.040027005 | CX110: 1.026957472 | CY110: 1.019626629 | CZ110: 1.036034896
A111: 6 | B111: Poor | C111: 2500 | D111: =D21 -> 2.224555 | E111: 2.497383 | F111: 2.908057 | G111: 3.26191 | H111: 3.654032 | I111: 4.224957 | J111: 4.690374 | K111: 5.182022 | L111: 5.874065 | M111: 6.433534 | N111: 4.125 | O111: 4.125 | P111: 4.125 | Q111: 4.125 | R111: 4.125 | S111: 4.125 | T111: 4.125 | U111: 4.125 | V111: 4.125 | W111: 4.125 | X111: 0.409555 | Y111: 0.682383 | Z111: 1.093057 | AA111: 1.44691 | AB111: 1.839032 | AC111: 2.409957 | AD111: 2.875374 | AE111: 3.367022 | AF111: 4.059065 | AG111: 4.618534 | AH111: =IF(AH$93<500000,4,6) -> 4 | AI111: 4 | AJ111: 4 | AK111: 4 | AL111: 4 | AM111: 6 | AN111: 6 | AO111: 6 | AP111: 6 | AQ111: 6 | AR111: 0 | AS111: 0.122383 | AT111: 0.533057 | AU111: 0.88691 | AV111: 1.279032 | AW111: 1.569957 | AX111: 2.035374 | AY111: 2.527022 | AZ111: 3.219065 | BA111: 3.778534 | BB111: 2 | BC111: 2 | BD111: 2 | BE111: 2.5 | BF111: 3.5 | BG111: 4 | BH111: 5 | BI111: 6.5 | BJ111: 8 | BK111: 9 | CG111: 3.215 | CH111: 3.215 | CI111: 3.215 | CJ111: 3.425 | CK111: 3.845 | CL111: 4.335 | CM111: 4.755 | CN111: 5.385 | CO111: 6.015 | CP111: 6.435 | CQ111: 1.445232867 | CR111: 1.287347595 | CS111: 1.105549169 | CT111: 1.049998314 | CU111: 1.052262268 | CV111: 1.026045946 | CW111: 1.013778432 | CX111: 1.039169652 | CY111: 1.023992755 | CZ111: 1.000227869
A112: 7 | B112: Good | C112: 4000 | D112: =D22 -> 1.848754 | E112: 2.080753 | F112: 2.426014 | G112: 2.722412 | H112: 3.054368 | I112: 3.552048 | J112: 3.970731 | K112: 4.420359 | L112: 5.056037 | M112: 5.567809 | N112: 4.125 | O112: 4.125 | P112: 4.125 | Q112: 4.125 | R112: 4.125 | S112: 4.125 | T112: 4.125 | U112: 4.125 | V112: 4.125 | W112: 4.125 | X112: 0.033754 | Y112: 0.265753 | Z112: 0.611014 | AA112: 0.907412 | AB112: 1.239368 | AC112: 1.737048 | AD112: 2.155731 | AE112: 2.605359 | AF112: 3.241037 | AG112: 3.752809 | AH112: 4 | AI112: 4 | AJ112: 4 | AK112: 4 | AL112: 4 | AM112: 6 | AN112: 6 | AO112: 6 | AP112: 6 | AQ112: 6 | AR112: 0 | AS112: 0 | AT112: 0.051014 | AU112: 0.347412 | AV112: 0.679368 | AW112: 0.897048 | AX112: 1.315731 | AY112: 1.765359 | AZ112: 2.401037 | BA112: 2.912809 | BB112: 2 | BC112: 2 | BD112: 2 | BE112: 2 | BF112: 2 | BG112: 2.5 | BH112: 3.5 | BI112: 4.5 | BJ112: 6 | BK112: 7 | CG112: 3.215 | CH112: 3.215 | CI112: 3.215 | CJ112: 3.215 | CK112: 3.215 | CL112: 3.705 | CM112: 4.125 | CN112: 4.545 | CO112: 5.175 | CP112: 5.595 | CQ112: 1.739009084 | CR112: 1.545113716 | CS112: 1.325219063 | CT112: 1.18093808 | CU112: 1.052590912 | CV112: 1.043060229 | CW112: 1.038851536 | CX112: 1.028197031 | CY112: 1.023528902 | CZ112: 1.004883609
A113: 7 | B113: Fair | C113: 3000 | D113: =D23 -> 2.07173 | E113: 2.327401 | F113: 2.710805 | G113: 3.041367 | H113: 3.410299 | I113: 3.954612 | J113: 4.403176 | K113: 4.878883 | L113: 5.548319 | M113: 6.088197 | N113: 4.125 | O113: 4.125 | P113: 4.125 | Q113: 4.125 | R113: 4.125 | S113: 4.125 | T113: 4.125 | U113: 4.125 | V113: 4.125 | W113: 4.125 | X113: 0.25673 | Y113: 0.512401 | Z113: 0.895805 | AA113: 1.226367 | AB113: 1.595299 | AC113: 2.139612 | AD113: 2.588176 | AE113: 3.063883 | AF113: 3.733319 | AG113: 4.273197 | AH113: 4 | AI113: 4 | AJ113: 4 | AK113: 4 | AL113: 4 | AM113: 6 | AN113: 6 | AO113: 6 | AP113: 6 | AQ113: 6 | AR113: 0 | AS113: 0 | AT113: 0.335805 | AU113: 0.666367 | AV113: 1.035299 | AW113: 1.299612 | AX113: 1.748176 | AY113: 2.223883 | AZ113: 2.893319 | BA113: 3.433197 | BB113: 2 | BC113: 2 | BD113: 2 | BE113: 2 | BF113: 2.5 | BG113: 3.5 | BH113: 4.5 | BI113: 5.5 | BJ113: 7 | BK113: 8.5 | CG113: 3.215 | CH113: 3.215 | CI113: 3.215 | CJ113: 3.215 | CK113: 3.425 | CL113: 4.125 | CM113: 4.545 | CN113: 4.965 | CO113: 5.595 | CP113: 6.225 | CQ113: 1.551843146 | CR113: 1.381369175 | CS113: 1.185994566 | CT113: 1.057090446 | CU113: 1.004310766 | CV113: 1.043085896 | CW113: 1.032209478 | CX113: 1.017650966 | CY113: 1.008413539 | CZ113: 1.022470199
A114: 7 | B114: Poor | C114: 2000 | D114: =D24 -> 2.425482 | E114: 2.721804 | F114: 3.168669 | G114: 3.551288 | H114: 3.969895 | I114: 4.570066 | J114: 5.055074 | K114: 5.566795 | L114: 6.288744 | M114: 6.874266 | N114: 4.125 | O114: 4.125 | P114: 4.125 | Q114: 4.125 | R114: 4.125 | S114: 4.125 | T114: 4.125 | U114: 4.125 | V114: 4.125 | W114: 4.125 | X114: 0.610482 | Y114: 0.906804 | Z114: 1.353669 | AA114: 1.736288 | AB114: 2.154895 | AC114: 2.755066 | AD114: 3.240074 | AE114: 3.751795 | AF114: 4.473744 | AG114: 5.059266 | AH114: 4 | AI114: 4 | AJ114: 4 | AK114: 4 | AL114: 4 | AM114: 6 | AN114: 6 | AO114: 6 | AP114: 6 | AQ114: 6 | AR114: 0.050482 | AS114: 0.346804 | AT114: 0.793669 | AU114: 1.176288 | AV114: 1.594895 | AW114: 1.915066 | AX114: 2.400074 | AY114: 2.911795 | AZ114: 3.633744 | BA114: 4.219266 | BB114: 2 | BC114: 2 | BD114: 2 | BE114: 3 | BF114: 4 | BG114: 5 | BH114: 6 | BI114: 7 | BJ114: 9 | BK114: 10.5 | CG114: 3.215 | CH114: 3.215 | CI114: 3.215 | CJ114: 3.635 | CK114: 4.055 | CL114: 4.755 | CM114: 5.175 | CN114: 5.595 | CO114: 6.435 | CP114: 7.065 | CQ114: 1.325509734 | CR114: 1.181201879 | CS114: 1.014621597 | CT114: 1.023572293 | CU114: 1.021437595 | CV114: 1.040466374 | CW114: 1.023723886 | CX114: 1.00506665 | CY114: 1.02325679 | CZ114: 1.02774609
A115: 8 | B115: Good | C115: 3500 | D115: =D25 -> 1.949648 | E115: 2.192165 | F115: 2.554382 | G115: 2.866138 | H115: 3.215125 | I115: 3.735006 | J115: 4.168161 | K115: 4.630182 | L115: 5.281345 | M115: 5.805789 | N115: 4.125 | O115: 4.125 | P115: 4.125 | Q115: 4.125 | R115: 4.125 | S115: 4.125 | T115: 4.125 | U115: 4.125 | V115: 4.125 | W115: 4.125 | X115: 0.134648 | Y115: 0.377165 | Z115: 0.739382 | AA115: 1.051138 | AB115: 1.400125 | AC115: 1.920006 | AD115: 2.353161 | AE115: 2.815182 | AF115: 3.466345 | AG115: 3.990789 | AH115: 4 | AI115: 4 | AJ115: 4 | AK115: 4 | AL115: 4 | AM115: 6 | AN115: 6 | AO115: 6 | AP115: 6 | AQ115: 6 | AR115: 0 | AS115: 0 | AT115: 0.179382 | AU115: 0.491138 | AV115: 0.840125 | AW115: 1.080006 | AX115: 1.513161 | AY115: 1.975182 | AZ115: 2.626345 | BA115: 3.150789 | BB115: 2 | BC115: 2 | BD115: 2 | BE115: 2 | BF115: 2.5 | BG115: 3 | BH115: 4 | BI115: 5 | BJ115: 6.5 | BK115: 8 | CG115: 3.215 | CH115: 3.215 | CI115: 3.215 | CJ115: 3.215 | CK115: 3.425 | CL115: 3.915 | CM115: 4.335 | CN115: 4.755 | CO115: 5.385 | CP115: 6.015 | CQ115: 1.649015617 | CR115: 1.466586685 | CS115: 1.258621459 | CT115: 1.121718494 | CU115: 1.0652774 | CV115: 1.048191087 | CW115: 1.040027005 | CX115: 1.026957472 | CY115: 1.019626629 | CZ115: 1.036034896
A116: 8 | B116: Fair | C116: 3000 | D116: =D26 -> 2.07173 | E116: 2.327401 | F116: 2.710805 | G116: 3.041367 | H116: 3.410299 | I116: 3.954612 | J116: 4.403176 | K116: 4.878883 | L116: 5.548319 | M116: 6.088197 | N116: 4.125 | O116: 4.125 | P116: 4.125 | Q116: 4.125 | R116: 4.125 | S116: 4.125 | T116: 4.125 | U116: 4.125 | V116: 4.125 | W116: 4.125 | X116: 0.25673 | Y116: 0.512401 | Z116: 0.895805 | AA116: 1.226367 | AB116: 1.595299 | AC116: 2.139612 | AD116: 2.588176 | AE116: 3.063883 | AF116: 3.733319 | AG116: 4.273197 | AH116: 4 | AI116: 4 | AJ116: 4 | AK116: 4 | AL116: 4 | AM116: 6 | AN116: 6 | AO116: 6 | AP116: 6 | AQ116: 6 | AR116: 0 | AS116: 0 | AT116: 0.335805 | AU116: 0.666367 | AV116: 1.035299 | AW116: 1.299612 | AX116: 1.748176 | AY116: 2.223883 | AZ116: 2.893319 | BA116: 3.433197 | BB116: 2 | BC116: 2 | BD116: 2 | BE116: 2 | BF116: 2.5 | BG116: 3.5 | BH116: 4.5 | BI116: 5.5 | BJ116: 7 | BK116: 8.5 | CG116: 3.215 | CH116: 3.215 | CI116: 3.215 | CJ116: 3.215 | CK116: 3.425 | CL116: 4.125 | CM116: 4.545 | CN116: 4.965 | CO116: 5.595 | CP116: 6.225 | CQ116: 1.551843146 | CR116: 1.381369175 | CS116: 1.185994566 | CT116: 1.057090446 | CU116: 1.004310766 | CV116: 1.043085896 | CW116: 1.032209478 | CX116: 1.017650966 | CY116: 1.008413539 | CZ116: 1.022470199
A117: 8 | B117: Poor | C117: 2000 | D117: =D27 -> 2.425482 | E117: 2.721804 | F117: 3.168669 | G117: 3.551288 | H117: 3.969895 | I117: 4.570066 | J117: 5.055074 | K117: 5.566795 | L117: 6.288744 | M117: 6.874266 | N117: 4.125 | O117: 4.125 | P117: 4.125 | Q117: 4.125 | R117: 4.125 | S117: 4.125 | T117: 4.125 | U117: 4.125 | V117: 4.125 | W117: 4.125 | X117: 0.610482 | Y117: 0.906804 | Z117: 1.353669 | AA117: 1.736288 | AB117: 2.154895 | AC117: 2.755066 | AD117: 3.240074 | AE117: 3.751795 | AF117: 4.473744 | AG117: 5.059266 | AH117: 4 | AI117: 4 | AJ117: 4 | AK117: 4 | AL117: 4 | AM117: 6 | AN117: 6 | AO117: 6 | AP117: 6 | AQ117: 6 | AR117: 0.050482 | AS117: 0.346804 | AT117: 0.793669 | AU117: 1.176288 | AV117: 1.594895 | AW117: 1.915066 | AX117: 2.400074 | AY117: 2.911795 | AZ117: 3.633744 | BA117: 4.219266 | BB117: 2 | BC117: 2 | BD117: 2 | BE117: 3 | BF117: 4 | BG117: 5 | BH117: 6 | BI117: 7 | BJ117: 9 | BK117: 10.5 | CG117: 3.215 | CH117: 3.215 | CI117: 3.215 | CJ117: 3.635 | CK117: 4.055 | CL117: 4.755 | CM117: 5.175 | CN117: 5.595 | CO117: 6.435 | CP117: 7.065 | CQ117: 1.325509734 | CR117: 1.181201879 | CS117: 1.014621597 | CT117: 1.023572293 | CU117: 1.021437595 | CV117: 1.040466374 | CW117: 1.023723886 | CX117: 1.00506665 | CY117: 1.02325679 | CZ117: 1.02774609

Sheet Gran
C1: GRANULAR BASE STRUCTURE THICKNESSES (in)
D3: Drainage | E3: ESALs | F3: 10000 | G3: 20000 | H3: 50000 | I3: 100000 | J3: 200000 | K3: 500000 | L3: 1000000 | M3: 2000000 | N3: 5000000 | O3: 10000000
E4: TI | F4: =9*(F3/1000000)^0.119 -> 5.202864427 | G4: =9*(G3/1000000)^0.119 -> 5.650216368 | H4: 6.301151767 | I4: 6.842936492 | J4: 7.431304875 | K4: 8.287431275 | L4: 9 | M4: 9.773836707 | N4: 10.89983541 | O4: 11.83702349
E5: Layer Type
A6: 1 | B6: Good | C6: Category 1 | D6: Good | E6: Pavers and Bedding | F6: =SUM(IF($A6=SoilCat,IF($B6=DrainCat,IF(F$3=ESALCat,Design!$N$4:$W$27)))) -> 4.125 | G6: =SUM(IF($A6=SoilCat,IF($B6=DrainCat,IF(G$3=ESALCat,Design!$N$4:$W$27)))) -> 4.125 | H6: =SUM(IF($A6=SoilCat,IF($B6=DrainCat,IF(H$3=ESALCat,Design!$N$4:$W$27)))) -> 4.125 | I6: =SUM(IF($A6=SoilCat,IF($B6=DrainCat,IF(I$3=ESALCat,Design!$N$4:$W$27)))) -> 4.125 | J6: =SUM(IF($A6=SoilCat,IF($B6=DrainCat,IF(J$3=ESALCat,Design!$N$4:$W$27)))) -> 4.125 | K6: =SUM(IF($A6=SoilCat,IF($B6=DrainCat,IF(K$3=ESALCat,Design!$N$4:$W$27)))) -> 4.125 | L6: =SUM(IF($A6=SoilCat,IF($B6=DrainCat,IF(L$3=ESALCat,Design!$N$4:$W$27)))) -> 4.125 | M6: =SUM(IF($A6=SoilCat,IF($B6=DrainCat,IF(M$3=ESALCat,Design!$N$4:$W$27)))) -> 4.125 | N6: =SUM(IF($A6=SoilCat,IF($B6=DrainCat,IF(N$3=ESALCat,Design!$N$4:$W$27)))) -> 4.125 | O6: =SUM(IF($A6=SoilCat,IF($B6=DrainCat,IF(O$3=ESALCat,Design!$N$4:$W$27)))) -> 4.125
A7: 1 | B7: Good | E7: Unbound Dense Graded Base | F7: =SUM(IF($A7=SoilCat,IF($B7=DrainCat,IF(F$3=ESALCat,Design!$AH$4:$AQ$27)))) -> 4 | G7: =SUM(IF($A7=SoilCat,IF($B7=DrainCat,IF(G$3=ESALCat,Design!$AH$4:$AQ$27)))) -> 4 | H7: =SUM(IF($A7=SoilCat,IF($B7=DrainCat,IF(H$3=ESALCat,Design!$AH$4:$AQ$27)))) -> 4 | I7: =SUM(IF($A7=SoilCat,IF($B7=DrainCat,IF(I$3=ESALCat,Design!$AH$4:$AQ$27)))) -> 4 | J7: =SUM(IF($A7=SoilCat,IF($B7=DrainCat,IF(J$3=ESALCat,Design!$AH$4:$AQ$27)))) -> 4 | K7: =SUM(IF($A7=SoilCat,IF($B7=DrainCat,IF(K$3=ESALCat,Design!$AH$4:$AQ$27)))) -> 6 | L7: =SUM(IF($A7=SoilCat,IF($B7=DrainCat,IF(L$3=ESALCat,Design!$AH$4:$AQ$27)))) -> 6 | M7: =SUM(IF($A7=SoilCat,IF($B7=DrainCat,IF(M$3=ESALCat,Design!$AH$4:$AQ$27)))) -> 8 | N7: =SUM(IF($A7=SoilCat,IF($B7=DrainCat,IF(N$3=ESALCat,Design!$AH$4:$AQ$27)))) -> 6 | O7: =SUM(IF($A7=SoilCat,IF($B7=DrainCat,IF(O$3=ESALCat,Design!$AH$4:$AQ$27)))) -> 6
A8: 1 | B8: Good | E8: Unbound Dense Graded Subbase | F8: =SUM(IF($A8=SoilCat,IF($B8=DrainCat,IF(F$3=ESALCat,Design!$BB$4:$BK$27)))) -> 0 | G8: =SUM(IF($A8=SoilCat,IF($B8=DrainCat,IF(G$3=ESALCat,Design!$BB$4:$BK$27)))) -> 0 | H8: =SUM(IF($A8=SoilCat,IF($B8=DrainCat,IF(H$3=ESALCat,Design!$BB$4:$BK$27)))) -> 0 | I8: =SUM(IF($A8=SoilCat,IF($B8=DrainCat,IF(I$3=ESALCat,Design!$BB$4:$BK$27)))) -> 0 | J8: =SUM(IF($A8=SoilCat,IF($B8=DrainCat,IF(J$3=ESALCat,Design!$BB$4:$BK$27)))) -> 0 | K8: =SUM(IF($A8=SoilCat,IF($B8=DrainCat,IF(K$3=ESALCat,Design!$BB$4:$BK$27)))) -> 0 | L8: =SUM(IF($A8=SoilCat,IF($B8=DrainCat,IF(L$3=ESALCat,Design!$BB$4:$BK$27)))) -> 0 | M8: =SUM(IF($A8=SoilCat,IF($B8=DrainCat,IF(M$3=ESALCat,Design!$BB$4:$BK$27)))) -> 0 | N8: =SUM(IF($A8=SoilCat,IF($B8=DrainCat,IF(N$3=ESALCat,Design!$BB$4:$BK$27)))) -> 9 | O8: =SUM(IF($A8=SoilCat,IF($B8=DrainCat,IF(O$3=ESALCat,Design!$BB$4:$BK$27)))) -> 13
A9: 1 | B9: Fair | D9: Fair | E9: Pavers and Bedding | F9: =SUM(IF($A9=SoilCat,IF($B9=DrainCat,IF(F$3=ESALCat,Design!$N$4:$W$27)))) -> 4.125 | G9: =SUM(IF($A9=SoilCat,IF($B9=DrainCat,IF(G$3=ESALCat,Design!$N$4:$W$27)))) -> 4.125 | H9: =SUM(IF($A9=SoilCat,IF($B9=DrainCat,IF(H$3=ESALCat,Design!$N$4:$W$27)))) -> 4.125 | I9: =SUM(IF($A9=SoilCat,IF($B9=DrainCat,IF(I$3=ESALCat,Design!$N$4:$W$27)))) -> 4.125 | J9: =SUM(IF($A9=SoilCat,IF($B9=DrainCat,IF(J$3=ESALCat,Design!$N$4:$W$27)))) -> 4.125 | K9: =SUM(IF($A9=SoilCat,IF($B9=DrainCat,IF(K$3=ESALCat,Design!$N$4:$W$27)))) -> 4.125 | L9: =SUM(IF($A9=SoilCat,IF($B9=DrainCat,IF(L$3=ESALCat,Design!$N$4:$W$27)))) -> 4.125 | M9: =SUM(IF($A9=SoilCat,IF($B9=DrainCat,IF(M$3=ESALCat,Design!$N$4:$W$27)))) -> 4.125 | N9: =SUM(IF($A9=SoilCat,IF($B9=DrainCat,IF(N$3=ESALCat,Design!$N$4:$W$27)))) -> 4.125 | O9: =SUM(IF($A9=SoilCat,IF($B9=DrainCat,IF(O$3=ESALCat,Design!$N$4:$W$27)))) -> 4.125
A10: 1 | B10: Fair | E10: Unbound Dense Graded Base | F10: =SUM(IF($A10=SoilCat,IF($B10=DrainCat,IF(F$3=ESALCat,Design!$AH$4:$AQ$27)))) -> 4 | G10: =SUM(IF($A10=SoilCat,IF($B10=DrainCat,IF(G$3=ESALCat,Design!$AH$4:$AQ$27)))) -> 4 | H10: =SUM(IF($A10=SoilCat,IF($B10=DrainCat,IF(H$3=ESALCat,Design!$AH$4:$AQ$27)))) -> 4 | I10: =SUM(IF($A10=SoilCat,IF($B10=DrainCat,IF(I$3=ESALCat,Design!$AH$4:$AQ$27)))) -> 4 | J10: =SUM(IF($A10=SoilCat,IF($B10=DrainCat,IF(J$3=ESALCat,Design!$AH$4:$AQ$27)))) -> 4 | K10: =SUM(IF($A10=SoilCat,IF($B10=DrainCat,IF(K$3=ESALCat,Design!$AH$4:$AQ$27)))) -> 6 | L10: =SUM(IF($A10=SoilCat,IF($B10=DrainCat,IF(L$3=ESALCat,Design!$AH$4:$AQ$27)))) -> 7 | M10: =SUM(IF($A10=SoilCat,IF($B10=DrainCat,IF(M$3=ESALCat,Design!$AH$4:$AQ$27)))) -> 6 | N10: =SUM(IF($A10=SoilCat,IF($B10=DrainCat,IF(N$3=ESALCat,Design!$AH$4:$AQ$27)))) -> 6 | O10: =SUM(IF($A10=SoilCat,IF($B10=DrainCat,IF(O$3=ESALCat,Design!$AH$4:$AQ$27)))) -> 6
A11: 1 | B11: Fair | E11: Unbound Dense Graded Subbase | F11: =SUM(IF($A11=SoilCat,IF($B11=DrainCat,IF(F$3=ESALCat,Design!$BB$4:$BK$27)))) -> 0 | G11: =SUM(IF($A11=SoilCat,IF($B11=DrainCat,IF(G$3=ESALCat,Design!$BB$4:$BK$27)))) -> 0 | H11: =SUM(IF($A11=SoilCat,IF($B11=DrainCat,IF(H$3=ESALCat,Design!$BB$4:$BK$27)))) -> 0 | I11: =SUM(IF($A11=SoilCat,IF($B11=DrainCat,IF(I$3=ESALCat,Design!$BB$4:$BK$27)))) -> 0 | J11: =SUM(IF($A11=SoilCat,IF($B11=DrainCat,IF(J$3=ESALCat,Design!$BB$4:$BK$27)))) -> 0 | K11: =SUM(IF($A11=SoilCat,IF($B11=DrainCat,IF(K$3=ESALCat,Design!$BB$4:$BK$27)))) -> 0 | L11: =SUM(IF($A11=SoilCat,IF($B11=DrainCat,IF(L$3=ESALCat,Design!$BB$4:$BK$27)))) -> 0 | M11: =SUM(IF($A11=SoilCat,IF($B11=DrainCat,IF(M$3=ESALCat,Design!$BB$4:$BK$27)))) -> 6 | N11: =SUM(IF($A11=SoilCat,IF($B11=DrainCat,IF(N$3=ESALCat,Design!$BB$4:$BK$27)))) -> 10 | O11: =SUM(IF($A11=SoilCat,IF($B11=DrainCat,IF(O$3=ESALCat,Design!$BB$4:$BK$27)))) -> 15
A12: 1 | B12: Poor | D12: Poor | E12: Pavers and Bedding | F12: =SUM(IF($A12=SoilCat,IF($B12=DrainCat,IF(F$3=ESALCat,Design!$N$4:$W$27)))) -> 4.125 | G12: =SUM(IF($A12=SoilCat,IF($B12=DrainCat,IF(G$3=ESALCat,Design!$N$4:$W$27)))) -> 4.125 | H12: =SUM(IF($A12=SoilCat,IF($B12=DrainCat,IF(H$3=ESALCat,Design!$N$4:$W$27)))) -> 4.125 | I12: =SUM(IF($A12=SoilCat,IF($B12=DrainCat,IF(I$3=ESALCat,Design!$N$4:$W$27)))) -> 4.125 | J12: =SUM(IF($A12=SoilCat,IF($B12=DrainCat,IF(J$3=ESALCat,Design!$N$4:$W$27)))) -> 4.125 | K12: =SUM(IF($A12=SoilCat,IF($B12=DrainCat,IF(K$3=ESALCat,Design!$N$4:$W$27)))) -> 4.125 | L12: =SUM(IF($A12=SoilCat,IF($B12=DrainCat,IF(L$3=ESALCat,Design!$N$4:$W$27)))) -> 4.125 | M12: =SUM(IF($A12=SoilCat,IF($B12=DrainCat,IF(M$3=ESALCat,Design!$N$4:$W$27)))) -> 4.125 | N12: =SUM(IF($A12=SoilCat,IF($B12=DrainCat,IF(N$3=ESALCat,Design!$N$4:$W$27)))) -> 4.125 | O12: =SUM(IF($A12=SoilCat,IF($B12=DrainCat,IF(O$3=ESALCat,Design!$N$4:$W$27)))) -> 4.125
A13: 1 | B13: Poor | E13: Unbound Dense Graded Base | F13: =SUM(IF($A13=SoilCat,IF($B13=DrainCat,IF(F$3=ESALCat,Design!$AH$4:$AQ$27)))) -> 4 | G13: =SUM(IF($A13=SoilCat,IF($B13=DrainCat,IF(G$3=ESALCat,Design!$AH$4:$AQ$27)))) -> 4 | H13: =SUM(IF($A13=SoilCat,IF($B13=DrainCat,IF(H$3=ESALCat,Design!$AH$4:$AQ$27)))) -> 4 | I13: =SUM(IF($A13=SoilCat,IF($B13=DrainCat,IF(I$3=ESALCat,Design!$AH$4:$AQ$27)))) -> 4 | J13: =SUM(IF($A13=SoilCat,IF($B13=DrainCat,IF(J$3=ESALCat,Design!$AH$4:$AQ$27)))) -> 4 | K13: =SUM(IF($A13=SoilCat,IF($B13=DrainCat,IF(K$3=ESALCat,Design!$AH$4:$AQ$27)))) -> 6 | L13: =SUM(IF($A13=SoilCat,IF($B13=DrainCat,IF(L$3=ESALCat,Design!$AH$4:$AQ$27)))) -> 8 | M13: =SUM(IF($A13=SoilCat,IF($B13=DrainCat,IF(M$3=ESALCat,Design!$AH$4:$AQ$27)))) -> 6 | N13: =SUM(IF($A13=SoilCat,IF($B13=DrainCat,IF(N$3=ESALCat,Design!$AH$4:$AQ$27)))) -> 6 | O13: =SUM(IF($A13=SoilCat,IF($B13=DrainCat,IF(O$3=ESALCat,Design!$AH$4:$AQ$27)))) -> 6
A14: 1 | B14: Poor | E14: Unbound Dense Graded Subbase | F14: =SUM(IF($A14=SoilCat,IF($B14=DrainCat,IF(F$3=ESALCat,Design!$BB$4:$BK$27)))) -> 0 | G14: =SUM(IF($A14=SoilCat,IF($B14=DrainCat,IF(G$3=ESALCat,Design!$BB$4:$BK$27)))) -> 0 | H14: =SUM(IF($A14=SoilCat,IF($B14=DrainCat,IF(H$3=ESALCat,Design!$BB$4:$BK$27)))) -> 0 | I14: =SUM(IF($A14=SoilCat,IF($B14=DrainCat,IF(I$3=ESALCat,Design!$BB$4:$BK$27)))) -> 0 | J14: =SUM(IF($A14=SoilCat,IF($B14=DrainCat,IF(J$3=ESALCat,Design!$BB$4:$BK$27)))) -> 0 | K14: =SUM(IF($A14=SoilCat,IF($B14=DrainCat,IF(K$3=ESALCat,Design!$BB$4:$BK$27)))) -> 0 | L14: =SUM(IF($A14=SoilCat,IF($B14=DrainCat,IF(L$3=ESALCat,Design!$BB$4:$BK$27)))) -> 0 | M14: =SUM(IF($A14=SoilCat,IF($B14=DrainCat,IF(M$3=ESALCat,Design!$BB$4:$BK$27)))) -> 6 | N14: =SUM(IF($A14=SoilCat,IF($B14=DrainCat,IF(N$3=ESALCat,Design!$BB$4:$BK$27)))) -> 12 | O14: =SUM(IF($A14=SoilCat,IF($B14=DrainCat,IF(O$3=ESALCat,Design!$BB$4:$BK$27)))) -> 16
A15: 2 | B15: Good | C15: Category 2 | D15: Good | E15: Pavers and Bedding | F15: =SUM(IF($A15=SoilCat,IF($B15=DrainCat,IF(F$3=ESALCat,Design!$N$4:$W$27)))) -> 4.125 | G15: =SUM(IF($A15=SoilCat,IF($B15=DrainCat,IF(G$3=ESALCat,Design!$N$4:$W$27)))) -> 4.125 | H15: =SUM(IF($A15=SoilCat,IF($B15=DrainCat,IF(H$3=ESALCat,Design!$N$4:$W$27)))) -> 4.125 | I15: =SUM(IF($A15=SoilCat,IF($B15=DrainCat,IF(I$3=ESALCat,Design!$N$4:$W$27)))) -> 4.125 | J15: =SUM(IF($A15=SoilCat,IF($B15=DrainCat,IF(J$3=ESALCat,Design!$N$4:$W$27)))) -> 4.125 | K15: =SUM(IF($A15=SoilCat,IF($B15=DrainCat,IF(K$3=ESALCat,Design!$N$4:$W$27)))) -> 4.125 | L15: =SUM(IF($A15=SoilCat,IF($B15=DrainCat,IF(L$3=ESALCat,Design!$N$4:$W$27)))) -> 4.125 | M15: =SUM(IF($A15=SoilCat,IF($B15=DrainCat,IF(M$3=ESALCat,Design!$N$4:$W$27)))) -> 4.125 | N15: =SUM(IF($A15=SoilCat,IF($B15=DrainCat,IF(N$3=ESALCat,Design!$N$4:$W$27)))) -> 4.125 | O15: =SUM(IF($A15=SoilCat,IF($B15=DrainCat,IF(O$3=ESALCat,Design!$N$4:$W$27)))) -> 4.125
A16: 2 | B16: Good | E16: Unbound Dense Graded Base | F16: =SUM(IF($A16=SoilCat,IF($B16=DrainCat,IF(F$3=ESALCat,Design!$AH$4:$AQ$27)))) -> 4 | G16: =SUM(IF($A16=SoilCat,IF($B16=DrainCat,IF(G$3=ESALCat,Design!$AH$4:$AQ$27)))) -> 4 | H16: =SUM(IF($A16=SoilCat,IF($B16=DrainCat,IF(H$3=ESALCat,Design!$AH$4:$AQ$27)))) -> 4 | I16: =SUM(IF($A16=SoilCat,IF($B16=DrainCat,IF(I$3=ESALCat,Design!$AH$4:$AQ$27)))) -> 4 | J16: =SUM(IF($A16=SoilCat,IF($B16=DrainCat,IF(J$3=ESALCat,Design!$AH$4:$AQ$27)))) -> 4 | K16: =SUM(IF($A16=SoilCat,IF($B16=DrainCat,IF(K$3=ESALCat,Design!$AH$4:$AQ$27)))) -> 6 | L16: =SUM(IF($A16=SoilCat,IF($B16=DrainCat,IF(L$3=ESALCat,Design!$AH$4:$AQ$27)))) -> 7 | M16: =SUM(IF($A16=SoilCat,IF($B16=DrainCat,IF(M$3=ESALCat,Design!$AH$4:$AQ$27)))) -> 6 | N16: =SUM(IF($A16=SoilCat,IF($B16=DrainCat,IF(N$3=ESALCat,Design!$AH$4:$AQ$27)))) -> 6 | O16: =SUM(IF($A16=SoilCat,IF($B16=DrainCat,IF(O$3=ESALCat,Design!$AH$4:$AQ$27)))) -> 6
A17: 2 | B17: Good | E17: Unbound Dense Graded Subbase | F17: =SUM(IF($A17=SoilCat,IF($B17=DrainCat,IF(F$3=ESALCat,Design!$BB$4:$BK$27)))) -> 0 | G17: =SUM(IF($A17=SoilCat,IF($B17=DrainCat,IF(G$3=ESALCat,Design!$BB$4:$BK$27)))) -> 0 | H17: =SUM(IF($A17=SoilCat,IF($B17=DrainCat,IF(H$3=ESALCat,Design!$BB$4:$BK$27)))) -> 0 | I17: =SUM(IF($A17=SoilCat,IF($B17=DrainCat,IF(I$3=ESALCat,Design!$BB$4:$BK$27)))) -> 0 | J17: =SUM(IF($A17=SoilCat,IF($B17=DrainCat,IF(J$3=ESALCat,Design!$BB$4:$BK$27)))) -> 0 | K17: =SUM(IF($A17=SoilCat,IF($B17=DrainCat,IF(K$3=ESALCat,Design!$BB$4:$BK$27)))) -> 0 | L17: =SUM(IF($A17=SoilCat,IF($B17=DrainCat,IF(L$3=ESALCat,Design!$BB$4:$BK$27)))) -> 0 | M17: =SUM(IF($A17=SoilCat,IF($B17=DrainCat,IF(M$3=ESALCat,Design!$BB$4:$BK$27)))) -> 6 | N17: =SUM(IF($A17=SoilCat,IF($B17=DrainCat,IF(N$3=ESALCat,Design!$BB$4:$BK$27)))) -> 10 | O17: =SUM(IF($A17=SoilCat,IF($B17=DrainCat,IF(O$3=ESALCat,Design!$BB$4:$BK$27)))) -> 15
A18: 2 | B18: Fair | D18: Fair | E18: Pavers and Bedding | F18: =SUM(IF($A18=SoilCat,IF($B18=DrainCat,IF(F$3=ESALCat,Design!$N$4:$W$27)))) -> 4.125 | G18: =SUM(IF($A18=SoilCat,IF($B18=DrainCat,IF(G$3=ESALCat,Design!$N$4:$W$27)))) -> 4.125 | H18: =SUM(IF($A18=SoilCat,IF($B18=DrainCat,IF(H$3=ESALCat,Design!$N$4:$W$27)))) -> 4.125 | I18: =SUM(IF($A18=SoilCat,IF($B18=DrainCat,IF(I$3=ESALCat,Design!$N$4:$W$27)))) -> 4.125 | J18: =SUM(IF($A18=SoilCat,IF($B18=DrainCat,IF(J$3=ESALCat,Design!$N$4:$W$27)))) -> 4.125 | K18: =SUM(IF($A18=SoilCat,IF($B18=DrainCat,IF(K$3=ESALCat,Design!$N$4:$W$27)))) -> 4.125 | L18: =SUM(IF($A18=SoilCat,IF($B18=DrainCat,IF(L$3=ESALCat,Design!$N$4:$W$27)))) -> 4.125 | M18: =SUM(IF($A18=SoilCat,IF($B18=DrainCat,IF(M$3=ESALCat,Design!$N$4:$W$27)))) -> 4.125 | N18: =SUM(IF($A18=SoilCat,IF($B18=DrainCat,IF(N$3=ESALCat,Design!$N$4:$W$27)))) -> 4.125 | O18: =SUM(IF($A18=SoilCat,IF($B18=DrainCat,IF(O$3=ESALCat,Design!$N$4:$W$27)))) -> 4.125
A19: 2 | B19: Fair | E19: Unbound Dense Graded Base | F19: =SUM(IF($A19=SoilCat,IF($B19=DrainCat,IF(F$3=ESALCat,Design!$AH$4:$AQ$27)))) -> 4 | G19: =SUM(IF($A19=SoilCat,IF($B19=DrainCat,IF(G$3=ESALCat,Design!$AH$4:$AQ$27)))) -> 4 | H19: =SUM(IF($A19=SoilCat,IF($B19=DrainCat,IF(H$3=ESALCat,Design!$AH$4:$AQ$27)))) -> 4 | I19: =SUM(IF($A19=SoilCat,IF($B19=DrainCat,IF(I$3=ESALCat,Design!$AH$4:$AQ$27)))) -> 4 | J19: =SUM(IF($A19=SoilCat,IF($B19=DrainCat,IF(J$3=ESALCat,Design!$AH$4:$AQ$27)))) -> 4 | K19: =SUM(IF($A19=SoilCat,IF($B19=DrainCat,IF(K$3=ESALCat,Design!$AH$4:$AQ$27)))) -> 6 | L19: =SUM(IF($A19=SoilCat,IF($B19=DrainCat,IF(L$3=ESALCat,Design!$AH$4:$AQ$27)))) -> 8 | M19: =SUM(IF($A19=SoilCat,IF($B19=DrainCat,IF(M$3=ESALCat,Design!$AH$4:$AQ$27)))) -> 6 | N19: =SUM(IF($A19=SoilCat,IF($B19=DrainCat,IF(N$3=ESALCat,Design!$AH$4:$AQ$27)))) -> 6 | O19: =SUM(IF($A19=SoilCat,IF($B19=DrainCat,IF(O$3=ESALCat,Design!$AH$4:$AQ$27)))) -> 6
A20: 2 | B20: Fair | E20: Unbound Dense Graded Subbase | F20: =SUM(IF($A20=SoilCat,IF($B20=DrainCat,IF(F$3=ESALCat,Design!$BB$4:$BK$27)))) -> 0 | G20: =SUM(IF($A20=SoilCat,IF($B20=DrainCat,IF(G$3=ESALCat,Design!$BB$4:$BK$27)))) -> 0 | H20: =SUM(IF($A20=SoilCat,IF($B20=DrainCat,IF(H$3=ESALCat,Design!$BB$4:$BK$27)))) -> 0 | I20: =SUM(IF($A20=SoilCat,IF($B20=DrainCat,IF(I$3=ESALCat,Design!$BB$4:$BK$27)))) -> 0 | J20: =SUM(IF($A20=SoilCat,IF($B20=DrainCat,IF(J$3=ESALCat,Design!$BB$4:$BK$27)))) -> 0 | K20: =SUM(IF($A20=SoilCat,IF($B20=DrainCat,IF(K$3=ESALCat,Design!$BB$4:$BK$27)))) -> 0 | L20: =SUM(IF($A20=SoilCat,IF($B20=DrainCat,IF(L$3=ESALCat,Design!$BB$4:$BK$27)))) -> 0 | M20: =SUM(IF($A20=SoilCat,IF($B20=DrainCat,IF(M$3=ESALCat,Design!$BB$4:$BK$27)))) -> 6 | N20: =SUM(IF($A20=SoilCat,IF($B20=DrainCat,IF(N$3=ESALCat,Design!$BB$4:$BK$27)))) -> 12 | O20: =SUM(IF($A20=SoilCat,IF($B20=DrainCat,IF(O$3=ESALCat,Design!$BB$4:$BK$27)))) -> 16
A21: 2 | B21: Poor | D21: Poor | E21: Pavers and Bedding | F21: =SUM(IF($A21=SoilCat,IF($B21=DrainCat,IF(F$3=ESALCat,Design!$N$4:$W$27)))) -> 4.125 | G21: =SUM(IF($A21=SoilCat,IF($B21=DrainCat,IF(G$3=ESALCat,Design!$N$4:$W$27)))) -> 4.125 | H21: =SUM(IF($A21=SoilCat,IF($B21=DrainCat,IF(H$3=ESALCat,Design!$N$4:$W$27)))) -> 4.125 | I21: =SUM(IF($A21=SoilCat,IF($B21=DrainCat,IF(I$3=ESALCat,Design!$N$4:$W$27)))) -> 4.125 | J21: =SUM(IF($A21=SoilCat,IF($B21=DrainCat,IF(J$3=ESALCat,Design!$N$4:$W$27)))) -> 4.125 | K21: =SUM(IF($A21=SoilCat,IF($B21=DrainCat,IF(K$3=ESALCat,Design!$N$4:$W$27)))) -> 4.125 | L21: =SUM(IF($A21=SoilCat,IF($B21=DrainCat,IF(L$3=ESALCat,Design!$N$4:$W$27)))) -> 4.125 | M21: =SUM(IF($A21=SoilCat,IF($B21=DrainCat,IF(M$3=ESALCat,Design!$N$4:$W$27)))) -> 4.125 | N21: =SUM(IF($A21=SoilCat,IF($B21=DrainCat,IF(N$3=ESALCat,Design!$N$4:$W$27)))) -> 4.125 | O21: =SUM(IF($A21=SoilCat,IF($B21=DrainCat,IF(O$3=ESALCat,Design!$N$4:$W$27)))) -> 4.125
A22: 2 | B22: Poor | E22: Unbound Dense Graded Base | F22: =SUM(IF($A22=SoilCat,IF($B22=DrainCat,IF(F$3=ESALCat,Design!$AH$4:$AQ$27)))) -> 4 | G22: =SUM(IF($A22=SoilCat,IF($B22=DrainCat,IF(G$3=ESALCat,Design!$AH$4:$AQ$27)))) -> 4 | H22: =SUM(IF($A22=SoilCat,IF($B22=DrainCat,IF(H$3=ESALCat,Design!$AH$4:$AQ$27)))) -> 4 | I22: =SUM(IF($A22=SoilCat,IF($B22=DrainCat,IF(I$3=ESALCat,Design!$AH$4:$AQ$27)))) -> 4 | J22: =SUM(IF($A22=SoilCat,IF($B22=DrainCat,IF(J$3=ESALCat,Design!$AH$4:$AQ$27)))) -> 4 | K22: =SUM(IF($A22=SoilCat,IF($B22=DrainCat,IF(K$3=ESALCat,Design!$AH$4:$AQ$27)))) -> 8 | L22: =SUM(IF($A22=SoilCat,IF($B22=DrainCat,IF(L$3=ESALCat,Design!$AH$4:$AQ$27)))) -> 6 | M22: =SUM(IF($A22=SoilCat,IF($B22=DrainCat,IF(M$3=ESALCat,Design!$AH$4:$AQ$27)))) -> 6 | N22: =SUM(IF($A22=SoilCat,IF($B22=DrainCat,IF(N$3=ESALCat,Design!$AH$4:$AQ$27)))) -> 6 | O22: =SUM(IF($A22=SoilCat,IF($B22=DrainCat,IF(O$3=ESALCat,Design!$AH$4:$AQ$27)))) -> 6
A23: 2 | B23: Poor | E23: Unbound Dense Graded Subbase | F23: =SUM(IF($A23=SoilCat,IF($B23=DrainCat,IF(F$3=ESALCat,Design!$BB$4:$BK$27)))) -> 0 | G23: =SUM(IF($A23=SoilCat,IF($B23=DrainCat,IF(G$3=ESALCat,Design!$BB$4:$BK$27)))) -> 0 | H23: =SUM(IF($A23=SoilCat,IF($B23=DrainCat,IF(H$3=ESALCat,Design!$BB$4:$BK$27)))) -> 0 | I23: =SUM(IF($A23=SoilCat,IF($B23=DrainCat,IF(I$3=ESALCat,Design!$BB$4:$BK$27)))) -> 0 | J23: =SUM(IF($A23=SoilCat,IF($B23=DrainCat,IF(J$3=ESALCat,Design!$BB$4:$BK$27)))) -> 6 | K23: =SUM(IF($A23=SoilCat,IF($B23=DrainCat,IF(K$3=ESALCat,Design!$BB$4:$BK$27)))) -> 0 | L23: =SUM(IF($A23=SoilCat,IF($B23=DrainCat,IF(L$3=ESALCat,Design!$BB$4:$BK$27)))) -> 7 | M23: =SUM(IF($A23=SoilCat,IF($B23=DrainCat,IF(M$3=ESALCat,Design!$BB$4:$BK$27)))) -> 11 | N23: =SUM(IF($A23=SoilCat,IF($B23=DrainCat,IF(N$3=ESALCat,Design!$BB$4:$BK$27)))) -> 17 | O23: =SUM(IF($A23=SoilCat,IF($B23=DrainCat,IF(O$3=ESALCat,Design!$BB$4:$BK$27)))) -> 22
A24: 3 | B24: Good | C24: Category 3 | D24: Good | E24: Pavers and Bedding | F24: =SUM(IF($A24=SoilCat,IF($B24=DrainCat,IF(F$3=ESALCat,Design!$N$4:$W$27)))) -> 4.125 | G24: =SUM(IF($A24=SoilCat,IF($B24=DrainCat,IF(G$3=ESALCat,Design!$N$4:$W$27)))) -> 4.125 | H24: =SUM(IF($A24=SoilCat,IF($B24=DrainCat,IF(H$3=ESALCat,Design!$N$4:$W$27)))) -> 4.125 | I24: =SUM(IF($A24=SoilCat,IF($B24=DrainCat,IF(I$3=ESALCat,Design!$N$4:$W$27)))) -> 4.125 | J24: =SUM(IF($A24=SoilCat,IF($B24=DrainCat,IF(J$3=ESALCat,Design!$N$4:$W$27)))) -> 4.125 | K24: =SUM(IF($A24=SoilCat,IF($B24=DrainCat,IF(K$3=ESALCat,Design!$N$4:$W$27)))) -> 4.125 | L24: =SUM(IF($A24=SoilCat,IF($B24=DrainCat,IF(L$3=ESALCat,Design!$N$4:$W$27)))) -> 4.125 | M24: =SUM(IF($A24=SoilCat,IF($B24=DrainCat,IF(M$3=ESALCat,Design!$N$4:$W$27)))) -> 4.125 | N24: =SUM(IF($A24=SoilCat,IF($B24=DrainCat,IF(N$3=ESALCat,Design!$N$4:$W$27)))) -> 4.125 | O24: =SUM(IF($A24=SoilCat,IF($B24=DrainCat,IF(O$3=ESALCat,Design!$N$4:$W$27)))) -> 4.125
A25: 3 | B25: Good | E25: Unbound Dense Graded Base | F25: =SUM(IF($A25=SoilCat,IF($B25=DrainCat,IF(F$3=ESALCat,Design!$AH$4:$AQ$27)))) -> 4 | G25: =SUM(IF($A25=SoilCat,IF($B25=DrainCat,IF(G$3=ESALCat,Design!$AH$4:$AQ$27)))) -> 4 | H25: =SUM(IF($A25=SoilCat,IF($B25=DrainCat,IF(H$3=ESALCat,Design!$AH$4:$AQ$27)))) -> 4 | I25: =SUM(IF($A25=SoilCat,IF($B25=DrainCat,IF(I$3=ESALCat,Design!$AH$4:$AQ$27)))) -> 4 | J25: =SUM(IF($A25=SoilCat,IF($B25=DrainCat,IF(J$3=ESALCat,Design!$AH$4:$AQ$27)))) -> 4 | K25: =SUM(IF($A25=SoilCat,IF($B25=DrainCat,IF(K$3=ESALCat,Design!$AH$4:$AQ$27)))) -> 6 | L25: =SUM(IF($A25=SoilCat,IF($B25=DrainCat,IF(L$3=ESALCat,Design!$AH$4:$AQ$27)))) -> 8 | M25: =SUM(IF($A25=SoilCat,IF($B25=DrainCat,IF(M$3=ESALCat,Design!$AH$4:$AQ$27)))) -> 6 | N25: =SUM(IF($A25=SoilCat,IF($B25=DrainCat,IF(N$3=ESALCat,Design!$AH$4:$AQ$27)))) -> 6 | O25: =SUM(IF($A25=SoilCat,IF($B25=DrainCat,IF(O$3=ESALCat,Design!$AH$4:$AQ$27)))) -> 6
A26: 3 | B26: Good | E26: Unbound Dense Graded Subbase | F26: =SUM(IF($A26=SoilCat,IF($B26=DrainCat,IF(F$3=ESALCat,Design!$BB$4:$BK$27)))) -> 0 | G26: =SUM(IF($A26=SoilCat,IF($B26=DrainCat,IF(G$3=ESALCat,Design!$BB$4:$BK$27)))) -> 0 | H26: =SUM(IF($A26=SoilCat,IF($B26=DrainCat,IF(H$3=ESALCat,Design!$BB$4:$BK$27)))) -> 0 | I26: =SUM(IF($A26=SoilCat,IF($B26=DrainCat,IF(I$3=ESALCat,Design!$BB$4:$BK$27)))) -> 0 | J26: =SUM(IF($A26=SoilCat,IF($B26=DrainCat,IF(J$3=ESALCat,Design!$BB$4:$BK$27)))) -> 0 | K26: =SUM(IF($A26=SoilCat,IF($B26=DrainCat,IF(K$3=ESALCat,Design!$BB$4:$BK$27)))) -> 0 | L26: =SUM(IF($A26=SoilCat,IF($B26=DrainCat,IF(L$3=ESALCat,Design!$BB$4:$BK$27)))) -> 0 | M26: =SUM(IF($A26=SoilCat,IF($B26=DrainCat,IF(M$3=ESALCat,Design!$BB$4:$BK$27)))) -> 6 | N26: =SUM(IF($A26=SoilCat,IF($B26=DrainCat,IF(N$3=ESALCat,Design!$BB$4:$BK$27)))) -> 12 | O26: =SUM(IF($A26=SoilCat,IF($B26=DrainCat,IF(O$3=ESALCat,Design!$BB$4:$BK$27)))) -> 16
A27: 3 | B27: Fair | D27: Fair | E27: Pavers and Bedding | F27: =SUM(IF($A27=SoilCat,IF($B27=DrainCat,IF(F$3=ESALCat,Design!$N$4:$W$27)))) -> 4.125 | G27: =SUM(IF($A27=SoilCat,IF($B27=DrainCat,IF(G$3=ESALCat,Design!$N$4:$W$27)))) -> 4.125 | H27: =SUM(IF($A27=SoilCat,IF($B27=DrainCat,IF(H$3=ESALCat,Design!$N$4:$W$27)))) -> 4.125 | I27: =SUM(IF($A27=SoilCat,IF($B27=DrainCat,IF(I$3=ESALCat,Design!$N$4:$W$27)))) -> 4.125 | J27: =SUM(IF($A27=SoilCat,IF($B27=DrainCat,IF(J$3=ESALCat,Design!$N$4:$W$27)))) -> 4.125 | K27: =SUM(IF($A27=SoilCat,IF($B27=DrainCat,IF(K$3=ESALCat,Design!$N$4:$W$27)))) -> 4.125 | L27: =SUM(IF($A27=SoilCat,IF($B27=DrainCat,IF(L$3=ESALCat,Design!$N$4:$W$27)))) -> 4.125 | M27: =SUM(IF($A27=SoilCat,IF($B27=DrainCat,IF(M$3=ESALCat,Design!$N$4:$W$27)))) -> 4.125 | N27: =SUM(IF($A27=SoilCat,IF($B27=DrainCat,IF(N$3=ESALCat,Design!$N$4:$W$27)))) -> 4.125 | O27: =SUM(IF($A27=SoilCat,IF($B27=DrainCat,IF(O$3=ESALCat,Design!$N$4:$W$27)))) -> 4.125
A28: 3 | B28: Fair | E28: Unbound Dense Graded Base | F28: =SUM(IF($A28=SoilCat,IF($B28=DrainCat,IF(F$3=ESALCat,Design!$AH$4:$AQ$27)))) -> 4 | G28: =SUM(IF($A28=SoilCat,IF($B28=DrainCat,IF(G$3=ESALCat,Design!$AH$4:$AQ$27)))) -> 4 | H28: =SUM(IF($A28=SoilCat,IF($B28=DrainCat,IF(H$3=ESALCat,Design!$AH$4:$AQ$27)))) -> 4 | I28: =SUM(IF($A28=SoilCat,IF($B28=DrainCat,IF(I$3=ESALCat,Design!$AH$4:$AQ$27)))) -> 4 | J28: =SUM(IF($A28=SoilCat,IF($B28=DrainCat,IF(J$3=ESALCat,Design!$AH$4:$AQ$27)))) -> 4 | K28: =SUM(IF($A28=SoilCat,IF($B28=DrainCat,IF(K$3=ESALCat,Design!$AH$4:$AQ$27)))) -> 7 | L28: =SUM(IF($A28=SoilCat,IF($B28=DrainCat,IF(L$3=ESALCat,Design!$AH$4:$AQ$27)))) -> 6 | M28: =SUM(IF($A28=SoilCat,IF($B28=DrainCat,IF(M$3=ESALCat,Design!$AH$4:$AQ$27)))) -> 6 | N28: =SUM(IF($A28=SoilCat,IF($B28=DrainCat,IF(N$3=ESALCat,Design!$AH$4:$AQ$27)))) -> 6 | O28: =SUM(IF($A28=SoilCat,IF($B28=DrainCat,IF(O$3=ESALCat,Design!$AH$4:$AQ$27)))) -> 6
A29: 3 | B29: Fair | E29: Unbound Dense Graded Subbase | F29: =SUM(IF($A29=SoilCat,IF($B29=DrainCat,IF(F$3=ESALCat,Design!$BB$4:$BK$27)))) -> 0 | G29: =SUM(IF($A29=SoilCat,IF($B29=DrainCat,IF(G$3=ESALCat,Design!$BB$4:$BK$27)))) -> 0 | H29: =SUM(IF($A29=SoilCat,IF($B29=DrainCat,IF(H$3=ESALCat,Design!$BB$4:$BK$27)))) -> 0 | I29: =SUM(IF($A29=SoilCat,IF($B29=DrainCat,IF(I$3=ESALCat,Design!$BB$4:$BK$27)))) -> 0 | J29: =SUM(IF($A29=SoilCat,IF($B29=DrainCat,IF(J$3=ESALCat,Design!$BB$4:$BK$27)))) -> 0 | K29: =SUM(IF($A29=SoilCat,IF($B29=DrainCat,IF(K$3=ESALCat,Design!$BB$4:$BK$27)))) -> 0 | L29: =SUM(IF($A29=SoilCat,IF($B29=DrainCat,IF(L$3=ESALCat,Design!$BB$4:$BK$27)))) -> 6 | M29: =SUM(IF($A29=SoilCat,IF($B29=DrainCat,IF(M$3=ESALCat,Design!$BB$4:$BK$27)))) -> 9 | N29: =SUM(IF($A29=SoilCat,IF($B29=DrainCat,IF(N$3=ESALCat,Design!$BB$4:$BK$27)))) -> 15 | O29: =SUM(IF($A29=SoilCat,IF($B29=DrainCat,IF(O$3=ESALCat,Design!$BB$4:$BK$27)))) -> 20
A30: 3 | B30: Poor | D30: Poor | E30: Pavers and Bedding | F30: =SUM(IF($A30=SoilCat,IF($B30=DrainCat,IF(F$3=ESALCat,Design!$N$4:$W$27)))) -> 4.125 | G30: =SUM(IF($A30=SoilCat,IF($B30=DrainCat,IF(G$3=ESALCat,Design!$N$4:$W$27)))) -> 4.125 | H30: =SUM(IF($A30=SoilCat,IF($B30=DrainCat,IF(H$3=ESALCat,Design!$N$4:$W$27)))) -> 4.125 | I30: =SUM(IF($A30=SoilCat,IF($B30=DrainCat,IF(I$3=ESALCat,Design!$N$4:$W$27)))) -> 4.125 | J30: =SUM(IF($A30=SoilCat,IF($B30=DrainCat,IF(J$3=ESALCat,Design!$N$4:$W$27)))) -> 4.125 | K30: =SUM(IF($A30=SoilCat,IF($B30=DrainCat,IF(K$3=ESALCat,Design!$N$4:$W$27)))) -> 4.125 | L30: =SUM(IF($A30=SoilCat,IF($B30=DrainCat,IF(L$3=ESALCat,Design!$N$4:$W$27)))) -> 4.125 | M30: =SUM(IF($A30=SoilCat,IF($B30=DrainCat,IF(M$3=ESALCat,Design!$N$4:$W$27)))) -> 4.125 | N30: =SUM(IF($A30=SoilCat,IF($B30=DrainCat,IF(N$3=ESALCat,Design!$N$4:$W$27)))) -> 4.125 | O30: =SUM(IF($A30=SoilCat,IF($B30=DrainCat,IF(O$3=ESALCat,Design!$N$4:$W$27)))) -> 4.125
A31: 3 | B31: Poor | E31: Unbound Dense Graded Base | F31: =SUM(IF($A31=SoilCat,IF($B31=DrainCat,IF(F$3=ESALCat,Design!$AH$4:$AQ$27)))) -> 4 | G31: =SUM(IF($A31=SoilCat,IF($B31=DrainCat,IF(G$3=ESALCat,Design!$AH$4:$AQ$27)))) -> 4 | H31: =SUM(IF($A31=SoilCat,IF($B31=DrainCat,IF(H$3=ESALCat,Design!$AH$4:$AQ$27)))) -> 4 | I31: =SUM(IF($A31=SoilCat,IF($B31=DrainCat,IF(I$3=ESALCat,Design!$AH$4:$AQ$27)))) -> 4 | J31: =SUM(IF($A31=SoilCat,IF($B31=DrainCat,IF(J$3=ESALCat,Design!$AH$4:$AQ$27)))) -> 4 | K31: =SUM(IF($A31=SoilCat,IF($B31=DrainCat,IF(K$3=ESALCat,Design!$AH$4:$AQ$27)))) -> 6 | L31: =SUM(IF($A31=SoilCat,IF($B31=DrainCat,IF(L$3=ESALCat,Design!$AH$4:$AQ$27)))) -> 6 | M31: =SUM(IF($A31=SoilCat,IF($B31=DrainCat,IF(M$3=ESALCat,Design!$AH$4:$AQ$27)))) -> 6 | N31: =SUM(IF($A31=SoilCat,IF($B31=DrainCat,IF(N$3=ESALCat,Design!$AH$4:$AQ$27)))) -> 6 | O31: =SUM(IF($A31=SoilCat,IF($B31=DrainCat,IF(O$3=ESALCat,Design!$AH$4:$AQ$27)))) -> 6
A32: 3 | B32: Poor | E32: Unbound Dense Graded Subbase | F32: =SUM(IF($A32=SoilCat,IF($B32=DrainCat,IF(F$3=ESALCat,Design!$BB$4:$BK$27)))) -> 0 | G32: =SUM(IF($A32=SoilCat,IF($B32=DrainCat,IF(G$3=ESALCat,Design!$BB$4:$BK$27)))) -> 0 | H32: =SUM(IF($A32=SoilCat,IF($B32=DrainCat,IF(H$3=ESALCat,Design!$BB$4:$BK$27)))) -> 0 | I32: =SUM(IF($A32=SoilCat,IF($B32=DrainCat,IF(I$3=ESALCat,Design!$BB$4:$BK$27)))) -> 6 | J32: =SUM(IF($A32=SoilCat,IF($B32=DrainCat,IF(J$3=ESALCat,Design!$BB$4:$BK$27)))) -> 6 | K32: =SUM(IF($A32=SoilCat,IF($B32=DrainCat,IF(K$3=ESALCat,Design!$BB$4:$BK$27)))) -> 7 | L32: =SUM(IF($A32=SoilCat,IF($B32=DrainCat,IF(L$3=ESALCat,Design!$BB$4:$BK$27)))) -> 12 | M32: =SUM(IF($A32=SoilCat,IF($B32=DrainCat,IF(M$3=ESALCat,Design!$BB$4:$BK$27)))) -> 16 | N32: =SUM(IF($A32=SoilCat,IF($B32=DrainCat,IF(N$3=ESALCat,Design!$BB$4:$BK$27)))) -> 23 | O32: =SUM(IF($A32=SoilCat,IF($B32=DrainCat,IF(O$3=ESALCat,Design!$BB$4:$BK$27)))) -> 29
A33: 4 | B33: Good | C33: Category 4 | D33: Good | E33: Pavers and Bedding | F33: =SUM(IF($A33=SoilCat,IF($B33=DrainCat,IF(F$3=ESALCat,Design!$N$4:$W$27)))) -> 4.125 | G33: =SUM(IF($A33=SoilCat,IF($B33=DrainCat,IF(G$3=ESALCat,Design!$N$4:$W$27)))) -> 4.125 | H33: =SUM(IF($A33=SoilCat,IF($B33=DrainCat,IF(H$3=ESALCat,Design!$N$4:$W$27)))) -> 4.125 | I33: =SUM(IF($A33=SoilCat,IF($B33=DrainCat,IF(I$3=ESALCat,Design!$N$4:$W$27)))) -> 4.125 | J33: =SUM(IF($A33=SoilCat,IF($B33=DrainCat,IF(J$3=ESALCat,Design!$N$4:$W$27)))) -> 4.125 | K33: =SUM(IF($A33=SoilCat,IF($B33=DrainCat,IF(K$3=ESALCat,Design!$N$4:$W$27)))) -> 4.125 | L33: =SUM(IF($A33=SoilCat,IF($B33=DrainCat,IF(L$3=ESALCat,Design!$N$4:$W$27)))) -> 4.125 | M33: =SUM(IF($A33=SoilCat,IF($B33=DrainCat,IF(M$3=ESALCat,Design!$N$4:$W$27)))) -> 4.125 | N33: =SUM(IF($A33=SoilCat,IF($B33=DrainCat,IF(N$3=ESALCat,Design!$N$4:$W$27)))) -> 4.125 | O33: =SUM(IF($A33=SoilCat,IF($B33=DrainCat,IF(O$3=ESALCat,Design!$N$4:$W$27)))) -> 4.125
A34: 4 | B34: Good | E34: Unbound Dense Graded Base | F34: =SUM(IF($A34=SoilCat,IF($B34=DrainCat,IF(F$3=ESALCat,Design!$AH$4:$AQ$27)))) -> 4 | G34: =SUM(IF($A34=SoilCat,IF($B34=DrainCat,IF(G$3=ESALCat,Design!$AH$4:$AQ$27)))) -> 4 | H34: =SUM(IF($A34=SoilCat,IF($B34=DrainCat,IF(H$3=ESALCat,Design!$AH$4:$AQ$27)))) -> 4 | I34: =SUM(IF($A34=SoilCat,IF($B34=DrainCat,IF(I$3=ESALCat,Design!$AH$4:$AQ$27)))) -> 4 | J34: =SUM(IF($A34=SoilCat,IF($B34=DrainCat,IF(J$3=ESALCat,Design!$AH$4:$AQ$27)))) -> 4 | K34: =SUM(IF($A34=SoilCat,IF($B34=DrainCat,IF(K$3=ESALCat,Design!$AH$4:$AQ$27)))) -> 7 | L34: =SUM(IF($A34=SoilCat,IF($B34=DrainCat,IF(L$3=ESALCat,Design!$AH$4:$AQ$27)))) -> 6 | M34: =SUM(IF($A34=SoilCat,IF($B34=DrainCat,IF(M$3=ESALCat,Design!$AH$4:$AQ$27)))) -> 6 | N34: =SUM(IF($A34=SoilCat,IF($B34=DrainCat,IF(N$3=ESALCat,Design!$AH$4:$AQ$27)))) -> 6 | O34: =SUM(IF($A34=SoilCat,IF($B34=DrainCat,IF(O$3=ESALCat,Design!$AH$4:$AQ$27)))) -> 6
A35: 4 | B35: Good | E35: Unbound Dense Graded Subbase | F35: =SUM(IF($A35=SoilCat,IF($B35=DrainCat,IF(F$3=ESALCat,Design!$BB$4:$BK$27)))) -> 0 | G35: =SUM(IF($A35=SoilCat,IF($B35=DrainCat,IF(G$3=ESALCat,Design!$BB$4:$BK$27)))) -> 0 | H35: =SUM(IF($A35=SoilCat,IF($B35=DrainCat,IF(H$3=ESALCat,Design!$BB$4:$BK$27)))) -> 0 | I35: =SUM(IF($A35=SoilCat,IF($B35=DrainCat,IF(I$3=ESALCat,Design!$BB$4:$BK$27)))) -> 0 | J35: =SUM(IF($A35=SoilCat,IF($B35=DrainCat,IF(J$3=ESALCat,Design!$BB$4:$BK$27)))) -> 0 | K35: =SUM(IF($A35=SoilCat,IF($B35=DrainCat,IF(K$3=ESALCat,Design!$BB$4:$BK$27)))) -> 0 | L35: =SUM(IF($A35=SoilCat,IF($B35=DrainCat,IF(L$3=ESALCat,Design!$BB$4:$BK$27)))) -> 6 | M35: =SUM(IF($A35=SoilCat,IF($B35=DrainCat,IF(M$3=ESALCat,Design!$BB$4:$BK$27)))) -> 9 | N35: =SUM(IF($A35=SoilCat,IF($B35=DrainCat,IF(N$3=ESALCat,Design!$BB$4:$BK$27)))) -> 15 | O35: =SUM(IF($A35=SoilCat,IF($B35=DrainCat,IF(O$3=ESALCat,Design!$BB$4:$BK$27)))) -> 20
A36: 4 | B36: Fair | D36: Fair | E36: Pavers and Bedding | F36: =SUM(IF($A36=SoilCat,IF($B36=DrainCat,IF(F$3=ESALCat,Design!$N$4:$W$27)))) -> 4.125 | G36: =SUM(IF($A36=SoilCat,IF($B36=DrainCat,IF(G$3=ESALCat,Design!$N$4:$W$27)))) -> 4.125 | H36: =SUM(IF($A36=SoilCat,IF($B36=DrainCat,IF(H$3=ESALCat,Design!$N$4:$W$27)))) -> 4.125 | I36: =SUM(IF($A36=SoilCat,IF($B36=DrainCat,IF(I$3=ESALCat,Design!$N$4:$W$27)))) -> 4.125 | J36: =SUM(IF($A36=SoilCat,IF($B36=DrainCat,IF(J$3=ESALCat,Design!$N$4:$W$27)))) -> 4.125 | K36: =SUM(IF($A36=SoilCat,IF($B36=DrainCat,IF(K$3=ESALCat,Design!$N$4:$W$27)))) -> 4.125 | L36: =SUM(IF($A36=SoilCat,IF($B36=DrainCat,IF(L$3=ESALCat,Design!$N$4:$W$27)))) -> 4.125 | M36: =SUM(IF($A36=SoilCat,IF($B36=DrainCat,IF(M$3=ESALCat,Design!$N$4:$W$27)))) -> 4.125 | N36: =SUM(IF($A36=SoilCat,IF($B36=DrainCat,IF(N$3=ESALCat,Design!$N$4:$W$27)))) -> 4.125 | O36: =SUM(IF($A36=SoilCat,IF($B36=DrainCat,IF(O$3=ESALCat,Design!$N$4:$W$27)))) -> 4.125
A37: 4 | B37: Fair | E37: Unbound Dense Graded Base | F37: =SUM(IF($A37=SoilCat,IF($B37=DrainCat,IF(F$3=ESALCat,Design!$AH$4:$AQ$27)))) -> 4 | G37: =SUM(IF($A37=SoilCat,IF($B37=DrainCat,IF(G$3=ESALCat,Design!$AH$4:$AQ$27)))) -> 4 | H37: =SUM(IF($A37=SoilCat,IF($B37=DrainCat,IF(H$3=ESALCat,Design!$AH$4:$AQ$27)))) -> 4 | I37: =SUM(IF($A37=SoilCat,IF($B37=DrainCat,IF(I$3=ESALCat,Design!$AH$4:$AQ$27)))) -> 4 | J37: =SUM(IF($A37=SoilCat,IF($B37=DrainCat,IF(J$3=ESALCat,Design!$AH$4:$AQ$27)))) -> 4 | K37: =SUM(IF($A37=SoilCat,IF($B37=DrainCat,IF(K$3=ESALCat,Design!$AH$4:$AQ$27)))) -> 6 | L37: =SUM(IF($A37=SoilCat,IF($B37=DrainCat,IF(L$3=ESALCat,Design!$AH$4:$AQ$27)))) -> 6 | M37: =SUM(IF($A37=SoilCat,IF($B37=DrainCat,IF(M$3=ESALCat,Design!$AH$4:$AQ$27)))) -> 6 | N37: =SUM(IF($A37=SoilCat,IF($B37=DrainCat,IF(N$3=ESALCat,Design!$AH$4:$AQ$27)))) -> 6 | O37: =SUM(IF($A37=SoilCat,IF($B37=DrainCat,IF(O$3=ESALCat,Design!$AH$4:$AQ$27)))) -> 6
A38: 4 | B38: Fair | E38: Unbound Dense Graded Subbase | F38: =SUM(IF($A38=SoilCat,IF($B38=DrainCat,IF(F$3=ESALCat,Design!$BB$4:$BK$27)))) -> 0 | G38: =SUM(IF($A38=SoilCat,IF($B38=DrainCat,IF(G$3=ESALCat,Design!$BB$4:$BK$27)))) -> 0 | H38: =SUM(IF($A38=SoilCat,IF($B38=DrainCat,IF(H$3=ESALCat,Design!$BB$4:$BK$27)))) -> 0 | I38: =SUM(IF($A38=SoilCat,IF($B38=DrainCat,IF(I$3=ESALCat,Design!$BB$4:$BK$27)))) -> 6 | J38: =SUM(IF($A38=SoilCat,IF($B38=DrainCat,IF(J$3=ESALCat,Design!$BB$4:$BK$27)))) -> 6 | K38: =SUM(IF($A38=SoilCat,IF($B38=DrainCat,IF(K$3=ESALCat,Design!$BB$4:$BK$27)))) -> 7 | L38: =SUM(IF($A38=SoilCat,IF($B38=DrainCat,IF(L$3=ESALCat,Design!$BB$4:$BK$27)))) -> 12 | M38: =SUM(IF($A38=SoilCat,IF($B38=DrainCat,IF(M$3=ESALCat,Design!$BB$4:$BK$27)))) -> 16 | N38: =SUM(IF($A38=SoilCat,IF($B38=DrainCat,IF(N$3=ESALCat,Design!$BB$4:$BK$27)))) -> 23 | O38: =SUM(IF($A38=SoilCat,IF($B38=DrainCat,IF(O$3=ESALCat,Design!$BB$4:$BK$27)))) -> 29
A39: 4 | B39: Poor | D39: Poor | E39: Pavers and Bedding | F39: =SUM(IF($A39=SoilCat,IF($B39=DrainCat,IF(F$3=ESALCat,Design!$N$4:$W$27)))) -> 4.125 | G39: =SUM(IF($A39=SoilCat,IF($B39=DrainCat,IF(G$3=ESALCat,Design!$N$4:$W$27)))) -> 4.125 | H39: =SUM(IF($A39=SoilCat,IF($B39=DrainCat,IF(H$3=ESALCat,Design!$N$4:$W$27)))) -> 4.125 | I39: =SUM(IF($A39=SoilCat,IF($B39=DrainCat,IF(I$3=ESALCat,Design!$N$4:$W$27)))) -> 4.125 | J39: =SUM(IF($A39=SoilCat,IF($B39=DrainCat,IF(J$3=ESALCat,Design!$N$4:$W$27)))) -> 4.125 | K39: =SUM(IF($A39=SoilCat,IF($B39=DrainCat,IF(K$3=ESALCat,Design!$N$4:$W$27)))) -> 4.125 | L39: =SUM(IF($A39=SoilCat,IF($B39=DrainCat,IF(L$3=ESALCat,Design!$N$4:$W$27)))) -> 4.125 | M39: =SUM(IF($A39=SoilCat,IF($B39=DrainCat,IF(M$3=ESALCat,Design!$N$4:$W$27)))) -> 4.125 | N39: =SUM(IF($A39=SoilCat,IF($B39=DrainCat,IF(N$3=ESALCat,Design!$N$4:$W$27)))) -> 4.125 | O39: =SUM(IF($A39=SoilCat,IF($B39=DrainCat,IF(O$3=ESALCat,Design!$N$4:$W$27)))) -> 4.125
A40: 4 | B40: Poor | E40: Unbound Dense Graded Base | F40: =SUM(IF($A40=SoilCat,IF($B40=DrainCat,IF(F$3=ESALCat,Design!$AH$4:$AQ$27)))) -> 4 | G40: =SUM(IF($A40=SoilCat,IF($B40=DrainCat,IF(G$3=ESALCat,Design!$AH$4:$AQ$27)))) -> 4 | H40: =SUM(IF($A40=SoilCat,IF($B40=DrainCat,IF(H$3=ESALCat,Design!$AH$4:$AQ$27)))) -> 4 | I40: =SUM(IF($A40=SoilCat,IF($B40=DrainCat,IF(I$3=ESALCat,Design!$AH$4:$AQ$27)))) -> 4 | J40: =SUM(IF($A40=SoilCat,IF($B40=DrainCat,IF(J$3=ESALCat,Design!$AH$4:$AQ$27)))) -> 4 | K40: =SUM(IF($A40=SoilCat,IF($B40=DrainCat,IF(K$3=ESALCat,Design!$AH$4:$AQ$27)))) -> 6 | L40: =SUM(IF($A40=SoilCat,IF($B40=DrainCat,IF(L$3=ESALCat,Design!$AH$4:$AQ$27)))) -> 6 | M40: =SUM(IF($A40=SoilCat,IF($B40=DrainCat,IF(M$3=ESALCat,Design!$AH$4:$AQ$27)))) -> 6 | N40: =SUM(IF($A40=SoilCat,IF($B40=DrainCat,IF(N$3=ESALCat,Design!$AH$4:$AQ$27)))) -> 6 | O40: =SUM(IF($A40=SoilCat,IF($B40=DrainCat,IF(O$3=ESALCat,Design!$AH$4:$AQ$27)))) -> 6
A41: 4 | B41: Poor | E41: Unbound Dense Graded Subbase | F41: =SUM(IF($A41=SoilCat,IF($B41=DrainCat,IF(F$3=ESALCat,Design!$BB$4:$BK$27)))) -> 0 | G41: =SUM(IF($A41=SoilCat,IF($B41=DrainCat,IF(G$3=ESALCat,Design!$BB$4:$BK$27)))) -> 0 | H41: =SUM(IF($A41=SoilCat,IF($B41=DrainCat,IF(H$3=ESALCat,Design!$BB$4:$BK$27)))) -> 0 | I41: =SUM(IF($A41=SoilCat,IF($B41=DrainCat,IF(I$3=ESALCat,Design!$BB$4:$BK$27)))) -> 6 | J41: =SUM(IF($A41=SoilCat,IF($B41=DrainCat,IF(J$3=ESALCat,Design!$BB$4:$BK$27)))) -> 7 | K41: =SUM(IF($A41=SoilCat,IF($B41=DrainCat,IF(K$3=ESALCat,Design!$BB$4:$BK$27)))) -> 9 | L41: =SUM(IF($A41=SoilCat,IF($B41=DrainCat,IF(L$3=ESALCat,Design!$BB$4:$BK$27)))) -> 13 | M41: =SUM(IF($A41=SoilCat,IF($B41=DrainCat,IF(M$3=ESALCat,Design!$BB$4:$BK$27)))) -> 18 | N41: =SUM(IF($A41=SoilCat,IF($B41=DrainCat,IF(N$3=ESALCat,Design!$BB$4:$BK$27)))) -> 25 | O41: =SUM(IF($A41=SoilCat,IF($B41=DrainCat,IF(O$3=ESALCat,Design!$BB$4:$BK$27)))) -> 31
A42: 5 | B42: Good | C42: Category 5 | D42: Good | E42: Pavers and Bedding | F42: =SUM(IF($A42=SoilCat,IF($B42=DrainCat,IF(F$3=ESALCat,Design!$N$4:$W$27)))) -> 4.125 | G42: =SUM(IF($A42=SoilCat,IF($B42=DrainCat,IF(G$3=ESALCat,Design!$N$4:$W$27)))) -> 4.125 | H42: =SUM(IF($A42=SoilCat,IF($B42=DrainCat,IF(H$3=ESALCat,Design!$N$4:$W$27)))) -> 4.125 | I42: =SUM(IF($A42=SoilCat,IF($B42=DrainCat,IF(I$3=ESALCat,Design!$N$4:$W$27)))) -> 4.125 | J42: =SUM(IF($A42=SoilCat,IF($B42=DrainCat,IF(J$3=ESALCat,Design!$N$4:$W$27)))) -> 4.125 | K42: =SUM(IF($A42=SoilCat,IF($B42=DrainCat,IF(K$3=ESALCat,Design!$N$4:$W$27)))) -> 4.125 | L42: =SUM(IF($A42=SoilCat,IF($B42=DrainCat,IF(L$3=ESALCat,Design!$N$4:$W$27)))) -> 4.125 | M42: =SUM(IF($A42=SoilCat,IF($B42=DrainCat,IF(M$3=ESALCat,Design!$N$4:$W$27)))) -> 4.125 | N42: =SUM(IF($A42=SoilCat,IF($B42=DrainCat,IF(N$3=ESALCat,Design!$N$4:$W$27)))) -> 4.125 | O42: =SUM(IF($A42=SoilCat,IF($B42=DrainCat,IF(O$3=ESALCat,Design!$N$4:$W$27)))) -> 4.125
A43: 5 | B43: Good | E43: Unbound Dense Graded Base | F43: =SUM(IF($A43=SoilCat,IF($B43=DrainCat,IF(F$3=ESALCat,Design!$AH$4:$AQ$27)))) -> 4 | G43: =SUM(IF($A43=SoilCat,IF($B43=DrainCat,IF(G$3=ESALCat,Design!$AH$4:$AQ$27)))) -> 4 | H43: =SUM(IF($A43=SoilCat,IF($B43=DrainCat,IF(H$3=ESALCat,Design!$AH$4:$AQ$27)))) -> 4 | I43: =SUM(IF($A43=SoilCat,IF($B43=DrainCat,IF(I$3=ESALCat,Design!$AH$4:$AQ$27)))) -> 4 | J43: =SUM(IF($A43=SoilCat,IF($B43=DrainCat,IF(J$3=ESALCat,Design!$AH$4:$AQ$27)))) -> 4 | K43: =SUM(IF($A43=SoilCat,IF($B43=DrainCat,IF(K$3=ESALCat,Design!$AH$4:$AQ$27)))) -> 6 | L43: =SUM(IF($A43=SoilCat,IF($B43=DrainCat,IF(L$3=ESALCat,Design!$AH$4:$AQ$27)))) -> 6 | M43: =SUM(IF($A43=SoilCat,IF($B43=DrainCat,IF(M$3=ESALCat,Design!$AH$4:$AQ$27)))) -> 6 | N43: =SUM(IF($A43=SoilCat,IF($B43=DrainCat,IF(N$3=ESALCat,Design!$AH$4:$AQ$27)))) -> 6 | O43: =SUM(IF($A43=SoilCat,IF($B43=DrainCat,IF(O$3=ESALCat,Design!$AH$4:$AQ$27)))) -> 6
A44: 5 | B44: Good | E44: Unbound Dense Graded Subbase | F44: =SUM(IF($A44=SoilCat,IF($B44=DrainCat,IF(F$3=ESALCat,Design!$BB$4:$BK$27)))) -> 0 | G44: =SUM(IF($A44=SoilCat,IF($B44=DrainCat,IF(G$3=ESALCat,Design!$BB$4:$BK$27)))) -> 0 | H44: =SUM(IF($A44=SoilCat,IF($B44=DrainCat,IF(H$3=ESALCat,Design!$BB$4:$BK$27)))) -> 0 | I44: =SUM(IF($A44=SoilCat,IF($B44=DrainCat,IF(I$3=ESALCat,Design!$BB$4:$BK$27)))) -> 0 | J44: =SUM(IF($A44=SoilCat,IF($B44=DrainCat,IF(J$3=ESALCat,Design!$BB$4:$BK$27)))) -> 6 | K44: =SUM(IF($A44=SoilCat,IF($B44=DrainCat,IF(K$3=ESALCat,Design!$BB$4:$BK$27)))) -> 6 | L44: =SUM(IF($A44=SoilCat,IF($B44=DrainCat,IF(L$3=ESALCat,Design!$BB$4:$BK$27)))) -> 9 | M44: =SUM(IF($A44=SoilCat,IF($B44=DrainCat,IF(M$3=ESALCat,Design!$BB$4:$BK$27)))) -> 13 | N44: =SUM(IF($A44=SoilCat,IF($B44=DrainCat,IF(N$3=ESALCat,Design!$BB$4:$BK$27)))) -> 20 | O44: =SUM(IF($A44=SoilCat,IF($B44=DrainCat,IF(O$3=ESALCat,Design!$BB$4:$BK$27)))) -> 25
A45: 5 | B45: Fair | D45: Fair | E45: Pavers and Bedding | F45: =SUM(IF($A45=SoilCat,IF($B45=DrainCat,IF(F$3=ESALCat,Design!$N$4:$W$27)))) -> 4.125 | G45: =SUM(IF($A45=SoilCat,IF($B45=DrainCat,IF(G$3=ESALCat,Design!$N$4:$W$27)))) -> 4.125 | H45: =SUM(IF($A45=SoilCat,IF($B45=DrainCat,IF(H$3=ESALCat,Design!$N$4:$W$27)))) -> 4.125 | I45: =SUM(IF($A45=SoilCat,IF($B45=DrainCat,IF(I$3=ESALCat,Design!$N$4:$W$27)))) -> 4.125 | J45: =SUM(IF($A45=SoilCat,IF($B45=DrainCat,IF(J$3=ESALCat,Design!$N$4:$W$27)))) -> 4.125 | K45: =SUM(IF($A45=SoilCat,IF($B45=DrainCat,IF(K$3=ESALCat,Design!$N$4:$W$27)))) -> 4.125 | L45: =SUM(IF($A45=SoilCat,IF($B45=DrainCat,IF(L$3=ESALCat,Design!$N$4:$W$27)))) -> 4.125 | M45: =SUM(IF($A45=SoilCat,IF($B45=DrainCat,IF(M$3=ESALCat,Design!$N$4:$W$27)))) -> 4.125 | N45: =SUM(IF($A45=SoilCat,IF($B45=DrainCat,IF(N$3=ESALCat,Design!$N$4:$W$27)))) -> 4.125 | O45: =SUM(IF($A45=SoilCat,IF($B45=DrainCat,IF(O$3=ESALCat,Design!$N$4:$W$27)))) -> 4.125
A46: 5 | B46: Fair | E46: Unbound Dense Graded Base | F46: =SUM(IF($A46=SoilCat,IF($B46=DrainCat,IF(F$3=ESALCat,Design!$AH$4:$AQ$27)))) -> 4 | G46: =SUM(IF($A46=SoilCat,IF($B46=DrainCat,IF(G$3=ESALCat,Design!$AH$4:$AQ$27)))) -> 4 | H46: =SUM(IF($A46=SoilCat,IF($B46=DrainCat,IF(H$3=ESALCat,Design!$AH$4:$AQ$27)))) -> 4 | I46: =SUM(IF($A46=SoilCat,IF($B46=DrainCat,IF(I$3=ESALCat,Design!$AH$4:$AQ$27)))) -> 4 | J46: =SUM(IF($A46=SoilCat,IF($B46=DrainCat,IF(J$3=ESALCat,Design!$AH$4:$AQ$27)))) -> 4 | K46: =SUM(IF($A46=SoilCat,IF($B46=DrainCat,IF(K$3=ESALCat,Design!$AH$4:$AQ$27)))) -> 6 | L46: =SUM(IF($A46=SoilCat,IF($B46=DrainCat,IF(L$3=ESALCat,Design!$AH$4:$AQ$27)))) -> 6 | M46: =SUM(IF($A46=SoilCat,IF($B46=DrainCat,IF(M$3=ESALCat,Design!$AH$4:$AQ$27)))) -> 6 | N46: =SUM(IF($A46=SoilCat,IF($B46=DrainCat,IF(N$3=ESALCat,Design!$AH$4:$AQ$27)))) -> 6 | O46: =SUM(IF($A46=SoilCat,IF($B46=DrainCat,IF(O$3=ESALCat,Design!$AH$4:$AQ$27)))) -> 6
A47: 5 | B47: Fair | E47: Unbound Dense Graded Subbase | F47: =SUM(IF($A47=SoilCat,IF($B47=DrainCat,IF(F$3=ESALCat,Design!$BB$4:$BK$27)))) -> 0 | G47: =SUM(IF($A47=SoilCat,IF($B47=DrainCat,IF(G$3=ESALCat,Design!$BB$4:$BK$27)))) -> 0 | H47: =SUM(IF($A47=SoilCat,IF($B47=DrainCat,IF(H$3=ESALCat,Design!$BB$4:$BK$27)))) -> 0 | I47: =SUM(IF($A47=SoilCat,IF($B47=DrainCat,IF(I$3=ESALCat,Design!$BB$4:$BK$27)))) -> 6 | J47: =SUM(IF($A47=SoilCat,IF($B47=DrainCat,IF(J$3=ESALCat,Design!$BB$4:$BK$27)))) -> 7 | K47: =SUM(IF($A47=SoilCat,IF($B47=DrainCat,IF(K$3=ESALCat,Design!$BB$4:$BK$27)))) -> 9 | L47: =SUM(IF($A47=SoilCat,IF($B47=DrainCat,IF(L$3=ESALCat,Design!$BB$4:$BK$27)))) -> 13 | M47: =SUM(IF($A47=SoilCat,IF($B47=DrainCat,IF(M$3=ESALCat,Design!$BB$4:$BK$27)))) -> 18 | N47: =SUM(IF($A47=SoilCat,IF($B47=DrainCat,IF(N$3=ESALCat,Design!$BB$4:$BK$27)))) -> 25 | O47: =SUM(IF($A47=SoilCat,IF($B47=DrainCat,IF(O$3=ESALCat,Design!$BB$4:$BK$27)))) -> 31
A48: 5 | B48: Poor | D48: Poor | E48: Pavers and Bedding | F48: =SUM(IF($A48=SoilCat,IF($B48=DrainCat,IF(F$3=ESALCat,Design!$N$4:$W$27)))) -> 4.125 | G48: =SUM(IF($A48=SoilCat,IF($B48=DrainCat,IF(G$3=ESALCat,Design!$N$4:$W$27)))) -> 4.125 | H48: =SUM(IF($A48=SoilCat,IF($B48=DrainCat,IF(H$3=ESALCat,Design!$N$4:$W$27)))) -> 4.125 | I48: =SUM(IF($A48=SoilCat,IF($B48=DrainCat,IF(I$3=ESALCat,Design!$N$4:$W$27)))) -> 4.125 | J48: =SUM(IF($A48=SoilCat,IF($B48=DrainCat,IF(J$3=ESALCat,Design!$N$4:$W$27)))) -> 4.125 | K48: =SUM(IF($A48=SoilCat,IF($B48=DrainCat,IF(K$3=ESALCat,Design!$N$4:$W$27)))) -> 4.125 | L48: =SUM(IF($A48=SoilCat,IF($B48=DrainCat,IF(L$3=ESALCat,Design!$N$4:$W$27)))) -> 4.125 | M48: =SUM(IF($A48=SoilCat,IF($B48=DrainCat,IF(M$3=ESALCat,Design!$N$4:$W$27)))) -> 4.125 | N48: =SUM(IF($A48=SoilCat,IF($B48=DrainCat,IF(N$3=ESALCat,Design!$N$4:$W$27)))) -> 4.125 | O48: =SUM(IF($A48=SoilCat,IF($B48=DrainCat,IF(O$3=ESALCat,Design!$N$4:$W$27)))) -> 4.125
A49: 5 | B49: Poor | E49: Unbound Dense Graded Base | F49: =SUM(IF($A49=SoilCat,IF($B49=DrainCat,IF(F$3=ESALCat,Design!$AH$4:$AQ$27)))) -> 4 | G49: =SUM(IF($A49=SoilCat,IF($B49=DrainCat,IF(G$3=ESALCat,Design!$AH$4:$AQ$27)))) -> 4 | H49: =SUM(IF($A49=SoilCat,IF($B49=DrainCat,IF(H$3=ESALCat,Design!$AH$4:$AQ$27)))) -> 4 | I49: =SUM(IF($A49=SoilCat,IF($B49=DrainCat,IF(I$3=ESALCat,Design!$AH$4:$AQ$27)))) -> 4 | J49: =SUM(IF($A49=SoilCat,IF($B49=DrainCat,IF(J$3=ESALCat,Design!$AH$4:$AQ$27)))) -> 4 | K49: =SUM(IF($A49=SoilCat,IF($B49=DrainCat,IF(K$3=ESALCat,Design!$AH$4:$AQ$27)))) -> 6 | L49: =SUM(IF($A49=SoilCat,IF($B49=DrainCat,IF(L$3=ESALCat,Design!$AH$4:$AQ$27)))) -> 6 | M49: =SUM(IF($A49=SoilCat,IF($B49=DrainCat,IF(M$3=ESALCat,Design!$AH$4:$AQ$27)))) -> 6 | N49: =SUM(IF($A49=SoilCat,IF($B49=DrainCat,IF(N$3=ESALCat,Design!$AH$4:$AQ$27)))) -> 6 | O49: =SUM(IF($A49=SoilCat,IF($B49=DrainCat,IF(O$3=ESALCat,Design!$AH$4:$AQ$27)))) -> 6
A50: 5 | B50: Poor | E50: Unbound Dense Graded Subbase | F50: =SUM(IF($A50=SoilCat,IF($B50=DrainCat,IF(F$3=ESALCat,Design!$BB$4:$BK$27)))) -> 0 | G50: =SUM(IF($A50=SoilCat,IF($B50=DrainCat,IF(G$3=ESALCat,Design!$BB$4:$BK$27)))) -> 0 | H50: =SUM(IF($A50=SoilCat,IF($B50=DrainCat,IF(H$3=ESALCat,Design!$BB$4:$BK$27)))) -> 6 | I50: =SUM(IF($A50=SoilCat,IF($B50=DrainCat,IF(I$3=ESALCat,Design!$BB$4:$BK$27)))) -> 6 | J50: =SUM(IF($A50=SoilCat,IF($B50=DrainCat,IF(J$3=ESALCat,Design!$BB$4:$BK$27)))) -> 10 | K50: =SUM(IF($A50=SoilCat,IF($B50=DrainCat,IF(K$3=ESALCat,Design!$BB$4:$BK$27)))) -> 13 | L50: =SUM(IF($A50=SoilCat,IF($B50=DrainCat,IF(L$3=ESALCat,Design!$BB$4:$BK$27)))) -> 17 | M50: =SUM(IF($A50=SoilCat,IF($B50=DrainCat,IF(M$3=ESALCat,Design!$BB$4:$BK$27)))) -> 22 | N50: =SUM(IF($A50=SoilCat,IF($B50=DrainCat,IF(N$3=ESALCat,Design!$BB$4:$BK$27)))) -> 30 | O50: =SUM(IF($A50=SoilCat,IF($B50=DrainCat,IF(O$3=ESALCat,Design!$BB$4:$BK$27)))) -> 36
A51: 6 | B51: Good | C51: Category 6 | D51: Good | E51: Pavers and Bedding | F51: =SUM(IF($A51=SoilCat,IF($B51=DrainCat,IF(F$3=ESALCat,Design!$N$4:$W$27)))) -> 4.125 | G51: =SUM(IF($A51=SoilCat,IF($B51=DrainCat,IF(G$3=ESALCat,Design!$N$4:$W$27)))) -> 4.125 | H51: =SUM(IF($A51=SoilCat,IF($B51=DrainCat,IF(H$3=ESALCat,Design!$N$4:$W$27)))) -> 4.125 | I51: =SUM(IF($A51=SoilCat,IF($B51=DrainCat,IF(I$3=ESALCat,Design!$N$4:$W$27)))) -> 4.125 | J51: =SUM(IF($A51=SoilCat,IF($B51=DrainCat,IF(J$3=ESALCat,Design!$N$4:$W$27)))) -> 4.125 | K51: =SUM(IF($A51=SoilCat,IF($B51=DrainCat,IF(K$3=ESALCat,Design!$N$4:$W$27)))) -> 4.125 | L51: =SUM(IF($A51=SoilCat,IF($B51=DrainCat,IF(L$3=ESALCat,Design!$N$4:$W$27)))) -> 4.125 | M51: =SUM(IF($A51=SoilCat,IF($B51=DrainCat,IF(M$3=ESALCat,Design!$N$4:$W$27)))) -> 4.125 | N51: =SUM(IF($A51=SoilCat,IF($B51=DrainCat,IF(N$3=ESALCat,Design!$N$4:$W$27)))) -> 4.125 | O51: =SUM(IF($A51=SoilCat,IF($B51=DrainCat,IF(O$3=ESALCat,Design!$N$4:$W$27)))) -> 4.125
A52: 6 | B52: Good | E52: Unbound Dense Graded Base | F52: =SUM(IF($A52=SoilCat,IF($B52=DrainCat,IF(F$3=ESALCat,Design!$AH$4:$AQ$27)))) -> 4 | G52: =SUM(IF($A52=SoilCat,IF($B52=DrainCat,IF(G$3=ESALCat,Design!$AH$4:$AQ$27)))) -> 4 | H52: =SUM(IF($A52=SoilCat,IF($B52=DrainCat,IF(H$3=ESALCat,Design!$AH$4:$AQ$27)))) -> 4 | I52: =SUM(IF($A52=SoilCat,IF($B52=DrainCat,IF(I$3=ESALCat,Design!$AH$4:$AQ$27)))) -> 4 | J52: =SUM(IF($A52=SoilCat,IF($B52=DrainCat,IF(J$3=ESALCat,Design!$AH$4:$AQ$27)))) -> 4 | K52: =SUM(IF($A52=SoilCat,IF($B52=DrainCat,IF(K$3=ESALCat,Design!$AH$4:$AQ$27)))) -> 6 | L52: =SUM(IF($A52=SoilCat,IF($B52=DrainCat,IF(L$3=ESALCat,Design!$AH$4:$AQ$27)))) -> 6 | M52: =SUM(IF($A52=SoilCat,IF($B52=DrainCat,IF(M$3=ESALCat,Design!$AH$4:$AQ$27)))) -> 6 | N52: =SUM(IF($A52=SoilCat,IF($B52=DrainCat,IF(N$3=ESALCat,Design!$AH$4:$AQ$27)))) -> 6 | O52: =SUM(IF($A52=SoilCat,IF($B52=DrainCat,IF(O$3=ESALCat,Design!$AH$4:$AQ$27)))) -> 6
A53: 6 | B53: Good | E53: Unbound Dense Graded Subbase | F53: =SUM(IF($A53=SoilCat,IF($B53=DrainCat,IF(F$3=ESALCat,Design!$BB$4:$BK$27)))) -> 0 | G53: =SUM(IF($A53=SoilCat,IF($B53=DrainCat,IF(G$3=ESALCat,Design!$BB$4:$BK$27)))) -> 0 | H53: =SUM(IF($A53=SoilCat,IF($B53=DrainCat,IF(H$3=ESALCat,Design!$BB$4:$BK$27)))) -> 0 | I53: =SUM(IF($A53=SoilCat,IF($B53=DrainCat,IF(I$3=ESALCat,Design!$BB$4:$BK$27)))) -> 6 | J53: =SUM(IF($A53=SoilCat,IF($B53=DrainCat,IF(J$3=ESALCat,Design!$BB$4:$BK$27)))) -> 6 | K53: =SUM(IF($A53=SoilCat,IF($B53=DrainCat,IF(K$3=ESALCat,Design!$BB$4:$BK$27)))) -> 7 | L53: =SUM(IF($A53=SoilCat,IF($B53=DrainCat,IF(L$3=ESALCat,Design!$BB$4:$BK$27)))) -> 12 | M53: =SUM(IF($A53=SoilCat,IF($B53=DrainCat,IF(M$3=ESALCat,Design!$BB$4:$BK$27)))) -> 16 | N53: =SUM(IF($A53=SoilCat,IF($B53=DrainCat,IF(N$3=ESALCat,Design!$BB$4:$BK$27)))) -> 23 | O53: =SUM(IF($A53=SoilCat,IF($B53=DrainCat,IF(O$3=ESALCat,Design!$BB$4:$BK$27)))) -> 29
A54: 6 | B54: Fair | D54: Fair | E54: Pavers and Bedding | F54: =SUM(IF($A54=SoilCat,IF($B54=DrainCat,IF(F$3=ESALCat,Design!$N$4:$W$27)))) -> 4.125 | G54: =SUM(IF($A54=SoilCat,IF($B54=DrainCat,IF(G$3=ESALCat,Design!$N$4:$W$27)))) -> 4.125 | H54: =SUM(IF($A54=SoilCat,IF($B54=DrainCat,IF(H$3=ESALCat,Design!$N$4:$W$27)))) -> 4.125 | I54: =SUM(IF($A54=SoilCat,IF($B54=DrainCat,IF(I$3=ESALCat,Design!$N$4:$W$27)))) -> 4.125 | J54: =SUM(IF($A54=SoilCat,IF($B54=DrainCat,IF(J$3=ESALCat,Design!$N$4:$W$27)))) -> 4.125 | K54: =SUM(IF($A54=SoilCat,IF($B54=DrainCat,IF(K$3=ESALCat,Design!$N$4:$W$27)))) -> 4.125 | L54: =SUM(IF($A54=SoilCat,IF($B54=DrainCat,IF(L$3=ESALCat,Design!$N$4:$W$27)))) -> 4.125 | M54: =SUM(IF($A54=SoilCat,IF($B54=DrainCat,IF(M$3=ESALCat,Design!$N$4:$W$27)))) -> 4.125 | N54: =SUM(IF($A54=SoilCat,IF($B54=DrainCat,IF(N$3=ESALCat,Design!$N$4:$W$27)))) -> 4.125 | O54: =SUM(IF($A54=SoilCat,IF($B54=DrainCat,IF(O$3=ESALCat,Design!$N$4:$W$27)))) -> 4.125
A55: 6 | B55: Fair | E55: Unbound Dense Graded Base | F55: =SUM(IF($A55=SoilCat,IF($B55=DrainCat,IF(F$3=ESALCat,Design!$AH$4:$AQ$27)))) -> 4 | G55: =SUM(IF($A55=SoilCat,IF($B55=DrainCat,IF(G$3=ESALCat,Design!$AH$4:$AQ$27)))) -> 4 | H55: =SUM(IF($A55=SoilCat,IF($B55=DrainCat,IF(H$3=ESALCat,Design!$AH$4:$AQ$27)))) -> 4 | I55: =SUM(IF($A55=SoilCat,IF($B55=DrainCat,IF(I$3=ESALCat,Design!$AH$4:$AQ$27)))) -> 4 | J55: =SUM(IF($A55=SoilCat,IF($B55=DrainCat,IF(J$3=ESALCat,Design!$AH$4:$AQ$27)))) -> 4 | K55: =SUM(IF($A55=SoilCat,IF($B55=DrainCat,IF(K$3=ESALCat,Design!$AH$4:$AQ$27)))) -> 6 | L55: =SUM(IF($A55=SoilCat,IF($B55=DrainCat,IF(L$3=ESALCat,Design!$AH$4:$AQ$27)))) -> 6 | M55: =SUM(IF($A55=SoilCat,IF($B55=DrainCat,IF(M$3=ESALCat,Design!$AH$4:$AQ$27)))) -> 6 | N55: =SUM(IF($A55=SoilCat,IF($B55=DrainCat,IF(N$3=ESALCat,Design!$AH$4:$AQ$27)))) -> 6 | O55: =SUM(IF($A55=SoilCat,IF($B55=DrainCat,IF(O$3=ESALCat,Design!$AH$4:$AQ$27)))) -> 6
A56: 6 | B56: Fair | E56: Unbound Dense Graded Subbase | F56: =SUM(IF($A56=SoilCat,IF($B56=DrainCat,IF(F$3=ESALCat,Design!$BB$4:$BK$27)))) -> 0 | G56: =SUM(IF($A56=SoilCat,IF($B56=DrainCat,IF(G$3=ESALCat,Design!$BB$4:$BK$27)))) -> 0 | H56: =SUM(IF($A56=SoilCat,IF($B56=DrainCat,IF(H$3=ESALCat,Design!$BB$4:$BK$27)))) -> 6 | I56: =SUM(IF($A56=SoilCat,IF($B56=DrainCat,IF(I$3=ESALCat,Design!$BB$4:$BK$27)))) -> 6 | J56: =SUM(IF($A56=SoilCat,IF($B56=DrainCat,IF(J$3=ESALCat,Design!$BB$4:$BK$27)))) -> 10 | K56: =SUM(IF($A56=SoilCat,IF($B56=DrainCat,IF(K$3=ESALCat,Design!$BB$4:$BK$27)))) -> 13 | L56: =SUM(IF($A56=SoilCat,IF($B56=DrainCat,IF(L$3=ESALCat,Design!$BB$4:$BK$27)))) -> 17 | M56: =SUM(IF($A56=SoilCat,IF($B56=DrainCat,IF(M$3=ESALCat,Design!$BB$4:$BK$27)))) -> 22 | N56: =SUM(IF($A56=SoilCat,IF($B56=DrainCat,IF(N$3=ESALCat,Design!$BB$4:$BK$27)))) -> 30 | O56: =SUM(IF($A56=SoilCat,IF($B56=DrainCat,IF(O$3=ESALCat,Design!$BB$4:$BK$27)))) -> 36
A57: 6 | B57: Poor | D57: Poor | E57: Pavers and Bedding | F57: =SUM(IF($A57=SoilCat,IF($B57=DrainCat,IF(F$3=ESALCat,Design!$N$4:$W$27)))) -> 4.125 | G57: =SUM(IF($A57=SoilCat,IF($B57=DrainCat,IF(G$3=ESALCat,Design!$N$4:$W$27)))) -> 4.125 | H57: =SUM(IF($A57=SoilCat,IF($B57=DrainCat,IF(H$3=ESALCat,Design!$N$4:$W$27)))) -> 4.125 | I57: =SUM(IF($A57=SoilCat,IF($B57=DrainCat,IF(I$3=ESALCat,Design!$N$4:$W$27)))) -> 4.125 | J57: =SUM(IF($A57=SoilCat,IF($B57=DrainCat,IF(J$3=ESALCat,Design!$N$4:$W$27)))) -> 4.125 | K57: =SUM(IF($A57=SoilCat,IF($B57=DrainCat,IF(K$3=ESALCat,Design!$N$4:$W$27)))) -> 4.125 | L57: =SUM(IF($A57=SoilCat,IF($B57=DrainCat,IF(L$3=ESALCat,Design!$N$4:$W$27)))) -> 4.125 | M57: =SUM(IF($A57=SoilCat,IF($B57=DrainCat,IF(M$3=ESALCat,Design!$N$4:$W$27)))) -> 4.125 | N57: =SUM(IF($A57=SoilCat,IF($B57=DrainCat,IF(N$3=ESALCat,Design!$N$4:$W$27)))) -> 4.125 | O57: =SUM(IF($A57=SoilCat,IF($B57=DrainCat,IF(O$3=ESALCat,Design!$N$4:$W$27)))) -> 4.125
A58: 6 | B58: Poor | E58: Unbound Dense Graded Base | F58: =SUM(IF($A58=SoilCat,IF($B58=DrainCat,IF(F$3=ESALCat,Design!$AH$4:$AQ$27)))) -> 4 | G58: =SUM(IF($A58=SoilCat,IF($B58=DrainCat,IF(G$3=ESALCat,Design!$AH$4:$AQ$27)))) -> 4 | H58: =SUM(IF($A58=SoilCat,IF($B58=DrainCat,IF(H$3=ESALCat,Design!$AH$4:$AQ$27)))) -> 4 | I58: =SUM(IF($A58=SoilCat,IF($B58=DrainCat,IF(I$3=ESALCat,Design!$AH$4:$AQ$27)))) -> 4 | J58: =SUM(IF($A58=SoilCat,IF($B58=DrainCat,IF(J$3=ESALCat,Design!$AH$4:$AQ$27)))) -> 4 | K58: =SUM(IF($A58=SoilCat,IF($B58=DrainCat,IF(K$3=ESALCat,Design!$AH$4:$AQ$27)))) -> 6 | L58: =SUM(IF($A58=SoilCat,IF($B58=DrainCat,IF(L$3=ESALCat,Design!$AH$4:$AQ$27)))) -> 6 | M58: =SUM(IF($A58=SoilCat,IF($B58=DrainCat,IF(M$3=ESALCat,Design!$AH$4:$AQ$27)))) -> 6 | N58: =SUM(IF($A58=SoilCat,IF($B58=DrainCat,IF(N$3=ESALCat,Design!$AH$4:$AQ$27)))) -> 6 | O58: =SUM(IF($A58=SoilCat,IF($B58=DrainCat,IF(O$3=ESALCat,Design!$AH$4:$AQ$27)))) -> 6
A59: 6 | B59: Poor | E59: Unbound Dense Graded Subbase | F59: =SUM(IF($A59=SoilCat,IF($B59=DrainCat,IF(F$3=ESALCat,Design!$BB$4:$BK$27)))) -> 0 | G59: =SUM(IF($A59=SoilCat,IF($B59=DrainCat,IF(G$3=ESALCat,Design!$BB$4:$BK$27)))) -> 6 | H59: =SUM(IF($A59=SoilCat,IF($B59=DrainCat,IF(H$3=ESALCat,Design!$BB$4:$BK$27)))) -> 6 | I59: =SUM(IF($A59=SoilCat,IF($B59=DrainCat,IF(I$3=ESALCat,Design!$BB$4:$BK$27)))) -> 10 | J59: =SUM(IF($A59=SoilCat,IF($B59=DrainCat,IF(J$3=ESALCat,Design!$BB$4:$BK$27)))) -> 15 | K59: =SUM(IF($A59=SoilCat,IF($B59=DrainCat,IF(K$3=ESALCat,Design!$BB$4:$BK$27)))) -> 18 | L59: =SUM(IF($A59=SoilCat,IF($B59=DrainCat,IF(L$3=ESALCat,Design!$BB$4:$BK$27)))) -> 23 | M59: =SUM(IF($A59=SoilCat,IF($B59=DrainCat,IF(M$3=ESALCat,Design!$BB$4:$BK$27)))) -> 29 | N59: =SUM(IF($A59=SoilCat,IF($B59=DrainCat,IF(N$3=ESALCat,Design!$BB$4:$BK$27)))) -> 36 | O59: =SUM(IF($A59=SoilCat,IF($B59=DrainCat,IF(O$3=ESALCat,Design!$BB$4:$BK$27)))) -> 42
A60: 7 | B60: Good | C60: Category 7 | D60: Good | E60: Pavers and Bedding | F60: =SUM(IF($A60=SoilCat,IF($B60=DrainCat,IF(F$3=ESALCat,Design!$N$4:$W$27)))) -> 4.125 | G60: =SUM(IF($A60=SoilCat,IF($B60=DrainCat,IF(G$3=ESALCat,Design!$N$4:$W$27)))) -> 4.125 | H60: =SUM(IF($A60=SoilCat,IF($B60=DrainCat,IF(H$3=ESALCat,Design!$N$4:$W$27)))) -> 4.125 | I60: =SUM(IF($A60=SoilCat,IF($B60=DrainCat,IF(I$3=ESALCat,Design!$N$4:$W$27)))) -> 4.125 | J60: =SUM(IF($A60=SoilCat,IF($B60=DrainCat,IF(J$3=ESALCat,Design!$N$4:$W$27)))) -> 4.125 | K60: =SUM(IF($A60=SoilCat,IF($B60=DrainCat,IF(K$3=ESALCat,Design!$N$4:$W$27)))) -> 4.125 | L60: =SUM(IF($A60=SoilCat,IF($B60=DrainCat,IF(L$3=ESALCat,Design!$N$4:$W$27)))) -> 4.125 | M60: =SUM(IF($A60=SoilCat,IF($B60=DrainCat,IF(M$3=ESALCat,Design!$N$4:$W$27)))) -> 4.125 | N60: =SUM(IF($A60=SoilCat,IF($B60=DrainCat,IF(N$3=ESALCat,Design!$N$4:$W$27)))) -> 4.125 | O60: =SUM(IF($A60=SoilCat,IF($B60=DrainCat,IF(O$3=ESALCat,Design!$N$4:$W$27)))) -> 4.125
A61: 7 | B61: Good | E61: Unbound Dense Graded Base | F61: =SUM(IF($A61=SoilCat,IF($B61=DrainCat,IF(F$3=ESALCat,Design!$AH$4:$AQ$27)))) -> 4 | G61: =SUM(IF($A61=SoilCat,IF($B61=DrainCat,IF(G$3=ESALCat,Design!$AH$4:$AQ$27)))) -> 4 | H61: =SUM(IF($A61=SoilCat,IF($B61=DrainCat,IF(H$3=ESALCat,Design!$AH$4:$AQ$27)))) -> 4 | I61: =SUM(IF($A61=SoilCat,IF($B61=DrainCat,IF(I$3=ESALCat,Design!$AH$4:$AQ$27)))) -> 4 | J61: =SUM(IF($A61=SoilCat,IF($B61=DrainCat,IF(J$3=ESALCat,Design!$AH$4:$AQ$27)))) -> 4 | K61: =SUM(IF($A61=SoilCat,IF($B61=DrainCat,IF(K$3=ESALCat,Design!$AH$4:$AQ$27)))) -> 6 | L61: =SUM(IF($A61=SoilCat,IF($B61=DrainCat,IF(L$3=ESALCat,Design!$AH$4:$AQ$27)))) -> 6 | M61: =SUM(IF($A61=SoilCat,IF($B61=DrainCat,IF(M$3=ESALCat,Design!$AH$4:$AQ$27)))) -> 6 | N61: =SUM(IF($A61=SoilCat,IF($B61=DrainCat,IF(N$3=ESALCat,Design!$AH$4:$AQ$27)))) -> 6 | O61: =SUM(IF($A61=SoilCat,IF($B61=DrainCat,IF(O$3=ESALCat,Design!$AH$4:$AQ$27)))) -> 6
A62: 7 | B62: Good | E62: Unbound Dense Graded Subbase | F62: =SUM(IF($A62=SoilCat,IF($B62=DrainCat,IF(F$3=ESALCat,Design!$BB$4:$BK$27)))) -> 0 | G62: =SUM(IF($A62=SoilCat,IF($B62=DrainCat,IF(G$3=ESALCat,Design!$BB$4:$BK$27)))) -> 0 | H62: =SUM(IF($A62=SoilCat,IF($B62=DrainCat,IF(H$3=ESALCat,Design!$BB$4:$BK$27)))) -> 6 | I62: =SUM(IF($A62=SoilCat,IF($B62=DrainCat,IF(I$3=ESALCat,Design!$BB$4:$BK$27)))) -> 6 | J62: =SUM(IF($A62=SoilCat,IF($B62=DrainCat,IF(J$3=ESALCat,Design!$BB$4:$BK$27)))) -> 8 | K62: =SUM(IF($A62=SoilCat,IF($B62=DrainCat,IF(K$3=ESALCat,Design!$BB$4:$BK$27)))) -> 10 | L62: =SUM(IF($A62=SoilCat,IF($B62=DrainCat,IF(L$3=ESALCat,Design!$BB$4:$BK$27)))) -> 15 | M62: =SUM(IF($A62=SoilCat,IF($B62=DrainCat,IF(M$3=ESALCat,Design!$BB$4:$BK$27)))) -> 20 | N62: =SUM(IF($A62=SoilCat,IF($B62=DrainCat,IF(N$3=ESALCat,Design!$BB$4:$BK$27)))) -> 27 | O62: =SUM(IF($A62=SoilCat,IF($B62=DrainCat,IF(O$3=ESALCat,Design!$BB$4:$BK$27)))) -> 33
A63: 7 | B63: Fair | D63: Fair | E63: Pavers and Bedding | F63: =SUM(IF($A63=SoilCat,IF($B63=DrainCat,IF(F$3=ESALCat,Design!$N$4:$W$27)))) -> 4.125 | G63: =SUM(IF($A63=SoilCat,IF($B63=DrainCat,IF(G$3=ESALCat,Design!$N$4:$W$27)))) -> 4.125 | H63: =SUM(IF($A63=SoilCat,IF($B63=DrainCat,IF(H$3=ESALCat,Design!$N$4:$W$27)))) -> 4.125 | I63: =SUM(IF($A63=SoilCat,IF($B63=DrainCat,IF(I$3=ESALCat,Design!$N$4:$W$27)))) -> 4.125 | J63: =SUM(IF($A63=SoilCat,IF($B63=DrainCat,IF(J$3=ESALCat,Design!$N$4:$W$27)))) -> 4.125 | K63: =SUM(IF($A63=SoilCat,IF($B63=DrainCat,IF(K$3=ESALCat,Design!$N$4:$W$27)))) -> 4.125 | L63: =SUM(IF($A63=SoilCat,IF($B63=DrainCat,IF(L$3=ESALCat,Design!$N$4:$W$27)))) -> 4.125 | M63: =SUM(IF($A63=SoilCat,IF($B63=DrainCat,IF(M$3=ESALCat,Design!$N$4:$W$27)))) -> 4.125 | N63: =SUM(IF($A63=SoilCat,IF($B63=DrainCat,IF(N$3=ESALCat,Design!$N$4:$W$27)))) -> 4.125 | O63: =SUM(IF($A63=SoilCat,IF($B63=DrainCat,IF(O$3=ESALCat,Design!$N$4:$W$27)))) -> 4.125
A64: 7 | B64: Fair | E64: Unbound Dense Graded Base | F64: =SUM(IF($A64=SoilCat,IF($B64=DrainCat,IF(F$3=ESALCat,Design!$AH$4:$AQ$27)))) -> 4 | G64: =SUM(IF($A64=SoilCat,IF($B64=DrainCat,IF(G$3=ESALCat,Design!$AH$4:$AQ$27)))) -> 4 | H64: =SUM(IF($A64=SoilCat,IF($B64=DrainCat,IF(H$3=ESALCat,Design!$AH$4:$AQ$27)))) -> 4 | I64: =SUM(IF($A64=SoilCat,IF($B64=DrainCat,IF(I$3=ESALCat,Design!$AH$4:$AQ$27)))) -> 4 | J64: =SUM(IF($A64=SoilCat,IF($B64=DrainCat,IF(J$3=ESALCat,Design!$AH$4:$AQ$27)))) -> 4 | K64: =SUM(IF($A64=SoilCat,IF($B64=DrainCat,IF(K$3=ESALCat,Design!$AH$4:$AQ$27)))) -> 6 | L64: =SUM(IF($A64=SoilCat,IF($B64=DrainCat,IF(L$3=ESALCat,Design!$AH$4:$AQ$27)))) -> 6 | M64: =SUM(IF($A64=SoilCat,IF($B64=DrainCat,IF(M$3=ESALCat,Design!$AH$4:$AQ$27)))) -> 6 | N64: =SUM(IF($A64=SoilCat,IF($B64=DrainCat,IF(N$3=ESALCat,Design!$AH$4:$AQ$27)))) -> 6 | O64: =SUM(IF($A64=SoilCat,IF($B64=DrainCat,IF(O$3=ESALCat,Design!$AH$4:$AQ$27)))) -> 6
A65: 7 | B65: Fair | E65: Unbound Dense Graded Subbase | F65: =SUM(IF($A65=SoilCat,IF($B65=DrainCat,IF(F$3=ESALCat,Design!$BB$4:$BK$27)))) -> 0 | G65: =SUM(IF($A65=SoilCat,IF($B65=DrainCat,IF(G$3=ESALCat,Design!$BB$4:$BK$27)))) -> 0 | H65: =SUM(IF($A65=SoilCat,IF($B65=DrainCat,IF(H$3=ESALCat,Design!$BB$4:$BK$27)))) -> 6 | I65: =SUM(IF($A65=SoilCat,IF($B65=DrainCat,IF(I$3=ESALCat,Design!$BB$4:$BK$27)))) -> 8 | J65: =SUM(IF($A65=SoilCat,IF($B65=DrainCat,IF(J$3=ESALCat,Design!$BB$4:$BK$27)))) -> 12 | K65: =SUM(IF($A65=SoilCat,IF($B65=DrainCat,IF(K$3=ESALCat,Design!$BB$4:$BK$27)))) -> 15 | L65: =SUM(IF($A65=SoilCat,IF($B65=DrainCat,IF(L$3=ESALCat,Design!$BB$4:$BK$27)))) -> 20 | M65: =SUM(IF($A65=SoilCat,IF($B65=DrainCat,IF(M$3=ESALCat,Design!$BB$4:$BK$27)))) -> 25 | N65: =SUM(IF($A65=SoilCat,IF($B65=DrainCat,IF(N$3=ESALCat,Design!$BB$4:$BK$27)))) -> 33 | O65: =SUM(IF($A65=SoilCat,IF($B65=DrainCat,IF(O$3=ESALCat,Design!$BB$4:$BK$27)))) -> 39
A66: 7 | B66: Poor | D66: Poor | E66: Pavers and Bedding | F66: =SUM(IF($A66=SoilCat,IF($B66=DrainCat,IF(F$3=ESALCat,Design!$N$4:$W$27)))) -> 4.125 | G66: =SUM(IF($A66=SoilCat,IF($B66=DrainCat,IF(G$3=ESALCat,Design!$N$4:$W$27)))) -> 4.125 | H66: =SUM(IF($A66=SoilCat,IF($B66=DrainCat,IF(H$3=ESALCat,Design!$N$4:$W$27)))) -> 4.125 | I66: =SUM(IF($A66=SoilCat,IF($B66=DrainCat,IF(I$3=ESALCat,Design!$N$4:$W$27)))) -> 4.125 | J66: =SUM(IF($A66=SoilCat,IF($B66=DrainCat,IF(J$3=ESALCat,Design!$N$4:$W$27)))) -> 4.125 | K66: =SUM(IF($A66=SoilCat,IF($B66=DrainCat,IF(K$3=ESALCat,Design!$N$4:$W$27)))) -> 4.125 | L66: =SUM(IF($A66=SoilCat,IF($B66=DrainCat,IF(L$3=ESALCat,Design!$N$4:$W$27)))) -> 4.125 | M66: =SUM(IF($A66=SoilCat,IF($B66=DrainCat,IF(M$3=ESALCat,Design!$N$4:$W$27)))) -> 4.125 | N66: =SUM(IF($A66=SoilCat,IF($B66=DrainCat,IF(N$3=ESALCat,Design!$N$4:$W$27)))) -> 4.125 | O66: =SUM(IF($A66=SoilCat,IF($B66=DrainCat,IF(O$3=ESALCat,Design!$N$4:$W$27)))) -> 4.125
A67: 7 | B67: Poor | E67: Unbound Dense Graded Base | F67: =SUM(IF($A67=SoilCat,IF($B67=DrainCat,IF(F$3=ESALCat,Design!$AH$4:$AQ$27)))) -> 4 | G67: =SUM(IF($A67=SoilCat,IF($B67=DrainCat,IF(G$3=ESALCat,Design!$AH$4:$AQ$27)))) -> 4 | H67: =SUM(IF($A67=SoilCat,IF($B67=DrainCat,IF(H$3=ESALCat,Design!$AH$4:$AQ$27)))) -> 4 | I67: =SUM(IF($A67=SoilCat,IF($B67=DrainCat,IF(I$3=ESALCat,Design!$AH$4:$AQ$27)))) -> 4 | J67: =SUM(IF($A67=SoilCat,IF($B67=DrainCat,IF(J$3=ESALCat,Design!$AH$4:$AQ$27)))) -> 4 | K67: =SUM(IF($A67=SoilCat,IF($B67=DrainCat,IF(K$3=ESALCat,Design!$AH$4:$AQ$27)))) -> 6 | L67: =SUM(IF($A67=SoilCat,IF($B67=DrainCat,IF(L$3=ESALCat,Design!$AH$4:$AQ$27)))) -> 6 | M67: =SUM(IF($A67=SoilCat,IF($B67=DrainCat,IF(M$3=ESALCat,Design!$AH$4:$AQ$27)))) -> 6 | N67: =SUM(IF($A67=SoilCat,IF($B67=DrainCat,IF(N$3=ESALCat,Design!$AH$4:$AQ$27)))) -> 6 | O67: =SUM(IF($A67=SoilCat,IF($B67=DrainCat,IF(O$3=ESALCat,Design!$AH$4:$AQ$27)))) -> 6
A68: 7 | B68: Poor | E68: Unbound Dense Graded Subbase | F68: =SUM(IF($A68=SoilCat,IF($B68=DrainCat,IF(F$3=ESALCat,Design!$BB$4:$BK$27)))) -> 6 | G68: =SUM(IF($A68=SoilCat,IF($B68=DrainCat,IF(G$3=ESALCat,Design!$BB$4:$BK$27)))) -> 6 | H68: =SUM(IF($A68=SoilCat,IF($B68=DrainCat,IF(H$3=ESALCat,Design!$BB$4:$BK$27)))) -> 9 | I68: =SUM(IF($A68=SoilCat,IF($B68=DrainCat,IF(I$3=ESALCat,Design!$BB$4:$BK$27)))) -> 14 | J68: =SUM(IF($A68=SoilCat,IF($B68=DrainCat,IF(J$3=ESALCat,Design!$BB$4:$BK$27)))) -> 18 | K68: =SUM(IF($A68=SoilCat,IF($B68=DrainCat,IF(K$3=ESALCat,Design!$BB$4:$BK$27)))) -> 22 | L68: =SUM(IF($A68=SoilCat,IF($B68=DrainCat,IF(L$3=ESALCat,Design!$BB$4:$BK$27)))) -> 27 | M68: =SUM(IF($A68=SoilCat,IF($B68=DrainCat,IF(M$3=ESALCat,Design!$BB$4:$BK$27)))) -> 33 | N68: =SUM(IF($A68=SoilCat,IF($B68=DrainCat,IF(N$3=ESALCat,Design!$BB$4:$BK$27)))) -> 41 | O68: =SUM(IF($A68=SoilCat,IF($B68=DrainCat,IF(O$3=ESALCat,Design!$BB$4:$BK$27)))) -> 47
A69: 8 | B69: Good | C69: Category 8 | D69: Good | E69: Pavers and Bedding | F69: =SUM(IF($A69=SoilCat,IF($B69=DrainCat,IF(F$3=ESALCat,Design!$N$4:$W$27)))) -> 4.125 | G69: =SUM(IF($A69=SoilCat,IF($B69=DrainCat,IF(G$3=ESALCat,Design!$N$4:$W$27)))) -> 4.125 | H69: =SUM(IF($A69=SoilCat,IF($B69=DrainCat,IF(H$3=ESALCat,Design!$N$4:$W$27)))) -> 4.125 | I69: =SUM(IF($A69=SoilCat,IF($B69=DrainCat,IF(I$3=ESALCat,Design!$N$4:$W$27)))) -> 4.125 | J69: =SUM(IF($A69=SoilCat,IF($B69=DrainCat,IF(J$3=ESALCat,Design!$N$4:$W$27)))) -> 4.125 | K69: =SUM(IF($A69=SoilCat,IF($B69=DrainCat,IF(K$3=ESALCat,Design!$N$4:$W$27)))) -> 4.125 | L69: =SUM(IF($A69=SoilCat,IF($B69=DrainCat,IF(L$3=ESALCat,Design!$N$4:$W$27)))) -> 4.125 | M69: =SUM(IF($A69=SoilCat,IF($B69=DrainCat,IF(M$3=ESALCat,Design!$N$4:$W$27)))) -> 4.125 | N69: =SUM(IF($A69=SoilCat,IF($B69=DrainCat,IF(N$3=ESALCat,Design!$N$4:$W$27)))) -> 4.125 | O69: =SUM(IF($A69=SoilCat,IF($B69=DrainCat,IF(O$3=ESALCat,Design!$N$4:$W$27)))) -> 4.125
A70: 8 | B70: Good | E70: Unbound Dense Graded Base | F70: =SUM(IF($A70=SoilCat,IF($B70=DrainCat,IF(F$3=ESALCat,Design!$AH$4:$AQ$27)))) -> 4 | G70: =SUM(IF($A70=SoilCat,IF($B70=DrainCat,IF(G$3=ESALCat,Design!$AH$4:$AQ$27)))) -> 4 | H70: =SUM(IF($A70=SoilCat,IF($B70=DrainCat,IF(H$3=ESALCat,Design!$AH$4:$AQ$27)))) -> 4 | I70: =SUM(IF($A70=SoilCat,IF($B70=DrainCat,IF(I$3=ESALCat,Design!$AH$4:$AQ$27)))) -> 4 | J70: =SUM(IF($A70=SoilCat,IF($B70=DrainCat,IF(J$3=ESALCat,Design!$AH$4:$AQ$27)))) -> 4 | K70: =SUM(IF($A70=SoilCat,IF($B70=DrainCat,IF(K$3=ESALCat,Design!$AH$4:$AQ$27)))) -> 6 | L70: =SUM(IF($A70=SoilCat,IF($B70=DrainCat,IF(L$3=ESALCat,Design!$AH$4:$AQ$27)))) -> 6 | M70: =SUM(IF($A70=SoilCat,IF($B70=DrainCat,IF(M$3=ESALCat,Design!$AH$4:$AQ$27)))) -> 6 | N70: =SUM(IF($A70=SoilCat,IF($B70=DrainCat,IF(N$3=ESALCat,Design!$AH$4:$AQ$27)))) -> 6 | O70: =SUM(IF($A70=SoilCat,IF($B70=DrainCat,IF(O$3=ESALCat,Design!$AH$4:$AQ$27)))) -> 6
A71: 8 | B71: Good | E71: Unbound Dense Graded Subbase | F71: =SUM(IF($A71=SoilCat,IF($B71=DrainCat,IF(F$3=ESALCat,Design!$BB$4:$BK$27)))) -> 0 | G71: =SUM(IF($A71=SoilCat,IF($B71=DrainCat,IF(G$3=ESALCat,Design!$BB$4:$BK$27)))) -> 0 | H71: =SUM(IF($A71=SoilCat,IF($B71=DrainCat,IF(H$3=ESALCat,Design!$BB$4:$BK$27)))) -> 6 | I71: =SUM(IF($A71=SoilCat,IF($B71=DrainCat,IF(I$3=ESALCat,Design!$BB$4:$BK$27)))) -> 6 | J71: =SUM(IF($A71=SoilCat,IF($B71=DrainCat,IF(J$3=ESALCat,Design!$BB$4:$BK$27)))) -> 10 | K71: =SUM(IF($A71=SoilCat,IF($B71=DrainCat,IF(K$3=ESALCat,Design!$BB$4:$BK$27)))) -> 13 | L71: =SUM(IF($A71=SoilCat,IF($B71=DrainCat,IF(L$3=ESALCat,Design!$BB$4:$BK$27)))) -> 17 | M71: =SUM(IF($A71=SoilCat,IF($B71=DrainCat,IF(M$3=ESALCat,Design!$BB$4:$BK$27)))) -> 22 | N71: =SUM(IF($A71=SoilCat,IF($B71=DrainCat,IF(N$3=ESALCat,Design!$BB$4:$BK$27)))) -> 30 | O71: =SUM(IF($A71=SoilCat,IF($B71=DrainCat,IF(O$3=ESALCat,Design!$BB$4:$BK$27)))) -> 36
A72: 8 | B72: Fair | D72: Fair | E72: Pavers and Bedding | F72: =SUM(IF($A72=SoilCat,IF($B72=DrainCat,IF(F$3=ESALCat,Design!$N$4:$W$27)))) -> 4.125 | G72: =SUM(IF($A72=SoilCat,IF($B72=DrainCat,IF(G$3=ESALCat,Design!$N$4:$W$27)))) -> 4.125 | H72: =SUM(IF($A72=SoilCat,IF($B72=DrainCat,IF(H$3=ESALCat,Design!$N$4:$W$27)))) -> 4.125 | I72: =SUM(IF($A72=SoilCat,IF($B72=DrainCat,IF(I$3=ESALCat,Design!$N$4:$W$27)))) -> 4.125 | J72: =SUM(IF($A72=SoilCat,IF($B72=DrainCat,IF(J$3=ESALCat,Design!$N$4:$W$27)))) -> 4.125 | K72: =SUM(IF($A72=SoilCat,IF($B72=DrainCat,IF(K$3=ESALCat,Design!$N$4:$W$27)))) -> 4.125 | L72: =SUM(IF($A72=SoilCat,IF($B72=DrainCat,IF(L$3=ESALCat,Design!$N$4:$W$27)))) -> 4.125 | M72: =SUM(IF($A72=SoilCat,IF($B72=DrainCat,IF(M$3=ESALCat,Design!$N$4:$W$27)))) -> 4.125 | N72: =SUM(IF($A72=SoilCat,IF($B72=DrainCat,IF(N$3=ESALCat,Design!$N$4:$W$27)))) -> 4.125 | O72: =SUM(IF($A72=SoilCat,IF($B72=DrainCat,IF(O$3=ESALCat,Design!$N$4:$W$27)))) -> 4.125
A73: 8 | B73: Fair | E73: Unbound Dense Graded Base | F73: =SUM(IF($A73=SoilCat,IF($B73=DrainCat,IF(F$3=ESALCat,Design!$AH$4:$AQ$27)))) -> 4 | G73: =SUM(IF($A73=SoilCat,IF($B73=DrainCat,IF(G$3=ESALCat,Design!$AH$4:$AQ$27)))) -> 4 | H73: =SUM(IF($A73=SoilCat,IF($B73=DrainCat,IF(H$3=ESALCat,Design!$AH$4:$AQ$27)))) -> 4 | I73: =SUM(IF($A73=SoilCat,IF($B73=DrainCat,IF(I$3=ESALCat,Design!$AH$4:$AQ$27)))) -> 4 | J73: =SUM(IF($A73=SoilCat,IF($B73=DrainCat,IF(J$3=ESALCat,Design!$AH$4:$AQ$27)))) -> 4 | K73: =SUM(IF($A73=SoilCat,IF($B73=DrainCat,IF(K$3=ESALCat,Design!$AH$4:$AQ$27)))) -> 6 | L73: =SUM(IF($A73=SoilCat,IF($B73=DrainCat,IF(L$3=ESALCat,Design!$AH$4:$AQ$27)))) -> 6 | M73: =SUM(IF($A73=SoilCat,IF($B73=DrainCat,IF(M$3=ESALCat,Design!$AH$4:$AQ$27)))) -> 6 | N73: =SUM(IF($A73=SoilCat,IF($B73=DrainCat,IF(N$3=ESALCat,Design!$AH$4:$AQ$27)))) -> 6 | O73: =SUM(IF($A73=SoilCat,IF($B73=DrainCat,IF(O$3=ESALCat,Design!$AH$4:$AQ$27)))) -> 6
A74: 8 | B74: Fair | E74: Unbound Dense Graded Subbase | F74: =SUM(IF($A74=SoilCat,IF($B74=DrainCat,IF(F$3=ESALCat,Design!$BB$4:$BK$27)))) -> 0 | G74: =SUM(IF($A74=SoilCat,IF($B74=DrainCat,IF(G$3=ESALCat,Design!$BB$4:$BK$27)))) -> 0 | H74: =SUM(IF($A74=SoilCat,IF($B74=DrainCat,IF(H$3=ESALCat,Design!$BB$4:$BK$27)))) -> 6 | I74: =SUM(IF($A74=SoilCat,IF($B74=DrainCat,IF(I$3=ESALCat,Design!$BB$4:$BK$27)))) -> 8 | J74: =SUM(IF($A74=SoilCat,IF($B74=DrainCat,IF(J$3=ESALCat,Design!$BB$4:$BK$27)))) -> 12 | K74: =SUM(IF($A74=SoilCat,IF($B74=DrainCat,IF(K$3=ESALCat,Design!$BB$4:$BK$27)))) -> 15 | L74: =SUM(IF($A74=SoilCat,IF($B74=DrainCat,IF(L$3=ESALCat,Design!$BB$4:$BK$27)))) -> 20 | M74: =SUM(IF($A74=SoilCat,IF($B74=DrainCat,IF(M$3=ESALCat,Design!$BB$4:$BK$27)))) -> 25 | N74: =SUM(IF($A74=SoilCat,IF($B74=DrainCat,IF(N$3=ESALCat,Design!$BB$4:$BK$27)))) -> 33 | O74: =SUM(IF($A74=SoilCat,IF($B74=DrainCat,IF(O$3=ESALCat,Design!$BB$4:$BK$27)))) -> 39
A75: 8 | B75: Poor | D75: Poor | E75: Pavers and Bedding | F75: =SUM(IF($A75=SoilCat,IF($B75=DrainCat,IF(F$3=ESALCat,Design!$N$4:$W$27)))) -> 4.125 | G75: =SUM(IF($A75=SoilCat,IF($B75=DrainCat,IF(G$3=ESALCat,Design!$N$4:$W$27)))) -> 4.125 | H75: =SUM(IF($A75=SoilCat,IF($B75=DrainCat,IF(H$3=ESALCat,Design!$N$4:$W$27)))) -> 4.125 | I75: =SUM(IF($A75=SoilCat,IF($B75=DrainCat,IF(I$3=ESALCat,Design!$N$4:$W$27)))) -> 4.125 | J75: =SUM(IF($A75=SoilCat,IF($B75=DrainCat,IF(J$3=ESALCat,Design!$N$4:$W$27)))) -> 4.125 | K75: =SUM(IF($A75=SoilCat,IF($B75=DrainCat,IF(K$3=ESALCat,Design!$N$4:$W$27)))) -> 4.125 | L75: =SUM(IF($A75=SoilCat,IF($B75=DrainCat,IF(L$3=ESALCat,Design!$N$4:$W$27)))) -> 4.125 | M75: =SUM(IF($A75=SoilCat,IF($B75=DrainCat,IF(M$3=ESALCat,Design!$N$4:$W$27)))) -> 4.125 | N75: =SUM(IF($A75=SoilCat,IF($B75=DrainCat,IF(N$3=ESALCat,Design!$N$4:$W$27)))) -> 4.125 | O75: =SUM(IF($A75=SoilCat,IF($B75=DrainCat,IF(O$3=ESALCat,Design!$N$4:$W$27)))) -> 4.125
A76: 8 | B76: Poor | E76: Unbound Dense Graded Base | F76: =SUM(IF($A76=SoilCat,IF($B76=DrainCat,IF(F$3=ESALCat,Design!$AH$4:$AQ$27)))) -> 4 | G76: =SUM(IF($A76=SoilCat,IF($B76=DrainCat,IF(G$3=ESALCat,Design!$AH$4:$AQ$27)))) -> 4 | H76: =SUM(IF($A76=SoilCat,IF($B76=DrainCat,IF(H$3=ESALCat,Design!$AH$4:$AQ$27)))) -> 4 | I76: =SUM(IF($A76=SoilCat,IF($B76=DrainCat,IF(I$3=ESALCat,Design!$AH$4:$AQ$27)))) -> 4 | J76: =SUM(IF($A76=SoilCat,IF($B76=DrainCat,IF(J$3=ESALCat,Design!$AH$4:$AQ$27)))) -> 4 | K76: =SUM(IF($A76=SoilCat,IF($B76=DrainCat,IF(K$3=ESALCat,Design!$AH$4:$AQ$27)))) -> 6 | L76: =SUM(IF($A76=SoilCat,IF($B76=DrainCat,IF(L$3=ESALCat,Design!$AH$4:$AQ$27)))) -> 6 | M76: =SUM(IF($A76=SoilCat,IF($B76=DrainCat,IF(M$3=ESALCat,Design!$AH$4:$AQ$27)))) -> 6 | N76: =SUM(IF($A76=SoilCat,IF($B76=DrainCat,IF(N$3=ESALCat,Design!$AH$4:$AQ$27)))) -> 6 | O76: =SUM(IF($A76=SoilCat,IF($B76=DrainCat,IF(O$3=ESALCat,Design!$AH$4:$AQ$27)))) -> 6
A77: 8 | B77: Poor | E77: Unbound Dense Graded Subbase | F77: =SUM(IF($A77=SoilCat,IF($B77=DrainCat,IF(F$3=ESALCat,Design!$BB$4:$BK$27)))) -> 6 | G77: =SUM(IF($A77=SoilCat,IF($B77=DrainCat,IF(G$3=ESALCat,Design!$BB$4:$BK$27)))) -> 6 | H77: =SUM(IF($A77=SoilCat,IF($B77=DrainCat,IF(H$3=ESALCat,Design!$BB$4:$BK$27)))) -> 9 | I77: =SUM(IF($A77=SoilCat,IF($B77=DrainCat,IF(I$3=ESALCat,Design!$BB$4:$BK$27)))) -> 14 | J77: =SUM(IF($A77=SoilCat,IF($B77=DrainCat,IF(J$3=ESALCat,Design!$BB$4:$BK$27)))) -> 18 | K77: =SUM(IF($A77=SoilCat,IF($B77=DrainCat,IF(K$3=ESALCat,Design!$BB$4:$BK$27)))) -> 22 | L77: =SUM(IF($A77=SoilCat,IF($B77=DrainCat,IF(L$3=ESALCat,Design!$BB$4:$BK$27)))) -> 27 | M77: =SUM(IF($A77=SoilCat,IF($B77=DrainCat,IF(M$3=ESALCat,Design!$BB$4:$BK$27)))) -> 33 | N77: =SUM(IF($A77=SoilCat,IF($B77=DrainCat,IF(N$3=ESALCat,Design!$BB$4:$BK$27)))) -> 41 | O77: =SUM(IF($A77=SoilCat,IF($B77=DrainCat,IF(O$3=ESALCat,Design!$BB$4:$BK$27)))) -> 47

Sheet ATB
C1: ASPHALT TREATED BASE STRUCTURE THICKNESSES (in)
D3: Drainage | E3: ESALs | F3: 10000 | G3: 20000 | H3: 50000 | I3: 100000 | J3: 200000 | K3: 500000 | L3: 1000000 | M3: 2000000 | N3: 5000000 | O3: 10000000
E4: TI | F4: =9*(F3/1000000)^0.119 -> 5.202864427 | G4: =9*(G3/1000000)^0.119 -> 5.650216368 | H4: 6.301151767 | I4: 6.842936492 | J4: 7.431304875 | K4: 8.287431275 | L4: 9 | M4: 9.773836707 | N4: 10.89983541 | O4: 11.83702349
E5: Layer Type
A6: 1 | B6: Good | C6: Category 1 | D6: Good | E6: Pavers and Bedding | F6: =SUM(IF($A6=SoilCat,IF($B6=DrainCat,IF(F$3=ESALCat,Design!$N$34:$W$57)))) -> 4.125 | G6: =SUM(IF($A6=SoilCat,IF($B6=DrainCat,IF(G$3=ESALCat,Design!$N$34:$W$57)))) -> 4.125 | H6: =SUM(IF($A6=SoilCat,IF($B6=DrainCat,IF(H$3=ESALCat,Design!$N$34:$W$57)))) -> 4.125 | I6: =SUM(IF($A6=SoilCat,IF($B6=DrainCat,IF(I$3=ESALCat,Design!$N$34:$W$57)))) -> 4.125 | J6: =SUM(IF($A6=SoilCat,IF($B6=DrainCat,IF(J$3=ESALCat,Design!$N$34:$W$57)))) -> 4.125 | K6: =SUM(IF($A6=SoilCat,IF($B6=DrainCat,IF(K$3=ESALCat,Design!$N$34:$W$57)))) -> 4.125 | L6: =SUM(IF($A6=SoilCat,IF($B6=DrainCat,IF(L$3=ESALCat,Design!$N$34:$W$57)))) -> 4.125 | M6: =SUM(IF($A6=SoilCat,IF($B6=DrainCat,IF(M$3=ESALCat,Design!$N$34:$W$57)))) -> 4.125 | N6: =SUM(IF($A6=SoilCat,IF($B6=DrainCat,IF(N$3=ESALCat,Design!$N$34:$W$57)))) -> 4.125 | O6: =SUM(IF($A6=SoilCat,IF($B6=DrainCat,IF(O$3=ESALCat,Design!$N$34:$W$57)))) -> 4.125
A7: 1 | B7: Good | E7: Asphalt Treated Base | F7: =SUM(IF($A7=SoilCat,IF($B7=DrainCat,IF(F$3=ESALCat,Design!$AH$34:$AQ$57)))) -> 4 | G7: =SUM(IF($A7=SoilCat,IF($B7=DrainCat,IF(G$3=ESALCat,Design!$AH$34:$AQ$57)))) -> 4 | H7: =SUM(IF($A7=SoilCat,IF($B7=DrainCat,IF(H$3=ESALCat,Design!$AH$34:$AQ$57)))) -> 4 | I7: =SUM(IF($A7=SoilCat,IF($B7=DrainCat,IF(I$3=ESALCat,Design!$AH$34:$AQ$57)))) -> 4 | J7: =SUM(IF($A7=SoilCat,IF($B7=DrainCat,IF(J$3=ESALCat,Design!$AH$34:$AQ$57)))) -> 4 | K7: =SUM(IF($A7=SoilCat,IF($B7=DrainCat,IF(K$3=ESALCat,Design!$AH$34:$AQ$57)))) -> 4 | L7: =SUM(IF($A7=SoilCat,IF($B7=DrainCat,IF(L$3=ESALCat,Design!$AH$34:$AQ$57)))) -> 4 | M7: =SUM(IF($A7=SoilCat,IF($B7=DrainCat,IF(M$3=ESALCat,Design!$AH$34:$AQ$57)))) -> 4 | N7: =SUM(IF($A7=SoilCat,IF($B7=DrainCat,IF(N$3=ESALCat,Design!$AH$34:$AQ$57)))) -> 4 | O7: =SUM(IF($A7=SoilCat,IF($B7=DrainCat,IF(O$3=ESALCat,Design!$AH$34:$AQ$57)))) -> 4
A8: 1 | B8: Good | E8: Unbound Dense Graded Base | F8: =SUM(IF($A8=SoilCat,IF($B8=DrainCat,IF(F$3=ESALCat,Design!$BB$34:$BK$57)))) -> 4 | G8: =SUM(IF($A8=SoilCat,IF($B8=DrainCat,IF(G$3=ESALCat,Design!$BB$34:$BK$57)))) -> 4 | H8: =SUM(IF($A8=SoilCat,IF($B8=DrainCat,IF(H$3=ESALCat,Design!$BB$34:$BK$57)))) -> 4 | I8: =SUM(IF($A8=SoilCat,IF($B8=DrainCat,IF(I$3=ESALCat,Design!$BB$34:$BK$57)))) -> 4 | J8: =SUM(IF($A8=SoilCat,IF($B8=DrainCat,IF(J$3=ESALCat,Design!$BB$34:$BK$57)))) -> 4 | K8: =SUM(IF($A8=SoilCat,IF($B8=DrainCat,IF(K$3=ESALCat,Design!$BB$34:$BK$57)))) -> 6 | L8: =SUM(IF($A8=SoilCat,IF($B8=DrainCat,IF(L$3=ESALCat,Design!$BB$34:$BK$57)))) -> 6 | M8: =SUM(IF($A8=SoilCat,IF($B8=DrainCat,IF(M$3=ESALCat,Design!$BB$34:$BK$57)))) -> 6 | N8: =SUM(IF($A8=SoilCat,IF($B8=DrainCat,IF(N$3=ESALCat,Design!$BB$34:$BK$57)))) -> 6 | O8: =SUM(IF($A8=SoilCat,IF($B8=DrainCat,IF(O$3=ESALCat,Design!$BB$34:$BK$57)))) -> 7
A9: 1 | B9: Good | E9: Unbound Dense Graded Subbase | F9: =SUM(IF($A9=SoilCat,IF($B9=DrainCat,IF(F$3=ESALCat,Design!$BV$34:$CE$57)))) -> 0 | G9: =SUM(IF($A9=SoilCat,IF($B9=DrainCat,IF(G$3=ESALCat,Design!$BV$34:$CE$57)))) -> 0 | H9: =SUM(IF($A9=SoilCat,IF($B9=DrainCat,IF(H$3=ESALCat,Design!$BV$34:$CE$57)))) -> 0 | I9: =SUM(IF($A9=SoilCat,IF($B9=DrainCat,IF(I$3=ESALCat,Design!$BV$34:$CE$57)))) -> 0 | J9: =SUM(IF($A9=SoilCat,IF($B9=DrainCat,IF(J$3=ESALCat,Design!$BV$34:$CE$57)))) -> 0 | K9: =SUM(IF($A9=SoilCat,IF($B9=DrainCat,IF(K$3=ESALCat,Design!$BV$34:$CE$57)))) -> 0 | L9: =SUM(IF($A9=SoilCat,IF($B9=DrainCat,IF(L$3=ESALCat,Design!$BV$34:$CE$57)))) -> 0 | M9: =SUM(IF($A9=SoilCat,IF($B9=DrainCat,IF(M$3=ESALCat,Design!$BV$34:$CE$57)))) -> 0 | N9: =SUM(IF($A9=SoilCat,IF($B9=DrainCat,IF(N$3=ESALCat,Design!$BV$34:$CE$57)))) -> 0 | O9: =SUM(IF($A9=SoilCat,IF($B9=DrainCat,IF(O$3=ESALCat,Design!$BV$34:$CE$57)))) -> 0
A10: 1 | B10: Fair | D10: Fair | E10: Pavers and Bedding | F10: =SUM(IF($A10=SoilCat,IF($B10=DrainCat,IF(F$3=ESALCat,Design!$N$34:$W$57)))) -> 4.125 | G10: =SUM(IF($A10=SoilCat,IF($B10=DrainCat,IF(G$3=ESALCat,Design!$N$34:$W$57)))) -> 4.125 | H10: =SUM(IF($A10=SoilCat,IF($B10=DrainCat,IF(H$3=ESALCat,Design!$N$34:$W$57)))) -> 4.125 | I10: =SUM(IF($A10=SoilCat,IF($B10=DrainCat,IF(I$3=ESALCat,Design!$N$34:$W$57)))) -> 4.125 | J10: =SUM(IF($A10=SoilCat,IF($B10=DrainCat,IF(J$3=ESALCat,Design!$N$34:$W$57)))) -> 4.125 | K10: =SUM(IF($A10=SoilCat,IF($B10=DrainCat,IF(K$3=ESALCat,Design!$N$34:$W$57)))) -> 4.125 | L10: =SUM(IF($A10=SoilCat,IF($B10=DrainCat,IF(L$3=ESALCat,Design!$N$34:$W$57)))) -> 4.125 | M10: =SUM(IF($A10=SoilCat,IF($B10=DrainCat,IF(M$3=ESALCat,Design!$N$34:$W$57)))) -> 4.125 | N10: =SUM(IF($A10=SoilCat,IF($B10=DrainCat,IF(N$3=ESALCat,Design!$N$34:$W$57)))) -> 4.125 | O10: =SUM(IF($A10=SoilCat,IF($B10=DrainCat,IF(O$3=ESALCat,Design!$N$34:$W$57)))) -> 4.125
A11: 1 | B11: Fair | E11: Asphalt Treated Base | F11: =SUM(IF($A11=SoilCat,IF($B11=DrainCat,IF(F$3=ESALCat,Design!$AH$34:$AQ$57)))) -> 4 | G11: =SUM(IF($A11=SoilCat,IF($B11=DrainCat,IF(G$3=ESALCat,Design!$AH$34:$AQ$57)))) -> 4 | H11: =SUM(IF($A11=SoilCat,IF($B11=DrainCat,IF(H$3=ESALCat,Design!$AH$34:$AQ$57)))) -> 4 | I11: =SUM(IF($A11=SoilCat,IF($B11=DrainCat,IF(I$3=ESALCat,Design!$AH$34:$AQ$57)))) -> 4 | J11: =SUM(IF($A11=SoilCat,IF($B11=DrainCat,IF(J$3=ESALCat,Design!$AH$34:$AQ$57)))) -> 4 | K11: =SUM(IF($A11=SoilCat,IF($B11=DrainCat,IF(K$3=ESALCat,Design!$AH$34:$AQ$57)))) -> 4 | L11: =SUM(IF($A11=SoilCat,IF($B11=DrainCat,IF(L$3=ESALCat,Design!$AH$34:$AQ$57)))) -> 4 | M11: =SUM(IF($A11=SoilCat,IF($B11=DrainCat,IF(M$3=ESALCat,Design!$AH$34:$AQ$57)))) -> 4 | N11: =SUM(IF($A11=SoilCat,IF($B11=DrainCat,IF(N$3=ESALCat,Design!$AH$34:$AQ$57)))) -> 4 | O11: =SUM(IF($A11=SoilCat,IF($B11=DrainCat,IF(O$3=ESALCat,Design!$AH$34:$AQ$57)))) -> 4
A12: 1 | B12: Fair | E12: Unbound Dense Graded Base | F12: =SUM(IF($A12=SoilCat,IF($B12=DrainCat,IF(F$3=ESALCat,Design!$BB$34:$BK$57)))) -> 4 | G12: =SUM(IF($A12=SoilCat,IF($B12=DrainCat,IF(G$3=ESALCat,Design!$BB$34:$BK$57)))) -> 4 | H12: =SUM(IF($A12=SoilCat,IF($B12=DrainCat,IF(H$3=ESALCat,Design!$BB$34:$BK$57)))) -> 4 | I12: =SUM(IF($A12=SoilCat,IF($B12=DrainCat,IF(I$3=ESALCat,Design!$BB$34:$BK$57)))) -> 4 | J12: =SUM(IF($A12=SoilCat,IF($B12=DrainCat,IF(J$3=ESALCat,Design!$BB$34:$BK$57)))) -> 4 | K12: =SUM(IF($A12=SoilCat,IF($B12=DrainCat,IF(K$3=ESALCat,Design!$BB$34:$BK$57)))) -> 6 | L12: =SUM(IF($A12=SoilCat,IF($B12=DrainCat,IF(L$3=ESALCat,Design!$BB$34:$BK$57)))) -> 6 | M12: =SUM(IF($A12=SoilCat,IF($B12=DrainCat,IF(M$3=ESALCat,Design!$BB$34:$BK$57)))) -> 6 | N12: =SUM(IF($A12=SoilCat,IF($B12=DrainCat,IF(N$3=ESALCat,Design!$BB$34:$BK$57)))) -> 6 | O12: =SUM(IF($A12=SoilCat,IF($B12=DrainCat,IF(O$3=ESALCat,Design!$BB$34:$BK$57)))) -> 8
A13: 1 | B13: Fair | E13: Unbound Dense Graded Subbase | F13: =SUM(IF($A13=SoilCat,IF($B13=DrainCat,IF(F$3=ESALCat,Design!$BV$34:$CE$57)))) -> 0 | G13: =SUM(IF($A13=SoilCat,IF($B13=DrainCat,IF(G$3=ESALCat,Design!$BV$34:$CE$57)))) -> 0 | H13: =SUM(IF($A13=SoilCat,IF($B13=DrainCat,IF(H$3=ESALCat,Design!$BV$34:$CE$57)))) -> 0 | I13: =SUM(IF($A13=SoilCat,IF($B13=DrainCat,IF(I$3=ESALCat,Design!$BV$34:$CE$57)))) -> 0 | J13: =SUM(IF($A13=SoilCat,IF($B13=DrainCat,IF(J$3=ESALCat,Design!$BV$34:$CE$57)))) -> 0 | K13: =SUM(IF($A13=SoilCat,IF($B13=DrainCat,IF(K$3=ESALCat,Design!$BV$34:$CE$57)))) -> 0 | L13: =SUM(IF($A13=SoilCat,IF($B13=DrainCat,IF(L$3=ESALCat,Design!$BV$34:$CE$57)))) -> 0 | M13: =SUM(IF($A13=SoilCat,IF($B13=DrainCat,IF(M$3=ESALCat,Design!$BV$34:$CE$57)))) -> 0 | N13: =SUM(IF($A13=SoilCat,IF($B13=DrainCat,IF(N$3=ESALCat,Design!$BV$34:$CE$57)))) -> 0 | O13: =SUM(IF($A13=SoilCat,IF($B13=DrainCat,IF(O$3=ESALCat,Design!$BV$34:$CE$57)))) -> 0
A14: 1 | B14: Poor | D14: Poor | E14: Pavers and Bedding | F14: =SUM(IF($A14=SoilCat,IF($B14=DrainCat,IF(F$3=ESALCat,Design!$N$34:$W$57)))) -> 4.125 | G14: =SUM(IF($A14=SoilCat,IF($B14=DrainCat,IF(G$3=ESALCat,Design!$N$34:$W$57)))) -> 4.125 | H14: =SUM(IF($A14=SoilCat,IF($B14=DrainCat,IF(H$3=ESALCat,Design!$N$34:$W$57)))) -> 4.125 | I14: =SUM(IF($A14=SoilCat,IF($B14=DrainCat,IF(I$3=ESALCat,Design!$N$34:$W$57)))) -> 4.125 | J14: =SUM(IF($A14=SoilCat,IF($B14=DrainCat,IF(J$3=ESALCat,Design!$N$34:$W$57)))) -> 4.125 | K14: =SUM(IF($A14=SoilCat,IF($B14=DrainCat,IF(K$3=ESALCat,Design!$N$34:$W$57)))) -> 4.125 | L14: =SUM(IF($A14=SoilCat,IF($B14=DrainCat,IF(L$3=ESALCat,Design!$N$34:$W$57)))) -> 4.125 | M14: =SUM(IF($A14=SoilCat,IF($B14=DrainCat,IF(M$3=ESALCat,Design!$N$34:$W$57)))) -> 4.125 | N14: =SUM(IF($A14=SoilCat,IF($B14=DrainCat,IF(N$3=ESALCat,Design!$N$34:$W$57)))) -> 4.125 | O14: =SUM(IF($A14=SoilCat,IF($B14=DrainCat,IF(O$3=ESALCat,Design!$N$34:$W$57)))) -> 4.125
A15: 1 | B15: Poor | E15: Asphalt Treated Base | F15: =SUM(IF($A15=SoilCat,IF($B15=DrainCat,IF(F$3=ESALCat,Design!$AH$34:$AQ$57)))) -> 4 | G15: =SUM(IF($A15=SoilCat,IF($B15=DrainCat,IF(G$3=ESALCat,Design!$AH$34:$AQ$57)))) -> 4 | H15: =SUM(IF($A15=SoilCat,IF($B15=DrainCat,IF(H$3=ESALCat,Design!$AH$34:$AQ$57)))) -> 4 | I15: =SUM(IF($A15=SoilCat,IF($B15=DrainCat,IF(I$3=ESALCat,Design!$AH$34:$AQ$57)))) -> 4 | J15: =SUM(IF($A15=SoilCat,IF($B15=DrainCat,IF(J$3=ESALCat,Design!$AH$34:$AQ$57)))) -> 4 | K15: =SUM(IF($A15=SoilCat,IF($B15=DrainCat,IF(K$3=ESALCat,Design!$AH$34:$AQ$57)))) -> 4 | L15: =SUM(IF($A15=SoilCat,IF($B15=DrainCat,IF(L$3=ESALCat,Design!$AH$34:$AQ$57)))) -> 4 | M15: =SUM(IF($A15=SoilCat,IF($B15=DrainCat,IF(M$3=ESALCat,Design!$AH$34:$AQ$57)))) -> 4 | N15: =SUM(IF($A15=SoilCat,IF($B15=DrainCat,IF(N$3=ESALCat,Design!$AH$34:$AQ$57)))) -> 4 | O15: =SUM(IF($A15=SoilCat,IF($B15=DrainCat,IF(O$3=ESALCat,Design!$AH$34:$AQ$57)))) -> 4
A16: 1 | B16: Poor | E16: Unbound Dense Graded Base | F16: =SUM(IF($A16=SoilCat,IF($B16=DrainCat,IF(F$3=ESALCat,Design!$BB$34:$BK$57)))) -> 4 | G16: =SUM(IF($A16=SoilCat,IF($B16=DrainCat,IF(G$3=ESALCat,Design!$BB$34:$BK$57)))) -> 4 | H16: =SUM(IF($A16=SoilCat,IF($B16=DrainCat,IF(H$3=ESALCat,Design!$BB$34:$BK$57)))) -> 4 | I16: =SUM(IF($A16=SoilCat,IF($B16=DrainCat,IF(I$3=ESALCat,Design!$BB$34:$BK$57)))) -> 4 | J16: =SUM(IF($A16=SoilCat,IF($B16=DrainCat,IF(J$3=ESALCat,Design!$BB$34:$BK$57)))) -> 4 | K16: =SUM(IF($A16=SoilCat,IF($B16=DrainCat,IF(K$3=ESALCat,Design!$BB$34:$BK$57)))) -> 6 | L16: =SUM(IF($A16=SoilCat,IF($B16=DrainCat,IF(L$3=ESALCat,Design!$BB$34:$BK$57)))) -> 6 | M16: =SUM(IF($A16=SoilCat,IF($B16=DrainCat,IF(M$3=ESALCat,Design!$BB$34:$BK$57)))) -> 6 | N16: =SUM(IF($A16=SoilCat,IF($B16=DrainCat,IF(N$3=ESALCat,Design!$BB$34:$BK$57)))) -> 6 | O16: =SUM(IF($A16=SoilCat,IF($B16=DrainCat,IF(O$3=ESALCat,Design!$BB$34:$BK$57)))) -> 6
A17: 1 | B17: Poor | E17: Unbound Dense Graded Subbase | F17: =SUM(IF($A17=SoilCat,IF($B17=DrainCat,IF(F$3=ESALCat,Design!$BV$34:$CE$57)))) -> 0 | G17: =SUM(IF($A17=SoilCat,IF($B17=DrainCat,IF(G$3=ESALCat,Design!$BV$34:$CE$57)))) -> 0 | H17: =SUM(IF($A17=SoilCat,IF($B17=DrainCat,IF(H$3=ESALCat,Design!$BV$34:$CE$57)))) -> 0 | I17: =SUM(IF($A17=SoilCat,IF($B17=DrainCat,IF(I$3=ESALCat,Design!$BV$34:$CE$57)))) -> 0 | J17: =SUM(IF($A17=SoilCat,IF($B17=DrainCat,IF(J$3=ESALCat,Design!$BV$34:$CE$57)))) -> 0 | K17: =SUM(IF($A17=SoilCat,IF($B17=DrainCat,IF(K$3=ESALCat,Design!$BV$34:$CE$57)))) -> 0 | L17: =SUM(IF($A17=SoilCat,IF($B17=DrainCat,IF(L$3=ESALCat,Design!$BV$34:$CE$57)))) -> 0 | M17: =SUM(IF($A17=SoilCat,IF($B17=DrainCat,IF(M$3=ESALCat,Design!$BV$34:$CE$57)))) -> 0 | N17: =SUM(IF($A17=SoilCat,IF($B17=DrainCat,IF(N$3=ESALCat,Design!$BV$34:$CE$57)))) -> 0 | O17: =SUM(IF($A17=SoilCat,IF($B17=DrainCat,IF(O$3=ESALCat,Design!$BV$34:$CE$57)))) -> 6
A18: 2 | B18: Good | C18: Category 2 | D18: Good | E18: Pavers and Bedding | F18: =SUM(IF($A18=SoilCat,IF($B18=DrainCat,IF(F$3=ESALCat,Design!$N$34:$W$57)))) -> 4.125 | G18: =SUM(IF($A18=SoilCat,IF($B18=DrainCat,IF(G$3=ESALCat,Design!$N$34:$W$57)))) -> 4.125 | H18: =SUM(IF($A18=SoilCat,IF($B18=DrainCat,IF(H$3=ESALCat,Design!$N$34:$W$57)))) -> 4.125 | I18: =SUM(IF($A18=SoilCat,IF($B18=DrainCat,IF(I$3=ESALCat,Design!$N$34:$W$57)))) -> 4.125 | J18: =SUM(IF($A18=SoilCat,IF($B18=DrainCat,IF(J$3=ESALCat,Design!$N$34:$W$57)))) -> 4.125 | K18: =SUM(IF($A18=SoilCat,IF($B18=DrainCat,IF(K$3=ESALCat,Design!$N$34:$W$57)))) -> 4.125 | L18: =SUM(IF($A18=SoilCat,IF($B18=DrainCat,IF(L$3=ESALCat,Design!$N$34:$W$57)))) -> 4.125 | M18: =SUM(IF($A18=SoilCat,IF($B18=DrainCat,IF(M$3=ESALCat,Design!$N$34:$W$57)))) -> 4.125 | N18: =SUM(IF($A18=SoilCat,IF($B18=DrainCat,IF(N$3=ESALCat,Design!$N$34:$W$57)))) -> 4.125 | O18: =SUM(IF($A18=SoilCat,IF($B18=DrainCat,IF(O$3=ESALCat,Design!$N$34:$W$57)))) -> 4.125
A19: 2 | B19: Good | E19: Asphalt Treated Base | F19: =SUM(IF($A19=SoilCat,IF($B19=DrainCat,IF(F$3=ESALCat,Design!$AH$34:$AQ$57)))) -> 4 | G19: =SUM(IF($A19=SoilCat,IF($B19=DrainCat,IF(G$3=ESALCat,Design!$AH$34:$AQ$57)))) -> 4 | H19: =SUM(IF($A19=SoilCat,IF($B19=DrainCat,IF(H$3=ESALCat,Design!$AH$34:$AQ$57)))) -> 4 | I19: =SUM(IF($A19=SoilCat,IF($B19=DrainCat,IF(I$3=ESALCat,Design!$AH$34:$AQ$57)))) -> 4 | J19: =SUM(IF($A19=SoilCat,IF($B19=DrainCat,IF(J$3=ESALCat,Design!$AH$34:$AQ$57)))) -> 4 | K19: =SUM(IF($A19=SoilCat,IF($B19=DrainCat,IF(K$3=ESALCat,Design!$AH$34:$AQ$57)))) -> 4 | L19: =SUM(IF($A19=SoilCat,IF($B19=DrainCat,IF(L$3=ESALCat,Design!$AH$34:$AQ$57)))) -> 4 | M19: =SUM(IF($A19=SoilCat,IF($B19=DrainCat,IF(M$3=ESALCat,Design!$AH$34:$AQ$57)))) -> 4 | N19: =SUM(IF($A19=SoilCat,IF($B19=DrainCat,IF(N$3=ESALCat,Design!$AH$34:$AQ$57)))) -> 4 | O19: =SUM(IF($A19=SoilCat,IF($B19=DrainCat,IF(O$3=ESALCat,Design!$AH$34:$AQ$57)))) -> 4
A20: 2 | B20: Good | E20: Unbound Dense Graded Base | F20: =SUM(IF($A20=SoilCat,IF($B20=DrainCat,IF(F$3=ESALCat,Design!$BB$34:$BK$57)))) -> 4 | G20: =SUM(IF($A20=SoilCat,IF($B20=DrainCat,IF(G$3=ESALCat,Design!$BB$34:$BK$57)))) -> 4 | H20: =SUM(IF($A20=SoilCat,IF($B20=DrainCat,IF(H$3=ESALCat,Design!$BB$34:$BK$57)))) -> 4 | I20: =SUM(IF($A20=SoilCat,IF($B20=DrainCat,IF(I$3=ESALCat,Design!$BB$34:$BK$57)))) -> 4 | J20: =SUM(IF($A20=SoilCat,IF($B20=DrainCat,IF(J$3=ESALCat,Design!$BB$34:$BK$57)))) -> 4 | K20: =SUM(IF($A20=SoilCat,IF($B20=DrainCat,IF(K$3=ESALCat,Design!$BB$34:$BK$57)))) -> 6 | L20: =SUM(IF($A20=SoilCat,IF($B20=DrainCat,IF(L$3=ESALCat,Design!$BB$34:$BK$57)))) -> 6 | M20: =SUM(IF($A20=SoilCat,IF($B20=DrainCat,IF(M$3=ESALCat,Design!$BB$34:$BK$57)))) -> 6 | N20: =SUM(IF($A20=SoilCat,IF($B20=DrainCat,IF(N$3=ESALCat,Design!$BB$34:$BK$57)))) -> 6 | O20: =SUM(IF($A20=SoilCat,IF($B20=DrainCat,IF(O$3=ESALCat,Design!$BB$34:$BK$57)))) -> 8
A21: 2 | B21: Good | E21: Unbound Dense Graded Subbase | F21: =SUM(IF($A21=SoilCat,IF($B21=DrainCat,IF(F$3=ESALCat,Design!$BV$34:$CE$57)))) -> 0 | G21: =SUM(IF($A21=SoilCat,IF($B21=DrainCat,IF(G$3=ESALCat,Design!$BV$34:$CE$57)))) -> 0 | H21: =SUM(IF($A21=SoilCat,IF($B21=DrainCat,IF(H$3=ESALCat,Design!$BV$34:$CE$57)))) -> 0 | I21: =SUM(IF($A21=SoilCat,IF($B21=DrainCat,IF(I$3=ESALCat,Design!$BV$34:$CE$57)))) -> 0 | J21: =SUM(IF($A21=SoilCat,IF($B21=DrainCat,IF(J$3=ESALCat,Design!$BV$34:$CE$57)))) -> 0 | K21: =SUM(IF($A21=SoilCat,IF($B21=DrainCat,IF(K$3=ESALCat,Design!$BV$34:$CE$57)))) -> 0 | L21: =SUM(IF($A21=SoilCat,IF($B21=DrainCat,IF(L$3=ESALCat,Design!$BV$34:$CE$57)))) -> 0 | M21: =SUM(IF($A21=SoilCat,IF($B21=DrainCat,IF(M$3=ESALCat,Design!$BV$34:$CE$57)))) -> 0 | N21: =SUM(IF($A21=SoilCat,IF($B21=DrainCat,IF(N$3=ESALCat,Design!$BV$34:$CE$57)))) -> 0 | O21: =SUM(IF($A21=SoilCat,IF($B21=DrainCat,IF(O$3=ESALCat,Design!$BV$34:$CE$57)))) -> 0
A22: 2 | B22: Fair | D22: Fair | E22: Pavers and Bedding | F22: =SUM(IF($A22=SoilCat,IF($B22=DrainCat,IF(F$3=ESALCat,Design!$N$34:$W$57)))) -> 4.125 | G22: =SUM(IF($A22=SoilCat,IF($B22=DrainCat,IF(G$3=ESALCat,Design!$N$34:$W$57)))) -> 4.125 | H22: =SUM(IF($A22=SoilCat,IF($B22=DrainCat,IF(H$3=ESALCat,Design!$N$34:$W$57)))) -> 4.125 | I22: =SUM(IF($A22=SoilCat,IF($B22=DrainCat,IF(I$3=ESALCat,Design!$N$34:$W$57)))) -> 4.125 | J22: =SUM(IF($A22=SoilCat,IF($B22=DrainCat,IF(J$3=ESALCat,Design!$N$34:$W$57)))) -> 4.125 | K22: =SUM(IF($A22=SoilCat,IF($B22=DrainCat,IF(K$3=ESALCat,Design!$N$34:$W$57)))) -> 4.125 | L22: =SUM(IF($A22=SoilCat,IF($B22=DrainCat,IF(L$3=ESALCat,Design!$N$34:$W$57)))) -> 4.125 | M22: =SUM(IF($A22=SoilCat,IF($B22=DrainCat,IF(M$3=ESALCat,Design!$N$34:$W$57)))) -> 4.125 | N22: =SUM(IF($A22=SoilCat,IF($B22=DrainCat,IF(N$3=ESALCat,Design!$N$34:$W$57)))) -> 4.125 | O22: =SUM(IF($A22=SoilCat,IF($B22=DrainCat,IF(O$3=ESALCat,Design!$N$34:$W$57)))) -> 4.125
A23: 2 | B23: Fair | E23: Asphalt Treated Base | F23: =SUM(IF($A23=SoilCat,IF($B23=DrainCat,IF(F$3=ESALCat,Design!$AH$34:$AQ$57)))) -> 4 | G23: =SUM(IF($A23=SoilCat,IF($B23=DrainCat,IF(G$3=ESALCat,Design!$AH$34:$AQ$57)))) -> 4 | H23: =SUM(IF($A23=SoilCat,IF($B23=DrainCat,IF(H$3=ESALCat,Design!$AH$34:$AQ$57)))) -> 4 | I23: =SUM(IF($A23=SoilCat,IF($B23=DrainCat,IF(I$3=ESALCat,Design!$AH$34:$AQ$57)))) -> 4 | J23: =SUM(IF($A23=SoilCat,IF($B23=DrainCat,IF(J$3=ESALCat,Design!$AH$34:$AQ$57)))) -> 4 | K23: =SUM(IF($A23=SoilCat,IF($B23=DrainCat,IF(K$3=ESALCat,Design!$AH$34:$AQ$57)))) -> 4 | L23: =SUM(IF($A23=SoilCat,IF($B23=DrainCat,IF(L$3=ESALCat,Design!$AH$34:$AQ$57)))) -> 4 | M23: =SUM(IF($A23=SoilCat,IF($B23=DrainCat,IF(M$3=ESALCat,Design!$AH$34:$AQ$57)))) -> 4 | N23: =SUM(IF($A23=SoilCat,IF($B23=DrainCat,IF(N$3=ESALCat,Design!$AH$34:$AQ$57)))) -> 4 | O23: =SUM(IF($A23=SoilCat,IF($B23=DrainCat,IF(O$3=ESALCat,Design!$AH$34:$AQ$57)))) -> 4
A24: 2 | B24: Fair | E24: Unbound Dense Graded Base | F24: =SUM(IF($A24=SoilCat,IF($B24=DrainCat,IF(F$3=ESALCat,Design!$BB$34:$BK$57)))) -> 4 | G24: =SUM(IF($A24=SoilCat,IF($B24=DrainCat,IF(G$3=ESALCat,Design!$BB$34:$BK$57)))) -> 4 | H24: =SUM(IF($A24=SoilCat,IF($B24=DrainCat,IF(H$3=ESALCat,Design!$BB$34:$BK$57)))) -> 4 | I24: =SUM(IF($A24=SoilCat,IF($B24=DrainCat,IF(I$3=ESALCat,Design!$BB$34:$BK$57)))) -> 4 | J24: =SUM(IF($A24=SoilCat,IF($B24=DrainCat,IF(J$3=ESALCat,Design!$BB$34:$BK$57)))) -> 4 | K24: =SUM(IF($A24=SoilCat,IF($B24=DrainCat,IF(K$3=ESALCat,Design!$BB$34:$BK$57)))) -> 6 | L24: =SUM(IF($A24=SoilCat,IF($B24=DrainCat,IF(L$3=ESALCat,Design!$BB$34:$BK$57)))) -> 6 | M24: =SUM(IF($A24=SoilCat,IF($B24=DrainCat,IF(M$3=ESALCat,Design!$BB$34:$BK$57)))) -> 6 | N24: =SUM(IF($A24=SoilCat,IF($B24=DrainCat,IF(N$3=ESALCat,Design!$BB$34:$BK$57)))) -> 6 | O24: =SUM(IF($A24=SoilCat,IF($B24=DrainCat,IF(O$3=ESALCat,Design!$BB$34:$BK$57)))) -> 6
A25: 2 | B25: Fair | E25: Unbound Dense Graded Subbase | F25: =SUM(IF($A25=SoilCat,IF($B25=DrainCat,IF(F$3=ESALCat,Design!$BV$34:$CE$57)))) -> 0 | G25: =SUM(IF($A25=SoilCat,IF($B25=DrainCat,IF(G$3=ESALCat,Design!$BV$34:$CE$57)))) -> 0 | H25: =SUM(IF($A25=SoilCat,IF($B25=DrainCat,IF(H$3=ESALCat,Design!$BV$34:$CE$57)))) -> 0 | I25: =SUM(IF($A25=SoilCat,IF($B25=DrainCat,IF(I$3=ESALCat,Design!$BV$34:$CE$57)))) -> 0 | J25: =SUM(IF($A25=SoilCat,IF($B25=DrainCat,IF(J$3=ESALCat,Design!$BV$34:$CE$57)))) -> 0 | K25: =SUM(IF($A25=SoilCat,IF($B25=DrainCat,IF(K$3=ESALCat,Design!$BV$34:$CE$57)))) -> 0 | L25: =SUM(IF($A25=SoilCat,IF($B25=DrainCat,IF(L$3=ESALCat,Design!$BV$34:$CE$57)))) -> 0 | M25: =SUM(IF($A25=SoilCat,IF($B25=DrainCat,IF(M$3=ESALCat,Design!$BV$34:$CE$57)))) -> 0 | N25: =SUM(IF($A25=SoilCat,IF($B25=DrainCat,IF(N$3=ESALCat,Design!$BV$34:$CE$57)))) -> 0 | O25: =SUM(IF($A25=SoilCat,IF($B25=DrainCat,IF(O$3=ESALCat,Design!$BV$34:$CE$57)))) -> 6
A26: 2 | B26: Poor | D26: Poor | E26: Pavers and Bedding | F26: =SUM(IF($A26=SoilCat,IF($B26=DrainCat,IF(F$3=ESALCat,Design!$N$34:$W$57)))) -> 4.125 | G26: =SUM(IF($A26=SoilCat,IF($B26=DrainCat,IF(G$3=ESALCat,Design!$N$34:$W$57)))) -> 4.125 | H26: =SUM(IF($A26=SoilCat,IF($B26=DrainCat,IF(H$3=ESALCat,Design!$N$34:$W$57)))) -> 4.125 | I26: =SUM(IF($A26=SoilCat,IF($B26=DrainCat,IF(I$3=ESALCat,Design!$N$34:$W$57)))) -> 4.125 | J26: =SUM(IF($A26=SoilCat,IF($B26=DrainCat,IF(J$3=ESALCat,Design!$N$34:$W$57)))) -> 4.125 | K26: =SUM(IF($A26=SoilCat,IF($B26=DrainCat,IF(K$3=ESALCat,Design!$N$34:$W$57)))) -> 4.125 | L26: =SUM(IF($A26=SoilCat,IF($B26=DrainCat,IF(L$3=ESALCat,Design!$N$34:$W$57)))) -> 4.125 | M26: =SUM(IF($A26=SoilCat,IF($B26=DrainCat,IF(M$3=ESALCat,Design!$N$34:$W$57)))) -> 4.125 | N26: =SUM(IF($A26=SoilCat,IF($B26=DrainCat,IF(N$3=ESALCat,Design!$N$34:$W$57)))) -> 4.125 | O26: =SUM(IF($A26=SoilCat,IF($B26=DrainCat,IF(O$3=ESALCat,Design!$N$34:$W$57)))) -> 4.125
A27: 2 | B27: Poor | E27: Asphalt Treated Base | F27: =SUM(IF($A27=SoilCat,IF($B27=DrainCat,IF(F$3=ESALCat,Design!$AH$34:$AQ$57)))) -> 4 | G27: =SUM(IF($A27=SoilCat,IF($B27=DrainCat,IF(G$3=ESALCat,Design!$AH$34:$AQ$57)))) -> 4 | H27: =SUM(IF($A27=SoilCat,IF($B27=DrainCat,IF(H$3=ESALCat,Design!$AH$34:$AQ$57)))) -> 4 | I27: =SUM(IF($A27=SoilCat,IF($B27=DrainCat,IF(I$3=ESALCat,Design!$AH$34:$AQ$57)))) -> 4 | J27: =SUM(IF($A27=SoilCat,IF($B27=DrainCat,IF(J$3=ESALCat,Design!$AH$34:$AQ$57)))) -> 4 | K27: =SUM(IF($A27=SoilCat,IF($B27=DrainCat,IF(K$3=ESALCat,Design!$AH$34:$AQ$57)))) -> 4 | L27: =SUM(IF($A27=SoilCat,IF($B27=DrainCat,IF(L$3=ESALCat,Design!$AH$34:$AQ$57)))) -> 4 | M27: =SUM(IF($A27=SoilCat,IF($B27=DrainCat,IF(M$3=ESALCat,Design!$AH$34:$AQ$57)))) -> 4 | N27: =SUM(IF($A27=SoilCat,IF($B27=DrainCat,IF(N$3=ESALCat,Design!$AH$34:$AQ$57)))) -> 4 | O27: =SUM(IF($A27=SoilCat,IF($B27=DrainCat,IF(O$3=ESALCat,Design!$AH$34:$AQ$57)))) -> 4
A28: 2 | B28: Poor | E28: Unbound Dense Graded Base | F28: =SUM(IF($A28=SoilCat,IF($B28=DrainCat,IF(F$3=ESALCat,Design!$BB$34:$BK$57)))) -> 4 | G28: =SUM(IF($A28=SoilCat,IF($B28=DrainCat,IF(G$3=ESALCat,Design!$BB$34:$BK$57)))) -> 4 | H28: =SUM(IF($A28=SoilCat,IF($B28=DrainCat,IF(H$3=ESALCat,Design!$BB$34:$BK$57)))) -> 4 | I28: =SUM(IF($A28=SoilCat,IF($B28=DrainCat,IF(I$3=ESALCat,Design!$BB$34:$BK$57)))) -> 4 | J28: =SUM(IF($A28=SoilCat,IF($B28=DrainCat,IF(J$3=ESALCat,Design!$BB$34:$BK$57)))) -> 4 | K28: =SUM(IF($A28=SoilCat,IF($B28=DrainCat,IF(K$3=ESALCat,Design!$BB$34:$BK$57)))) -> 6 | L28: =SUM(IF($A28=SoilCat,IF($B28=DrainCat,IF(L$3=ESALCat,Design!$BB$34:$BK$57)))) -> 6 | M28: =SUM(IF($A28=SoilCat,IF($B28=DrainCat,IF(M$3=ESALCat,Design!$BB$34:$BK$57)))) -> 6 | N28: =SUM(IF($A28=SoilCat,IF($B28=DrainCat,IF(N$3=ESALCat,Design!$BB$34:$BK$57)))) -> 6 | O28: =SUM(IF($A28=SoilCat,IF($B28=DrainCat,IF(O$3=ESALCat,Design!$BB$34:$BK$57)))) -> 6
A29: 2 | B29: Poor | E29: Unbound Dense Graded Subbase | F29: =SUM(IF($A29=SoilCat,IF($B29=DrainCat,IF(F$3=ESALCat,Design!$BV$34:$CE$57)))) -> 0 | G29: =SUM(IF($A29=SoilCat,IF($B29=DrainCat,IF(G$3=ESALCat,Design!$BV$34:$CE$57)))) -> 0 | H29: =SUM(IF($A29=SoilCat,IF($B29=DrainCat,IF(H$3=ESALCat,Design!$BV$34:$CE$57)))) -> 0 | I29: =SUM(IF($A29=SoilCat,IF($B29=DrainCat,IF(I$3=ESALCat,Design!$BV$34:$CE$57)))) -> 0 | J29: =SUM(IF($A29=SoilCat,IF($B29=DrainCat,IF(J$3=ESALCat,Design!$BV$34:$CE$57)))) -> 0 | K29: =SUM(IF($A29=SoilCat,IF($B29=DrainCat,IF(K$3=ESALCat,Design!$BV$34:$CE$57)))) -> 0 | L29: =SUM(IF($A29=SoilCat,IF($B29=DrainCat,IF(L$3=ESALCat,Design!$BV$34:$CE$57)))) -> 0 | M29: =SUM(IF($A29=SoilCat,IF($B29=DrainCat,IF(M$3=ESALCat,Design!$BV$34:$CE$57)))) -> 0 | N29: =SUM(IF($A29=SoilCat,IF($B29=DrainCat,IF(N$3=ESALCat,Design!$BV$34:$CE$57)))) -> 6 | O29: =SUM(IF($A29=SoilCat,IF($B29=DrainCat,IF(O$3=ESALCat,Design!$BV$34:$CE$57)))) -> 10
A30: 3 | B30: Good | C30: Category 3 | D30: Good | E30: Pavers and Bedding | F30: =SUM(IF($A30=SoilCat,IF($B30=DrainCat,IF(F$3=ESALCat,Design!$N$34:$W$57)))) -> 4.125 | G30: =SUM(IF($A30=SoilCat,IF($B30=DrainCat,IF(G$3=ESALCat,Design!$N$34:$W$57)))) -> 4.125 | H30: =SUM(IF($A30=SoilCat,IF($B30=DrainCat,IF(H$3=ESALCat,Design!$N$34:$W$57)))) -> 4.125 | I30: =SUM(IF($A30=SoilCat,IF($B30=DrainCat,IF(I$3=ESALCat,Design!$N$34:$W$57)))) -> 4.125 | J30: =SUM(IF($A30=SoilCat,IF($B30=DrainCat,IF(J$3=ESALCat,Design!$N$34:$W$57)))) -> 4.125 | K30: =SUM(IF($A30=SoilCat,IF($B30=DrainCat,IF(K$3=ESALCat,Design!$N$34:$W$57)))) -> 4.125 | L30: =SUM(IF($A30=SoilCat,IF($B30=DrainCat,IF(L$3=ESALCat,Design!$N$34:$W$57)))) -> 4.125 | M30: =SUM(IF($A30=SoilCat,IF($B30=DrainCat,IF(M$3=ESALCat,Design!$N$34:$W$57)))) -> 4.125 | N30: =SUM(IF($A30=SoilCat,IF($B30=DrainCat,IF(N$3=ESALCat,Design!$N$34:$W$57)))) -> 4.125 | O30: =SUM(IF($A30=SoilCat,IF($B30=DrainCat,IF(O$3=ESALCat,Design!$N$34:$W$57)))) -> 4.125
A31: 3 | B31: Good | E31: Asphalt Treated Base | F31: =SUM(IF($A31=SoilCat,IF($B31=DrainCat,IF(F$3=ESALCat,Design!$AH$34:$AQ$57)))) -> 4 | G31: =SUM(IF($A31=SoilCat,IF($B31=DrainCat,IF(G$3=ESALCat,Design!$AH$34:$AQ$57)))) -> 4 | H31: =SUM(IF($A31=SoilCat,IF($B31=DrainCat,IF(H$3=ESALCat,Design!$AH$34:$AQ$57)))) -> 4 | I31: =SUM(IF($A31=SoilCat,IF($B31=DrainCat,IF(I$3=ESALCat,Design!$AH$34:$AQ$57)))) -> 4 | J31: =SUM(IF($A31=SoilCat,IF($B31=DrainCat,IF(J$3=ESALCat,Design!$AH$34:$AQ$57)))) -> 4 | K31: =SUM(IF($A31=SoilCat,IF($B31=DrainCat,IF(K$3=ESALCat,Design!$AH$34:$AQ$57)))) -> 4 | L31: =SUM(IF($A31=SoilCat,IF($B31=DrainCat,IF(L$3=ESALCat,Design!$AH$34:$AQ$57)))) -> 4 | M31: =SUM(IF($A31=SoilCat,IF($B31=DrainCat,IF(M$3=ESALCat,Design!$AH$34:$AQ$57)))) -> 4 | N31: =SUM(IF($A31=SoilCat,IF($B31=DrainCat,IF(N$3=ESALCat,Design!$AH$34:$AQ$57)))) -> 4 | O31: =SUM(IF($A31=SoilCat,IF($B31=DrainCat,IF(O$3=ESALCat,Design!$AH$34:$AQ$57)))) -> 4
A32: 3 | B32: Good | E32: Unbound Dense Graded Base | F32: =SUM(IF($A32=SoilCat,IF($B32=DrainCat,IF(F$3=ESALCat,Design!$BB$34:$BK$57)))) -> 4 | G32: =SUM(IF($A32=SoilCat,IF($B32=DrainCat,IF(G$3=ESALCat,Design!$BB$34:$BK$57)))) -> 4 | H32: =SUM(IF($A32=SoilCat,IF($B32=DrainCat,IF(H$3=ESALCat,Design!$BB$34:$BK$57)))) -> 4 | I32: =SUM(IF($A32=SoilCat,IF($B32=DrainCat,IF(I$3=ESALCat,Design!$BB$34:$BK$57)))) -> 4 | J32: =SUM(IF($A32=SoilCat,IF($B32=DrainCat,IF(J$3=ESALCat,Design!$BB$34:$BK$57)))) -> 4 | K32: =SUM(IF($A32=SoilCat,IF($B32=DrainCat,IF(K$3=ESALCat,Design!$BB$34:$BK$57)))) -> 6 | L32: =SUM(IF($A32=SoilCat,IF($B32=DrainCat,IF(L$3=ESALCat,Design!$BB$34:$BK$57)))) -> 6 | M32: =SUM(IF($A32=SoilCat,IF($B32=DrainCat,IF(M$3=ESALCat,Design!$BB$34:$BK$57)))) -> 6 | N32: =SUM(IF($A32=SoilCat,IF($B32=DrainCat,IF(N$3=ESALCat,Design!$BB$34:$BK$57)))) -> 6 | O32: =SUM(IF($A32=SoilCat,IF($B32=DrainCat,IF(O$3=ESALCat,Design!$BB$34:$BK$57)))) -> 6
A33: 3 | B33: Good | E33: Unbound Dense Graded Subbase | F33: =SUM(IF($A33=SoilCat,IF($B33=DrainCat,IF(F$3=ESALCat,Design!$BV$34:$CE$57)))) -> 0 | G33: =SUM(IF($A33=SoilCat,IF($B33=DrainCat,IF(G$3=ESALCat,Design!$BV$34:$CE$57)))) -> 0 | H33: =SUM(IF($A33=SoilCat,IF($B33=DrainCat,IF(H$3=ESALCat,Design!$BV$34:$CE$57)))) -> 0 | I33: =SUM(IF($A33=SoilCat,IF($B33=DrainCat,IF(I$3=ESALCat,Design!$BV$34:$CE$57)))) -> 0 | J33: =SUM(IF($A33=SoilCat,IF($B33=DrainCat,IF(J$3=ESALCat,Design!$BV$34:$CE$57)))) -> 0 | K33: =SUM(IF($A33=SoilCat,IF($B33=DrainCat,IF(K$3=ESALCat,Design!$BV$34:$CE$57)))) -> 0 | L33: =SUM(IF($A33=SoilCat,IF($B33=DrainCat,IF(L$3=ESALCat,Design!$BV$34:$CE$57)))) -> 0 | M33: =SUM(IF($A33=SoilCat,IF($B33=DrainCat,IF(M$3=ESALCat,Design!$BV$34:$CE$57)))) -> 0 | N33: =SUM(IF($A33=SoilCat,IF($B33=DrainCat,IF(N$3=ESALCat,Design!$BV$34:$CE$57)))) -> 0 | O33: =SUM(IF($A33=SoilCat,IF($B33=DrainCat,IF(O$3=ESALCat,Design!$BV$34:$CE$57)))) -> 6
A34: 3 | B34: Fair | D34: Fair | E34: Pavers and Bedding | F34: =SUM(IF($A34=SoilCat,IF($B34=DrainCat,IF(F$3=ESALCat,Design!$N$34:$W$57)))) -> 4.125 | G34: =SUM(IF($A34=SoilCat,IF($B34=DrainCat,IF(G$3=ESALCat,Design!$N$34:$W$57)))) -> 4.125 | H34: =SUM(IF($A34=SoilCat,IF($B34=DrainCat,IF(H$3=ESALCat,Design!$N$34:$W$57)))) -> 4.125 | I34: =SUM(IF($A34=SoilCat,IF($B34=DrainCat,IF(I$3=ESALCat,Design!$N$34:$W$57)))) -> 4.125 | J34: =SUM(IF($A34=SoilCat,IF($B34=DrainCat,IF(J$3=ESALCat,Design!$N$34:$W$57)))) -> 4.125 | K34: =SUM(IF($A34=SoilCat,IF($B34=DrainCat,IF(K$3=ESALCat,Design!$N$34:$W$57)))) -> 4.125 | L34: =SUM(IF($A34=SoilCat,IF($B34=DrainCat,IF(L$3=ESALCat,Design!$N$34:$W$57)))) -> 4.125 | M34: =SUM(IF($A34=SoilCat,IF($B34=DrainCat,IF(M$3=ESALCat,Design!$N$34:$W$57)))) -> 4.125 | N34: =SUM(IF($A34=SoilCat,IF($B34=DrainCat,IF(N$3=ESALCat,Design!$N$34:$W$57)))) -> 4.125 | O34: =SUM(IF($A34=SoilCat,IF($B34=DrainCat,IF(O$3=ESALCat,Design!$N$34:$W$57)))) -> 4.125
A35: 3 | B35: Fair | E35: Asphalt Treated Base | F35: =SUM(IF($A35=SoilCat,IF($B35=DrainCat,IF(F$3=ESALCat,Design!$AH$34:$AQ$57)))) -> 4 | G35: =SUM(IF($A35=SoilCat,IF($B35=DrainCat,IF(G$3=ESALCat,Design!$AH$34:$AQ$57)))) -> 4 | H35: =SUM(IF($A35=SoilCat,IF($B35=DrainCat,IF(H$3=ESALCat,Design!$AH$34:$AQ$57)))) -> 4 | I35: =SUM(IF($A35=SoilCat,IF($B35=DrainCat,IF(I$3=ESALCat,Design!$AH$34:$AQ$57)))) -> 4 | J35: =SUM(IF($A35=SoilCat,IF($B35=DrainCat,IF(J$3=ESALCat,Design!$AH$34:$AQ$57)))) -> 4 | K35: =SUM(IF($A35=SoilCat,IF($B35=DrainCat,IF(K$3=ESALCat,Design!$AH$34:$AQ$57)))) -> 4 | L35: =SUM(IF($A35=SoilCat,IF($B35=DrainCat,IF(L$3=ESALCat,Design!$AH$34:$AQ$57)))) -> 4 | M35: =SUM(IF($A35=SoilCat,IF($B35=DrainCat,IF(M$3=ESALCat,Design!$AH$34:$AQ$57)))) -> 4 | N35: =SUM(IF($A35=SoilCat,IF($B35=DrainCat,IF(N$3=ESALCat,Design!$AH$34:$AQ$57)))) -> 4 | O35: =SUM(IF($A35=SoilCat,IF($B35=DrainCat,IF(O$3=ESALCat,Design!$AH$34:$AQ$57)))) -> 4
A36: 3 | B36: Fair | E36: Unbound Dense Graded Base | F36: =SUM(IF($A36=SoilCat,IF($B36=DrainCat,IF(F$3=ESALCat,Design!$BB$34:$BK$57)))) -> 4 | G36: =SUM(IF($A36=SoilCat,IF($B36=DrainCat,IF(G$3=ESALCat,Design!$BB$34:$BK$57)))) -> 4 | H36: =SUM(IF($A36=SoilCat,IF($B36=DrainCat,IF(H$3=ESALCat,Design!$BB$34:$BK$57)))) -> 4 | I36: =SUM(IF($A36=SoilCat,IF($B36=DrainCat,IF(I$3=ESALCat,Design!$BB$34:$BK$57)))) -> 4 | J36: =SUM(IF($A36=SoilCat,IF($B36=DrainCat,IF(J$3=ESALCat,Design!$BB$34:$BK$57)))) -> 4 | K36: =SUM(IF($A36=SoilCat,IF($B36=DrainCat,IF(K$3=ESALCat,Design!$BB$34:$BK$57)))) -> 6 | L36: =SUM(IF($A36=SoilCat,IF($B36=DrainCat,IF(L$3=ESALCat,Design!$BB$34:$BK$57)))) -> 6 | M36: =SUM(IF($A36=SoilCat,IF($B36=DrainCat,IF(M$3=ESALCat,Design!$BB$34:$BK$57)))) -> 6 | N36: =SUM(IF($A36=SoilCat,IF($B36=DrainCat,IF(N$3=ESALCat,Design!$BB$34:$BK$57)))) -> 8 | O36: =SUM(IF($A36=SoilCat,IF($B36=DrainCat,IF(O$3=ESALCat,Design!$BB$34:$BK$57)))) -> 6
A37: 3 | B37: Fair | E37: Unbound Dense Graded Subbase | F37: =SUM(IF($A37=SoilCat,IF($B37=DrainCat,IF(F$3=ESALCat,Design!$BV$34:$CE$57)))) -> 0 | G37: =SUM(IF($A37=SoilCat,IF($B37=DrainCat,IF(G$3=ESALCat,Design!$BV$34:$CE$57)))) -> 0 | H37: =SUM(IF($A37=SoilCat,IF($B37=DrainCat,IF(H$3=ESALCat,Design!$BV$34:$CE$57)))) -> 0 | I37: =SUM(IF($A37=SoilCat,IF($B37=DrainCat,IF(I$3=ESALCat,Design!$BV$34:$CE$57)))) -> 0 | J37: =SUM(IF($A37=SoilCat,IF($B37=DrainCat,IF(J$3=ESALCat,Design!$BV$34:$CE$57)))) -> 0 | K37: =SUM(IF($A37=SoilCat,IF($B37=DrainCat,IF(K$3=ESALCat,Design!$BV$34:$CE$57)))) -> 0 | L37: =SUM(IF($A37=SoilCat,IF($B37=DrainCat,IF(L$3=ESALCat,Design!$BV$34:$CE$57)))) -> 0 | M37: =SUM(IF($A37=SoilCat,IF($B37=DrainCat,IF(M$3=ESALCat,Design!$BV$34:$CE$57)))) -> 0 | N37: =SUM(IF($A37=SoilCat,IF($B37=DrainCat,IF(N$3=ESALCat,Design!$BV$34:$CE$57)))) -> 0 | O37: =SUM(IF($A37=SoilCat,IF($B37=DrainCat,IF(O$3=ESALCat,Design!$BV$34:$CE$57)))) -> 8
A38: 3 | B38: Poor | D38: Poor | E38: Pavers and Bedding | F38: =SUM(IF($A38=SoilCat,IF($B38=DrainCat,IF(F$3=ESALCat,Design!$N$34:$W$57)))) -> 4.125 | G38: =SUM(IF($A38=SoilCat,IF($B38=DrainCat,IF(G$3=ESALCat,Design!$N$34:$W$57)))) -> 4.125 | H38: =SUM(IF($A38=SoilCat,IF($B38=DrainCat,IF(H$3=ESALCat,Design!$N$34:$W$57)))) -> 4.125 | I38: =SUM(IF($A38=SoilCat,IF($B38=DrainCat,IF(I$3=ESALCat,Design!$N$34:$W$57)))) -> 4.125 | J38: =SUM(IF($A38=SoilCat,IF($B38=DrainCat,IF(J$3=ESALCat,Design!$N$34:$W$57)))) -> 4.125 | K38: =SUM(IF($A38=SoilCat,IF($B38=DrainCat,IF(K$3=ESALCat,Design!$N$34:$W$57)))) -> 4.125 | L38: =SUM(IF($A38=SoilCat,IF($B38=DrainCat,IF(L$3=ESALCat,Design!$N$34:$W$57)))) -> 4.125 | M38: =SUM(IF($A38=SoilCat,IF($B38=DrainCat,IF(M$3=ESALCat,Design!$N$34:$W$57)))) -> 4.125 | N38: =SUM(IF($A38=SoilCat,IF($B38=DrainCat,IF(N$3=ESALCat,Design!$N$34:$W$57)))) -> 4.125 | O38: =SUM(IF($A38=SoilCat,IF($B38=DrainCat,IF(O$3=ESALCat,Design!$N$34:$W$57)))) -> 4.125
A39: 3 | B39: Poor | E39: Asphalt Treated Base | F39: =SUM(IF($A39=SoilCat,IF($B39=DrainCat,IF(F$3=ESALCat,Design!$AH$34:$AQ$57)))) -> 4 | G39: =SUM(IF($A39=SoilCat,IF($B39=DrainCat,IF(G$3=ESALCat,Design!$AH$34:$AQ$57)))) -> 4 | H39: =SUM(IF($A39=SoilCat,IF($B39=DrainCat,IF(H$3=ESALCat,Design!$AH$34:$AQ$57)))) -> 4 | I39: =SUM(IF($A39=SoilCat,IF($B39=DrainCat,IF(I$3=ESALCat,Design!$AH$34:$AQ$57)))) -> 4 | J39: =SUM(IF($A39=SoilCat,IF($B39=DrainCat,IF(J$3=ESALCat,Design!$AH$34:$AQ$57)))) -> 4 | K39: =SUM(IF($A39=SoilCat,IF($B39=DrainCat,IF(K$3=ESALCat,Design!$AH$34:$AQ$57)))) -> 4 | L39: =SUM(IF($A39=SoilCat,IF($B39=DrainCat,IF(L$3=ESALCat,Design!$AH$34:$AQ$57)))) -> 4 | M39: =SUM(IF($A39=SoilCat,IF($B39=DrainCat,IF(M$3=ESALCat,Design!$AH$34:$AQ$57)))) -> 4 | N39: =SUM(IF($A39=SoilCat,IF($B39=DrainCat,IF(N$3=ESALCat,Design!$AH$34:$AQ$57)))) -> 4 | O39: =SUM(IF($A39=SoilCat,IF($B39=DrainCat,IF(O$3=ESALCat,Design!$AH$34:$AQ$57)))) -> 4
A40: 3 | B40: Poor | E40: Unbound Dense Graded Base | F40: =SUM(IF($A40=SoilCat,IF($B40=DrainCat,IF(F$3=ESALCat,Design!$BB$34:$BK$57)))) -> 4 | G40: =SUM(IF($A40=SoilCat,IF($B40=DrainCat,IF(G$3=ESALCat,Design!$BB$34:$BK$57)))) -> 4 | H40: =SUM(IF($A40=SoilCat,IF($B40=DrainCat,IF(H$3=ESALCat,Design!$BB$34:$BK$57)))) -> 4 | I40: =SUM(IF($A40=SoilCat,IF($B40=DrainCat,IF(I$3=ESALCat,Design!$BB$34:$BK$57)))) -> 4 | J40: =SUM(IF($A40=SoilCat,IF($B40=DrainCat,IF(J$3=ESALCat,Design!$BB$34:$BK$57)))) -> 4 | K40: =SUM(IF($A40=SoilCat,IF($B40=DrainCat,IF(K$3=ESALCat,Design!$BB$34:$BK$57)))) -> 6 | L40: =SUM(IF($A40=SoilCat,IF($B40=DrainCat,IF(L$3=ESALCat,Design!$BB$34:$BK$57)))) -> 6 | M40: =SUM(IF($A40=SoilCat,IF($B40=DrainCat,IF(M$3=ESALCat,Design!$BB$34:$BK$57)))) -> 6 | N40: =SUM(IF($A40=SoilCat,IF($B40=DrainCat,IF(N$3=ESALCat,Design!$BB$34:$BK$57)))) -> 6 | O40: =SUM(IF($A40=SoilCat,IF($B40=DrainCat,IF(O$3=ESALCat,Design!$BB$34:$BK$57)))) -> 6
A41: 3 | B41: Poor | E41: Unbound Dense Graded Subbase | F41: =SUM(IF($A41=SoilCat,IF($B41=DrainCat,IF(F$3=ESALCat,Design!$BV$34:$CE$57)))) -> 0 | G41: =SUM(IF($A41=SoilCat,IF($B41=DrainCat,IF(G$3=ESALCat,Design!$BV$34:$CE$57)))) -> 0 | H41: =SUM(IF($A41=SoilCat,IF($B41=DrainCat,IF(H$3=ESALCat,Design!$BV$34:$CE$57)))) -> 0 | I41: =SUM(IF($A41=SoilCat,IF($B41=DrainCat,IF(I$3=ESALCat,Design!$BV$34:$CE$57)))) -> 0 | J41: =SUM(IF($A41=SoilCat,IF($B41=DrainCat,IF(J$3=ESALCat,Design!$BV$34:$CE$57)))) -> 0 | K41: =SUM(IF($A41=SoilCat,IF($B41=DrainCat,IF(K$3=ESALCat,Design!$BV$34:$CE$57)))) -> 0 | L41: =SUM(IF($A41=SoilCat,IF($B41=DrainCat,IF(L$3=ESALCat,Design!$BV$34:$CE$57)))) -> 0 | M41: =SUM(IF($A41=SoilCat,IF($B41=DrainCat,IF(M$3=ESALCat,Design!$BV$34:$CE$57)))) -> 6 | N41: =SUM(IF($A41=SoilCat,IF($B41=DrainCat,IF(N$3=ESALCat,Design!$BV$34:$CE$57)))) -> 11 | O41: =SUM(IF($A41=SoilCat,IF($B41=DrainCat,IF(O$3=ESALCat,Design!$BV$34:$CE$57)))) -> 16
A42: 4 | B42: Good | C42: Category 4 | D42: Good | E42: Pavers and Bedding | F42: =SUM(IF($A42=SoilCat,IF($B42=DrainCat,IF(F$3=ESALCat,Design!$N$34:$W$57)))) -> 4.125 | G42: =SUM(IF($A42=SoilCat,IF($B42=DrainCat,IF(G$3=ESALCat,Design!$N$34:$W$57)))) -> 4.125 | H42: =SUM(IF($A42=SoilCat,IF($B42=DrainCat,IF(H$3=ESALCat,Design!$N$34:$W$57)))) -> 4.125 | I42: =SUM(IF($A42=SoilCat,IF($B42=DrainCat,IF(I$3=ESALCat,Design!$N$34:$W$57)))) -> 4.125 | J42: =SUM(IF($A42=SoilCat,IF($B42=DrainCat,IF(J$3=ESALCat,Design!$N$34:$W$57)))) -> 4.125 | K42: =SUM(IF($A42=SoilCat,IF($B42=DrainCat,IF(K$3=ESALCat,Design!$N$34:$W$57)))) -> 4.125 | L42: =SUM(IF($A42=SoilCat,IF($B42=DrainCat,IF(L$3=ESALCat,Design!$N$34:$W$57)))) -> 4.125 | M42: =SUM(IF($A42=SoilCat,IF($B42=DrainCat,IF(M$3=ESALCat,Design!$N$34:$W$57)))) -> 4.125 | N42: =SUM(IF($A42=SoilCat,IF($B42=DrainCat,IF(N$3=ESALCat,Design!$N$34:$W$57)))) -> 4.125 | O42: =SUM(IF($A42=SoilCat,IF($B42=DrainCat,IF(O$3=ESALCat,Design!$N$34:$W$57)))) -> 4.125
A43: 4 | B43: Good | E43: Asphalt Treated Base | F43: =SUM(IF($A43=SoilCat,IF($B43=DrainCat,IF(F$3=ESALCat,Design!$AH$34:$AQ$57)))) -> 4 | G43: =SUM(IF($A43=SoilCat,IF($B43=DrainCat,IF(G$3=ESALCat,Design!$AH$34:$AQ$57)))) -> 4 | H43: =SUM(IF($A43=SoilCat,IF($B43=DrainCat,IF(H$3=ESALCat,Design!$AH$34:$AQ$57)))) -> 4 | I43: =SUM(IF($A43=SoilCat,IF($B43=DrainCat,IF(I$3=ESALCat,Design!$AH$34:$AQ$57)))) -> 4 | J43: =SUM(IF($A43=SoilCat,IF($B43=DrainCat,IF(J$3=ESALCat,Design!$AH$34:$AQ$57)))) -> 4 | K43: =SUM(IF($A43=SoilCat,IF($B43=DrainCat,IF(K$3=ESALCat,Design!$AH$34:$AQ$57)))) -> 4 | L43: =SUM(IF($A43=SoilCat,IF($B43=DrainCat,IF(L$3=ESALCat,Design!$AH$34:$AQ$57)))) -> 4 | M43: =SUM(IF($A43=SoilCat,IF($B43=DrainCat,IF(M$3=ESALCat,Design!$AH$34:$AQ$57)))) -> 4 | N43: =SUM(IF($A43=SoilCat,IF($B43=DrainCat,IF(N$3=ESALCat,Design!$AH$34:$AQ$57)))) -> 4 | O43: =SUM(IF($A43=SoilCat,IF($B43=DrainCat,IF(O$3=ESALCat,Design!$AH$34:$AQ$57)))) -> 4
A44: 4 | B44: Good | E44: Unbound Dense Graded Base | F44: =SUM(IF($A44=SoilCat,IF($B44=DrainCat,IF(F$3=ESALCat,Design!$BB$34:$BK$57)))) -> 4 | G44: =SUM(IF($A44=SoilCat,IF($B44=DrainCat,IF(G$3=ESALCat,Design!$BB$34:$BK$57)))) -> 4 | H44: =SUM(IF($A44=SoilCat,IF($B44=DrainCat,IF(H$3=ESALCat,Design!$BB$34:$BK$57)))) -> 4 | I44: =SUM(IF($A44=SoilCat,IF($B44=DrainCat,IF(I$3=ESALCat,Design!$BB$34:$BK$57)))) -> 4 | J44: =SUM(IF($A44=SoilCat,IF($B44=DrainCat,IF(J$3=ESALCat,Design!$BB$34:$BK$57)))) -> 4 | K44: =SUM(IF($A44=SoilCat,IF($B44=DrainCat,IF(K$3=ESALCat,Design!$BB$34:$BK$57)))) -> 6 | L44: =SUM(IF($A44=SoilCat,IF($B44=DrainCat,IF(L$3=ESALCat,Design!$BB$34:$BK$57)))) -> 6 | M44: =SUM(IF($A44=SoilCat,IF($B44=DrainCat,IF(M$3=ESALCat,Design!$BB$34:$BK$57)))) -> 6 | N44: =SUM(IF($A44=SoilCat,IF($B44=DrainCat,IF(N$3=ESALCat,Design!$BB$34:$BK$57)))) -> 8 | O44: =SUM(IF($A44=SoilCat,IF($B44=DrainCat,IF(O$3=ESALCat,Design!$BB$34:$BK$57)))) -> 6
A45: 4 | B45: Good | E45: Unbound Dense Graded Subbase | F45: =SUM(IF($A45=SoilCat,IF($B45=DrainCat,IF(F$3=ESALCat,Design!$BV$34:$CE$57)))) -> 0 | G45: =SUM(IF($A45=SoilCat,IF($B45=DrainCat,IF(G$3=ESALCat,Design!$BV$34:$CE$57)))) -> 0 | H45: =SUM(IF($A45=SoilCat,IF($B45=DrainCat,IF(H$3=ESALCat,Design!$BV$34:$CE$57)))) -> 0 | I45: =SUM(IF($A45=SoilCat,IF($B45=DrainCat,IF(I$3=ESALCat,Design!$BV$34:$CE$57)))) -> 0 | J45: =SUM(IF($A45=SoilCat,IF($B45=DrainCat,IF(J$3=ESALCat,Design!$BV$34:$CE$57)))) -> 0 | K45: =SUM(IF($A45=SoilCat,IF($B45=DrainCat,IF(K$3=ESALCat,Design!$BV$34:$CE$57)))) -> 0 | L45: =SUM(IF($A45=SoilCat,IF($B45=DrainCat,IF(L$3=ESALCat,Design!$BV$34:$CE$57)))) -> 0 | M45: =SUM(IF($A45=SoilCat,IF($B45=DrainCat,IF(M$3=ESALCat,Design!$BV$34:$CE$57)))) -> 0 | N45: =SUM(IF($A45=SoilCat,IF($B45=DrainCat,IF(N$3=ESALCat,Design!$BV$34:$CE$57)))) -> 0 | O45: =SUM(IF($A45=SoilCat,IF($B45=DrainCat,IF(O$3=ESALCat,Design!$BV$34:$CE$57)))) -> 8
A46: 4 | B46: Fair | D46: Fair | E46: Pavers and Bedding | F46: =SUM(IF($A46=SoilCat,IF($B46=DrainCat,IF(F$3=ESALCat,Design!$N$34:$W$57)))) -> 4.125 | G46: =SUM(IF($A46=SoilCat,IF($B46=DrainCat,IF(G$3=ESALCat,Design!$N$34:$W$57)))) -> 4.125 | H46: =SUM(IF($A46=SoilCat,IF($B46=DrainCat,IF(H$3=ESALCat,Design!$N$34:$W$57)))) -> 4.125 | I46: =SUM(IF($A46=SoilCat,IF($B46=DrainCat,IF(I$3=ESALCat,Design!$N$34:$W$57)))) -> 4.125 | J46: =SUM(IF($A46=SoilCat,IF($B46=DrainCat,IF(J$3=ESALCat,Design!$N$34:$W$57)))) -> 4.125 | K46: =SUM(IF($A46=SoilCat,IF($B46=DrainCat,IF(K$3=ESALCat,Design!$N$34:$W$57)))) -> 4.125 | L46: =SUM(IF($A46=SoilCat,IF($B46=DrainCat,IF(L$3=ESALCat,Design!$N$34:$W$57)))) -> 4.125 | M46: =SUM(IF($A46=SoilCat,IF($B46=DrainCat,IF(M$3=ESALCat,Design!$N$34:$W$57)))) -> 4.125 | N46: =SUM(IF($A46=SoilCat,IF($B46=DrainCat,IF(N$3=ESALCat,Design!$N$34:$W$57)))) -> 4.125 | O46: =SUM(IF($A46=SoilCat,IF($B46=DrainCat,IF(O$3=ESALCat,Design!$N$34:$W$57)))) -> 4.125
A47: 4 | B47: Fair | E47: Asphalt Treated Base | F47: =SUM(IF($A47=SoilCat,IF($B47=DrainCat,IF(F$3=ESALCat,Design!$AH$34:$AQ$57)))) -> 4 | G47: =SUM(IF($A47=SoilCat,IF($B47=DrainCat,IF(G$3=ESALCat,Design!$AH$34:$AQ$57)))) -> 4 | H47: =SUM(IF($A47=SoilCat,IF($B47=DrainCat,IF(H$3=ESALCat,Design!$AH$34:$AQ$57)))) -> 4 | I47: =SUM(IF($A47=SoilCat,IF($B47=DrainCat,IF(I$3=ESALCat,Design!$AH$34:$AQ$57)))) -> 4 | J47: =SUM(IF($A47=SoilCat,IF($B47=DrainCat,IF(J$3=ESALCat,Design!$AH$34:$AQ$57)))) -> 4 | K47: =SUM(IF($A47=SoilCat,IF($B47=DrainCat,IF(K$3=ESALCat,Design!$AH$34:$AQ$57)))) -> 4 | L47: =SUM(IF($A47=SoilCat,IF($B47=DrainCat,IF(L$3=ESALCat,Design!$AH$34:$AQ$57)))) -> 4 | M47: =SUM(IF($A47=SoilCat,IF($B47=DrainCat,IF(M$3=ESALCat,Design!$AH$34:$AQ$57)))) -> 4 | N47: =SUM(IF($A47=SoilCat,IF($B47=DrainCat,IF(N$3=ESALCat,Design!$AH$34:$AQ$57)))) -> 4 | O47: =SUM(IF($A47=SoilCat,IF($B47=DrainCat,IF(O$3=ESALCat,Design!$AH$34:$AQ$57)))) -> 4
A48: 4 | B48: Fair | E48: Unbound Dense Graded Base | F48: =SUM(IF($A48=SoilCat,IF($B48=DrainCat,IF(F$3=ESALCat,Design!$BB$34:$BK$57)))) -> 4 | G48: =SUM(IF($A48=SoilCat,IF($B48=DrainCat,IF(G$3=ESALCat,Design!$BB$34:$BK$57)))) -> 4 | H48: =SUM(IF($A48=SoilCat,IF($B48=DrainCat,IF(H$3=ESALCat,Design!$BB$34:$BK$57)))) -> 4 | I48: =SUM(IF($A48=SoilCat,IF($B48=DrainCat,IF(I$3=ESALCat,Design!$BB$34:$BK$57)))) -> 4 | J48: =SUM(IF($A48=SoilCat,IF($B48=DrainCat,IF(J$3=ESALCat,Design!$BB$34:$BK$57)))) -> 4 | K48: =SUM(IF($A48=SoilCat,IF($B48=DrainCat,IF(K$3=ESALCat,Design!$BB$34:$BK$57)))) -> 6 | L48: =SUM(IF($A48=SoilCat,IF($B48=DrainCat,IF(L$3=ESALCat,Design!$BB$34:$BK$57)))) -> 6 | M48: =SUM(IF($A48=SoilCat,IF($B48=DrainCat,IF(M$3=ESALCat,Design!$BB$34:$BK$57)))) -> 6 | N48: =SUM(IF($A48=SoilCat,IF($B48=DrainCat,IF(N$3=ESALCat,Design!$BB$34:$BK$57)))) -> 6 | O48: =SUM(IF($A48=SoilCat,IF($B48=DrainCat,IF(O$3=ESALCat,Design!$BB$34:$BK$57)))) -> 6
A49: 4 | B49: Fair | E49: Unbound Dense Graded Subbase | F49: =SUM(IF($A49=SoilCat,IF($B49=DrainCat,IF(F$3=ESALCat,Design!$BV$34:$CE$57)))) -> 0 | G49: =SUM(IF($A49=SoilCat,IF($B49=DrainCat,IF(G$3=ESALCat,Design!$BV$34:$CE$57)))) -> 0 | H49: =SUM(IF($A49=SoilCat,IF($B49=DrainCat,IF(H$3=ESALCat,Design!$BV$34:$CE$57)))) -> 0 | I49: =SUM(IF($A49=SoilCat,IF($B49=DrainCat,IF(I$3=ESALCat,Design!$BV$34:$CE$57)))) -> 0 | J49: =SUM(IF($A49=SoilCat,IF($B49=DrainCat,IF(J$3=ESALCat,Design!$BV$34:$CE$57)))) -> 0 | K49: =SUM(IF($A49=SoilCat,IF($B49=DrainCat,IF(K$3=ESALCat,Design!$BV$34:$CE$57)))) -> 0 | L49: =SUM(IF($A49=SoilCat,IF($B49=DrainCat,IF(L$3=ESALCat,Design!$BV$34:$CE$57)))) -> 0 | M49: =SUM(IF($A49=SoilCat,IF($B49=DrainCat,IF(M$3=ESALCat,Design!$BV$34:$CE$57)))) -> 6 | N49: =SUM(IF($A49=SoilCat,IF($B49=DrainCat,IF(N$3=ESALCat,Design!$BV$34:$CE$57)))) -> 11 | O49: =SUM(IF($A49=SoilCat,IF($B49=DrainCat,IF(O$3=ESALCat,Design!$BV$34:$CE$57)))) -> 16
A50: 4 | B50: Poor | D50: Poor | E50: Pavers and Bedding | F50: =SUM(IF($A50=SoilCat,IF($B50=DrainCat,IF(F$3=ESALCat,Design!$N$34:$W$57)))) -> 4.125 | G50: =SUM(IF($A50=SoilCat,IF($B50=DrainCat,IF(G$3=ESALCat,Design!$N$34:$W$57)))) -> 4.125 | H50: =SUM(IF($A50=SoilCat,IF($B50=DrainCat,IF(H$3=ESALCat,Design!$N$34:$W$57)))) -> 4.125 | I50: =SUM(IF($A50=SoilCat,IF($B50=DrainCat,IF(I$3=ESALCat,Design!$N$34:$W$57)))) -> 4.125 | J50: =SUM(IF($A50=SoilCat,IF($B50=DrainCat,IF(J$3=ESALCat,Design!$N$34:$W$57)))) -> 4.125 | K50: =SUM(IF($A50=SoilCat,IF($B50=DrainCat,IF(K$3=ESALCat,Design!$N$34:$W$57)))) -> 4.125 | L50: =SUM(IF($A50=SoilCat,IF($B50=DrainCat,IF(L$3=ESALCat,Design!$N$34:$W$57)))) -> 4.125 | M50: =SUM(IF($A50=SoilCat,IF($B50=DrainCat,IF(M$3=ESALCat,Design!$N$34:$W$57)))) -> 4.125 | N50: =SUM(IF($A50=SoilCat,IF($B50=DrainCat,IF(N$3=ESALCat,Design!$N$34:$W$57)))) -> 4.125 | O50: =SUM(IF($A50=SoilCat,IF($B50=DrainCat,IF(O$3=ESALCat,Design!$N$34:$W$57)))) -> 4.125
A51: 4 | B51: Poor | E51: Asphalt Treated Base | F51: =SUM(IF($A51=SoilCat,IF($B51=DrainCat,IF(F$3=ESALCat,Design!$AH$34:$AQ$57)))) -> 4 | G51: =SUM(IF($A51=SoilCat,IF($B51=DrainCat,IF(G$3=ESALCat,Design!$AH$34:$AQ$57)))) -> 4 | H51: =SUM(IF($A51=SoilCat,IF($B51=DrainCat,IF(H$3=ESALCat,Design!$AH$34:$AQ$57)))) -> 4 | I51: =SUM(IF($A51=SoilCat,IF($B51=DrainCat,IF(I$3=ESALCat,Design!$AH$34:$AQ$57)))) -> 4 | J51: =SUM(IF($A51=SoilCat,IF($B51=DrainCat,IF(J$3=ESALCat,Design!$AH$34:$AQ$57)))) -> 4 | K51: =SUM(IF($A51=SoilCat,IF($B51=DrainCat,IF(K$3=ESALCat,Design!$AH$34:$AQ$57)))) -> 4 | L51: =SUM(IF($A51=SoilCat,IF($B51=DrainCat,IF(L$3=ESALCat,Design!$AH$34:$AQ$57)))) -> 4 | M51: =SUM(IF($A51=SoilCat,IF($B51=DrainCat,IF(M$3=ESALCat,Design!$AH$34:$AQ$57)))) -> 4 | N51: =SUM(IF($A51=SoilCat,IF($B51=DrainCat,IF(N$3=ESALCat,Design!$AH$34:$AQ$57)))) -> 4 | O51: =SUM(IF($A51=SoilCat,IF($B51=DrainCat,IF(O$3=ESALCat,Design!$AH$34:$AQ$57)))) -> 4
A52: 4 | B52: Poor | E52: Unbound Dense Graded Base | F52: =SUM(IF($A52=SoilCat,IF($B52=DrainCat,IF(F$3=ESALCat,Design!$BB$34:$BK$57)))) -> 4 | G52: =SUM(IF($A52=SoilCat,IF($B52=DrainCat,IF(G$3=ESALCat,Design!$BB$34:$BK$57)))) -> 4 | H52: =SUM(IF($A52=SoilCat,IF($B52=DrainCat,IF(H$3=ESALCat,Design!$BB$34:$BK$57)))) -> 4 | I52: =SUM(IF($A52=SoilCat,IF($B52=DrainCat,IF(I$3=ESALCat,Design!$BB$34:$BK$57)))) -> 4 | J52: =SUM(IF($A52=SoilCat,IF($B52=DrainCat,IF(J$3=ESALCat,Design!$BB$34:$BK$57)))) -> 4 | K52: =SUM(IF($A52=SoilCat,IF($B52=DrainCat,IF(K$3=ESALCat,Design!$BB$34:$BK$57)))) -> 6 | L52: =SUM(IF($A52=SoilCat,IF($B52=DrainCat,IF(L$3=ESALCat,Design!$BB$34:$BK$57)))) -> 7 | M52: =SUM(IF($A52=SoilCat,IF($B52=DrainCat,IF(M$3=ESALCat,Design!$BB$34:$BK$57)))) -> 6 | N52: =SUM(IF($A52=SoilCat,IF($B52=DrainCat,IF(N$3=ESALCat,Design!$BB$34:$BK$57)))) -> 6 | O52: =SUM(IF($A52=SoilCat,IF($B52=DrainCat,IF(O$3=ESALCat,Design!$BB$34:$BK$57)))) -> 6
A53: 4 | B53: Poor | E53: Unbound Dense Graded Subbase | F53: =SUM(IF($A53=SoilCat,IF($B53=DrainCat,IF(F$3=ESALCat,Design!$BV$34:$CE$57)))) -> 0 | G53: =SUM(IF($A53=SoilCat,IF($B53=DrainCat,IF(G$3=ESALCat,Design!$BV$34:$CE$57)))) -> 0 | H53: =SUM(IF($A53=SoilCat,IF($B53=DrainCat,IF(H$3=ESALCat,Design!$BV$34:$CE$57)))) -> 0 | I53: =SUM(IF($A53=SoilCat,IF($B53=DrainCat,IF(I$3=ESALCat,Design!$BV$34:$CE$57)))) -> 0 | J53: =SUM(IF($A53=SoilCat,IF($B53=DrainCat,IF(J$3=ESALCat,Design!$BV$34:$CE$57)))) -> 0 | K53: =SUM(IF($A53=SoilCat,IF($B53=DrainCat,IF(K$3=ESALCat,Design!$BV$34:$CE$57)))) -> 0 | L53: =SUM(IF($A53=SoilCat,IF($B53=DrainCat,IF(L$3=ESALCat,Design!$BV$34:$CE$57)))) -> 0 | M53: =SUM(IF($A53=SoilCat,IF($B53=DrainCat,IF(M$3=ESALCat,Design!$BV$34:$CE$57)))) -> 6 | N53: =SUM(IF($A53=SoilCat,IF($B53=DrainCat,IF(N$3=ESALCat,Design!$BV$34:$CE$57)))) -> 13 | O53: =SUM(IF($A53=SoilCat,IF($B53=DrainCat,IF(O$3=ESALCat,Design!$BV$34:$CE$57)))) -> 18
A54: 5 | B54: Good | C54: Category 5 | D54: Good | E54: Pavers and Bedding | F54: =SUM(IF($A54=SoilCat,IF($B54=DrainCat,IF(F$3=ESALCat,Design!$N$34:$W$57)))) -> 4.125 | G54: =SUM(IF($A54=SoilCat,IF($B54=DrainCat,IF(G$3=ESALCat,Design!$N$34:$W$57)))) -> 4.125 | H54: =SUM(IF($A54=SoilCat,IF($B54=DrainCat,IF(H$3=ESALCat,Design!$N$34:$W$57)))) -> 4.125 | I54: =SUM(IF($A54=SoilCat,IF($B54=DrainCat,IF(I$3=ESALCat,Design!$N$34:$W$57)))) -> 4.125 | J54: =SUM(IF($A54=SoilCat,IF($B54=DrainCat,IF(J$3=ESALCat,Design!$N$34:$W$57)))) -> 4.125 | K54: =SUM(IF($A54=SoilCat,IF($B54=DrainCat,IF(K$3=ESALCat,Design!$N$34:$W$57)))) -> 4.125 | L54: =SUM(IF($A54=SoilCat,IF($B54=DrainCat,IF(L$3=ESALCat,Design!$N$34:$W$57)))) -> 4.125 | M54: =SUM(IF($A54=SoilCat,IF($B54=DrainCat,IF(M$3=ESALCat,Design!$N$34:$W$57)))) -> 4.125 | N54: =SUM(IF($A54=SoilCat,IF($B54=DrainCat,IF(N$3=ESALCat,Design!$N$34:$W$57)))) -> 4.125 | O54: =SUM(IF($A54=SoilCat,IF($B54=DrainCat,IF(O$3=ESALCat,Design!$N$34:$W$57)))) -> 4.125
A55: 5 | B55: Good | E55: Asphalt Treated Base | F55: =SUM(IF($A55=SoilCat,IF($B55=DrainCat,IF(F$3=ESALCat,Design!$AH$34:$AQ$57)))) -> 4 | G55: =SUM(IF($A55=SoilCat,IF($B55=DrainCat,IF(G$3=ESALCat,Design!$AH$34:$AQ$57)))) -> 4 | H55: =SUM(IF($A55=SoilCat,IF($B55=DrainCat,IF(H$3=ESALCat,Design!$AH$34:$AQ$57)))) -> 4 | I55: =SUM(IF($A55=SoilCat,IF($B55=DrainCat,IF(I$3=ESALCat,Design!$AH$34:$AQ$57)))) -> 4 | J55: =SUM(IF($A55=SoilCat,IF($B55=DrainCat,IF(J$3=ESALCat,Design!$AH$34:$AQ$57)))) -> 4 | K55: =SUM(IF($A55=SoilCat,IF($B55=DrainCat,IF(K$3=ESALCat,Design!$AH$34:$AQ$57)))) -> 4 | L55: =SUM(IF($A55=SoilCat,IF($B55=DrainCat,IF(L$3=ESALCat,Design!$AH$34:$AQ$57)))) -> 4 | M55: =SUM(IF($A55=SoilCat,IF($B55=DrainCat,IF(M$3=ESALCat,Design!$AH$34:$AQ$57)))) -> 4 | N55: =SUM(IF($A55=SoilCat,IF($B55=DrainCat,IF(N$3=ESALCat,Design!$AH$34:$AQ$57)))) -> 4 | O55: =SUM(IF($A55=SoilCat,IF($B55=DrainCat,IF(O$3=ESALCat,Design!$AH$34:$AQ$57)))) -> 4
A56: 5 | B56: Good | E56: Unbound Dense Graded Base | F56: =SUM(IF($A56=SoilCat,IF($B56=DrainCat,IF(F$3=ESALCat,Design!$BB$34:$BK$57)))) -> 4 | G56: =SUM(IF($A56=SoilCat,IF($B56=DrainCat,IF(G$3=ESALCat,Design!$BB$34:$BK$57)))) -> 4 | H56: =SUM(IF($A56=SoilCat,IF($B56=DrainCat,IF(H$3=ESALCat,Design!$BB$34:$BK$57)))) -> 4 | I56: =SUM(IF($A56=SoilCat,IF($B56=DrainCat,IF(I$3=ESALCat,Design!$BB$34:$BK$57)))) -> 4 | J56: =SUM(IF($A56=SoilCat,IF($B56=DrainCat,IF(J$3=ESALCat,Design!$BB$34:$BK$57)))) -> 4 | K56: =SUM(IF($A56=SoilCat,IF($B56=DrainCat,IF(K$3=ESALCat,Design!$BB$34:$BK$57)))) -> 6 | L56: =SUM(IF($A56=SoilCat,IF($B56=DrainCat,IF(L$3=ESALCat,Design!$BB$34:$BK$57)))) -> 6 | M56: =SUM(IF($A56=SoilCat,IF($B56=DrainCat,IF(M$3=ESALCat,Design!$BB$34:$BK$57)))) -> 7 | N56: =SUM(IF($A56=SoilCat,IF($B56=DrainCat,IF(N$3=ESALCat,Design!$BB$34:$BK$57)))) -> 6 | O56: =SUM(IF($A56=SoilCat,IF($B56=DrainCat,IF(O$3=ESALCat,Design!$BB$34:$BK$57)))) -> 6
A57: 5 | B57: Good | E57: Unbound Dense Graded Subbase | F57: =SUM(IF($A57=SoilCat,IF($B57=DrainCat,IF(F$3=ESALCat,Design!$BV$34:$CE$57)))) -> 0 | G57: =SUM(IF($A57=SoilCat,IF($B57=DrainCat,IF(G$3=ESALCat,Design!$BV$34:$CE$57)))) -> 0 | H57: =SUM(IF($A57=SoilCat,IF($B57=DrainCat,IF(H$3=ESALCat,Design!$BV$34:$CE$57)))) -> 0 | I57: =SUM(IF($A57=SoilCat,IF($B57=DrainCat,IF(I$3=ESALCat,Design!$BV$34:$CE$57)))) -> 0 | J57: =SUM(IF($A57=SoilCat,IF($B57=DrainCat,IF(J$3=ESALCat,Design!$BV$34:$CE$57)))) -> 0 | K57: =SUM(IF($A57=SoilCat,IF($B57=DrainCat,IF(K$3=ESALCat,Design!$BV$34:$CE$57)))) -> 0 | L57: =SUM(IF($A57=SoilCat,IF($B57=DrainCat,IF(L$3=ESALCat,Design!$BV$34:$CE$57)))) -> 0 | M57: =SUM(IF($A57=SoilCat,IF($B57=DrainCat,IF(M$3=ESALCat,Design!$BV$34:$CE$57)))) -> 0 | N57: =SUM(IF($A57=SoilCat,IF($B57=DrainCat,IF(N$3=ESALCat,Design!$BV$34:$CE$57)))) -> 7 | O57: =SUM(IF($A57=SoilCat,IF($B57=DrainCat,IF(O$3=ESALCat,Design!$BV$34:$CE$57)))) -> 13
A58: 5 | B58: Fair | D58: Fair | E58: Pavers and Bedding | F58: =SUM(IF($A58=SoilCat,IF($B58=DrainCat,IF(F$3=ESALCat,Design!$N$34:$W$57)))) -> 4.125 | G58: =SUM(IF($A58=SoilCat,IF($B58=DrainCat,IF(G$3=ESALCat,Design!$N$34:$W$57)))) -> 4.125 | H58: =SUM(IF($A58=SoilCat,IF($B58=DrainCat,IF(H$3=ESALCat,Design!$N$34:$W$57)))) -> 4.125 | I58: =SUM(IF($A58=SoilCat,IF($B58=DrainCat,IF(I$3=ESALCat,Design!$N$34:$W$57)))) -> 4.125 | J58: =SUM(IF($A58=SoilCat,IF($B58=DrainCat,IF(J$3=ESALCat,Design!$N$34:$W$57)))) -> 4.125 | K58: =SUM(IF($A58=SoilCat,IF($B58=DrainCat,IF(K$3=ESALCat,Design!$N$34:$W$57)))) -> 4.125 | L58: =SUM(IF($A58=SoilCat,IF($B58=DrainCat,IF(L$3=ESALCat,Design!$N$34:$W$57)))) -> 4.125 | M58: =SUM(IF($A58=SoilCat,IF($B58=DrainCat,IF(M$3=ESALCat,Design!$N$34:$W$57)))) -> 4.125 | N58: =SUM(IF($A58=SoilCat,IF($B58=DrainCat,IF(N$3=ESALCat,Design!$N$34:$W$57)))) -> 4.125 | O58: =SUM(IF($A58=SoilCat,IF($B58=DrainCat,IF(O$3=ESALCat,Design!$N$34:$W$57)))) -> 4.125
A59: 5 | B59: Fair | E59: Asphalt Treated Base | F59: =SUM(IF($A59=SoilCat,IF($B59=DrainCat,IF(F$3=ESALCat,Design!$AH$34:$AQ$57)))) -> 4 | G59: =SUM(IF($A59=SoilCat,IF($B59=DrainCat,IF(G$3=ESALCat,Design!$AH$34:$AQ$57)))) -> 4 | H59: =SUM(IF($A59=SoilCat,IF($B59=DrainCat,IF(H$3=ESALCat,Design!$AH$34:$AQ$57)))) -> 4 | I59: =SUM(IF($A59=SoilCat,IF($B59=DrainCat,IF(I$3=ESALCat,Design!$AH$34:$AQ$57)))) -> 4 | J59: =SUM(IF($A59=SoilCat,IF($B59=DrainCat,IF(J$3=ESALCat,Design!$AH$34:$AQ$57)))) -> 4 | K59: =SUM(IF($A59=SoilCat,IF($B59=DrainCat,IF(K$3=ESALCat,Design!$AH$34:$AQ$57)))) -> 4 | L59: =SUM(IF($A59=SoilCat,IF($B59=DrainCat,IF(L$3=ESALCat,Design!$AH$34:$AQ$57)))) -> 4 | M59: =SUM(IF($A59=SoilCat,IF($B59=DrainCat,IF(M$3=ESALCat,Design!$AH$34:$AQ$57)))) -> 4 | N59: =SUM(IF($A59=SoilCat,IF($B59=DrainCat,IF(N$3=ESALCat,Design!$AH$34:$AQ$57)))) -> 4 | O59: =SUM(IF($A59=SoilCat,IF($B59=DrainCat,IF(O$3=ESALCat,Design!$AH$34:$AQ$57)))) -> 4
A60: 5 | B60: Fair | E60: Unbound Dense Graded Base | F60: =SUM(IF($A60=SoilCat,IF($B60=DrainCat,IF(F$3=ESALCat,Design!$BB$34:$BK$57)))) -> 4 | G60: =SUM(IF($A60=SoilCat,IF($B60=DrainCat,IF(G$3=ESALCat,Design!$BB$34:$BK$57)))) -> 4 | H60: =SUM(IF($A60=SoilCat,IF($B60=DrainCat,IF(H$3=ESALCat,Design!$BB$34:$BK$57)))) -> 4 | I60: =SUM(IF($A60=SoilCat,IF($B60=DrainCat,IF(I$3=ESALCat,Design!$BB$34:$BK$57)))) -> 4 | J60: =SUM(IF($A60=SoilCat,IF($B60=DrainCat,IF(J$3=ESALCat,Design!$BB$34:$BK$57)))) -> 4 | K60: =SUM(IF($A60=SoilCat,IF($B60=DrainCat,IF(K$3=ESALCat,Design!$BB$34:$BK$57)))) -> 6 | L60: =SUM(IF($A60=SoilCat,IF($B60=DrainCat,IF(L$3=ESALCat,Design!$BB$34:$BK$57)))) -> 7 | M60: =SUM(IF($A60=SoilCat,IF($B60=DrainCat,IF(M$3=ESALCat,Design!$BB$34:$BK$57)))) -> 6 | N60: =SUM(IF($A60=SoilCat,IF($B60=DrainCat,IF(N$3=ESALCat,Design!$BB$34:$BK$57)))) -> 6 | O60: =SUM(IF($A60=SoilCat,IF($B60=DrainCat,IF(O$3=ESALCat,Design!$BB$34:$BK$57)))) -> 6
A61: 5 | B61: Fair | E61: Unbound Dense Graded Subbase | F61: =SUM(IF($A61=SoilCat,IF($B61=DrainCat,IF(F$3=ESALCat,Design!$BV$34:$CE$57)))) -> 0 | G61: =SUM(IF($A61=SoilCat,IF($B61=DrainCat,IF(G$3=ESALCat,Design!$BV$34:$CE$57)))) -> 0 | H61: =SUM(IF($A61=SoilCat,IF($B61=DrainCat,IF(H$3=ESALCat,Design!$BV$34:$CE$57)))) -> 0 | I61: =SUM(IF($A61=SoilCat,IF($B61=DrainCat,IF(I$3=ESALCat,Design!$BV$34:$CE$57)))) -> 0 | J61: =SUM(IF($A61=SoilCat,IF($B61=DrainCat,IF(J$3=ESALCat,Design!$BV$34:$CE$57)))) -> 0 | K61: =SUM(IF($A61=SoilCat,IF($B61=DrainCat,IF(K$3=ESALCat,Design!$BV$34:$CE$57)))) -> 0 | L61: =SUM(IF($A61=SoilCat,IF($B61=DrainCat,IF(L$3=ESALCat,Design!$BV$34:$CE$57)))) -> 0 | M61: =SUM(IF($A61=SoilCat,IF($B61=DrainCat,IF(M$3=ESALCat,Design!$BV$34:$CE$57)))) -> 6 | N61: =SUM(IF($A61=SoilCat,IF($B61=DrainCat,IF(N$3=ESALCat,Design!$BV$34:$CE$57)))) -> 13 | O61: =SUM(IF($A61=SoilCat,IF($B61=DrainCat,IF(O$3=ESALCat,Design!$BV$34:$CE$57)))) -> 18
A62: 5 | B62: Poor | D62: Poor | E62: Pavers and Bedding | F62: =SUM(IF($A62=SoilCat,IF($B62=DrainCat,IF(F$3=ESALCat,Design!$N$34:$W$57)))) -> 4.125 | G62: =SUM(IF($A62=SoilCat,IF($B62=DrainCat,IF(G$3=ESALCat,Design!$N$34:$W$57)))) -> 4.125 | H62: =SUM(IF($A62=SoilCat,IF($B62=DrainCat,IF(H$3=ESALCat,Design!$N$34:$W$57)))) -> 4.125 | I62: =SUM(IF($A62=SoilCat,IF($B62=DrainCat,IF(I$3=ESALCat,Design!$N$34:$W$57)))) -> 4.125 | J62: =SUM(IF($A62=SoilCat,IF($B62=DrainCat,IF(J$3=ESALCat,Design!$N$34:$W$57)))) -> 4.125 | K62: =SUM(IF($A62=SoilCat,IF($B62=DrainCat,IF(K$3=ESALCat,Design!$N$34:$W$57)))) -> 4.125 | L62: =SUM(IF($A62=SoilCat,IF($B62=DrainCat,IF(L$3=ESALCat,Design!$N$34:$W$57)))) -> 4.125 | M62: =SUM(IF($A62=SoilCat,IF($B62=DrainCat,IF(M$3=ESALCat,Design!$N$34:$W$57)))) -> 4.125 | N62: =SUM(IF($A62=SoilCat,IF($B62=DrainCat,IF(N$3=ESALCat,Design!$N$34:$W$57)))) -> 4.125 | O62: =SUM(IF($A62=SoilCat,IF($B62=DrainCat,IF(O$3=ESALCat,Design!$N$34:$W$57)))) -> 4.125
A63: 5 | B63: Poor | E63: Asphalt Treated Base | F63: =SUM(IF($A63=SoilCat,IF($B63=DrainCat,IF(F$3=ESALCat,Design!$AH$34:$AQ$57)))) -> 4 | G63: =SUM(IF($A63=SoilCat,IF($B63=DrainCat,IF(G$3=ESALCat,Design!$AH$34:$AQ$57)))) -> 4 | H63: =SUM(IF($A63=SoilCat,IF($B63=DrainCat,IF(H$3=ESALCat,Design!$AH$34:$AQ$57)))) -> 4 | I63: =SUM(IF($A63=SoilCat,IF($B63=DrainCat,IF(I$3=ESALCat,Design!$AH$34:$AQ$57)))) -> 4 | J63: =SUM(IF($A63=SoilCat,IF($B63=DrainCat,IF(J$3=ESALCat,Design!$AH$34:$AQ$57)))) -> 4 | K63: =SUM(IF($A63=SoilCat,IF($B63=DrainCat,IF(K$3=ESALCat,Design!$AH$34:$AQ$57)))) -> 4 | L63: =SUM(IF($A63=SoilCat,IF($B63=DrainCat,IF(L$3=ESALCat,Design!$AH$34:$AQ$57)))) -> 4 | M63: =SUM(IF($A63=SoilCat,IF($B63=DrainCat,IF(M$3=ESALCat,Design!$AH$34:$AQ$57)))) -> 4 | N63: =SUM(IF($A63=SoilCat,IF($B63=DrainCat,IF(N$3=ESALCat,Design!$AH$34:$AQ$57)))) -> 4 | O63: =SUM(IF($A63=SoilCat,IF($B63=DrainCat,IF(O$3=ESALCat,Design!$AH$34:$AQ$57)))) -> 4
A64: 5 | B64: Poor | E64: Unbound Dense Graded Base | F64: =SUM(IF($A64=SoilCat,IF($B64=DrainCat,IF(F$3=ESALCat,Design!$BB$34:$BK$57)))) -> 4 | G64: =SUM(IF($A64=SoilCat,IF($B64=DrainCat,IF(G$3=ESALCat,Design!$BB$34:$BK$57)))) -> 4 | H64: =SUM(IF($A64=SoilCat,IF($B64=DrainCat,IF(H$3=ESALCat,Design!$BB$34:$BK$57)))) -> 4 | I64: =SUM(IF($A64=SoilCat,IF($B64=DrainCat,IF(I$3=ESALCat,Design!$BB$34:$BK$57)))) -> 4 | J64: =SUM(IF($A64=SoilCat,IF($B64=DrainCat,IF(J$3=ESALCat,Design!$BB$34:$BK$57)))) -> 4 | K64: =SUM(IF($A64=SoilCat,IF($B64=DrainCat,IF(K$3=ESALCat,Design!$BB$34:$BK$57)))) -> 6 | L64: =SUM(IF($A64=SoilCat,IF($B64=DrainCat,IF(L$3=ESALCat,Design!$BB$34:$BK$57)))) -> 6 | M64: =SUM(IF($A64=SoilCat,IF($B64=DrainCat,IF(M$3=ESALCat,Design!$BB$34:$BK$57)))) -> 6 | N64: =SUM(IF($A64=SoilCat,IF($B64=DrainCat,IF(N$3=ESALCat,Design!$BB$34:$BK$57)))) -> 6 | O64: =SUM(IF($A64=SoilCat,IF($B64=DrainCat,IF(O$3=ESALCat,Design!$BB$34:$BK$57)))) -> 6
A65: 5 | B65: Poor | E65: Unbound Dense Graded Subbase | F65: =SUM(IF($A65=SoilCat,IF($B65=DrainCat,IF(F$3=ESALCat,Design!$BV$34:$CE$57)))) -> 0 | G65: =SUM(IF($A65=SoilCat,IF($B65=DrainCat,IF(G$3=ESALCat,Design!$BV$34:$CE$57)))) -> 0 | H65: =SUM(IF($A65=SoilCat,IF($B65=DrainCat,IF(H$3=ESALCat,Design!$BV$34:$CE$57)))) -> 0 | I65: =SUM(IF($A65=SoilCat,IF($B65=DrainCat,IF(I$3=ESALCat,Design!$BV$34:$CE$57)))) -> 0 | J65: =SUM(IF($A65=SoilCat,IF($B65=DrainCat,IF(J$3=ESALCat,Design!$BV$34:$CE$57)))) -> 0 | K65: =SUM(IF($A65=SoilCat,IF($B65=DrainCat,IF(K$3=ESALCat,Design!$BV$34:$CE$57)))) -> 0 | L65: =SUM(IF($A65=SoilCat,IF($B65=DrainCat,IF(L$3=ESALCat,Design!$BV$34:$CE$57)))) -> 6 | M65: =SUM(IF($A65=SoilCat,IF($B65=DrainCat,IF(M$3=ESALCat,Design!$BV$34:$CE$57)))) -> 10 | N65: =SUM(IF($A65=SoilCat,IF($B65=DrainCat,IF(N$3=ESALCat,Design!$BV$34:$CE$57)))) -> 17 | O65: =SUM(IF($A65=SoilCat,IF($B65=DrainCat,IF(O$3=ESALCat,Design!$BV$34:$CE$57)))) -> 23
A66: 6 | B66: Good | C66: Category 6 | D66: Good | E66: Pavers and Bedding | F66: =SUM(IF($A66=SoilCat,IF($B66=DrainCat,IF(F$3=ESALCat,Design!$N$34:$W$57)))) -> 4.125 | G66: =SUM(IF($A66=SoilCat,IF($B66=DrainCat,IF(G$3=ESALCat,Design!$N$34:$W$57)))) -> 4.125 | H66: =SUM(IF($A66=SoilCat,IF($B66=DrainCat,IF(H$3=ESALCat,Design!$N$34:$W$57)))) -> 4.125 | I66: =SUM(IF($A66=SoilCat,IF($B66=DrainCat,IF(I$3=ESALCat,Design!$N$34:$W$57)))) -> 4.125 | J66: =SUM(IF($A66=SoilCat,IF($B66=DrainCat,IF(J$3=ESALCat,Design!$N$34:$W$57)))) -> 4.125 | K66: =SUM(IF($A66=SoilCat,IF($B66=DrainCat,IF(K$3=ESALCat,Design!$N$34:$W$57)))) -> 4.125 | L66: =SUM(IF($A66=SoilCat,IF($B66=DrainCat,IF(L$3=ESALCat,Design!$N$34:$W$57)))) -> 4.125 | M66: =SUM(IF($A66=SoilCat,IF($B66=DrainCat,IF(M$3=ESALCat,Design!$N$34:$W$57)))) -> 4.125 | N66: =SUM(IF($A66=SoilCat,IF($B66=DrainCat,IF(N$3=ESALCat,Design!$N$34:$W$57)))) -> 4.125 | O66: =SUM(IF($A66=SoilCat,IF($B66=DrainCat,IF(O$3=ESALCat,Design!$N$34:$W$57)))) -> 4.125
A67: 6 | B67: Good | E67: Asphalt Treated Base | F67: =SUM(IF($A67=SoilCat,IF($B67=DrainCat,IF(F$3=ESALCat,Design!$AH$34:$AQ$57)))) -> 4 | G67: =SUM(IF($A67=SoilCat,IF($B67=DrainCat,IF(G$3=ESALCat,Design!$AH$34:$AQ$57)))) -> 4 | H67: =SUM(IF($A67=SoilCat,IF($B67=DrainCat,IF(H$3=ESALCat,Design!$AH$34:$AQ$57)))) -> 4 | I67: =SUM(IF($A67=SoilCat,IF($B67=DrainCat,IF(I$3=ESALCat,Design!$AH$34:$AQ$57)))) -> 4 | J67: =SUM(IF($A67=SoilCat,IF($B67=DrainCat,IF(J$3=ESALCat,Design!$AH$34:$AQ$57)))) -> 4 | K67: =SUM(IF($A67=SoilCat,IF($B67=DrainCat,IF(K$3=ESALCat,Design!$AH$34:$AQ$57)))) -> 4 | L67: =SUM(IF($A67=SoilCat,IF($B67=DrainCat,IF(L$3=ESALCat,Design!$AH$34:$AQ$57)))) -> 4 | M67: =SUM(IF($A67=SoilCat,IF($B67=DrainCat,IF(M$3=ESALCat,Design!$AH$34:$AQ$57)))) -> 4 | N67: =SUM(IF($A67=SoilCat,IF($B67=DrainCat,IF(N$3=ESALCat,Design!$AH$34:$AQ$57)))) -> 4 | O67: =SUM(IF($A67=SoilCat,IF($B67=DrainCat,IF(O$3=ESALCat,Design!$AH$34:$AQ$57)))) -> 4
A68: 6 | B68: Good | E68: Unbound Dense Graded Base | F68: =SUM(IF($A68=SoilCat,IF($B68=DrainCat,IF(F$3=ESALCat,Design!$BB$34:$BK$57)))) -> 4 | G68: =SUM(IF($A68=SoilCat,IF($B68=DrainCat,IF(G$3=ESALCat,Design!$BB$34:$BK$57)))) -> 4 | H68: =SUM(IF($A68=SoilCat,IF($B68=DrainCat,IF(H$3=ESALCat,Design!$BB$34:$BK$57)))) -> 4 | I68: =SUM(IF($A68=SoilCat,IF($B68=DrainCat,IF(I$3=ESALCat,Design!$BB$34:$BK$57)))) -> 4 | J68: =SUM(IF($A68=SoilCat,IF($B68=DrainCat,IF(J$3=ESALCat,Design!$BB$34:$BK$57)))) -> 4 | K68: =SUM(IF($A68=SoilCat,IF($B68=DrainCat,IF(K$3=ESALCat,Design!$BB$34:$BK$57)))) -> 6 | L68: =SUM(IF($A68=SoilCat,IF($B68=DrainCat,IF(L$3=ESALCat,Design!$BB$34:$BK$57)))) -> 6 | M68: =SUM(IF($A68=SoilCat,IF($B68=DrainCat,IF(M$3=ESALCat,Design!$BB$34:$BK$57)))) -> 6 | N68: =SUM(IF($A68=SoilCat,IF($B68=DrainCat,IF(N$3=ESALCat,Design!$BB$34:$BK$57)))) -> 6 | O68: =SUM(IF($A68=SoilCat,IF($B68=DrainCat,IF(O$3=ESALCat,Design!$BB$34:$BK$57)))) -> 6
A69: 6 | B69: Good | E69: Unbound Dense Graded Subbase | F69: =SUM(IF($A69=SoilCat,IF($B69=DrainCat,IF(F$3=ESALCat,Design!$BV$34:$CE$57)))) -> 0 | G69: =SUM(IF($A69=SoilCat,IF($B69=DrainCat,IF(G$3=ESALCat,Design!$BV$34:$CE$57)))) -> 0 | H69: =SUM(IF($A69=SoilCat,IF($B69=DrainCat,IF(H$3=ESALCat,Design!$BV$34:$CE$57)))) -> 0 | I69: =SUM(IF($A69=SoilCat,IF($B69=DrainCat,IF(I$3=ESALCat,Design!$BV$34:$CE$57)))) -> 0 | J69: =SUM(IF($A69=SoilCat,IF($B69=DrainCat,IF(J$3=ESALCat,Design!$BV$34:$CE$57)))) -> 0 | K69: =SUM(IF($A69=SoilCat,IF($B69=DrainCat,IF(K$3=ESALCat,Design!$BV$34:$CE$57)))) -> 0 | L69: =SUM(IF($A69=SoilCat,IF($B69=DrainCat,IF(L$3=ESALCat,Design!$BV$34:$CE$57)))) -> 0 | M69: =SUM(IF($A69=SoilCat,IF($B69=DrainCat,IF(M$3=ESALCat,Design!$BV$34:$CE$57)))) -> 6 | N69: =SUM(IF($A69=SoilCat,IF($B69=DrainCat,IF(N$3=ESALCat,Design!$BV$34:$CE$57)))) -> 11 | O69: =SUM(IF($A69=SoilCat,IF($B69=DrainCat,IF(O$3=ESALCat,Design!$BV$34:$CE$57)))) -> 16
A70: 6 | B70: Fair | D70: Fair | E70: Pavers and Bedding | F70: =SUM(IF($A70=SoilCat,IF($B70=DrainCat,IF(F$3=ESALCat,Design!$N$34:$W$57)))) -> 4.125 | G70: =SUM(IF($A70=SoilCat,IF($B70=DrainCat,IF(G$3=ESALCat,Design!$N$34:$W$57)))) -> 4.125 | H70: =SUM(IF($A70=SoilCat,IF($B70=DrainCat,IF(H$3=ESALCat,Design!$N$34:$W$57)))) -> 4.125 | I70: =SUM(IF($A70=SoilCat,IF($B70=DrainCat,IF(I$3=ESALCat,Design!$N$34:$W$57)))) -> 4.125 | J70: =SUM(IF($A70=SoilCat,IF($B70=DrainCat,IF(J$3=ESALCat,Design!$N$34:$W$57)))) -> 4.125 | K70: =SUM(IF($A70=SoilCat,IF($B70=DrainCat,IF(K$3=ESALCat,Design!$N$34:$W$57)))) -> 4.125 | L70: =SUM(IF($A70=SoilCat,IF($B70=DrainCat,IF(L$3=ESALCat,Design!$N$34:$W$57)))) -> 4.125 | M70: =SUM(IF($A70=SoilCat,IF($B70=DrainCat,IF(M$3=ESALCat,Design!$N$34:$W$57)))) -> 4.125 | N70: =SUM(IF($A70=SoilCat,IF($B70=DrainCat,IF(N$3=ESALCat,Design!$N$34:$W$57)))) -> 4.125 | O70: =SUM(IF($A70=SoilCat,IF($B70=DrainCat,IF(O$3=ESALCat,Design!$N$34:$W$57)))) -> 4.125
A71: 6 | B71: Fair | E71: Asphalt Treated Base | F71: =SUM(IF($A71=SoilCat,IF($B71=DrainCat,IF(F$3=ESALCat,Design!$AH$34:$AQ$57)))) -> 4 | G71: =SUM(IF($A71=SoilCat,IF($B71=DrainCat,IF(G$3=ESALCat,Design!$AH$34:$AQ$57)))) -> 4 | H71: =SUM(IF($A71=SoilCat,IF($B71=DrainCat,IF(H$3=ESALCat,Design!$AH$34:$AQ$57)))) -> 4 | I71: =SUM(IF($A71=SoilCat,IF($B71=DrainCat,IF(I$3=ESALCat,Design!$AH$34:$AQ$57)))) -> 4 | J71: =SUM(IF($A71=SoilCat,IF($B71=DrainCat,IF(J$3=ESALCat,Design!$AH$34:$AQ$57)))) -> 4 | K71: =SUM(IF($A71=SoilCat,IF($B71=DrainCat,IF(K$3=ESALCat,Design!$AH$34:$AQ$57)))) -> 4 | L71: =SUM(IF($A71=SoilCat,IF($B71=DrainCat,IF(L$3=ESALCat,Design!$AH$34:$AQ$57)))) -> 4 | M71: =SUM(IF($A71=SoilCat,IF($B71=DrainCat,IF(M$3=ESALCat,Design!$AH$34:$AQ$57)))) -> 4 | N71: =SUM(IF($A71=SoilCat,IF($B71=DrainCat,IF(N$3=ESALCat,Design!$AH$34:$AQ$57)))) -> 4 | O71: =SUM(IF($A71=SoilCat,IF($B71=DrainCat,IF(O$3=ESALCat,Design!$AH$34:$AQ$57)))) -> 4
A72: 6 | B72: Fair | E72: Unbound Dense Graded Base | F72: =SUM(IF($A72=SoilCat,IF($B72=DrainCat,IF(F$3=ESALCat,Design!$BB$34:$BK$57)))) -> 4 | G72: =SUM(IF($A72=SoilCat,IF($B72=DrainCat,IF(G$3=ESALCat,Design!$BB$34:$BK$57)))) -> 4 | H72: =SUM(IF($A72=SoilCat,IF($B72=DrainCat,IF(H$3=ESALCat,Design!$BB$34:$BK$57)))) -> 4 | I72: =SUM(IF($A72=SoilCat,IF($B72=DrainCat,IF(I$3=ESALCat,Design!$BB$34:$BK$57)))) -> 4 | J72: =SUM(IF($A72=SoilCat,IF($B72=DrainCat,IF(J$3=ESALCat,Design!$BB$34:$BK$57)))) -> 4 | K72: =SUM(IF($A72=SoilCat,IF($B72=DrainCat,IF(K$3=ESALCat,Design!$BB$34:$BK$57)))) -> 6 | L72: =SUM(IF($A72=SoilCat,IF($B72=DrainCat,IF(L$3=ESALCat,Design!$BB$34:$BK$57)))) -> 6 | M72: =SUM(IF($A72=SoilCat,IF($B72=DrainCat,IF(M$3=ESALCat,Design!$BB$34:$BK$57)))) -> 6 | N72: =SUM(IF($A72=SoilCat,IF($B72=DrainCat,IF(N$3=ESALCat,Design!$BB$34:$BK$57)))) -> 6 | O72: =SUM(IF($A72=SoilCat,IF($B72=DrainCat,IF(O$3=ESALCat,Design!$BB$34:$BK$57)))) -> 6
A73: 6 | B73: Fair | E73: Unbound Dense Graded Subbase | F73: =SUM(IF($A73=SoilCat,IF($B73=DrainCat,IF(F$3=ESALCat,Design!$BV$34:$CE$57)))) -> 0 | G73: =SUM(IF($A73=SoilCat,IF($B73=DrainCat,IF(G$3=ESALCat,Design!$BV$34:$CE$57)))) -> 0 | H73: =SUM(IF($A73=SoilCat,IF($B73=DrainCat,IF(H$3=ESALCat,Design!$BV$34:$CE$57)))) -> 0 | I73: =SUM(IF($A73=SoilCat,IF($B73=DrainCat,IF(I$3=ESALCat,Design!$BV$34:$CE$57)))) -> 0 | J73: =SUM(IF($A73=SoilCat,IF($B73=DrainCat,IF(J$3=ESALCat,Design!$BV$34:$CE$57)))) -> 0 | K73: =SUM(IF($A73=SoilCat,IF($B73=DrainCat,IF(K$3=ESALCat,Design!$BV$34:$CE$57)))) -> 0 | L73: =SUM(IF($A73=SoilCat,IF($B73=DrainCat,IF(L$3=ESALCat,Design!$BV$34:$CE$57)))) -> 6 | M73: =SUM(IF($A73=SoilCat,IF($B73=DrainCat,IF(M$3=ESALCat,Design!$BV$34:$CE$57)))) -> 10 | N73: =SUM(IF($A73=SoilCat,IF($B73=DrainCat,IF(N$3=ESALCat,Design!$BV$34:$CE$57)))) -> 17 | O73: =SUM(IF($A73=SoilCat,IF($B73=DrainCat,IF(O$3=ESALCat,Design!$BV$34:$CE$57)))) -> 23
A74: 6 | B74: Poor | D74: Poor | E74: Pavers and Bedding | F74: =SUM(IF($A74=SoilCat,IF($B74=DrainCat,IF(F$3=ESALCat,Design!$N$34:$W$57)))) -> 4.125 | G74: =SUM(IF($A74=SoilCat,IF($B74=DrainCat,IF(G$3=ESALCat,Design!$N$34:$W$57)))) -> 4.125 | H74: =SUM(IF($A74=SoilCat,IF($B74=DrainCat,IF(H$3=ESALCat,Design!$N$34:$W$57)))) -> 4.125 | I74: =SUM(IF($A74=SoilCat,IF($B74=DrainCat,IF(I$3=ESALCat,Design!$N$34:$W$57)))) -> 4.125 | J74: =SUM(IF($A74=SoilCat,IF($B74=DrainCat,IF(J$3=ESALCat,Design!$N$34:$W$57)))) -> 4.125 | K74: =SUM(IF($A74=SoilCat,IF($B74=DrainCat,IF(K$3=ESALCat,Design!$N$34:$W$57)))) -> 4.125 | L74: =SUM(IF($A74=SoilCat,IF($B74=DrainCat,IF(L$3=ESALCat,Design!$N$34:$W$57)))) -> 4.125 | M74: =SUM(IF($A74=SoilCat,IF($B74=DrainCat,IF(M$3=ESALCat,Design!$N$34:$W$57)))) -> 4.125 | N74: =SUM(IF($A74=SoilCat,IF($B74=DrainCat,IF(N$3=ESALCat,Design!$N$34:$W$57)))) -> 4.125 | O74: =SUM(IF($A74=SoilCat,IF($B74=DrainCat,IF(O$3=ESALCat,Design!$N$34:$W$57)))) -> 4.125
A75: 6 | B75: Poor | E75: Asphalt Treated Base | F75: =SUM(IF($A75=SoilCat,IF($B75=DrainCat,IF(F$3=ESALCat,Design!$AH$34:$AQ$57)))) -> 4 | G75: =SUM(IF($A75=SoilCat,IF($B75=DrainCat,IF(G$3=ESALCat,Design!$AH$34:$AQ$57)))) -> 4 | H75: =SUM(IF($A75=SoilCat,IF($B75=DrainCat,IF(H$3=ESALCat,Design!$AH$34:$AQ$57)))) -> 4 | I75: =SUM(IF($A75=SoilCat,IF($B75=DrainCat,IF(I$3=ESALCat,Design!$AH$34:$AQ$57)))) -> 4 | J75: =SUM(IF($A75=SoilCat,IF($B75=DrainCat,IF(J$3=ESALCat,Design!$AH$34:$AQ$57)))) -> 4 | K75: =SUM(IF($A75=SoilCat,IF($B75=DrainCat,IF(K$3=ESALCat,Design!$AH$34:$AQ$57)))) -> 4 | L75: =SUM(IF($A75=SoilCat,IF($B75=DrainCat,IF(L$3=ESALCat,Design!$AH$34:$AQ$57)))) -> 4 | M75: =SUM(IF($A75=SoilCat,IF($B75=DrainCat,IF(M$3=ESALCat,Design!$AH$34:$AQ$57)))) -> 4 | N75: =SUM(IF($A75=SoilCat,IF($B75=DrainCat,IF(N$3=ESALCat,Design!$AH$34:$AQ$57)))) -> 4 | O75: =SUM(IF($A75=SoilCat,IF($B75=DrainCat,IF(O$3=ESALCat,Design!$AH$34:$AQ$57)))) -> 4
A76: 6 | B76: Poor | E76: Unbound Dense Graded Base | F76: =SUM(IF($A76=SoilCat,IF($B76=DrainCat,IF(F$3=ESALCat,Design!$BB$34:$BK$57)))) -> 4 | G76: =SUM(IF($A76=SoilCat,IF($B76=DrainCat,IF(G$3=ESALCat,Design!$BB$34:$BK$57)))) -> 4 | H76: =SUM(IF($A76=SoilCat,IF($B76=DrainCat,IF(H$3=ESALCat,Design!$BB$34:$BK$57)))) -> 4 | I76: =SUM(IF($A76=SoilCat,IF($B76=DrainCat,IF(I$3=ESALCat,Design!$BB$34:$BK$57)))) -> 4 | J76: =SUM(IF($A76=SoilCat,IF($B76=DrainCat,IF(J$3=ESALCat,Design!$BB$34:$BK$57)))) -> 6 | K76: =SUM(IF($A76=SoilCat,IF($B76=DrainCat,IF(K$3=ESALCat,Design!$BB$34:$BK$57)))) -> 6 | L76: =SUM(IF($A76=SoilCat,IF($B76=DrainCat,IF(L$3=ESALCat,Design!$BB$34:$BK$57)))) -> 6 | M76: =SUM(IF($A76=SoilCat,IF($B76=DrainCat,IF(M$3=ESALCat,Design!$BB$34:$BK$57)))) -> 6 | N76: =SUM(IF($A76=SoilCat,IF($B76=DrainCat,IF(N$3=ESALCat,Design!$BB$34:$BK$57)))) -> 6 | O76: =SUM(IF($A76=SoilCat,IF($B76=DrainCat,IF(O$3=ESALCat,Design!$BB$34:$BK$57)))) -> 6
A77: 6 | B77: Poor | E77: Unbound Dense Graded Subbase | F77: =SUM(IF($A77=SoilCat,IF($B77=DrainCat,IF(F$3=ESALCat,Design!$BV$34:$CE$57)))) -> 0 | G77: =SUM(IF($A77=SoilCat,IF($B77=DrainCat,IF(G$3=ESALCat,Design!$BV$34:$CE$57)))) -> 0 | H77: =SUM(IF($A77=SoilCat,IF($B77=DrainCat,IF(H$3=ESALCat,Design!$BV$34:$CE$57)))) -> 0 | I77: =SUM(IF($A77=SoilCat,IF($B77=DrainCat,IF(I$3=ESALCat,Design!$BV$34:$CE$57)))) -> 0 | J77: =SUM(IF($A77=SoilCat,IF($B77=DrainCat,IF(J$3=ESALCat,Design!$BV$34:$CE$57)))) -> 0 | K77: =SUM(IF($A77=SoilCat,IF($B77=DrainCat,IF(K$3=ESALCat,Design!$BV$34:$CE$57)))) -> 6 | L77: =SUM(IF($A77=SoilCat,IF($B77=DrainCat,IF(L$3=ESALCat,Design!$BV$34:$CE$57)))) -> 11 | M77: =SUM(IF($A77=SoilCat,IF($B77=DrainCat,IF(M$3=ESALCat,Design!$BV$34:$CE$57)))) -> 16 | N77: =SUM(IF($A77=SoilCat,IF($B77=DrainCat,IF(N$3=ESALCat,Design!$BV$34:$CE$57)))) -> 24 | O77: =SUM(IF($A77=SoilCat,IF($B77=DrainCat,IF(O$3=ESALCat,Design!$BV$34:$CE$57)))) -> 30
A78: 7 | B78: Good | C78: Category 7 | D78: Good | E78: Pavers and Bedding | F78: =SUM(IF($A78=SoilCat,IF($B78=DrainCat,IF(F$3=ESALCat,Design!$N$34:$W$57)))) -> 4.125 | G78: =SUM(IF($A78=SoilCat,IF($B78=DrainCat,IF(G$3=ESALCat,Design!$N$34:$W$57)))) -> 4.125 | H78: =SUM(IF($A78=SoilCat,IF($B78=DrainCat,IF(H$3=ESALCat,Design!$N$34:$W$57)))) -> 4.125 | I78: =SUM(IF($A78=SoilCat,IF($B78=DrainCat,IF(I$3=ESALCat,Design!$N$34:$W$57)))) -> 4.125 | J78: =SUM(IF($A78=SoilCat,IF($B78=DrainCat,IF(J$3=ESALCat,Design!$N$34:$W$57)))) -> 4.125 | K78: =SUM(IF($A78=SoilCat,IF($B78=DrainCat,IF(K$3=ESALCat,Design!$N$34:$W$57)))) -> 4.125 | L78: =SUM(IF($A78=SoilCat,IF($B78=DrainCat,IF(L$3=ESALCat,Design!$N$34:$W$57)))) -> 4.125 | M78: =SUM(IF($A78=SoilCat,IF($B78=DrainCat,IF(M$3=ESALCat,Design!$N$34:$W$57)))) -> 4.125 | N78: =SUM(IF($A78=SoilCat,IF($B78=DrainCat,IF(N$3=ESALCat,Design!$N$34:$W$57)))) -> 4.125 | O78: =SUM(IF($A78=SoilCat,IF($B78=DrainCat,IF(O$3=ESALCat,Design!$N$34:$W$57)))) -> 4.125
A79: 7 | B79: Good | E79: Asphalt Treated Base | F79: =SUM(IF($A79=SoilCat,IF($B79=DrainCat,IF(F$3=ESALCat,Design!$AH$34:$AQ$57)))) -> 4 | G79: =SUM(IF($A79=SoilCat,IF($B79=DrainCat,IF(G$3=ESALCat,Design!$AH$34:$AQ$57)))) -> 4 | H79: =SUM(IF($A79=SoilCat,IF($B79=DrainCat,IF(H$3=ESALCat,Design!$AH$34:$AQ$57)))) -> 4 | I79: =SUM(IF($A79=SoilCat,IF($B79=DrainCat,IF(I$3=ESALCat,Design!$AH$34:$AQ$57)))) -> 4 | J79: =SUM(IF($A79=SoilCat,IF($B79=DrainCat,IF(J$3=ESALCat,Design!$AH$34:$AQ$57)))) -> 4 | K79: =SUM(IF($A79=SoilCat,IF($B79=DrainCat,IF(K$3=ESALCat,Design!$AH$34:$AQ$57)))) -> 4 | L79: =SUM(IF($A79=SoilCat,IF($B79=DrainCat,IF(L$3=ESALCat,Design!$AH$34:$AQ$57)))) -> 4 | M79: =SUM(IF($A79=SoilCat,IF($B79=DrainCat,IF(M$3=ESALCat,Design!$AH$34:$AQ$57)))) -> 4 | N79: =SUM(IF($A79=SoilCat,IF($B79=DrainCat,IF(N$3=ESALCat,Design!$AH$34:$AQ$57)))) -> 4 | O79: =SUM(IF($A79=SoilCat,IF($B79=DrainCat,IF(O$3=ESALCat,Design!$AH$34:$AQ$57)))) -> 4
A80: 7 | B80: Good | E80: Unbound Dense Graded Base | F80: =SUM(IF($A80=SoilCat,IF($B80=DrainCat,IF(F$3=ESALCat,Design!$BB$34:$BK$57)))) -> 4 | G80: =SUM(IF($A80=SoilCat,IF($B80=DrainCat,IF(G$3=ESALCat,Design!$BB$34:$BK$57)))) -> 4 | H80: =SUM(IF($A80=SoilCat,IF($B80=DrainCat,IF(H$3=ESALCat,Design!$BB$34:$BK$57)))) -> 4 | I80: =SUM(IF($A80=SoilCat,IF($B80=DrainCat,IF(I$3=ESALCat,Design!$BB$34:$BK$57)))) -> 4 | J80: =SUM(IF($A80=SoilCat,IF($B80=DrainCat,IF(J$3=ESALCat,Design!$BB$34:$BK$57)))) -> 4 | K80: =SUM(IF($A80=SoilCat,IF($B80=DrainCat,IF(K$3=ESALCat,Design!$BB$34:$BK$57)))) -> 6 | L80: =SUM(IF($A80=SoilCat,IF($B80=DrainCat,IF(L$3=ESALCat,Design!$BB$34:$BK$57)))) -> 8 | M80: =SUM(IF($A80=SoilCat,IF($B80=DrainCat,IF(M$3=ESALCat,Design!$BB$34:$BK$57)))) -> 6 | N80: =SUM(IF($A80=SoilCat,IF($B80=DrainCat,IF(N$3=ESALCat,Design!$BB$34:$BK$57)))) -> 6 | O80: =SUM(IF($A80=SoilCat,IF($B80=DrainCat,IF(O$3=ESALCat,Design!$BB$34:$BK$57)))) -> 6
A81: 7 | B81: Good | E81: Unbound Dense Graded Subbase | F81: =SUM(IF($A81=SoilCat,IF($B81=DrainCat,IF(F$3=ESALCat,Design!$BV$34:$CE$57)))) -> 0 | G81: =SUM(IF($A81=SoilCat,IF($B81=DrainCat,IF(G$3=ESALCat,Design!$BV$34:$CE$57)))) -> 0 | H81: =SUM(IF($A81=SoilCat,IF($B81=DrainCat,IF(H$3=ESALCat,Design!$BV$34:$CE$57)))) -> 0 | I81: =SUM(IF($A81=SoilCat,IF($B81=DrainCat,IF(I$3=ESALCat,Design!$BV$34:$CE$57)))) -> 0 | J81: =SUM(IF($A81=SoilCat,IF($B81=DrainCat,IF(J$3=ESALCat,Design!$BV$34:$CE$57)))) -> 0 | K81: =SUM(IF($A81=SoilCat,IF($B81=DrainCat,IF(K$3=ESALCat,Design!$BV$34:$CE$57)))) -> 0 | L81: =SUM(IF($A81=SoilCat,IF($B81=DrainCat,IF(L$3=ESALCat,Design!$BV$34:$CE$57)))) -> 0 | M81: =SUM(IF($A81=SoilCat,IF($B81=DrainCat,IF(M$3=ESALCat,Design!$BV$34:$CE$57)))) -> 8 | N81: =SUM(IF($A81=SoilCat,IF($B81=DrainCat,IF(N$3=ESALCat,Design!$BV$34:$CE$57)))) -> 15 | O81: =SUM(IF($A81=SoilCat,IF($B81=DrainCat,IF(O$3=ESALCat,Design!$BV$34:$CE$57)))) -> 20
A82: 7 | B82: Fair | D82: Fair | E82: Pavers and Bedding | F82: =SUM(IF($A82=SoilCat,IF($B82=DrainCat,IF(F$3=ESALCat,Design!$N$34:$W$57)))) -> 4.125 | G82: =SUM(IF($A82=SoilCat,IF($B82=DrainCat,IF(G$3=ESALCat,Design!$N$34:$W$57)))) -> 4.125 | H82: =SUM(IF($A82=SoilCat,IF($B82=DrainCat,IF(H$3=ESALCat,Design!$N$34:$W$57)))) -> 4.125 | I82: =SUM(IF($A82=SoilCat,IF($B82=DrainCat,IF(I$3=ESALCat,Design!$N$34:$W$57)))) -> 4.125 | J82: =SUM(IF($A82=SoilCat,IF($B82=DrainCat,IF(J$3=ESALCat,Design!$N$34:$W$57)))) -> 4.125 | K82: =SUM(IF($A82=SoilCat,IF($B82=DrainCat,IF(K$3=ESALCat,Design!$N$34:$W$57)))) -> 4.125 | L82: =SUM(IF($A82=SoilCat,IF($B82=DrainCat,IF(L$3=ESALCat,Design!$N$34:$W$57)))) -> 4.125 | M82: =SUM(IF($A82=SoilCat,IF($B82=DrainCat,IF(M$3=ESALCat,Design!$N$34:$W$57)))) -> 4.125 | N82: =SUM(IF($A82=SoilCat,IF($B82=DrainCat,IF(N$3=ESALCat,Design!$N$34:$W$57)))) -> 4.125 | O82: =SUM(IF($A82=SoilCat,IF($B82=DrainCat,IF(O$3=ESALCat,Design!$N$34:$W$57)))) -> 4.125
A83: 7 | B83: Fair | E83: Asphalt Treated Base | F83: =SUM(IF($A83=SoilCat,IF($B83=DrainCat,IF(F$3=ESALCat,Design!$AH$34:$AQ$57)))) -> 4 | G83: =SUM(IF($A83=SoilCat,IF($B83=DrainCat,IF(G$3=ESALCat,Design!$AH$34:$AQ$57)))) -> 4 | H83: =SUM(IF($A83=SoilCat,IF($B83=DrainCat,IF(H$3=ESALCat,Design!$AH$34:$AQ$57)))) -> 4 | I83: =SUM(IF($A83=SoilCat,IF($B83=DrainCat,IF(I$3=ESALCat,Design!$AH$34:$AQ$57)))) -> 4 | J83: =SUM(IF($A83=SoilCat,IF($B83=DrainCat,IF(J$3=ESALCat,Design!$AH$34:$AQ$57)))) -> 4 | K83: =SUM(IF($A83=SoilCat,IF($B83=DrainCat,IF(K$3=ESALCat,Design!$AH$34:$AQ$57)))) -> 4 | L83: =SUM(IF($A83=SoilCat,IF($B83=DrainCat,IF(L$3=ESALCat,Design!$AH$34:$AQ$57)))) -> 4 | M83: =SUM(IF($A83=SoilCat,IF($B83=DrainCat,IF(M$3=ESALCat,Design!$AH$34:$AQ$57)))) -> 4 | N83: =SUM(IF($A83=SoilCat,IF($B83=DrainCat,IF(N$3=ESALCat,Design!$AH$34:$AQ$57)))) -> 4 | O83: =SUM(IF($A83=SoilCat,IF($B83=DrainCat,IF(O$3=ESALCat,Design!$AH$34:$AQ$57)))) -> 4
A84: 7 | B84: Fair | E84: Unbound Dense Graded Base | F84: =SUM(IF($A84=SoilCat,IF($B84=DrainCat,IF(F$3=ESALCat,Design!$BB$34:$BK$57)))) -> 4 | G84: =SUM(IF($A84=SoilCat,IF($B84=DrainCat,IF(G$3=ESALCat,Design!$BB$34:$BK$57)))) -> 4 | H84: =SUM(IF($A84=SoilCat,IF($B84=DrainCat,IF(H$3=ESALCat,Design!$BB$34:$BK$57)))) -> 4 | I84: =SUM(IF($A84=SoilCat,IF($B84=DrainCat,IF(I$3=ESALCat,Design!$BB$34:$BK$57)))) -> 4 | J84: =SUM(IF($A84=SoilCat,IF($B84=DrainCat,IF(J$3=ESALCat,Design!$BB$34:$BK$57)))) -> 4 | K84: =SUM(IF($A84=SoilCat,IF($B84=DrainCat,IF(K$3=ESALCat,Design!$BB$34:$BK$57)))) -> 8 | L84: =SUM(IF($A84=SoilCat,IF($B84=DrainCat,IF(L$3=ESALCat,Design!$BB$34:$BK$57)))) -> 6 | M84: =SUM(IF($A84=SoilCat,IF($B84=DrainCat,IF(M$3=ESALCat,Design!$BB$34:$BK$57)))) -> 6 | N84: =SUM(IF($A84=SoilCat,IF($B84=DrainCat,IF(N$3=ESALCat,Design!$BB$34:$BK$57)))) -> 6 | O84: =SUM(IF($A84=SoilCat,IF($B84=DrainCat,IF(O$3=ESALCat,Design!$BB$34:$BK$57)))) -> 6
A85: 7 | B85: Fair | E85: Unbound Dense Graded Subbase | F85: =SUM(IF($A85=SoilCat,IF($B85=DrainCat,IF(F$3=ESALCat,Design!$BV$34:$CE$57)))) -> 0 | G85: =SUM(IF($A85=SoilCat,IF($B85=DrainCat,IF(G$3=ESALCat,Design!$BV$34:$CE$57)))) -> 0 | H85: =SUM(IF($A85=SoilCat,IF($B85=DrainCat,IF(H$3=ESALCat,Design!$BV$34:$CE$57)))) -> 0 | I85: =SUM(IF($A85=SoilCat,IF($B85=DrainCat,IF(I$3=ESALCat,Design!$BV$34:$CE$57)))) -> 0 | J85: =SUM(IF($A85=SoilCat,IF($B85=DrainCat,IF(J$3=ESALCat,Design!$BV$34:$CE$57)))) -> 0 | K85: =SUM(IF($A85=SoilCat,IF($B85=DrainCat,IF(K$3=ESALCat,Design!$BV$34:$CE$57)))) -> 0 | L85: =SUM(IF($A85=SoilCat,IF($B85=DrainCat,IF(L$3=ESALCat,Design!$BV$34:$CE$57)))) -> 7 | M85: =SUM(IF($A85=SoilCat,IF($B85=DrainCat,IF(M$3=ESALCat,Design!$BV$34:$CE$57)))) -> 13 | N85: =SUM(IF($A85=SoilCat,IF($B85=DrainCat,IF(N$3=ESALCat,Design!$BV$34:$CE$57)))) -> 20 | O85: =SUM(IF($A85=SoilCat,IF($B85=DrainCat,IF(O$3=ESALCat,Design!$BV$34:$CE$57)))) -> 26
A86: 7 | B86: Poor | D86: Poor | E86: Pavers and Bedding | F86: =SUM(IF($A86=SoilCat,IF($B86=DrainCat,IF(F$3=ESALCat,Design!$N$34:$W$57)))) -> 4.125 | G86: =SUM(IF($A86=SoilCat,IF($B86=DrainCat,IF(G$3=ESALCat,Design!$N$34:$W$57)))) -> 4.125 | H86: =SUM(IF($A86=SoilCat,IF($B86=DrainCat,IF(H$3=ESALCat,Design!$N$34:$W$57)))) -> 4.125 | I86: =SUM(IF($A86=SoilCat,IF($B86=DrainCat,IF(I$3=ESALCat,Design!$N$34:$W$57)))) -> 4.125 | J86: =SUM(IF($A86=SoilCat,IF($B86=DrainCat,IF(J$3=ESALCat,Design!$N$34:$W$57)))) -> 4.125 | K86: =SUM(IF($A86=SoilCat,IF($B86=DrainCat,IF(K$3=ESALCat,Design!$N$34:$W$57)))) -> 4.125 | L86: =SUM(IF($A86=SoilCat,IF($B86=DrainCat,IF(L$3=ESALCat,Design!$N$34:$W$57)))) -> 4.125 | M86: =SUM(IF($A86=SoilCat,IF($B86=DrainCat,IF(M$3=ESALCat,Design!$N$34:$W$57)))) -> 4.125 | N86: =SUM(IF($A86=SoilCat,IF($B86=DrainCat,IF(N$3=ESALCat,Design!$N$34:$W$57)))) -> 4.125 | O86: =SUM(IF($A86=SoilCat,IF($B86=DrainCat,IF(O$3=ESALCat,Design!$N$34:$W$57)))) -> 4.125
A87: 7 | B87: Poor | E87: Asphalt Treated Base | F87: =SUM(IF($A87=SoilCat,IF($B87=DrainCat,IF(F$3=ESALCat,Design!$AH$34:$AQ$57)))) -> 4 | G87: =SUM(IF($A87=SoilCat,IF($B87=DrainCat,IF(G$3=ESALCat,Design!$AH$34:$AQ$57)))) -> 4 | H87: =SUM(IF($A87=SoilCat,IF($B87=DrainCat,IF(H$3=ESALCat,Design!$AH$34:$AQ$57)))) -> 4 | I87: =SUM(IF($A87=SoilCat,IF($B87=DrainCat,IF(I$3=ESALCat,Design!$AH$34:$AQ$57)))) -> 4 | J87: =SUM(IF($A87=SoilCat,IF($B87=DrainCat,IF(J$3=ESALCat,Design!$AH$34:$AQ$57)))) -> 4 | K87: =SUM(IF($A87=SoilCat,IF($B87=DrainCat,IF(K$3=ESALCat,Design!$AH$34:$AQ$57)))) -> 4 | L87: =SUM(IF($A87=SoilCat,IF($B87=DrainCat,IF(L$3=ESALCat,Design!$AH$34:$AQ$57)))) -> 4 | M87: =SUM(IF($A87=SoilCat,IF($B87=DrainCat,IF(M$3=ESALCat,Design!$AH$34:$AQ$57)))) -> 4 | N87: =SUM(IF($A87=SoilCat,IF($B87=DrainCat,IF(N$3=ESALCat,Design!$AH$34:$AQ$57)))) -> 4 | O87: =SUM(IF($A87=SoilCat,IF($B87=DrainCat,IF(O$3=ESALCat,Design!$AH$34:$AQ$57)))) -> 4
A88: 7 | B88: Poor | E88: Unbound Dense Graded Base | F88: =SUM(IF($A88=SoilCat,IF($B88=DrainCat,IF(F$3=ESALCat,Design!$BB$34:$BK$57)))) -> 4 | G88: =SUM(IF($A88=SoilCat,IF($B88=DrainCat,IF(G$3=ESALCat,Design!$BB$34:$BK$57)))) -> 4 | H88: =SUM(IF($A88=SoilCat,IF($B88=DrainCat,IF(H$3=ESALCat,Design!$BB$34:$BK$57)))) -> 4 | I88: =SUM(IF($A88=SoilCat,IF($B88=DrainCat,IF(I$3=ESALCat,Design!$BB$34:$BK$57)))) -> 5 | J88: =SUM(IF($A88=SoilCat,IF($B88=DrainCat,IF(J$3=ESALCat,Design!$BB$34:$BK$57)))) -> 8 | K88: =SUM(IF($A88=SoilCat,IF($B88=DrainCat,IF(K$3=ESALCat,Design!$BB$34:$BK$57)))) -> 6 | L88: =SUM(IF($A88=SoilCat,IF($B88=DrainCat,IF(L$3=ESALCat,Design!$BB$34:$BK$57)))) -> 6 | M88: =SUM(IF($A88=SoilCat,IF($B88=DrainCat,IF(M$3=ESALCat,Design!$BB$34:$BK$57)))) -> 6 | N88: =SUM(IF($A88=SoilCat,IF($B88=DrainCat,IF(N$3=ESALCat,Design!$BB$34:$BK$57)))) -> 6 | O88: =SUM(IF($A88=SoilCat,IF($B88=DrainCat,IF(O$3=ESALCat,Design!$BB$34:$BK$57)))) -> 6
A89: 7 | B89: Poor | E89: Unbound Dense Graded Subbase | F89: =SUM(IF($A89=SoilCat,IF($B89=DrainCat,IF(F$3=ESALCat,Design!$BV$34:$CE$57)))) -> 0 | G89: =SUM(IF($A89=SoilCat,IF($B89=DrainCat,IF(G$3=ESALCat,Design!$BV$34:$CE$57)))) -> 0 | H89: =SUM(IF($A89=SoilCat,IF($B89=DrainCat,IF(H$3=ESALCat,Design!$BV$34:$CE$57)))) -> 0 | I89: =SUM(IF($A89=SoilCat,IF($B89=DrainCat,IF(I$3=ESALCat,Design!$BV$34:$CE$57)))) -> 0 | J89: =SUM(IF($A89=SoilCat,IF($B89=DrainCat,IF(J$3=ESALCat,Design!$BV$34:$CE$57)))) -> 0 | K89: =SUM(IF($A89=SoilCat,IF($B89=DrainCat,IF(K$3=ESALCat,Design!$BV$34:$CE$57)))) -> 9 | L89: =SUM(IF($A89=SoilCat,IF($B89=DrainCat,IF(L$3=ESALCat,Design!$BV$34:$CE$57)))) -> 15 | M89: =SUM(IF($A89=SoilCat,IF($B89=DrainCat,IF(M$3=ESALCat,Design!$BV$34:$CE$57)))) -> 20 | N89: =SUM(IF($A89=SoilCat,IF($B89=DrainCat,IF(N$3=ESALCat,Design!$BV$34:$CE$57)))) -> 28 | O89: =SUM(IF($A89=SoilCat,IF($B89=DrainCat,IF(O$3=ESALCat,Design!$BV$34:$CE$57)))) -> 35
A90: 8 | B90: Good | C90: Category 8 | D90: Good | E90: Pavers and Bedding | F90: =SUM(IF($A90=SoilCat,IF($B90=DrainCat,IF(F$3=ESALCat,Design!$N$34:$W$57)))) -> 4.125 | G90: =SUM(IF($A90=SoilCat,IF($B90=DrainCat,IF(G$3=ESALCat,Design!$N$34:$W$57)))) -> 4.125 | H90: =SUM(IF($A90=SoilCat,IF($B90=DrainCat,IF(H$3=ESALCat,Design!$N$34:$W$57)))) -> 4.125 | I90: =SUM(IF($A90=SoilCat,IF($B90=DrainCat,IF(I$3=ESALCat,Design!$N$34:$W$57)))) -> 4.125 | J90: =SUM(IF($A90=SoilCat,IF($B90=DrainCat,IF(J$3=ESALCat,Design!$N$34:$W$57)))) -> 4.125 | K90: =SUM(IF($A90=SoilCat,IF($B90=DrainCat,IF(K$3=ESALCat,Design!$N$34:$W$57)))) -> 4.125 | L90: =SUM(IF($A90=SoilCat,IF($B90=DrainCat,IF(L$3=ESALCat,Design!$N$34:$W$57)))) -> 4.125 | M90: =SUM(IF($A90=SoilCat,IF($B90=DrainCat,IF(M$3=ESALCat,Design!$N$34:$W$57)))) -> 4.125 | N90: =SUM(IF($A90=SoilCat,IF($B90=DrainCat,IF(N$3=ESALCat,Design!$N$34:$W$57)))) -> 4.125 | O90: =SUM(IF($A90=SoilCat,IF($B90=DrainCat,IF(O$3=ESALCat,Design!$N$34:$W$57)))) -> 4.125
A91: 8 | B91: Good | E91: Asphalt Treated Base | F91: =SUM(IF($A91=SoilCat,IF($B91=DrainCat,IF(F$3=ESALCat,Design!$AH$34:$AQ$57)))) -> 4 | G91: =SUM(IF($A91=SoilCat,IF($B91=DrainCat,IF(G$3=ESALCat,Design!$AH$34:$AQ$57)))) -> 4 | H91: =SUM(IF($A91=SoilCat,IF($B91=DrainCat,IF(H$3=ESALCat,Design!$AH$34:$AQ$57)))) -> 4 | I91: =SUM(IF($A91=SoilCat,IF($B91=DrainCat,IF(I$3=ESALCat,Design!$AH$34:$AQ$57)))) -> 4 | J91: =SUM(IF($A91=SoilCat,IF($B91=DrainCat,IF(J$3=ESALCat,Design!$AH$34:$AQ$57)))) -> 4 | K91: =SUM(IF($A91=SoilCat,IF($B91=DrainCat,IF(K$3=ESALCat,Design!$AH$34:$AQ$57)))) -> 4 | L91: =SUM(IF($A91=SoilCat,IF($B91=DrainCat,IF(L$3=ESALCat,Design!$AH$34:$AQ$57)))) -> 4 | M91: =SUM(IF($A91=SoilCat,IF($B91=DrainCat,IF(M$3=ESALCat,Design!$AH$34:$AQ$57)))) -> 4 | N91: =SUM(IF($A91=SoilCat,IF($B91=DrainCat,IF(N$3=ESALCat,Design!$AH$34:$AQ$57)))) -> 4 | O91: =SUM(IF($A91=SoilCat,IF($B91=DrainCat,IF(O$3=ESALCat,Design!$AH$34:$AQ$57)))) -> 4
A92: 8 | B92: Good | E92: Unbound Dense Graded Base | F92: =SUM(IF($A92=SoilCat,IF($B92=DrainCat,IF(F$3=ESALCat,Design!$BB$34:$BK$57)))) -> 4 | G92: =SUM(IF($A92=SoilCat,IF($B92=DrainCat,IF(G$3=ESALCat,Design!$BB$34:$BK$57)))) -> 4 | H92: =SUM(IF($A92=SoilCat,IF($B92=DrainCat,IF(H$3=ESALCat,Design!$BB$34:$BK$57)))) -> 4 | I92: =SUM(IF($A92=SoilCat,IF($B92=DrainCat,IF(I$3=ESALCat,Design!$BB$34:$BK$57)))) -> 4 | J92: =SUM(IF($A92=SoilCat,IF($B92=DrainCat,IF(J$3=ESALCat,Design!$BB$34:$BK$57)))) -> 4 | K92: =SUM(IF($A92=SoilCat,IF($B92=DrainCat,IF(K$3=ESALCat,Design!$BB$34:$BK$57)))) -> 6 | L92: =SUM(IF($A92=SoilCat,IF($B92=DrainCat,IF(L$3=ESALCat,Design!$BB$34:$BK$57)))) -> 6 | M92: =SUM(IF($A92=SoilCat,IF($B92=DrainCat,IF(M$3=ESALCat,Design!$BB$34:$BK$57)))) -> 6 | N92: =SUM(IF($A92=SoilCat,IF($B92=DrainCat,IF(N$3=ESALCat,Design!$BB$34:$BK$57)))) -> 6 | O92: =SUM(IF($A92=SoilCat,IF($B92=DrainCat,IF(O$3=ESALCat,Design!$BB$34:$BK$57)))) -> 6
